Workbook

Sheet Remise (hidden)
C4: Remise | D4: 0

Sheet Logo
C2: Veuillez insérer le logo de l'entreprise partenaire dans le cadre ci-dessous :
C4: 1
B5: 1 | E5: Veuillez uniquement insérer/modifier un logo
A8: Cliquez sur le bouton pour rejoindre :

Sheet Notice d'utilisation
J6: =+CONCATENATE("Notice d'utilisation de l'outil PAC - ",Dimensionnement!$C$11) -> Notice d'utilisation de l'outil PAC - Version 04/2020_v01
C8: Nous contacter
D9: Si vous avez besoin d'un renseignement supplémentaire, si vous avez une proposition d'amélioration à nous faire parvenir contactez nous à l'adresse Tools@bdrthermea.fr
D10: En cas de problème d'utilisation de l'outil, contactez-nous à l'adresse Tools@bdrthermea.fr en joignant à votre mail le fichier excel avec la configuration qui fait défaut.
C13: Les nouveautés de l'outil | H13: Dernière mise à jour : | I13: =Dimensionnement!$C$11 -> Version 04/2020_v01
D17: Dimensionnement
D18: 1) | E18: Ajout de la gamme OEnoviaPac-C MB (Monobloc)
D19: 2) | E19: Remplacement des gammes OEnoviaPac First par OEnoviaPac-C First et OEnoviaPac Slim par OEnoviaPac-C Slim (nouvelle régulation)
D20: 3) | E20: OEnoviaPac Confort disponible en cascade (2 unités identiques)
D26: Chiffrage
D27: 1) | E27: Actualisation des aides financières 2020. Prise en compte de l'aide MaPrimeRénov.
D28: 2) | E28: Chiffrage des OEnoviaPac-C MB (Monobloc)
D29: 3) | E29: Changement de références pour les hybrides foul.
D30: 4) | E30: Ajout d'accessoires tels que bouteille de découplage et soupape différentielle.
D31: 5) | E31: Chiffrage de cascades de 2 OEnoviaPac Confort identiques disponible
D32: 6) | E32: Chiffrage de OEnoviaGaz-Hybrid propane disponible
D34: Autres changements
D35: 1) | E35: Possibilité d'insérer un logo d'un partenaire
D36: 2) | E36: Navigation entre les onglets de l'outil repensée : création d'un bandeau.
C44: Ce qu'il faut savoir
D46: Sélection | E46: = Les cases de cette forme sont des sélections. L'utilisateur doit soit choisir parmis les solutions proposées dans le menu déroulant, soit indiquer une valeur propre à son projet.
D48: Résultat | E48: = Les cases de cette forme sont des résultats. Ils indiquent des résultats intermédiaires ou finaux en fonction des paramètres entrés précedemment.
D50: Erreur | E50: = Les cases de cette forme sont des erreurs. Elle indique que la valeur sélectionnée n'est pas cohérente. Il faut donc sélectionner une autre valeur.
E51: Pour que le résultat soit correct et corresponde aux paramètres indiqués, aucune case | N51: ne doit être visible.
C53: Début de la notice d'utilisation
B55: I) | C55: Dimensionnement de la PAC (Pompe à chaleur)
B57: 1.
B64: ► | C64: Sélectionnez tout d'abord le département dans lequel se trouve votre projet ainsi que l'altitude du lieu.
C65: Ces données permettront, à partir des données géographiques et météorologiques, de déterminer la température extérieure de base, utile pour le dimensionnement de la PAC.
B69: 2.
B84: ► | C84: L'outil permet de réaliser des études en maison neuves ET en rénovation (depuis 07/2019)
C85: Adaptez le menu correspondant à votre cas d'étude
B87: ► | C87: Indiquez les caractéristiques du bâtiment
B90: 3.
B107: ► | C107: En fonction du type d'étude sélectionné (maison neuve OU rénovation) plusieurs champs sont à remplir
B109: ► | C109: Indiquez le nombre de personnes dans le logement et la consommation d'eau chaude journalière et la consommation annuelle d'énergie (dans cet exemple le volume de fioul).
B111: ► | C111: Il est nécessaire de déterminer les déperditions du bâtiment. Plusieurs méthodes sont possibles :
C112: - La puissance de déperditions est connue. Indiquez "OUI" dans le menu "Déperditions connues?" puis entrez la valeur en kW dans la case correspondante.
C113: - La puissance de déperditions n'est pas connue. Indiquez "NON" dans le menu "Déperditions connues?".
D114: - Si vous connaissez le coefficient d'isolation G, indiquez "OUI" dans "Niveau d'isolation connu?" puis suivez les différentes étapes.
D115: - Si vous ne connaissez pas le coefficient d'isolation G, indiquez "NON" dans "Niveau d'isolation connu?" puis suivez les différentes étapes.
B117: ► | C117: Vous obtiendrez finalement une puissance qui caractérise les déperditions du bâtiment.
B120: 4.
B126: ► | C126: Cette partie détaille les besoins annuels pour le chauffage et pour l'eau chaude sanitaire.
B129: 5.
B135: ► | C135: Cette partie permet de définir le type de produit que vous souhaitez.
C136: - PAC Air/Eau Hybride : C'est une Pompe à Chaleur Air/Eau intégrant un appoint fioul basse température ou condensation ou alors un appoint gaz condensation.
C137: - PAC Air/Eau + Appoint séparé : C'est une Pompe à Chaleur Air/Eau pouvant être couplée à un appoint séparé hydraulique ou électrique.
C138: - PAC Eau/Eau : C'est une Pompe à Chaleur Eau/Eau fonctionnant sur capteur vertical / capteur horizontal ou sur nappe phréatique. Cette PAC est coupplée à un appoint électrique.
B140: 6.
B156: ► | C156: Cette partie a pour but de déterminer le modèle idéal pour votre installation.
B160: ► | C160: Indiquez le facteur de dimensionnement souhaité
C161: Ce facteur correspond à une limitation de la puissance de la PAC.
C162: C'est une exigence réglementaire imposée par le DTU PAC N°65.16 (Pour les PAC air/eau avec appoint séparé)
D163: Exemple :
E164: Déperditions = 10 kW
E165: Facteur de dimensionnement = 70%
E166: Puissance PAC à installer = 10 x 70% = 7 kW
C167: L'objectif est de limiter la puissance pour que la PAC installée couvre le maximum de besoins tout en évitant les courts-cycles.
B170: ► | C170: La température de service du circuit chauffage correspond à la température maximale de l'eau qui circule dans le circuit de chauffage.
B172: ► | C172: La température de service du circuit de chauffage peut être saisie manuellement ou par calcul.
C173: - Si vous choisissez par calcul, il faut se reporter dans l'onglet Radiateurs Existant et sélectionnez vos types de radiateurs en saisissant la surface frontale.
C174: La température sera automatiquement reportée dans l'onglet Dimensionnement et les calculs s'adapteront.
C175: - Si vous choisissez manuellement, indiquez simplement la température correspondant à votre système d'emission (Plancher chauffant : entre 35 et 45°C / Radiateurs : entre 50 et 80 °C)
B178: 7.
B200: ► | C200: Cette dernière partie permet de choisir la gamme et le modèle de la PAC De Dietrich.
B202: ► | C202: Suivez les indications pour sélectionner la gamme adaptée à vos besoins.
B204: ► | C204: La puissance PAC à installer et la puissance de la PAC sélectionnée sont données à titre d'indication. Vérifiez que la PAC sélectionnée soit assez puissante.
B206: ► | C206: Pour les modèles hybrides, choisissez le mode de régulation qu'il vous convient parmi les 2 disponibles.
C207: - Régulation économique : La régulation fait en sorte d'utiliser l'énergie qui est la plus rentable (PAC ou appoint) en fonction de la température extérieure. => Mode le plus couramment utilisé
C208: - Régulation écologique : La régulation fait en sorte d'utiliser la PAC si le COP est supérieur à 2,58. Cette valeur correspond au coefficient de production de l'électricité en France.
B211: 8.
B227: ► | C227: Sélectionnez l'appoint en suivant les propositions.
B230: 9.
B253: ► | C253: Tableau comparant les coûts d'exploitation entre la solution PAC et la référence. En cas d'étude dans une maison neuve, la solution PAC est comparée à divers énergies (Gaz, fioul, électricité, …)
B255: 10.
B284: ► | C284: Tableau récapitulant les hypothèses de calcul et présentant les résultats détaillés de la solution PAC.
B285: ► | C285: Dans le cas d'une maison neuve, la référence peut être sélectionnée via un menu déroulant.
B286: ► | C286: Divers graphiques complémentaires sont affichés à la suite du ce tableau.
B288: II) | C288: Chiffrage de la PAC (Pompe à chaleur)
B290: 1.
B307: ► | C307: Si vous avez réalisé un dimensionnement d'une PAC, et que vous souhaitez voir le chiffrage de celle-ci, sélectionnez "OUI" dans la case pour importer les données
B310: 2.
B329: ► | C329: Si vous souhaitez uniquement faire un chiffrage d'une PAC, sélectionnez "NON" dans la case afin de pouvoir sélectionner une gamme et un modèle de pompe à chaleur De Dietrich.
B333: 3.
B366: ► | C366: L'onglet chiffrage permet d'estimer le montant des aides financières disponibles (Prime unifiée MaPrimeRenov / CEE / ...) (Nouveautés de janvier 2020 intégrées)
B368: ► | C368: Suivez les indications pour vérifier si le projet est éligible ou non.
B370: ► | C370: Si vous ne souhaitez pas inclure d'aides dans votre chiffrage, sélectionnez "NON" dans "Tenir compte des aides pour le chiffrage".
B374: 4.
B444: ► | C444: Le chiffrage peut se faire de plusieurs façon.
C445: - Il est possible d'utiliser un "chiffrage type" qui regroupe les accessoires de base pour une installation. Les quantités ne sont pas modifiables dans cette configuration.
C446: - Il est possible de réaliser un "chiffrage personnalisé". L'outil fait en sorte de proposer uniquement les accessoires adaptés au produit sélectionné.
C447: En fonction de votre configuration, indiquez les quantités des accessoires nécessaires.
B449: ► | C449: Si les aides financières sont autorisées, un bilan est effectué à la fin du chiffrage et indique le reste à charge.

Sheet Dimensionnement
F6: Dimensionnement de Pompes à chaleur
D8: (Bâtiment)
C9: Références du projet | D9: (Adresse)
D10: (Lieu)
C11: Version 04/2020_v01 | I11: Date de l'étude : | J11: =TODAY() -> 2020-05-04
C12: Données géographiques
C14: Département de l'installation | F14: Altitude | I14: Température extérieure de base en °C
C15: 1 - Ain | F15: Entre 0 et 200 m | I15: ='BdD Bâtiment'!D132 -> -10
F16: ='BdD Localisation'!AS11 -> 
C17: Caractéristiques du bâtiment
C19: Surface de la maison en m² | F19: Hauteur moyenne sous plafond en m | I19: Température de confort en °C
C20: 150 | F20: 2.5 | I20: 19
S21: 3000 | T21: Litres de fioul
C22: Type d'étude
C23: Rénovation
C25: Energie actuelle dans le bâtiment | F25: Rendement annuel du système de chauffage actuel | I25: ECS actuelle | S25: 0 | T25: m3 de gaz naturel
C26: Propane | F26: Rendement annuel = 90% | I26: idem chauffage | S26: 0 | T26: kg de propane
F27: =IFERROR(IF(VLOOKUP($F$26,typechaud,1,FALSE)=TRUE,"",""),"Adaptez votre choix") ->  | S27: 0 | T27: kWh électrique
C28: Nombre de circuits | F28: Type de circuit
C29: 2 | F29: 2 vannes
C31: Type d'abonnement électrique actuel
C32: Option de base
C34: Estimation des besoins Chauffage et ECS
C35: Nombre de personnes dans le logement | F35: Consommation d'eau chaude
C36: 4 | F36: Normale (50 l/j à 55°C)
C38: Déperditions connues (Φ) ?
C39: NON
C41: Niveau d'isolation connu (G)
C42: OUI
C44: =IF(typecs='BdD Bâtiment'!$C$48,"Consommation actuelle d'énergie par an (avec ECS) ","Consommation actuelle d'énergie par an (sans ECS) ") -> Consommation actuelle d'énergie par an (avec ECS) | F44: Niveau d'isolation G estimé
D45: =VLOOKUP(C26,CONSO,2,FALSE) -> kg de propane | F45: =IFERROR('BdD Bâtiment'!D140,0) -> 0.6
F46: =IF(C42="NON","Valeur de G estimée à renseigner dans Niveau d'isolation (G)") -> FALSE
C47: Niveau d'isolation (G) | F47: Déperditions en kW
C48: 0.6 | F48: ='BdD Bâtiment'!D126 -> 6.5
C49: =IFERROR(IF('BdD Bâtiment'!$J$25='BdD Bâtiment'!$I$26,"",IF(C42="OUI","",IF(AND(C42="NON",C48<>F45),"Attention ! Valeur du G différent de G estimé",""))),"") -> 
C51: Déperditions en kW
C52: 13
C54: Récapitulaltif de l'estimation des besoins Chauffage et ECS
C56: Besoins annuels totaux estimés en kWh | F56: Besoins annuels chauffage | I56: Besoins annuels ECS*
C57: =ROUND(F57+I57,0) -> 15217 | F57: =ROUND('Consommations et Coûts de prod.'!E6,0) -> 11025 | G57: + | I57: =ROUND('BdD Bâtiment'!D174,0) -> 4192
I58: * Dont 10% de pertes par le ballon ECS
C59: Sélection du type de PAC
C61: Technologie de PAC | F61: Type de PAC :
C62: Aérothermie | F62: PAC Air/Eau + appoint séparé
C64: Paramètres de dimensionnement
C66: Facteur de dimensionnement | F66: Température de service circuit chauffage | I66: Production ECS par PAC
C67: Facteur : 70 % [Tout sauf ossature bois] | F67: Sélection manuelle de la température | I67: OUI
C69: =IF(AND($C$67<>'BdD Bâtiment'!$C$187,$C$67<>'BdD Bâtiment'!$C$192,$C$67<>'BdD Bâtiment'!$C$193,$C$67<>'BdD Bâtiment'!$C$194,$C$67<>'BdD Bâtiment'!$C$195,$C$67<>'BdD Bâtiment'!$C$196,$C$67<>'BdD Bâtiment'!$C$197,$C$67<>'BdD Bâtiment'!$C$188,$C$67<>'BdD Bâtiment'!$C$189,$C$67<>'BdD Bâtiment'!$C$190,$C$67<>'BdD Bâtiment'!$C$191),"Adaptez le facteur de dimensionnement","") ->  | F69: 35 | O69: =IF($F$67='BdD Bâtiment'!$L$12,1,0) -> 1 | P69: (1 si manuel , 0 si calcul)
F71: =IF(AND($F$67='BdD Bâtiment'!$L$13,regimrad!$M$4=0),"Erreur : Veuillez renseigner les paramètres!","") -> 
I75: =CONCATENATE("Soit la puissance PAC à installer (kW) : ",$I$15,"°C / +",Résultats!$A$4," °C :") -> Soit la puissance PAC à installer (kW) : -10°C / +35 °C :
I76: =ROUND(F48,1)*Préconisation!$D$12 -> 4.55
C79: Caractéristiques de la PAC
F81: Mode de régulation pour PAC Hybride
F82: Régulation économique
F84: Type de l'installation (Simple ou Cascade)
F85: Simple (1 PAC)
F87: Gamme
F88: OEnoviaPac-C MB (Monobloc) | O88: =IF(AND(F88=ChoixPAC!C6,Dimensionnement!F91=ChoixPAC!C16,OR(F105='BdD Bâtiment'!C108,F105='BdD Bâtiment'!C107)),1,0) -> 0 | P88: eria em/et | Q88: (pour texte appoint / modele pac)
O89: =IF(AND(F88=ChoixPAC!C6,Dimensionnement!F91=ChoixPAC!C17,F105='BdD Bâtiment'!C109),1,0) -> 0 | P89: eria hm/ht
F90: Modèle de PAC
F91: OENOVIAPAC-C MB (Monobloc)
O92: =IF(AND(F88=ChoixPAC!C7,Dimensionnement!F91=ChoixPAC!C18,OR(F105='BdD Bâtiment'!C108,F105='BdD Bâtiment'!C107)),1,0) -> 0 | P92: n duo em/et
F93: =CONCATENATE("PAC préconisée pour un départ PAC à ",Résultats!$A$4," °C") -> PAC préconisée pour un départ PAC à 35 °C
F94: =Préconisation!$J$22 -> OEnoviaPac-C MB 6 MR - E ou H
F95: =IF(AND(Résultats!$A$4>='BdD Bâtiment'!$I$12,$F$97=ChoixPAC!$H$43,Dimensionnement!$C$62=ChoixPAC!$E$6),"Pour le modèle sélectionné, la température de départ maximale est de 55°C.","") -> 
F96: Sélection | O96: =IF(AND(F88=ChoixPAC!C7,Dimensionnement!F91=ChoixPAC!C19,F105='BdD Bâtiment'!C109),1,0) -> 0 | P96: n duo hm/ht
F97: OEnoviaPac-C MB 6 MR - E | O97: =IF(AND(F88=ChoixPAC!C8,Dimensionnement!F91=ChoixPAC!C21,OR(F105='BdD Bâtiment'!C108,F105='BdD Bâtiment'!C107)),1,0) -> 0 | P97: caelia el
F98: =IF(AND(Dimensionnement!$F$88=ChoixPAC!$D$61,VLOOKUP($F$97,Préconisation!$C$17:$D$25,2,FALSE)=VLOOKUP(Préconisation!$H$17,Préconisation!$C$17:$D$25,2,FALSE)),"",IF($F$94=Préconisation!$J$24,"",IF(AND($F$97<>Préconisation!$H$17,$F$97<>Préconisation!$H$19),"Attention : Modèle sélectionné différent de celui préconisé.",""))) ->  | I98: =Graphiques!S155 -> 
F99: Abonnement électrique choisi
F100: Option de base
C102: Caractéristiques de l'appoint
F104: Energie d'appoint | I104: Type de chaudière d'appoint | P104: =IF(C26<>"Chauffage électrique",1,0) -> 1 | Q104: chauffage élec
F105: Electrique | I105: Bois pellets
F106: =IFERROR(IF(VLOOKUP($F$105,APPPOINT,1,FALSE)=FALSE,"",""),"Modifiez la sélection") -> 
F107: =IF(AND(Dimensionnement!$F$62=ChoixPAC!$G$6,ChoixPAC!$E$39=ChoixPAC!$G$12),"Puissance d'appoint Electrique [kW] par PAC","Puissance d'appoint Electrique [kW]") -> Puissance d'appoint Electrique [kW] | I107: =IF($F$105='BdD Bâtiment'!$C$107,CONCATENATE("Puissance de l'appoint ",$F$105," : ",$C$26," [kW]"),CONCATENATE("Puissance de l'appoint ",$F$105," [kW]")) -> Puissance de l'appoint Electrique : Propane [kW]
F108: 2 | I108: 24
I109: =IFERROR(IF(Résultats!$BO$49<MAX(Résultats!$BL$49,Résultats!$BR$49),CONCATENATE("Une puissance de minimum ",MAX(Résultats!$BL$49,Résultats!$BR$49)," kW est requise"),""),"") -> 
F110: Type de chaudière d'appoint | I110: Fumisterie
F111: =IF(OR(ChoixPAC!$E$37=ChoixPAC!$D$50,ChoixPAC!$E$37=ChoixPAC!$D$51),ChoixPAC!$K$10,ChoixPAC!$K$11) -> Condensation | I111: Cheminée
F113: Chaudière sélectionnée | I113: Puissance de la chaudière d'appoint
F114: OFSB 22 kW | I114: =CONCATENATE(VLOOKUP($F$114,ChoixPAC!$O$19:$P$22,2,FALSE)," kW") -> 
F118: Solaire
F119: NON
F121: Taux de couverture ECS en %
F122: 40
F124: Taux de couverture chauffage en %
F125: 10
C127: Résultats économiques
D129: Rappel de la solution : | E129: =IF(AND($C$62=ChoixPAC!$E$6,Dimensionnement!$F$62=ChoixPAC!$G$7),CONCATENATE(Dimensionnement!$F$97," avec appoint hydraulique intégré ",Dimensionnement!$F$114," d'une puissance de ",Dimensionnement!$I$114),IF(OR(Dimensionnement!$C$62=ChoixPAC!$E$7,ChoixPAC!$E$37=ChoixPAC!$D$59),CONCATENATE("PAC ",$F$97," avec appoint électrique ",$F$108," kW"),CONCATENATE("PAC ",$F$97," avec appoint ",IF($F$105='BdD Bâtiment'!$C$109,CONCATENATE($F$105," ",Dimensionnement!$F$108," kW"),IF($F$105='BdD Bâtiment'!$C$108,CONCATENATE(Dimensionnement!$F$105," ",Dimensionnement!$I$105," ",Dimensionnement!$I$108," kW"),CONCATENATE("existant ",$C$26," d'une puissance de ",$I$108," kW")))))) -> PAC OEnoviaPac-C MB 6 MR - E avec appoint existant Propane d'une puissance de 24 kW
C155: Les sommes totales affichées ci-dessus représentent les coûts d'exploitation ainsi que les coûts d'abonnements (électrique et gaz si nécessaire).
E156: =IF('Consommations et Coûts de prod.'!$I$6=0,"Une erreur est survenue, vérifiez que tous les champs sont correctement paramétrés.","") -> 
C158: Résultats énergétiques
F160: =IF('BdD Bâtiment'!$J$25='BdD Bâtiment'!$I$25,"","Sélection de la solution de référence pour la comparaison des résultats :") -> 
F161: Gaz condens.
C235: Station de référence: | D235: =VLOOKUP(C15,'Station Météo'!A2:B97,2,FALSE) -> AMBERIEU
B236: Les résultats de cette feuille de calcul sont donnés à titre indicatif. La responsabilité de OERTLI ne peut en aucun cas être engagée.
B237: Les consommations sont estimées en tenant compte des choix pris par l'utilisateur et des données climatiques de la station de référence prise en compte.
B238: Dans tous les cas, cette simulation n'est qu'une estimation sommaire.

Sheet Chiffrage
F7: Chiffrage d'un système de PAC
E9: (Bâtiment) | M9: Date de l'étude : | N9: =Dimensionnement!$J$11 -> 2020-05-04
B10: Identification de l'étude | E10: (Adresse)
E11: (Lieu)
B13: =Dimensionnement!$C$11 -> Version 04/2020_v01
B14: Données
B17: Importer le dimensionnement
B18: NON
B20: Type de PAC à chiffrer
B21: PAC Air/Eau
M22: Prepa ind | N22: =OR(AND($B$18=OFFRE!$B$6,OFFRE!$N$29=OFFRE!$D$7),AND(Chiffrage!$B$18=OFFRE!$B$7,Chiffrage!$B$61=OFFRE!$D$7),OR(AND($B$24<>OFFRE!$B$35,$B$24<>OFFRE!$B$36,$B$18=OFFRE!$B$7),AND($B$18=OFFRE!$B$6,$B$25<>OFFRE!$B$11,$B$25<>OFFRE!$B$12))) -> TRUE
B23: Gamme | F23: =OFFRE!$N$14 -> OENOVIAPAC-C MB (Monobloc) | G23: Modèle de PAC | J23: Type d'appoint
B24: OENOVIAPAC-C MB (Monobloc) | G24: OEnoviaPac-C MB 6 MR - E | J24: =IF(OR($G$24=OFFRE!$U$58,$G$24=OFFRE!$U$59,$G$24=OFFRE!$U$60),"Hydraulique par chaudière",IF(VLOOKUP($B$24,ChoixPAC!$D$43:$G$61,4,FALSE)=1,"Electrique","Hydraulique par chaudière")) -> Electrique
B25: =Dimensionnement!$F$91 -> OENOVIAPAC-C MB (Monobloc) | G25: =Dimensionnement!$F$97 -> OEnoviaPac-C MB 6 MR - E | J25: =IF(OR($G$25=OFFRE!$U$58,$G$25=OFFRE!$U$59,$G$25=OFFRE!$U$60),"Hydraulique par chaudière",IF(VLOOKUP($B$25,ChoixPAC!$D$43:$G$60,4,FALSE)=1,"Electrique","Hydraulique par chaudière")) -> 
B26: Paramètres spécifiques GSHP
B27: ECS réalisé par la PAC | G27: Nombre de circuits | J27: Type de circuits
B28: NON | G28: 3 | J28: Direct + 2 Vannes
B30: Ballon ECS solaire | G30: Placement du ballon ECS
B31: NON | G31: Superposé
B34: ECS réalisé par la PAC | G34: Type de l'installation (Simple ou Cascade)
B35: NON | G35: Simple (1 PAC)
B37: Paramètres spécifiques Alezio Evolution
B38: ECS réalisé par la PAC
B39: OUI
B41: Paramètres spécifiques Alezio O Hybride
B42: Evacuation des produits de combustion de la chaudière | G42: Type de chaudière | J42: Modèle de chaudière
B43: Flux forcé | G43: =IF(OR(OFFRE!$D$71=OFFRE!$B$41,OFFRE!$D$71=OFFRE!$B$42),OFFRE!$J$19,OFFRE!$J$18) -> Condensation | J43: Essencio Condens 24kW
B44: =Dimensionnement!$I$111 -> Cheminée | G44: =Dimensionnement!$F$111 -> Condensation | J44: =Dimensionnement!$F$114 -> OFSB 22 kW
B46: Configuration de la fumisterie | G46: Type de fumisterie
B47: C33/C13 - C93/B23P | G47: Rigide
B49: Paramètres spécifiques Alezio G Hybride
B50: Modèle de chaudière
B51: GSCR 15 Propane
B52: =Dimensionnement!$F$114 -> OFSB 22 kW
B54: Paramètres spécifiques HPI G Hybride
B55: Modèle de chaudière | G55: Placement du ballon ECS
B56: MODULENS G 35 | G56: =IF(OR(OFFRE!$D$71=OFFRE!$B$45,OFFRE!$D$71=OFFRE!$B$47),OFFRE!$H$7,IF(OR(OFFRE!$D$71=OFFRE!$B$46,OFFRE!$D$71=OFFRE!$B$48),OFFRE!$H$6,"")) -> 
B57: =Dimensionnement!$F$114 -> OFSB 22 kW | G57: =IF(OR($B$25=OFFRE!$B$21,$B$25=OFFRE!$B$23),OFFRE!$H$7,OFFRE!$H$6) -> Juxtaposé
B58: Zone tout sauf GSHP
B59: Pose de l'unité extérieure | G59: Nombre de circuits de chauffage | J59: Type de circuits
B60: Au sol | G60: 1 | J60: Vanne
B62: Attention ! Lorsque vous modifiez une des sélections, il faut toujours revalider les suivantes !
F63: Condition HPI cascade | G63: =IF(OFFRE!$O$17=ChoixPAC!$G$12,1,0) -> 0
B64: Simulation des aides
B66: Rappel de la gamme sélectionnée
B67: =OFFRE!$D$71 -> OENOVIAPAC-C MB (Monobloc)
B69: Rappel du modèle sélectionné
B70: =OFFRE!$D$72 -> OEnoviaPac-C MB 6 MR - E
B71: Tenir compte des aides pour le chiffrage : | F71: Validation pour macro
D72: NON | F72: =IF($D$72='Aides financières'!$B$137,1,0) -> 0
B75: Etape 1 : Définition de la catégorie du foyer | H75: Nouveau ! A partir de Janvier 2020, le système d'aides financières évolue !
B76: Sélection de la situation géographique : | E76: Hors Ile-de-France
B77: Nombre de personnes dans le foyer : | E77: 3 | H77: La prime unifiée "MaPrimeRénov" remplace le CITE et l'aide de l'ANAH.
B78: Sélection du plafond de revenus du foyer : | E78: Plus de 50281 €/an. | H78: Une nouvelle catégorie de revenus est créée : Ménages aux revenus intermédiaires
B79: Catégorie du foyer : | E79: =IFERROR('Aides financières'!$I$176,"-") -> Ménage aux revenus les plus élevés | H79: Pour les ménages aux revenus très modestes & modestes, la prime est versée dès la fin des travaux.
H80: Pour les ménages aux revenus intermédiaires, la prime est versée sous forme de crédit d'impôt jusqu'en 2021.
B82: Etape 2 : Montant des aides disponibles | H82: La prime unifiée "MaPrimeRénov" est disponible aux propriétaires occupants sous certaines conditions.
B83: Type de produit sélectionné : | E83: - | F83: ='Aides financières'!$B$189 -> Pac Air/Eau | H83: Le montant de la prime unifiée est déterminé à partir des économies d'énergie réalisées et des revenus du ménage.
B84: =IF($E$79='Aides financières'!$B$150,"Crédit d'impôt actualisé & Prime unifiée ''MaPrimeRénov'' :",IF($E$79='Aides financières'!$B$149,"Crédit d'impôt actualisé :","Prime unifiée ''MaPrimeRénov'' :")) -> Crédit d'impôt actualisé & Prime unifiée ''MaPrimeRénov'' : | E84: =IF(Chiffrage!$E$79='Aides financières'!$B$150,'Aides financières'!$D$138,'Aides financières'!$D$137) -> Non disponible | F84: =IF('Aides financières'!$B$189='Aides financières'!$B$185,HLOOKUP('Aides financières'!$I$176,'Aides financières'!$C$183:$K$186,3,FALSE),HLOOKUP('Aides financières'!$I$176,'Aides financières'!$C$183:$K$186,4,FALSE)) -> 0 | H84: Le total des aides obtenues via "MaPrimeRénov" ne pourra pas dépasser un plafond de 20 000€ sur 5 ans.
B85: CEE : | E85: Disponible | F85: =IF('Aides financières'!$B$189='Aides financières'!$B$185,HLOOKUP(CONCATENATE('Aides financières'!$I$176,2),'Aides financières'!$C$183:$K$186,3,FALSE),HLOOKUP(CONCATENATE('Aides financières'!$I$176,2),'Aides financières'!$C$183:$K$186,4,FALSE)) -> 2500
B86: Autres aides disponibles : | E86: Disponible | H86: Les CEE sont toujours disponibles pour tous, comme l'éco-Prêt à Taux Zéro.
B87: Sous-total (avant correction) | E87: =SUM(F84:F86) -> 2500 | H87: Les ménages éligibles au chèque énergie pourront l'utiliser pour financer des travaux de rénovation énergétique.
B88: =IF(AND($F$83='Aides financières'!$B$186),"Pour ce type de produit, la dépense éligible ne peux pas dépasser 12 000€.","Pour ce type de produit, la dépense éligible ne peux pas dépasser 18 000€.") -> Pour ce type de produit, la dépense éligible ne peux pas dépasser 12 000€. | H88: Pour bénéficier des aides, l'installateur doit obligatoirement être RGE.
B89: =IF($E$79='Aides financières'!$B$147,"Le montant cumulé du CEE et des ''autres aides'' ne peut pas excéder 90% de la dépense éligible.",IF($E$79='Aides financières'!$B$148,"Le montant cumulé du CEE et des ''autres aides'' ne peut pas excéder 75% de la dépense éligible.","")) -> 
B90: Total des aides disponibles | E90: ='Aides financières'!$D$221 -> 2500
H91: Avez-vous bien vérifié le chiffrage de votre solution ? Le reste à charge dépendra de votre chiffrage.
B92: Etape 3 : Réalisez le chiffrage de votre installation (voir le chiffrage ci-dessous) | H92: Bilan des aides financières
B93: Matériel HT | E93: ='Aides financières'!$F$193+'Aides financières'!$D$194 -> 11086 | H93: Catégorie du foyer : | K93: =$E$79 -> Ménage aux revenus les plus élevés
B94: Autres coûts HT (main d'œuvre, émetteurs, réseau de distribution, accessoires, câblages, regards, organes de régulation, …) | H94: Type de produit installé : | K94: =$F$83 -> Pac Air/Eau
H95: Total des aides disponibles : | K95: ='Aides financières'!D221 -> 2500
B96: =IF($E$93=0,"Complétez le chiffrage ci-dessous avant de continuer !","") ->  | H96: Coût équipement et pose (TTC) : | K96: ='Aides financières'!$D$198 -> 12033.33
B97: Importer l'économie annuelle estimée lors du dimensionnement ? | E97: OUI | F97: =Graphiques!$M$149 -> 1994,00 € | H97: Pourcentage d'aides financières : | K97: =IF($K$95/$K$96>1,1,$K$95/$K$96) -> 0.2077562902
H98: Reste à charge : | K98: =K96-K95 -> 9533.33
D99: Entrez manuellement l'économie annuelle : | H99: Rentabilisation de l'installation (aides déduites) : | K99: =IFERROR(CONCATENATE(ROUND(IF($E$97='Aides financières'!$B$138,Chiffrage!$K$98/Chiffrage!$E$99,Chiffrage!$K$98/Chiffrage!$F$97),1)," an(s)"),"") -> 4,8 an(s)
D101: Les montants indiqués sont donnés comme indication. Ils peuvent différer en fonction de votre fournisseur d'énergie ainsi que des barêmes en vigueur.
D102: Pour vérifier votre éligibilité et lancer les démarches pour obtenir les aides financières, veuillez consulter le site du gouvernement : | L102: https://www.maprimerenov.gouv.fr
B103: Solution Oertli
F105: Utiliser un chiffrage type ou réaliser un chiffrage personnalisé ? | G105: Utiliser un chiffrage type
B108: Système | D108: Référence | F108: Désignation | J108: Colis | K108: Prix Unitaire | L108: =IF(OFFRE!$C$86=OFFRE!$C$89,"Quantité","Chiffrage type") -> Chiffrage type | M108: =IF(OFFRE!$C$86=OFFRE!$C$88,"","Chiffrage perso") ->  | N108: Prix Total
K109: HT en € | L109: =IF(OFFRE!$C$86=OFFRE!$C$89,"Préconisée","Quantité") -> Quantité | M109: =IF(OFFRE!$C$86=OFFRE!$C$88,"","Quantité") ->  | N109: HT en €
G110: Utiliser le kit complet ou les composants séparés ? | L110: =IF(OFFRE!$C$86=OFFRE!$C$89,"Cette proposition","") -> 
B111: =IF(OFFRE!B96="","",OFFRE!B96) -> Pompe A Chaleur | G111: Kit complet | L111: =IF(OFFRE!$C$86=OFFRE!$C$89,"correspond à une","") -> 
B112: =IF(OFFRE!B97="","",OFFRE!B97) ->  | L112: =IF(OFFRE!$C$86=OFFRE!$C$89,"installation type.","") -> 
B113: =IF(OFFRE!B98="","",OFFRE!B98) -> +
B114: =IF(OFFRE!B99="","",OFFRE!B99) -> 
B115: =IF(OFFRE!B100="","",OFFRE!B100) -> Accessoires de mise en oeuvre
B116: =IF(OFFRE!B101="","",OFFRE!B101) ->  | D116: =OFFRE!C102 ->  | F116: =OFFRE!D102 -> Kit complet : PAC + accessoires | J116: =OFFRE!H102 ->  | K116: =OFFRE!I102 ->  | L116: =OFFRE!J102 ->  | N116: =IF(OFFRE!L102=0,"",OFFRE!L102) -> 
D117: =OFFRE!C103 -> 7746635 | F117: =OFFRE!D103 -> OENOVIAPAC-C MB 6 MR/H | J117: =OFFRE!H103 -> - | K117: =OFFRE!I103 -> 8400 | L117: =OFFRE!J103 -> 1 | N117: =IF(OFFRE!L103=0,"",OFFRE!L103) -> 8400
B118: =IF(OFFRE!B103="","",OFFRE!B103) ->  | D118: =OFFRE!C104 ->  | F118: =OFFRE!D104 ->  | J118: =OFFRE!H104 ->  | K118: =OFFRE!I104 ->  | L118: =OFFRE!J104 ->  | N118: =IF(OFFRE!L104=0,"",OFFRE!L104) -> 
B119: =IF(OFFRE!B104="","",OFFRE!B104) ->  | D119: =OFFRE!C105 ->  | F119: =OFFRE!D105 ->  | J119: =OFFRE!H105 ->  | K119: =OFFRE!I105 ->  | L119: =OFFRE!J105 ->  | N119: =IF(OFFRE!L105=0,"",OFFRE!L105) -> 
B120: =IF(OFFRE!B105="","",OFFRE!B105) ->  | D120: =OFFRE!C106 ->  | F120: =OFFRE!D106 ->  | J120: =OFFRE!H106 ->  | K120: =OFFRE!I106 ->  | L120: =OFFRE!J106 ->  | N120: =IF(OFFRE!L106=0,"",OFFRE!L106) -> 
B121: =IF(OFFRE!B106="","",OFFRE!B106) ->  | D121: =OFFRE!C107 ->  | F121: =OFFRE!D107 ->  | J121: =OFFRE!H107 ->  | K121: =OFFRE!I107 ->  | L121: =OFFRE!J107 ->  | N121: =IF(OFFRE!L107=0,"",OFFRE!L107) -> 
B122: =IF(OFFRE!B107="","",OFFRE!B107) ->  | D122: =OFFRE!C108 ->  | F122: =OFFRE!D108 ->  | J122: =OFFRE!H108 ->  | K122: =OFFRE!I108 ->  | L122: =OFFRE!J108 ->  | N122: =IF(OFFRE!L108=0,"",OFFRE!L108) -> 
B123: =IF(OFFRE!B108="","",OFFRE!B108) ->  | D123: =OFFRE!C109 ->  | F123: =OFFRE!D109 ->  | J123: =OFFRE!H109 ->  | K123: =OFFRE!I109 ->  | L123: =OFFRE!J109 ->  | N123: =IF(OFFRE!L109=0,"",OFFRE!L109) -> 
D124: =OFFRE!C110 ->  | F124: =OFFRE!D110 ->  | J124: =OFFRE!H110 ->  | K124: =OFFRE!I110 ->  | L124: =OFFRE!J110 ->  | N124: =IF(OFFRE!L110=0,"",OFFRE!L110) -> 
D125: =OFFRE!C111 ->  | F125: =OFFRE!D111 -> Accessoires de mise en œuvre | J125: =OFFRE!H111 ->  | K125: =OFFRE!I111 ->  | L125: =OFFRE!J111 ->  | N125: =IF(OFFRE!L111=0,"",OFFRE!L111) -> 
D126: =OFFRE!C112 -> 7694974 | F126: =OFFRE!D112 -> SUPPORT AU SOL CAOUTCHOUC 600MM | J126: =OFFRE!H112 -> EH879 | K126: =OFFRE!I112 -> 119 | L126: =OFFRE!J112 -> 1 | N126: =IF(OFFRE!L112=0,"",OFFRE!L112) -> 119
D127: =OFFRE!C113 -> 7681480 | F127: =OFFRE!D113 -> KIT DOSSERET REMPLISSAGE AUTOMATIQUE | J127: =OFFRE!H113 -> EH726 | K127: =OFFRE!I113 -> 256 | L127: =OFFRE!J113 ->  | N127: =IF(OFFRE!L113=0,"",OFFRE!L113) -> 
D128: =OFFRE!C114 ->  | F128: =OFFRE!D114 ->  | J128: =OFFRE!H114 ->  | K128: =OFFRE!I114 ->  | L128: =OFFRE!J114 ->  | N128: =IF(OFFRE!L114=0,"",OFFRE!L114) -> 
D129: =OFFRE!C115 ->  | F129: =OFFRE!D115 -> Liaison hydraulique & Ballon tampon | J129: =OFFRE!H115 ->  | K129: =OFFRE!I115 ->  | L129: =OFFRE!J115 ->  | N129: =IF(OFFRE!L115=0,"",OFFRE!L115) -> 
D130: =OFFRE!C116 -> 100001369 | F130: =OFFRE!D116 -> KIT LIAISON HYDRAULIQUE 1M | J130: =OFFRE!H116 -> EH19 | K130: =OFFRE!I116 -> 48 | L130: =OFFRE!J116 -> 1 | N130: =IF(OFFRE!L116=0,"",OFFRE!L116) -> 48
D131: =OFFRE!C117 -> 100008841 | F131: =OFFRE!D117 -> BALLON TAMPON 80L B 80 T | J131: =OFFRE!H117 -> EH85 | K131: =OFFRE!I117 -> 572 | L131: =OFFRE!J117 -> 1 | N131: =IF(OFFRE!L117=0,"",OFFRE!L117) -> 572
D132: =OFFRE!C118 -> 100004415 | F132: =OFFRE!D118 -> BALLON TAMPON 160L B 150 T | J132: =OFFRE!H118 -> EH60 | K132: =OFFRE!I118 -> 857 | L132: =OFFRE!J118 ->  | N132: =IF(OFFRE!L118=0,"",OFFRE!L118) -> 
D133: =OFFRE!C119 ->  | F133: =OFFRE!D119 ->  | J133: =OFFRE!H119 ->  | K133: =OFFRE!I119 ->  | L133: =OFFRE!J119 ->  | N133: =IF(OFFRE!L119=0,"",OFFRE!L119) -> 
D134: =OFFRE!C120 ->  | F134: =OFFRE!D120 -> Accessoires de raccordement hydraulique | J134: =OFFRE!H120 ->  | K134: =OFFRE!I120 ->  | L134: =OFFRE!J120 ->  | N134: =IF(OFFRE!L120=0,"",OFFRE!L120) -> 
D135: =OFFRE!C121 -> 100017830 | F135: =OFFRE!D121 -> KIT VANNE 3 VOIES (CIRCUIT B) | J135: =OFFRE!H121 -> HK21 | K135: =OFFRE!I121 -> 732 | L135: =OFFRE!J121 ->  | N135: =IF(OFFRE!L121=0,"",OFFRE!L121) -> 
D136: =OFFRE!C122 -> 100017832 | F136: =OFFRE!D122 -> KIT TUBULURES 2 CIRCUITS | J136: =OFFRE!H122 -> HK22 | K136: =OFFRE!I122 -> 156 | L136: =OFFRE!J122 ->  | N136: =IF(OFFRE!L122=0,"",OFFRE!L122) -> 
D137: =OFFRE!C123 -> 7684175 | F137: =OFFRE!D123 -> VANNE D'INVERSION CHAUFFAGE-SANITAIRE | J137: =OFFRE!H123 -> EH812 | K137: =OFFRE!I123 -> 134 | L137: =OFFRE!J123 ->  | N137: =IF(OFFRE!L123=0,"",OFFRE!L123) -> 
D138: =OFFRE!C124 -> 100015468 | F138: =OFFRE!D124 -> KIT RAC HYDRAULIQUE PAC - BALLON ECS | J138: =OFFRE!H124 -> EH149 | K138: =OFFRE!I124 -> 109 | L138: =OFFRE!J124 ->  | N138: =IF(OFFRE!L124=0,"",OFFRE!L124) -> 
D139: =OFFRE!C125 -> 100020164 | F139: =OFFRE!D125 -> COLLECTEUR 2/3 CIRCUITS | J139: =OFFRE!H125 -> EA140 | K139: =OFFRE!I125 -> 382 | L139: =OFFRE!J125 ->  | N139: =IF(OFFRE!L125=0,"",OFFRE!L125) -> 
D140: =OFFRE!C126 -> 100020167 | F140: =OFFRE!D126 -> CIRCUIT DIRECT P.ELEC CLASSE A | J140: =OFFRE!H126 -> EA143 | K140: =OFFRE!I126 -> 720 | L140: =OFFRE!J126 ->  | N140: =IF(OFFRE!L126=0,"",OFFRE!L126) -> 
D141: =OFFRE!C127 -> 100020168 | F141: =OFFRE!D127 -> CIRCUIT V3V P.ELEC | J141: =OFFRE!H127 -> EA144 | K141: =OFFRE!I127 -> 1023 | L141: =OFFRE!J127 ->  | N141: =IF(OFFRE!L127=0,"",OFFRE!L127) -> 
D142: =OFFRE!C128 -> 100020165 | F142: =OFFRE!D128 -> CONSOLE MUR COLLECTEUR | J142: =OFFRE!H128 -> EA141 | K142: =OFFRE!I128 -> 48 | L142: =OFFRE!J128 ->  | N142: =IF(OFFRE!L128=0,"",OFFRE!L128) -> 
B143: Nouveau : Dosseret de raccordement | D143: =OFFRE!C129 -> 100020166 | F143: =OFFRE!D129 -> CONSOLE MUR 1 MODULE | J143: =OFFRE!H129 -> EA142 | K143: =OFFRE!I129 -> 129 | L143: =OFFRE!J129 ->  | N143: =IF(OFFRE!L129=0,"",OFFRE!L129) -> 
D144: =OFFRE!C130 -> 100020045 | F144: =OFFRE!D130 -> KIT FILTRE FERNOX TF1 | J144: =OFFRE!H130 -> EH896 | K144: =OFFRE!I130 -> 288 | L144: =OFFRE!J130 -> 1 | N144: =IF(OFFRE!L130=0,"",OFFRE!L130) -> 288
D145: =OFFRE!C131 -> 7746242 | F145: =OFFRE!D131 -> SOUPAPE DIFFERENTIELLE | J145: =OFFRE!H131 -> HK150 | K145: =OFFRE!I131 -> 59 | L145: =OFFRE!J131 -> 1 | N145: =IF(OFFRE!L131=0,"",OFFRE!L131) -> 59
D146: =OFFRE!C132 ->  | F146: =OFFRE!D132 ->  | J146: =OFFRE!H132 ->  | K146: =OFFRE!I132 ->  | L146: =OFFRE!J132 ->  | N146: =IF(OFFRE!L132=0,"",OFFRE!L132) -> 
D147: =OFFRE!C133 ->  | F147: =OFFRE!D133 ->  | J147: =OFFRE!H133 ->  | K147: =OFFRE!I133 ->  | L147: =OFFRE!J133 ->  | N147: =IF(OFFRE!L133=0,"",OFFRE!L133) -> 
D148: =OFFRE!C134 ->  | F148: =OFFRE!D134 ->  | J148: =OFFRE!H134 ->  | K148: =OFFRE!I134 ->  | L148: =OFFRE!J134 ->  | N148: =IF(OFFRE!L134=0,"",OFFRE!L134) -> 
D149: =OFFRE!C135 ->  | F149: =OFFRE!D135 ->  | J149: =OFFRE!H135 ->  | K149: =OFFRE!I135 ->  | L149: =OFFRE!J135 ->  | N149: =IF(OFFRE!L135=0,"",OFFRE!L135) -> 
D150: =OFFRE!C136 ->  | F150: =OFFRE!D136 ->  | J150: =OFFRE!H136 ->  | K150: =OFFRE!I136 ->  | L150: =OFFRE!J136 ->  | N150: =IF(OFFRE!L136=0,"",OFFRE!L136) -> 
D151: =OFFRE!C137 ->  | F151: =OFFRE!D137 ->  | J151: =OFFRE!H137 ->  | K151: =OFFRE!I137 ->  | L151: =OFFRE!J137 ->  | N151: =IF(OFFRE!L137=0,"",OFFRE!L137) -> 
D152: =OFFRE!C138 ->  | F152: =OFFRE!D138 ->  | J152: =OFFRE!H138 ->  | K152: =OFFRE!I138 ->  | L152: =OFFRE!J138 ->  | N152: =IF(OFFRE!L138=0,"",OFFRE!L138) -> 
D153: =OFFRE!C139 ->  | F153: =OFFRE!D139 ->  | J153: =OFFRE!H139 ->  | K153: =OFFRE!I139 ->  | L153: =OFFRE!J139 ->  | N153: =IF(OFFRE!L139=0,"",OFFRE!L139) -> 
D154: =OFFRE!C140 ->  | F154: =OFFRE!D140 ->  | J154: =OFFRE!H140 ->  | K154: =OFFRE!I140 ->  | L154: =OFFRE!J140 ->  | N154: =IF(OFFRE!L140=0,"",OFFRE!L140) -> 
D155: =OFFRE!C141 ->  | F155: =OFFRE!D141 ->  | J155: =OFFRE!H141 ->  | K155: =OFFRE!I141 ->  | L155: =OFFRE!J141 ->  | N155: =IF(OFFRE!L141=0,"",OFFRE!L141) -> 
D156: =OFFRE!C142 ->  | F156: =OFFRE!D142 -> Kit de fonction réversible | J156: =OFFRE!H142 ->  | K156: =OFFRE!I142 ->  | L156: =OFFRE!J142 ->  | N156: =IF(OFFRE!L142=0,"",OFFRE!L142) -> 
D157: =OFFRE!C143 -> 7682396 | F157: =OFFRE!D143 -> KIT ISOLATION MODE CLIMATISATION | J157: =OFFRE!H143 -> EH811 | K157: =OFFRE!I143 -> 101 | L157: =OFFRE!J143 ->  | N157: =IF(OFFRE!L143=0,"",OFFRE!L143) -> 
D158: =OFFRE!C144 -> 100018411 | F158: =OFFRE!D144 -> KIT ISOLATION MODE FROID KIT VANNE 3 VOIES (CIRCUIT B) | J158: =OFFRE!H144 -> HK25 | K158: =OFFRE!I144 -> 168 | L158: =OFFRE!J144 ->  | N158: =IF(OFFRE!L144=0,"",OFFRE!L144) -> 
D159: =OFFRE!C145 ->  | F159: =OFFRE!D145 ->  | J159: =OFFRE!H145 ->  | K159: =OFFRE!I145 ->  | L159: =OFFRE!J145 ->  | N159: =IF(OFFRE!L145=0,"",OFFRE!L145) -> 
D160: =OFFRE!C146 ->  | F160: =OFFRE!D146 -> Accessoires de régulation | J160: =OFFRE!H146 ->  | K160: =OFFRE!I146 ->  | L160: =OFFRE!J146 ->  | N160: =IF(OFFRE!L146=0,"",OFFRE!L146) -> 
D161: =OFFRE!C147 -> 100013304 | F161: =OFFRE!D147 -> COLIS OPTION V3V OE-TRONIC 4 | J161: =OFFRE!H147 -> AD249 | K161: =OFFRE!I147 -> 170 | L161: =OFFRE!J147 ->  | N161: =IF(OFFRE!L147=0,"",OFFRE!L147) -> 
D162: =OFFRE!C148 -> 88017017 | F162: =OFFRE!D148 -> SONDE DEPART v3v | J162: =OFFRE!H148 -> AD199 | K162: =OFFRE!I148 -> 85 | L162: =OFFRE!J148 ->  | N162: =IF(OFFRE!L148=0,"",OFFRE!L148) -> 
D163: =OFFRE!C149 -> 7708345 | F163: =OFFRE!D149 -> KIT DE RACCORDEMENT ELEC. APPOINT ECS | J163: =OFFRE!H149 -> EH904 | K163: =OFFRE!I149 -> 43 | L163: =OFFRE!J149 ->  | N163: =IF(OFFRE!L149=0,"",OFFRE!L149) -> 
D164: =OFFRE!C150 -> 7624902 | F164: =OFFRE!D150 -> KIT CABLAGE PLANCHER CHAUFFANT DIRECT | J164: =OFFRE!H150 -> HA255 | K164: =OFFRE!I150 -> 40 | L164: =OFFRE!J150 ->  | N164: =IF(OFFRE!L150=0,"",OFFRE!L150) -> 
D165: =OFFRE!C151 -> 7688755 | F165: =OFFRE!D151 -> KIT SILENCIEUX MODULE EXT. MIT | J165: =OFFRE!H151 -> EH829 | K165: =OFFRE!I151 -> 77 | L165: =OFFRE!J151 ->  | N165: =IF(OFFRE!L151=0,"",OFFRE!L151) -> 
D166: =OFFRE!C152 -> 100000030 | F166: =OFFRE!D152 -> COLIS OPTION SONDE ECS | J166: =OFFRE!H152 -> AD212 | K166: =OFFRE!I152 -> 53 | L166: =OFFRE!J152 ->  | N166: =IF(OFFRE!L152=0,"",OFFRE!L152) -> 
D167: =OFFRE!C153 -> 100019114 | F167: =OFFRE!D153 -> KIT SONDE HYGRO RAFRAICHISSEMENT | J167: =OFFRE!H153 -> HK27 | K167: =OFFRE!I153 -> 233 | L167: =OFFRE!J153 ->  | N167: =IF(OFFRE!L153=0,"",OFFRE!L153) -> 
D168: =OFFRE!C154 -> 7622433 | F168: =OFFRE!D154 -> KIT SONDE CONDENSATION (0-10V) | J168: =OFFRE!H154 -> HZ64 | K168: =OFFRE!I154 -> 420 | L168: =OFFRE!J154 ->  | N168: =IF(OFFRE!L154=0,"",OFFRE!L154) -> 
D169: =OFFRE!C155 -> 7691374 | F169: =OFFRE!D155 -> THERMOSTAT AMBIANCE OETROSMART (R-BUS) | J169: =OFFRE!H155 -> AD323 | K169: =OFFRE!I155 -> 207 | L169: =OFFRE!J155 -> 1 | N169: =IF(OFFRE!L155=0,"",OFFRE!L155) -> 207
D170: =OFFRE!C156 -> 88017018 | F170: =OFFRE!D156 -> THERMOSTAT D AMBIANCE PROGRAMMABLE SANS FILS | J170: =OFFRE!H156 -> AD192 | K170: =OFFRE!I156 -> 308 | L170: =OFFRE!J156 ->  | N170: =IF(OFFRE!L156=0,"",OFFRE!L156) -> 
D171: =OFFRE!C157 -> 88017859 | F171: =OFFRE!D157 -> THERMOSTAT D'AMBIANCE NON PROGRAMMABLE | J171: =OFFRE!H157 -> AD140 | K171: =OFFRE!I157 -> 54 | L171: =OFFRE!J157 ->  | N171: =IF(OFFRE!L157=0,"",OFFRE!L157) -> 
D172: =OFFRE!C158 -> 88017904 | F172: =OFFRE!D158 -> THERMOSTAT AMBIANCE PROGRAMMABLE (FILAIRE) | J172: =OFFRE!H158 -> AD191 | K172: =OFFRE!I158 -> 176 | L172: =OFFRE!J158 ->  | N172: =IF(OFFRE!L158=0,"",OFFRE!L158) -> 
D173: =OFFRE!C159 ->  | F173: =OFFRE!D159 ->  | J173: =OFFRE!H159 ->  | K173: =OFFRE!I159 ->  | L173: =OFFRE!J159 ->  | N173: =IF(OFFRE!L159=0,"",OFFRE!L159) -> 
D174: =OFFRE!C160 ->  | F174: =OFFRE!D160 ->  | J174: =OFFRE!H160 ->  | K174: =OFFRE!I160 ->  | L174: =OFFRE!J160 ->  | N174: =IF(OFFRE!L160=0,"",OFFRE!L160) -> 
N175: =IF(OFFRE!L161=0,"",OFFRE!L161) -> 
D176: =OFFRE!C162 ->  | F176: =OFFRE!D162 -> Accessoires de régulation nécessaires pour les circuits indiqués : | J176: =OFFRE!H162 ->  | K176: =OFFRE!I162 ->  | L176: =OFFRE!J162 ->  | N176: =IF(OFFRE!L162=0,"",OFFRE!L162) -> 
D177: =OFFRE!C163 ->  | F177: =OFFRE!D163 -> 1 circuit : Vanne | J177: =OFFRE!H163 ->  | K177: =OFFRE!I163 ->  | L177: =OFFRE!J163 ->  | N177: =IF(OFFRE!L163=0,"",OFFRE!L163) -> 
D178: =OFFRE!C164 ->  | F178: =OFFRE!D164 ->  | J178: =OFFRE!H164 ->  | K178: =OFFRE!I164 ->  | L178: =OFFRE!J164 ->  | N178: =IF(OFFRE!L164=0,"",OFFRE!L164) -> 
D179: =OFFRE!C165 -> 88017017 | F179: =OFFRE!D165 -> SONDE DEPART v3v | J179: =OFFRE!H165 -> AD199 | K179: =OFFRE!I165 -> 85 | L179: =OFFRE!J165 -> 1 | N179: =IF(OFFRE!L165=0,"",OFFRE!L165) -> 85
D180: =OFFRE!C166 ->  | F180: =OFFRE!D166 ->  | J180: =OFFRE!H166 ->  | K180: =OFFRE!I166 ->  | L180: =OFFRE!J166 ->  | N180: =IF(OFFRE!L166=0,"",OFFRE!L166) -> 
D181: =OFFRE!C167 ->  | F181: =OFFRE!D167 ->  | J181: =OFFRE!H167 ->  | K181: =OFFRE!I167 ->  | L181: =OFFRE!J167 ->  | N181: =IF(OFFRE!L167=0,"",OFFRE!L167) -> 
D182: =OFFRE!C168 ->  | F182: =OFFRE!D168 -> Accessoires hydrauliques nécessaires pour les circuits indiqués : | J182: =OFFRE!H168 ->  | K182: =OFFRE!I168 ->  | N182: =IF(OFFRE!L168=0,"",OFFRE!L168) -> 
D183: =OFFRE!C169 -> 100020168 | F183: =OFFRE!D169 -> CIRCUIT V3V P.ELEC | J183: =OFFRE!H169 -> EA144 | K183: =OFFRE!I169 -> 1023 | L183: =OFFRE!J169 -> 1 | N183: =IF(OFFRE!L169=0,"",OFFRE!L169) -> 1023
D184: =OFFRE!C170 -> 100020166 | F184: =OFFRE!D170 -> CONSOLE MUR 1 MODULE | J184: =OFFRE!H170 -> EA142 | K184: =OFFRE!I170 -> 129 | L184: =OFFRE!J170 -> 1 | N184: =IF(OFFRE!L170=0,"",OFFRE!L170) -> 129
D185: =OFFRE!C171 -> 100017832 | F185: =OFFRE!D171 -> KIT TUBULURES 2 CIRCUITS | J185: =OFFRE!H171 -> HK22 | K185: =OFFRE!I171 -> 156 | L185: =OFFRE!J171 -> 1 | N185: =IF(OFFRE!L171=0,"",OFFRE!L171) -> 156
D186: =OFFRE!C172 ->  | F186: =OFFRE!D172 ->  | J186: =OFFRE!H172 ->  | K186: =OFFRE!I172 ->  | L186: =OFFRE!J172 ->  | N186: =IF(OFFRE!L172=0,"",OFFRE!L172) -> 
D187: =OFFRE!C173 ->  | F187: =OFFRE!D173 ->  | J187: =OFFRE!H173 ->  | K187: =OFFRE!I173 ->  | L187: =OFFRE!J173 ->  | N187: =IF(OFFRE!L173=0,"",OFFRE!L173) -> 
F188: ='Offre HPI - CAELIA'!$C$321 -> Accessoires cascade pour 2 HPI identiques | N188: =IF(OFFRE!L174=0,"",OFFRE!L174) -> 
D189: =IF(F189="","",VLOOKUP($F$189,'Offre HPI - CAELIA'!$C$128:$F$150,4,FALSE)) -> 100019348 | F189: BOUTEILLE DE DECOUPLAGE 120/80-2'' | J189: =VLOOKUP($D$189,Tarif!$A:$D,3,FALSE) -> GV47 | K189: =VLOOKUP($D$189,Tarif!$A:$D,4,FALSE) -> 658 | L189: 1 | N189: =IF(OFFRE!L175=0,"",OFFRE!L175) -> 
D190: =IF(Chiffrage!$D$189='Offre HPI - CAELIA'!$B$128,'Offre HPI - CAELIA'!$B$138,IF(Chiffrage!$D$189='Offre HPI - CAELIA'!$B$129,'Offre HPI - CAELIA'!$B$139,IF(Chiffrage!$D$189='Offre HPI - CAELIA'!$B$130,'Offre HPI - CAELIA'!$B$140,IF(Chiffrage!$D$189='Offre HPI - CAELIA'!$B$131,'Offre HPI - CAELIA'!$B$141,IF(Chiffrage!$D$189='Offre HPI - CAELIA'!$B$132,'Offre HPI - CAELIA'!$B$142,IF(Chiffrage!$D$189='Offre HPI - CAELIA'!$B$133,'Offre HPI - CAELIA'!$B$143,IF(Chiffrage!$D$189='Offre HPI - CAELIA'!$B$134,'Offre HPI - CAELIA'!$B$144,""))))))) ->  | F190: =IFERROR(VLOOKUP($D$190,'Offre HPI - CAELIA'!$B$138:$F$144,2,FALSE),"") ->  | J190: =IFERROR(VLOOKUP($D$190,'Offre HPI - CAELIA'!$B$138:$F$144,3,FALSE),"") ->  | K190: =IFERROR(VLOOKUP($D$190,'Offre HPI - CAELIA'!$B$138:$F$144,4,FALSE),"") ->  | L190: =IF($D$190="","",1) ->  | N190: =IF(OFFRE!L176=0,"",OFFRE!L176) -> 
D191: ='Offre HPI - CAELIA'!$B$146 -> 7650329 | F191: ='Offre HPI - CAELIA'!$C$146 -> PURGEUR RP 1/2 | J191: ='Offre HPI - CAELIA'!$D$146 -> SA16 | K191: ='Offre HPI - CAELIA'!$E$146 -> 64 | L191: 1 | N191: =IF(OFFRE!L177=0,"",OFFRE!L177) -> 
D192: =IF(F192="","",VLOOKUP($F$192,'Offre HPI - CAELIA'!$C$128:$F$150,4,FALSE)) ->  | F192: SEPARATEUR BOUES AVEC AIMANT RP 2" | J192: =VLOOKUP($D$192,Tarif!$A:$D,3,FALSE) ->  | K192: =VLOOKUP($D$192,Tarif!$A:$D,4,FALSE) ->  | L192: 1 | N192: =IF(OFFRE!L178=0,"",OFFRE!L178) -> 
N193: =IF(OFFRE!L179=0,"",OFFRE!L179) -> 
B194: =IF(OFFRE!B153="","",OFFRE!B153) -> 
D195: Mise en service | L195: =IF(OFFRE!$I$70=0,"",OFFRE!$I$70) -> 1 | N195: =IF(OFFRE!$D$71=OFFRE!$B$52,OFFRE!$J$71,IF(OR(OFFRE!$D$71=OFFRE!$B$49,OFFRE!$D$71=OFFRE!$B$50),OFFRE!$J$72,IF(OR(OFFRE!$D$71=OFFRE!$B$42,OFFRE!$D$71=OFFRE!$B$43,OFFRE!$D$71=OFFRE!$B$45,OFFRE!$D$71=OFFRE!$B$46,OFFRE!$D$71=OFFRE!$B$47,OFFRE!$D$71=OFFRE!$B$48),OFFRE!$J$73,OFFRE!$J$70)))*Chiffrage!$L$195 -> 320
N196: =IF(L196=1,450,IF(AND(L196>=2,L196<=5),400,IF(AND(L196>=6,L196<=10),330,IF(L196>=11,290,"")))) -> 
N198: =IFERROR(IF(M198*K198=0,"",M198*K198),"") -> 
N199: =IFERROR(IF(M199*K199=0,"",M199*K199),"") -> 
D201: =D108 -> Référence | F201: =F108 -> Désignation | J201: Colis | K201: =K108 -> Prix Unitaire | L201: Quantité | N201: Prix Total
K202: =K109 -> HT en € | N202: HT en €
B203: Saisie manuelle | N203: =IFERROR(IF(OR(L203="",L203=0),"",K203*L203),"") -> 
N204: =IFERROR(IF(OR(L204="",L204=0),"",K204*L204),"") -> 
B220: PRIX TOTAL DU SYSTEME (PP.H.T. 2020 en €) | N220: =IFERROR(IF(OFFRE!$O$17=ChoixPAC!$G$11,SUM(Chiffrage!$N$110:$N$187)+SUM(Chiffrage!$N$203:$N$218)+$N$195,SUM($N$110:$N$193)+SUM(N194:N199,N203:N218)),0) -> 11406
B222: =$B$94 -> Autres coûts HT (main d'œuvre, émetteurs, réseau de distribution, accessoires, câblages, regards, organes de régulation, …) | N222: =$E$94 -> 0
B223: MONTANT DES AIDES DISPONIBLES (en €) | N223: =$E$90 -> 2500
B225: RESTE A FINANCER (AVEC POSE) (T.T.C en €) | N225: =IF((N220+N222)*1.055-N223<0,0,(N220+N222)*1.055-N223) -> 9533.33

Sheet Radiateurs Existant
B2: Aide à l'estimation du régime d'eau nécessaire pour une installation équipée en radiateurs :
B4: Indiquez la surface chauffée par les radiateurs : | F4: m² | Q4: =IF(AND(0<regimrad!G3,regimrad!G3<80),1,0) -> 0
B5: Surface totale chauffée : | E5: =Dimensionnement!$C$20 -> 150 | F5: m²
F10: =IF(regimrad!$M$4>=65,"Attention ! La température de départ est trop élevée pour une PAC. Des radiateurs supplémentaires sont à prévoir.","") -> 
B15: Type | D15: Forme | G15: Illustration | L15: m² de surface frontale | M15: P. estimée (W-80/60) | N15: =CONCATENATE("P estimée (W) - Départ à ",regimrad!$Q$19) -> P estimée (W) - Départ à 0°C
B16: Panneaux acier horizontaux | D16: 10 | M16: =regimrad!G12 -> 0 | N16: =regimrad!I12 -> 
D17: 11 | M17: =regimrad!G13 -> 0 | N17: =regimrad!I13 -> 
D18: 20 | M18: =regimrad!G14 -> 0 | N18: =regimrad!I14 -> 
D19: 21 | M19: =regimrad!G15 -> 0 | N19: =regimrad!I15 -> 
D20: 22 | M20: =regimrad!G16 -> 0 | N20: =regimrad!I16 -> 
D21: 32 | M21: =regimrad!G17 -> 0 | N21: =regimrad!I17 -> 
D22: 33 | M22: =regimrad!G18 -> 0 | N22: =regimrad!I18 -> 
B23: Panneaux acier verticaux | D23: 10 | M23: =regimrad!G19 -> 0 | N23: =regimrad!I19 -> 
D24: 11 | M24: =regimrad!G20 -> 0 | N24: =regimrad!I20 -> 
D25: 20 | M25: =regimrad!G21 -> 0 | N25: =regimrad!I21 -> 
D26: 21 | M26: =regimrad!G22 -> 0 | N26: =regimrad!I22 -> 
D27: 22 | M27: =regimrad!G23 -> 0 | N27: =regimrad!I23 -> 
B28: Radiateurs en fonte | D28: 2 colonnes | M28: =regimrad!G24 -> 0 | N28: =regimrad!I24 -> 
D29: 3 colonnes | M29: =regimrad!G25 -> 0 | N29: =regimrad!I25 -> 
D30: 4 colonnes | M30: =regimrad!G26 -> 0 | N30: =regimrad!I26 -> 
D31: 5 colonnes | M31: =regimrad!G27 -> 0 | N31: =regimrad!I27 -> 
D32: 6 colonnes | M32: =regimrad!G28 -> 0 | N32: =regimrad!I28 -> 
B33: Rad aluminium Hor. | D33: Prof. 80 mm | M33: =regimrad!G29 -> 0 | N33: =regimrad!I29 -> 
D34: Prof. 95 mm | M34: =regimrad!G30 -> 0 | N34: =regimrad!I30 -> 
D35: Prof. 140 mm | M35: =regimrad!G31 -> 0 | N35: =regimrad!I31 -> 
B36: Rad à tubes | D36: simple | M36: =regimrad!G32 -> 0 | N36: =regimrad!I32 -> 
B37: rond hor. | D37: double | M37: =regimrad!G33 -> 0 | N37: =regimrad!I33 -> 
B38: Rad à tubes | D38: simple | M38: =regimrad!G34 -> 0 | N38: =regimrad!I34 -> 
B39: rond vert. | D39: double | M39: =regimrad!G35 -> 0 | N39: =regimrad!I35 -> 
B40: Seche serviette | M40: =regimrad!G36 -> 0 | N40: =regimrad!I36 -> 
B41: Radiateur multi colonne acier | D41: 1 colonne | M41: =regimrad!G37 -> 0 | N41: =regimrad!I37 -> 
D42: 2 colonne | M42: =regimrad!G38 -> 0 | N42: =regimrad!I38 -> 
D43: 3 colonne | M43: =regimrad!G39 -> 0 | N43: =regimrad!I39 -> 
D44: 4 colonne | M44: =regimrad!G40 -> 0 | N44: =regimrad!I40 -> 
B45: Acier plissé | D45: Prof. 65 mm | M45: =regimrad!G41 -> 0 | N45: =regimrad!I41 -> 
D46: Prof. 95 mm | M46: =regimrad!G42 -> 0 | N46: =regimrad!I42 -> 
D47: Prof. 120 mm | M47: =regimrad!G43 -> 0 | N47: =regimrad!I43 -> 

Sheet Coûts énergies et Abonnements
F5: Coûts des énergies
B7: =Dimensionnement!C11 -> Version 04/2020_v01
C8: Electricité
C11: Option BASE
C13: Electricité : Prix de 100 kWh en € TTC | E13: Au 04/02/2020 | G13: Abonnement annuel en € TTC | I13: Au 04/02/2020
C14: =G14 -> 3 kVA | D14: 15.46 | E14: 15.46 | G14: ='BdD Bâtiment'!C60 -> 3 kVA | H14: 99.12 | I14: 99.12
C15: =G15 -> 6 kVA | D15: 15.46 | E15: 15.46 | G15: ='BdD Bâtiment'!C61 -> 6 kVA | H15: 121.2 | I15: 121.2
C16: 9 kVA | D16: 15.87 | E16: 15.87 | G16: ='BdD Bâtiment'!C62 -> 9 kVA | H16: 143.64 | I16: 143.64
C17: 12 kVA | D17: 15.87 | E17: 15.87 | G17: ='BdD Bâtiment'!C63 -> 12 kVA | H17: 166.2 | I17: 166.2
C18: 15 kVA | D18: 15.87 | E18: 15.87 | G18: ='BdD Bâtiment'!C64 -> 15 kVA | H18: 187.44 | I18: 187.44
C19: 18 kVA | D19: 15.87 | E19: 15.87 | G19: ='BdD Bâtiment'!C65 -> 18 kVA | H19: 210.72 | I19: 210.72
C20: 24 kVA | D20: 15.87 | E20: 15.87 | G20: ='BdD Bâtiment'!C66 -> 24 kVA | H20: 262.08 | I20: 262.08
C21: 30 kVA | D21: 15.87 | E21: 15.87 | G21: ='BdD Bâtiment'!C67 -> 30 kVA | H21: 310.8 | I21: 310.8
C22: 36 kVA | D22: 15.87 | E22: 15.87 | G22: ='BdD Bâtiment'!C68 -> 36 kVA | H22: 355.92 | I22: 355.92
F25: Option HP/HC
G27: Abonnement annuel en € TTC | I27: Au 04/02/2020
G28: =G15 -> 6 kVA | H28: 133.2 | I28: 133.2
C29: Electricité : Prix de 100 kWh en € TTC | E29: Au 04/02/2020 | G29: =G16 -> 9 kVA | H29: 163.44 | I29: 163.44
C30: HP : Heures Pleines | D30: 17.81 | E30: 17.81 | G30: 12 kVA | H30: 192 | I30: 192
C31: HC : Heures Creuses | D31: 13.37 | E31: 13.37 | G31: 15 kVA | H31: 218.76 | I31: 218.76
G32: 18 kVA | H32: 243.6 | I32: 243.6
G33: 24 kVA | H33: 299.64 | I33: 299.64
G34: 30 kVA | H34: 327.84 | I34: 327.84
G35: 36 kVA | H35: 372 | I35: 372
C37: Gaz
C41: Gaz : Prix de 100 kWh PCS en € TTC | E41: Au 02/2020 | G41: Abonnement annuel en € TTC | I41: Au 02/2020
C42: Tarif Base | D42: 7.36 | E42: 7.36 | G42: Tarif B1 | H42: 108 | I42: 108
C43: Tarif B0 | D43: 7.36 | E43: 7.36 | G43: Tarif B0 | H43: 108 | I43: 108
C44: Tarif B1 | D44: 5 | E44: 5 | G44: Tarif B1 | H44: 249.36 | I44: 249.36
C45: Tarif B2I | D45: 5 | E45: 5 | G45: Tarif B2I | H45: 249.36 | I45: 249.36
C47: Fioul
C51: Fioul : Prix de 100 kWh PCI en € TTC | E51: Au 01/2020
C52: Fioul | D52: 9.66 | E52: 9.66
C55: Propane
C59: Propane : Prix de 100 kWh PCI en € TTC | E59: Au 11/2019
C60: Propane | D60: 14.61 | E60: 14.61
C63: Bois
C67: Bois bûche : Prix du stère en € TTC | G67: Granulé bois : Prix de la tonne en € TTC
C68: Bois | D68: 70 | G68: Granulé bois | H68: 278
C71: Correspondance Energétique
C73: 1 litre fioul | D73: 10 | E73: kWh PCI | F73: =D73/0.94 -> 10.63829787 | G73: kWh PCS
C74: 1 m3 gaz naturel | D74: 10 | E74: kWh PCI | F74: =D74/0.9 -> 11.11111111 | G74: kWh PCS
C75: 1 kg propane | D75: 12.8 | E75: kWh PCI | F75: =D75/0.92 -> 13.91304348 | G75: kWh PCS
C76: 1 kg Granulés | D76: 4.8 | E76: kWh PCI
C77: 1 Stère de bûche | D77: 2000 | E77: kWh PCI
C80: Tarifs EDF elec : | D80: https://selectra.info/energie/fournisseurs/edf/tarifs
C82: Source tarif energies : | D82: http://developpement-durable.bsocom.fr/statistiques/ReportFolders/reportFolders.aspx

Sheet regimrad (hidden)
F3: depart | G3: =IFERROR(ROUND((G4*20/60)/2+Dimensionnement!I20+G4,0),0) -> 0 | H3: =_xlfn.CEILING.PRECISE(G3,5) -> 0
F4: Delta | G4: =ROUND(POWER(G5*POWER(50,G7),1/G7),0) ->  | M4: =MROUND(G3,5) -> 0 | N4: =Dimensionnement!$O$69 -> 1 | O4: =Dimensionnement!$P$69 -> (1 si manuel , 0 si calcul)
F5: ratio | G5: =G6/SUM(G12:G43) -> 
F6: Dep | G6: =IF(OR('Radiateurs Existant'!E4="",'Radiateurs Existant'!E4=0),Dimensionnement!F48*1000,Dimensionnement!F48*1000*'Radiateurs Existant'!E4/Dimensionnement!C20) -> 6500
F7: n pond | G7: =SUM(H12:H43)/SUM(G12:G43) -> 
L8: Installation sous-dimensionnée pour une PAC
F9: S | G9: P | H9: n
C10: P50(W/m²) | D10: Pente
C12: 1030 | D12: 1.3 | F12: ='Radiateurs Existant'!L16 -> 0 | G12: =F12*C12 -> 0 | H12: =D12*G12 -> 0 | I12: =F12*(C12*POWER(($G$4/50),D12)) -> 
C13: 1570 | D13: 1.32 | F13: ='Radiateurs Existant'!L17 -> 0 | G13: =F13*C13 -> 0 | H13: =D13*G13 -> 0 | I13: =F13*(C13*POWER(($G$4/50),D13)) -> 
C14: 1670 | D14: 1.31 | F14: ='Radiateurs Existant'!L18 -> 0 | G14: 0 | H14: 0
C15: 2220 | D15: 1.33 | F15: ='Radiateurs Existant'!L19 -> 0 | G15: 0 | H15: 0 | P15: Puissance requise pour le circuit radiateur : | Q15: =CONCATENATE(ROUND(Dimensionnement!$F$48*1000*'Radiateurs Existant'!$E$4/Dimensionnement!$C$20,0)," W") -> 0 W
C16: 2900 | D16: 1.34 | F16: ='Radiateurs Existant'!L20 -> 0 | G16: 0 | H16: 0
C17: 3060 | D17: 1.37 | F17: ='Radiateurs Existant'!L21 -> 0 | G17: 0 | H17: 0 | P17: Puissance installée pour un régime (80 / 60°C) : | Q17: =CONCATENATE(SUM('Radiateurs Existant'!$M$16:$M$47)," W") -> 0 W
C18: 4100 | D18: 1.34 | F18: ='Radiateurs Existant'!L22 -> 0 | G18: 0 | H18: 0
C19: 800 | D19: 1.3 | F19: ='Radiateurs Existant'!L23 -> 0 | G19: 0 | H19: 0 | P19: Température de départ radiateur estimée : | Q19: =IFERROR(IF(regimrad!G3>85,regimrad!$L$8,CONCATENATE(MROUND(regimrad!G3,5),"°C")),"") -> 0°C
C20: 1240 | D20: 1.29 | F20: ='Radiateurs Existant'!L24 -> 0 | G20: 0 | H20: 0
C21: 1300 | D21: 1.33 | F21: ='Radiateurs Existant'!L25 -> 0 | G21: 0 | H21: 0 | P21: =IF($Q$19=regimrad!$L$8,"Puissance installée pour un départ à -°C :",CONCATENATE("Puissance installée pour un départ à ",$Q$19," :")) -> Puissance installée pour un départ à 0°C : | Q21: =IFERROR(IF(regimrad!$Q$19=regimrad!$L$8,"-",CONCATENATE(ROUND(SUM('Radiateurs Existant'!$N$16:$N$47),0)," W")),"-") -> -
C22: 1770 | D22: 1.33 | F22: ='Radiateurs Existant'!L26 -> 0 | G22: 0 | H22: 0
C23: 2200 | D23: 1.34 | F23: ='Radiateurs Existant'!L27 -> 0 | G23: 0 | H23: 0
C24: 1600 | D24: 1.32 | F24: ='Radiateurs Existant'!L28 -> 0 | G24: 0 | H24: 0
C25: 2300 | D25: 1.32 | F25: ='Radiateurs Existant'!L29 -> 0 | G25: 0 | H25: 0
C26: 2700 | D26: 1.32 | F26: ='Radiateurs Existant'!L30 -> 0 | G26: 0 | H26: 0
C27: 3400 | D27: 1.32 | F27: ='Radiateurs Existant'!L31 -> 0 | G27: 0 | H27: 0
C28: 3800 | D28: 1.32 | F28: ='Radiateurs Existant'!L32 -> 0 | G28: 0 | H28: 0
C29: 2480 | D29: 1.34 | F29: ='Radiateurs Existant'!L33 -> 0 | G29: 0 | H29: 0
C30: 2750 | D30: 1.34 | F30: ='Radiateurs Existant'!L34 -> 0 | G30: 0 | H30: 0
C31: 3330 | D31: 1.31 | F31: ='Radiateurs Existant'!L35 -> 0 | G31: 0 | H31: 0
C32: 1300 | D32: 1.3 | F32: ='Radiateurs Existant'!L36 -> 0 | G32: 0 | H32: 0
C33: 2000 | D33: 1.3 | F33: ='Radiateurs Existant'!L37 -> 0 | G33: 0 | H33: 0
C34: 1300 | D34: 1.3 | F34: ='Radiateurs Existant'!L38 -> 0 | G34: 0 | H34: 0
C35: 2000 | D35: 1.3 | F35: ='Radiateurs Existant'!L39 -> 0 | G35: 0 | H35: 0
C36: 950 | D36: 1.25 | F36: ='Radiateurs Existant'!L40 -> 0 | G36: 0 | H36: 0
C37: 1570 | D37: 1.3 | F37: ='Radiateurs Existant'!L41 -> 0 | G37: 0 | H37: 0
C38: 2100 | D38: 1.3 | F38: ='Radiateurs Existant'!L42 -> 0 | G38: 0 | H38: 0
C39: 2650 | D39: 1.3 | F39: ='Radiateurs Existant'!L43 -> 0 | G39: 0 | H39: 0
C40: 1420 | D40: 1.28 | F40: ='Radiateurs Existant'!L44 -> 0 | G40: 0 | H40: 0
C41: 1900 | D41: 1.3 | F41: ='Radiateurs Existant'!L45 -> 0 | G41: 0 | H41: 0
C42: 2400 | D42: 1.3 | F42: ='Radiateurs Existant'!L46 -> 0 | G42: 0 | H42: 0
C43: 2800 | D43: 1.3 | F43: ='Radiateurs Existant'!L47 -> 0 | G43: 0 | H43: 0

Sheet DEVIS
A1: Référence | B1: Désignation | C1: Colis | D1: Prix unitaire | E1: Quantité | F1: Prix total | G1: Remise %
A2: =IF(OR(Chiffrage!D117="",E2=""),"",Chiffrage!D117) -> 7746635 | B2: =IF(OR(Chiffrage!F117="",F2=""),"",Chiffrage!F117) -> OENOVIAPAC-C MB 6 MR/H | C2: =IF(OR(Chiffrage!J117="",D2=""),"",Chiffrage!J117) -> - | D2: =IF(OR(Chiffrage!K117="",E2=""),"",Chiffrage!K117) -> 8400 | E2: =IF(OFFRE!$C$86=OFFRE!$C$89,IF(Chiffrage!M117="","",Chiffrage!M117),IF(Chiffrage!L117="","",Chiffrage!L117)) -> 1 | F2: =IF(AND(E2>0,E2<>""),E2*D2,"") -> 8400 | H2: =IF(A2<>"",0,"") -> 0
A3: =IF(OR(Chiffrage!D118="",E3=""),"",Chiffrage!D118) ->  | B3: =IF(OR(Chiffrage!F118="",F3=""),"",Chiffrage!F118) ->  | C3: =IF(OR(Chiffrage!J118="",D3=""),"",Chiffrage!J118) ->  | D3: =IF(OR(Chiffrage!K118="",E3=""),"",Chiffrage!K118) ->  | E3: =IF(OFFRE!$C$86=OFFRE!$C$89,IF(Chiffrage!M118="","",Chiffrage!M118),IF(Chiffrage!L118="","",Chiffrage!L118)) ->  | F3: =IF(AND(E3>0,E3<>""),E3*D3,"") ->  | H3: =IF(A3<>"",0,"") ->  | I3: Si aucune remise n'est souhaitée, veuillez écrire 0 dans la case
A4: =IF(OR(Chiffrage!D119="",E4=""),"",Chiffrage!D119) ->  | B4: =IF(OR(Chiffrage!F119="",F4=""),"",Chiffrage!F119) ->  | C4: =IF(OR(Chiffrage!J119="",D4=""),"",Chiffrage!J119) ->  | D4: =IF(OR(Chiffrage!K119="",E4=""),"",Chiffrage!K119) ->  | E4: =IF(OFFRE!$C$86=OFFRE!$C$89,IF(Chiffrage!M119="","",Chiffrage!M119),IF(Chiffrage!L119="","",Chiffrage!L119)) -> 
A5: =IF(OR(Chiffrage!D120="",E5=""),"",Chiffrage!D120) ->  | B5: =IF(OR(Chiffrage!F120="",F5=""),"",Chiffrage!F120) ->  | C5: =IF(OR(Chiffrage!J120="",D5=""),"",Chiffrage!J120) ->  | D5: =IF(OR(Chiffrage!K120="",E5=""),"",Chiffrage!K120) ->  | E5: =IF(OFFRE!$C$86=OFFRE!$C$89,IF(Chiffrage!M120="","",Chiffrage!M120),IF(Chiffrage!L120="","",Chiffrage!L120)) -> 
A6: =IF(OR(Chiffrage!D121="",E6=""),"",Chiffrage!D121) ->  | B6: =IF(OR(Chiffrage!F121="",F6=""),"",Chiffrage!F121) ->  | C6: =IF(OR(Chiffrage!J121="",D6=""),"",Chiffrage!J121) ->  | D6: =IF(OR(Chiffrage!K121="",E6=""),"",Chiffrage!K121) ->  | E6: =IF(OFFRE!$C$86=OFFRE!$C$89,IF(Chiffrage!M121="","",Chiffrage!M121),IF(Chiffrage!L121="","",Chiffrage!L121)) -> 
A7: =IF(OR(Chiffrage!D122="",E7=""),"",Chiffrage!D122) ->  | B7: =IF(OR(Chiffrage!F122="",F7=""),"",Chiffrage!F122) ->  | C7: =IF(OR(Chiffrage!J122="",D7=""),"",Chiffrage!J122) ->  | D7: =IF(OR(Chiffrage!K122="",E7=""),"",Chiffrage!K122) ->  | E7: =IF(OFFRE!$C$86=OFFRE!$C$89,IF(Chiffrage!M122="","",Chiffrage!M122),IF(Chiffrage!L122="","",Chiffrage!L122)) -> 
A8: =IF(OR(Chiffrage!D123="",E8=""),"",Chiffrage!D123) ->  | B8: =IF(OR(Chiffrage!F123="",F8=""),"",Chiffrage!F123) ->  | C8: =IF(OR(Chiffrage!J123="",D8=""),"",Chiffrage!J123) ->  | D8: =IF(OR(Chiffrage!K123="",E8=""),"",Chiffrage!K123) ->  | E8: =IF(OFFRE!$C$86=OFFRE!$C$89,IF(Chiffrage!M123="","",Chiffrage!M123),IF(Chiffrage!L123="","",Chiffrage!L123)) -> 
A9: =IF(OR(Chiffrage!D124="",E9=""),"",Chiffrage!D124) ->  | B9: =IF(OR(Chiffrage!F124="",F9=""),"",Chiffrage!F124) ->  | C9: =IF(OR(Chiffrage!J124="",D9=""),"",Chiffrage!J124) ->  | D9: =IF(OR(Chiffrage!K124="",E9=""),"",Chiffrage!K124) ->  | E9: =IF(OFFRE!$C$86=OFFRE!$C$89,IF(Chiffrage!M124="","",Chiffrage!M124),IF(Chiffrage!L124="","",Chiffrage!L124)) -> 
A10: =IF(OR(Chiffrage!D125="",E10=""),"",Chiffrage!D125) ->  | B10: =IF(OR(Chiffrage!F125="",F10=""),"",Chiffrage!F125) ->  | C10: =IF(OR(Chiffrage!J125="",D10=""),"",Chiffrage!J125) ->  | D10: =IF(OR(Chiffrage!K125="",E10=""),"",Chiffrage!K125) ->  | E10: =IF(OFFRE!$C$86=OFFRE!$C$89,IF(Chiffrage!M125="","",Chiffrage!M125),IF(Chiffrage!L125="","",Chiffrage!L125)) -> 
A11: =IF(OR(Chiffrage!D126="",E11=""),"",Chiffrage!D126) -> 7694974 | B11: =IF(OR(Chiffrage!F126="",F11=""),"",Chiffrage!F126) -> SUPPORT AU SOL CAOUTCHOUC 600MM | C11: =IF(OR(Chiffrage!J126="",D11=""),"",Chiffrage!J126) -> EH879 | D11: =IF(OR(Chiffrage!K126="",E11=""),"",Chiffrage!K126) -> 119 | E11: =IF(OFFRE!$C$86=OFFRE!$C$89,IF(Chiffrage!M126="","",Chiffrage!M126),IF(Chiffrage!L126="","",Chiffrage!L126)) -> 1 | F11: 119 | H11: 0
A12: =IF(OR(Chiffrage!D127="",E12=""),"",Chiffrage!D127) ->  | B12: =IF(OR(Chiffrage!F127="",F12=""),"",Chiffrage!F127) ->  | C12: =IF(OR(Chiffrage!J127="",D12=""),"",Chiffrage!J127) ->  | D12: =IF(OR(Chiffrage!K127="",E12=""),"",Chiffrage!K127) ->  | E12: =IF(OFFRE!$C$86=OFFRE!$C$89,IF(Chiffrage!M127="","",Chiffrage!M127),IF(Chiffrage!L127="","",Chiffrage!L127)) -> 
A13: =IF(OR(Chiffrage!D128="",E13=""),"",Chiffrage!D128) ->  | B13: =IF(OR(Chiffrage!F128="",F13=""),"",Chiffrage!F128) ->  | C13: =IF(OR(Chiffrage!J128="",D13=""),"",Chiffrage!J128) ->  | D13: =IF(OR(Chiffrage!K128="",E13=""),"",Chiffrage!K128) ->  | E13: =IF(OFFRE!$C$86=OFFRE!$C$89,IF(Chiffrage!M128="","",Chiffrage!M128),IF(Chiffrage!L128="","",Chiffrage!L128)) -> 
A14: =IF(OR(Chiffrage!D129="",E14=""),"",Chiffrage!D129) ->  | B14: =IF(OR(Chiffrage!F129="",F14=""),"",Chiffrage!F129) ->  | C14: =IF(OR(Chiffrage!J129="",D14=""),"",Chiffrage!J129) ->  | D14: =IF(OR(Chiffrage!K129="",E14=""),"",Chiffrage!K129) ->  | E14: =IF(OFFRE!$C$86=OFFRE!$C$89,IF(Chiffrage!M129="","",Chiffrage!M129),IF(Chiffrage!L129="","",Chiffrage!L129)) -> 
A15: =IF(OR(Chiffrage!D130="",E15=""),"",Chiffrage!D130) -> 100001369 | B15: =IF(OR(Chiffrage!F130="",F15=""),"",Chiffrage!F130) -> KIT LIAISON HYDRAULIQUE 1M | C15: =IF(OR(Chiffrage!J130="",D15=""),"",Chiffrage!J130) -> EH19 | D15: =IF(OR(Chiffrage!K130="",E15=""),"",Chiffrage!K130) -> 48 | E15: =IF(OFFRE!$C$86=OFFRE!$C$89,IF(Chiffrage!M130="","",Chiffrage!M130),IF(Chiffrage!L130="","",Chiffrage!L130)) -> 1 | F15: 48 | H15: 0
A16: =IF(OR(Chiffrage!D131="",E16=""),"",Chiffrage!D131) -> 100008841 | B16: =IF(OR(Chiffrage!F131="",F16=""),"",Chiffrage!F131) -> BALLON TAMPON 80L B 80 T | C16: =IF(OR(Chiffrage!J131="",D16=""),"",Chiffrage!J131) -> EH85 | D16: =IF(OR(Chiffrage!K131="",E16=""),"",Chiffrage!K131) -> 572 | E16: =IF(OFFRE!$C$86=OFFRE!$C$89,IF(Chiffrage!M131="","",Chiffrage!M131),IF(Chiffrage!L131="","",Chiffrage!L131)) -> 1 | F16: 572 | H16: 0
A17: =IF(OR(Chiffrage!D132="",E17=""),"",Chiffrage!D132) ->  | B17: =IF(OR(Chiffrage!F132="",F17=""),"",Chiffrage!F132) ->  | C17: =IF(OR(Chiffrage!J132="",D17=""),"",Chiffrage!J132) ->  | D17: =IF(OR(Chiffrage!K132="",E17=""),"",Chiffrage!K132) ->  | E17: =IF(OFFRE!$C$86=OFFRE!$C$89,IF(Chiffrage!M132="","",Chiffrage!M132),IF(Chiffrage!L132="","",Chiffrage!L132)) -> 
A18: =IF(OR(Chiffrage!D133="",E18=""),"",Chiffrage!D133) ->  | B18: =IF(OR(Chiffrage!F133="",F18=""),"",Chiffrage!F133) ->  | C18: =IF(OR(Chiffrage!J133="",D18=""),"",Chiffrage!J133) ->  | D18: =IF(OR(Chiffrage!K133="",E18=""),"",Chiffrage!K133) ->  | E18: =IF(OFFRE!$C$86=OFFRE!$C$89,IF(Chiffrage!M133="","",Chiffrage!M133),IF(Chiffrage!L133="","",Chiffrage!L133)) -> 
A19: =IF(OR(Chiffrage!D134="",E19=""),"",Chiffrage!D134) ->  | B19: =IF(OR(Chiffrage!F134="",F19=""),"",Chiffrage!F134) ->  | C19: =IF(OR(Chiffrage!J134="",D19=""),"",Chiffrage!J134) ->  | D19: =IF(OR(Chiffrage!K134="",E19=""),"",Chiffrage!K134) ->  | E19: =IF(OFFRE!$C$86=OFFRE!$C$89,IF(Chiffrage!M134="","",Chiffrage!M134),IF(Chiffrage!L134="","",Chiffrage!L134)) -> 
A20: =IF(OR(Chiffrage!D135="",E20=""),"",Chiffrage!D135) ->  | B20: =IF(OR(Chiffrage!F135="",F20=""),"",Chiffrage!F135) ->  | C20: =IF(OR(Chiffrage!J135="",D20=""),"",Chiffrage!J135) ->  | D20: =IF(OR(Chiffrage!K135="",E20=""),"",Chiffrage!K135) ->  | E20: =IF(OFFRE!$C$86=OFFRE!$C$89,IF(Chiffrage!M135="","",Chiffrage!M135),IF(Chiffrage!L135="","",Chiffrage!L135)) -> 
A21: =IF(OR(Chiffrage!D136="",E21=""),"",Chiffrage!D136) ->  | B21: =IF(OR(Chiffrage!F136="",F21=""),"",Chiffrage!F136) ->  | C21: =IF(OR(Chiffrage!J136="",D21=""),"",Chiffrage!J136) ->  | D21: =IF(OR(Chiffrage!K136="",E21=""),"",Chiffrage!K136) ->  | E21: =IF(OFFRE!$C$86=OFFRE!$C$89,IF(Chiffrage!M136="","",Chiffrage!M136),IF(Chiffrage!L136="","",Chiffrage!L136)) -> 
A22: =IF(OR(Chiffrage!D137="",E22=""),"",Chiffrage!D137) ->  | B22: =IF(OR(Chiffrage!F137="",F22=""),"",Chiffrage!F137) ->  | C22: =IF(OR(Chiffrage!J137="",D22=""),"",Chiffrage!J137) ->  | D22: =IF(OR(Chiffrage!K137="",E22=""),"",Chiffrage!K137) ->  | E22: =IF(OFFRE!$C$86=OFFRE!$C$89,IF(Chiffrage!M137="","",Chiffrage!M137),IF(Chiffrage!L137="","",Chiffrage!L137)) -> 
A23: =IF(OR(Chiffrage!D138="",E23=""),"",Chiffrage!D138) ->  | B23: =IF(OR(Chiffrage!F138="",F23=""),"",Chiffrage!F138) ->  | C23: =IF(OR(Chiffrage!J138="",D23=""),"",Chiffrage!J138) ->  | D23: =IF(OR(Chiffrage!K138="",E23=""),"",Chiffrage!K138) ->  | E23: =IF(OFFRE!$C$86=OFFRE!$C$89,IF(Chiffrage!M138="","",Chiffrage!M138),IF(Chiffrage!L138="","",Chiffrage!L138)) -> 
A24: =IF(OR(Chiffrage!D139="",E24=""),"",Chiffrage!D139) ->  | B24: =IF(OR(Chiffrage!F139="",F24=""),"",Chiffrage!F139) ->  | C24: =IF(OR(Chiffrage!J139="",D24=""),"",Chiffrage!J139) ->  | D24: =IF(OR(Chiffrage!K139="",E24=""),"",Chiffrage!K139) ->  | E24: =IF(OFFRE!$C$86=OFFRE!$C$89,IF(Chiffrage!M139="","",Chiffrage!M139),IF(Chiffrage!L139="","",Chiffrage!L139)) -> 
A25: =IF(OR(Chiffrage!D140="",E25=""),"",Chiffrage!D140) ->  | B25: =IF(OR(Chiffrage!F140="",F25=""),"",Chiffrage!F140) ->  | C25: =IF(OR(Chiffrage!J140="",D25=""),"",Chiffrage!J140) ->  | D25: =IF(OR(Chiffrage!K140="",E25=""),"",Chiffrage!K140) ->  | E25: =IF(OFFRE!$C$86=OFFRE!$C$89,IF(Chiffrage!M140="","",Chiffrage!M140),IF(Chiffrage!L140="","",Chiffrage!L140)) -> 
A26: =IF(OR(Chiffrage!D141="",E26=""),"",Chiffrage!D141) ->  | B26: =IF(OR(Chiffrage!F141="",F26=""),"",Chiffrage!F141) ->  | C26: =IF(OR(Chiffrage!J141="",D26=""),"",Chiffrage!J141) ->  | D26: =IF(OR(Chiffrage!K141="",E26=""),"",Chiffrage!K141) ->  | E26: =IF(OFFRE!$C$86=OFFRE!$C$89,IF(Chiffrage!M141="","",Chiffrage!M141),IF(Chiffrage!L141="","",Chiffrage!L141)) -> 
A27: =IF(OR(Chiffrage!D142="",E27=""),"",Chiffrage!D142) ->  | B27: =IF(OR(Chiffrage!F142="",F27=""),"",Chiffrage!F142) ->  | C27: =IF(OR(Chiffrage!J142="",D27=""),"",Chiffrage!J142) ->  | D27: =IF(OR(Chiffrage!K142="",E27=""),"",Chiffrage!K142) ->  | E27: =IF(OFFRE!$C$86=OFFRE!$C$89,IF(Chiffrage!M142="","",Chiffrage!M142),IF(Chiffrage!L142="","",Chiffrage!L142)) -> 
A28: =IF(OR(Chiffrage!D143="",E28=""),"",Chiffrage!D143) ->  | B28: =IF(OR(Chiffrage!F143="",F28=""),"",Chiffrage!F143) ->  | C28: =IF(OR(Chiffrage!J143="",D28=""),"",Chiffrage!J143) ->  | D28: =IF(OR(Chiffrage!K143="",E28=""),"",Chiffrage!K143) ->  | E28: =IF(OFFRE!$C$86=OFFRE!$C$89,IF(Chiffrage!M143="","",Chiffrage!M143),IF(Chiffrage!L143="","",Chiffrage!L143)) -> 
A29: =IF(OR(Chiffrage!D144="",E29=""),"",Chiffrage!D144) -> 100020045 | B29: =IF(OR(Chiffrage!F144="",F29=""),"",Chiffrage!F144) -> KIT FILTRE FERNOX TF1 | C29: =IF(OR(Chiffrage!J144="",D29=""),"",Chiffrage!J144) -> EH896 | D29: =IF(OR(Chiffrage!K144="",E29=""),"",Chiffrage!K144) -> 288 | E29: =IF(OFFRE!$C$86=OFFRE!$C$89,IF(Chiffrage!M144="","",Chiffrage!M144),IF(Chiffrage!L144="","",Chiffrage!L144)) -> 1 | F29: 288 | H29: 0
A30: =IF(OR(Chiffrage!D145="",E30=""),"",Chiffrage!D145) -> 7746242 | B30: =IF(OR(Chiffrage!F145="",F30=""),"",Chiffrage!F145) -> SOUPAPE DIFFERENTIELLE | C30: =IF(OR(Chiffrage!J145="",D30=""),"",Chiffrage!J145) -> HK150 | D30: =IF(OR(Chiffrage!K145="",E30=""),"",Chiffrage!K145) -> 59 | E30: =IF(OFFRE!$C$86=OFFRE!$C$89,IF(Chiffrage!M145="","",Chiffrage!M145),IF(Chiffrage!L145="","",Chiffrage!L145)) -> 1 | F30: 59 | H30: 0
A31: =IF(OR(Chiffrage!D146="",E31=""),"",Chiffrage!D146) ->  | B31: =IF(OR(Chiffrage!F146="",F31=""),"",Chiffrage!F146) ->  | C31: =IF(OR(Chiffrage!J146="",D31=""),"",Chiffrage!J146) ->  | D31: =IF(OR(Chiffrage!K146="",E31=""),"",Chiffrage!K146) ->  | E31: =IF(OFFRE!$C$86=OFFRE!$C$89,IF(Chiffrage!M146="","",Chiffrage!M146),IF(Chiffrage!L146="","",Chiffrage!L146)) -> 
A32: =IF(OR(Chiffrage!D147="",E32=""),"",Chiffrage!D147) ->  | B32: =IF(OR(Chiffrage!F147="",F32=""),"",Chiffrage!F147) ->  | C32: =IF(OR(Chiffrage!J147="",D32=""),"",Chiffrage!J147) ->  | D32: =IF(OR(Chiffrage!K147="",E32=""),"",Chiffrage!K147) ->  | E32: =IF(OFFRE!$C$86=OFFRE!$C$89,IF(Chiffrage!M147="","",Chiffrage!M147),IF(Chiffrage!L147="","",Chiffrage!L147)) -> 
A33: =IF(OR(Chiffrage!D148="",E33=""),"",Chiffrage!D148) ->  | B33: =IF(OR(Chiffrage!F148="",F33=""),"",Chiffrage!F148) ->  | C33: =IF(OR(Chiffrage!J148="",D33=""),"",Chiffrage!J148) ->  | D33: =IF(OR(Chiffrage!K148="",E33=""),"",Chiffrage!K148) ->  | E33: =IF(OFFRE!$C$86=OFFRE!$C$89,IF(Chiffrage!M148="","",Chiffrage!M148),IF(Chiffrage!L148="","",Chiffrage!L148)) -> 
A34: =IF(OR(Chiffrage!D149="",E34=""),"",Chiffrage!D149) ->  | B34: =IF(OR(Chiffrage!F149="",F34=""),"",Chiffrage!F149) ->  | C34: =IF(OR(Chiffrage!J149="",D34=""),"",Chiffrage!J149) ->  | D34: =IF(OR(Chiffrage!K149="",E34=""),"",Chiffrage!K149) ->  | E34: =IF(OFFRE!$C$86=OFFRE!$C$89,IF(Chiffrage!M149="","",Chiffrage!M149),IF(Chiffrage!L149="","",Chiffrage!L149)) -> 
A35: =IF(OR(Chiffrage!D150="",E35=""),"",Chiffrage!D150) ->  | B35: =IF(OR(Chiffrage!F150="",F35=""),"",Chiffrage!F150) ->  | C35: =IF(OR(Chiffrage!J150="",D35=""),"",Chiffrage!J150) ->  | D35: =IF(OR(Chiffrage!K150="",E35=""),"",Chiffrage!K150) ->  | E35: =IF(OFFRE!$C$86=OFFRE!$C$89,IF(Chiffrage!M150="","",Chiffrage!M150),IF(Chiffrage!L150="","",Chiffrage!L150)) -> 
A36: =IF(OR(Chiffrage!D151="",E36=""),"",Chiffrage!D151) ->  | B36: =IF(OR(Chiffrage!F151="",F36=""),"",Chiffrage!F151) ->  | C36: =IF(OR(Chiffrage!J151="",D36=""),"",Chiffrage!J151) ->  | D36: =IF(OR(Chiffrage!K151="",E36=""),"",Chiffrage!K151) ->  | E36: =IF(OFFRE!$C$86=OFFRE!$C$89,IF(Chiffrage!M151="","",Chiffrage!M151),IF(Chiffrage!L151="","",Chiffrage!L151)) -> 
A37: =IF(OR(Chiffrage!D152="",E37=""),"",Chiffrage!D152) ->  | B37: =IF(OR(Chiffrage!F152="",F37=""),"",Chiffrage!F152) ->  | C37: =IF(OR(Chiffrage!J152="",D37=""),"",Chiffrage!J152) ->  | D37: =IF(OR(Chiffrage!K152="",E37=""),"",Chiffrage!K152) ->  | E37: =IF(OFFRE!$C$86=OFFRE!$C$89,IF(Chiffrage!M152="","",Chiffrage!M152),IF(Chiffrage!L152="","",Chiffrage!L152)) -> 
A38: =IF(OR(Chiffrage!D153="",E38=""),"",Chiffrage!D153) ->  | B38: =IF(OR(Chiffrage!F153="",F38=""),"",Chiffrage!F153) ->  | C38: =IF(OR(Chiffrage!J153="",D38=""),"",Chiffrage!J153) ->  | D38: =IF(OR(Chiffrage!K153="",E38=""),"",Chiffrage!K153) ->  | E38: =IF(OFFRE!$C$86=OFFRE!$C$89,IF(Chiffrage!M153="","",Chiffrage!M153),IF(Chiffrage!L153="","",Chiffrage!L153)) -> 
A39: =IF(OR(Chiffrage!D154="",E39=""),"",Chiffrage!D154) ->  | B39: =IF(OR(Chiffrage!F154="",F39=""),"",Chiffrage!F154) ->  | C39: =IF(OR(Chiffrage!J154="",D39=""),"",Chiffrage!J154) ->  | D39: =IF(OR(Chiffrage!K154="",E39=""),"",Chiffrage!K154) ->  | E39: =IF(OFFRE!$C$86=OFFRE!$C$89,IF(Chiffrage!M154="","",Chiffrage!M154),IF(Chiffrage!L154="","",Chiffrage!L154)) -> 
A40: =IF(OR(Chiffrage!D155="",E40=""),"",Chiffrage!D155) ->  | B40: =IF(OR(Chiffrage!F155="",F40=""),"",Chiffrage!F155) ->  | C40: =IF(OR(Chiffrage!J155="",D40=""),"",Chiffrage!J155) ->  | D40: =IF(OR(Chiffrage!K155="",E40=""),"",Chiffrage!K155) ->  | E40: =IF(OFFRE!$C$86=OFFRE!$C$89,IF(Chiffrage!M155="","",Chiffrage!M155),IF(Chiffrage!L155="","",Chiffrage!L155)) -> 
A41: =IF(OR(Chiffrage!D156="",E41=""),"",Chiffrage!D156) ->  | B41: =IF(OR(Chiffrage!F156="",F41=""),"",Chiffrage!F156) ->  | C41: =IF(OR(Chiffrage!J156="",D41=""),"",Chiffrage!J156) ->  | D41: =IF(OR(Chiffrage!K156="",E41=""),"",Chiffrage!K156) ->  | E41: =IF(OFFRE!$C$86=OFFRE!$C$89,IF(Chiffrage!M156="","",Chiffrage!M156),IF(Chiffrage!L156="","",Chiffrage!L156)) -> 
A42: =IF(OR(Chiffrage!D157="",E42=""),"",Chiffrage!D157) ->  | B42: =IF(OR(Chiffrage!F157="",F42=""),"",Chiffrage!F157) ->  | C42: =IF(OR(Chiffrage!J157="",D42=""),"",Chiffrage!J157) ->  | D42: =IF(OR(Chiffrage!K157="",E42=""),"",Chiffrage!K157) ->  | E42: =IF(OFFRE!$C$86=OFFRE!$C$89,IF(Chiffrage!M157="","",Chiffrage!M157),IF(Chiffrage!L157="","",Chiffrage!L157)) -> 
A43: =IF(OR(Chiffrage!D158="",E43=""),"",Chiffrage!D158) ->  | B43: =IF(OR(Chiffrage!F158="",F43=""),"",Chiffrage!F158) ->  | C43: =IF(OR(Chiffrage!J158="",D43=""),"",Chiffrage!J158) ->  | D43: =IF(OR(Chiffrage!K158="",E43=""),"",Chiffrage!K158) ->  | E43: =IF(OFFRE!$C$86=OFFRE!$C$89,IF(Chiffrage!M158="","",Chiffrage!M158),IF(Chiffrage!L158="","",Chiffrage!L158)) -> 
A44: =IF(OR(Chiffrage!D159="",E44=""),"",Chiffrage!D159) ->  | B44: =IF(OR(Chiffrage!F159="",F44=""),"",Chiffrage!F159) ->  | C44: =IF(OR(Chiffrage!J159="",D44=""),"",Chiffrage!J159) ->  | D44: =IF(OR(Chiffrage!K159="",E44=""),"",Chiffrage!K159) ->  | E44: =IF(OFFRE!$C$86=OFFRE!$C$89,IF(Chiffrage!M159="","",Chiffrage!M159),IF(Chiffrage!L159="","",Chiffrage!L159)) -> 
A45: =IF(OR(Chiffrage!D160="",E45=""),"",Chiffrage!D160) ->  | B45: =IF(OR(Chiffrage!F160="",F45=""),"",Chiffrage!F160) ->  | C45: =IF(OR(Chiffrage!J160="",D45=""),"",Chiffrage!J160) ->  | D45: =IF(OR(Chiffrage!K160="",E45=""),"",Chiffrage!K160) ->  | E45: =IF(OFFRE!$C$86=OFFRE!$C$89,IF(Chiffrage!M160="","",Chiffrage!M160),IF(Chiffrage!L160="","",Chiffrage!L160)) -> 
A46: =IF(OR(Chiffrage!D161="",E46=""),"",Chiffrage!D161) ->  | B46: =IF(OR(Chiffrage!F161="",F46=""),"",Chiffrage!F161) ->  | C46: =IF(OR(Chiffrage!J161="",D46=""),"",Chiffrage!J161) ->  | D46: =IF(OR(Chiffrage!K161="",E46=""),"",Chiffrage!K161) ->  | E46: =IF(OFFRE!$C$86=OFFRE!$C$89,IF(Chiffrage!M161="","",Chiffrage!M161),IF(Chiffrage!L161="","",Chiffrage!L161)) -> 
A47: =IF(OR(Chiffrage!D162="",E47=""),"",Chiffrage!D162) ->  | B47: =IF(OR(Chiffrage!F162="",F47=""),"",Chiffrage!F162) ->  | C47: =IF(OR(Chiffrage!J162="",D47=""),"",Chiffrage!J162) ->  | D47: =IF(OR(Chiffrage!K162="",E47=""),"",Chiffrage!K162) ->  | E47: =IF(OFFRE!$C$86=OFFRE!$C$89,IF(Chiffrage!M162="","",Chiffrage!M162),IF(Chiffrage!L162="","",Chiffrage!L162)) -> 
A48: =IF(OR(Chiffrage!D163="",E48=""),"",Chiffrage!D163) ->  | B48: =IF(OR(Chiffrage!F163="",F48=""),"",Chiffrage!F163) ->  | C48: =IF(OR(Chiffrage!J163="",D48=""),"",Chiffrage!J163) ->  | D48: =IF(OR(Chiffrage!K163="",E48=""),"",Chiffrage!K163) ->  | E48: =IF(OFFRE!$C$86=OFFRE!$C$89,IF(Chiffrage!M163="","",Chiffrage!M163),IF(Chiffrage!L163="","",Chiffrage!L163)) -> 
A49: =IF(OR(Chiffrage!D164="",E49=""),"",Chiffrage!D164) ->  | B49: =IF(OR(Chiffrage!F164="",F49=""),"",Chiffrage!F164) ->  | C49: =IF(OR(Chiffrage!J164="",D49=""),"",Chiffrage!J164) ->  | D49: =IF(OR(Chiffrage!K164="",E49=""),"",Chiffrage!K164) ->  | E49: =IF(OFFRE!$C$86=OFFRE!$C$89,IF(Chiffrage!M164="","",Chiffrage!M164),IF(Chiffrage!L164="","",Chiffrage!L164)) -> 
A50: =IF(OR(Chiffrage!D165="",E50=""),"",Chiffrage!D165) ->  | B50: =IF(OR(Chiffrage!F165="",F50=""),"",Chiffrage!F165) ->  | C50: =IF(OR(Chiffrage!J165="",D50=""),"",Chiffrage!J165) ->  | D50: =IF(OR(Chiffrage!K165="",E50=""),"",Chiffrage!K165) ->  | E50: =IF(OFFRE!$C$86=OFFRE!$C$89,IF(Chiffrage!M165="","",Chiffrage!M165),IF(Chiffrage!L165="","",Chiffrage!L165)) -> 
A51: =IF(OR(Chiffrage!D166="",E51=""),"",Chiffrage!D166) ->  | B51: =IF(OR(Chiffrage!F166="",F51=""),"",Chiffrage!F166) ->  | C51: =IF(OR(Chiffrage!J166="",D51=""),"",Chiffrage!J166) ->  | D51: =IF(OR(Chiffrage!K166="",E51=""),"",Chiffrage!K166) ->  | E51: =IF(OFFRE!$C$86=OFFRE!$C$89,IF(Chiffrage!M166="","",Chiffrage!M166),IF(Chiffrage!L166="","",Chiffrage!L166)) -> 
A52: =IF(OR(Chiffrage!D167="",E52=""),"",Chiffrage!D167) ->  | B52: =IF(OR(Chiffrage!F167="",F52=""),"",Chiffrage!F167) ->  | C52: =IF(OR(Chiffrage!J167="",D52=""),"",Chiffrage!J167) ->  | D52: =IF(OR(Chiffrage!K167="",E52=""),"",Chiffrage!K167) ->  | E52: =IF(OFFRE!$C$86=OFFRE!$C$89,IF(Chiffrage!M167="","",Chiffrage!M167),IF(Chiffrage!L167="","",Chiffrage!L167)) -> 
A53: =IF(OR(Chiffrage!D168="",E53=""),"",Chiffrage!D168) ->  | B53: =IF(OR(Chiffrage!F168="",F53=""),"",Chiffrage!F168) ->  | C53: =IF(OR(Chiffrage!J168="",D53=""),"",Chiffrage!J168) ->  | D53: =IF(OR(Chiffrage!K168="",E53=""),"",Chiffrage!K168) ->  | E53: =IF(OFFRE!$C$86=OFFRE!$C$89,IF(Chiffrage!M168="","",Chiffrage!M168),IF(Chiffrage!L168="","",Chiffrage!L168)) -> 
A54: =IF(OR(Chiffrage!D169="",E54=""),"",Chiffrage!D169) -> 7691374 | B54: =IF(OR(Chiffrage!F169="",F54=""),"",Chiffrage!F169) -> THERMOSTAT AMBIANCE OETROSMART (R-BUS) | C54: =IF(OR(Chiffrage!J169="",D54=""),"",Chiffrage!J169) -> AD323 | D54: =IF(OR(Chiffrage!K169="",E54=""),"",Chiffrage!K169) -> 207 | E54: =IF(OFFRE!$C$86=OFFRE!$C$89,IF(Chiffrage!M169="","",Chiffrage!M169),IF(Chiffrage!L169="","",Chiffrage!L169)) -> 1 | F54: 207
A55: =IF(OR(Chiffrage!D170="",E55=""),"",Chiffrage!D170) ->  | B55: =IF(OR(Chiffrage!F170="",F55=""),"",Chiffrage!F170) ->  | C55: =IF(OR(Chiffrage!J170="",D55=""),"",Chiffrage!J170) ->  | D55: =IF(OR(Chiffrage!K170="",E55=""),"",Chiffrage!K170) ->  | E55: =IF(OFFRE!$C$86=OFFRE!$C$89,IF(Chiffrage!M170="","",Chiffrage!M170),IF(Chiffrage!L170="","",Chiffrage!L170)) -> 
A56: =IF(OR(Chiffrage!D171="",E56=""),"",Chiffrage!D171) ->  | B56: =IF(OR(Chiffrage!F171="",F56=""),"",Chiffrage!F171) ->  | C56: =IF(OR(Chiffrage!J171="",D56=""),"",Chiffrage!J171) ->  | D56: =IF(OR(Chiffrage!K171="",E56=""),"",Chiffrage!K171) ->  | E56: =IF(OFFRE!$C$86=OFFRE!$C$89,IF(Chiffrage!M171="","",Chiffrage!M171),IF(Chiffrage!L171="","",Chiffrage!L171)) -> 
A57: =IF(OR(Chiffrage!D172="",E57=""),"",Chiffrage!D172) ->  | B57: =IF(OR(Chiffrage!F172="",F57=""),"",Chiffrage!F172) ->  | C57: =IF(OR(Chiffrage!J172="",D57=""),"",Chiffrage!J172) ->  | D57: =IF(OR(Chiffrage!K172="",E57=""),"",Chiffrage!K172) ->  | E57: =IF(OFFRE!$C$86=OFFRE!$C$89,IF(Chiffrage!M172="","",Chiffrage!M172),IF(Chiffrage!L172="","",Chiffrage!L172)) -> 
A58: =IF(OR(Chiffrage!D173="",E58=""),"",Chiffrage!D173) ->  | B58: =IF(OR(Chiffrage!F173="",F58=""),"",Chiffrage!F173) ->  | C58: =IF(OR(Chiffrage!J173="",D58=""),"",Chiffrage!J173) ->  | D58: =IF(OR(Chiffrage!K173="",E58=""),"",Chiffrage!K173) ->  | E58: =IF(OFFRE!$C$86=OFFRE!$C$89,IF(Chiffrage!M173="","",Chiffrage!M173),IF(Chiffrage!L173="","",Chiffrage!L173)) -> 
A59: =IF(OR(Chiffrage!D174="",E59=""),"",Chiffrage!D174) ->  | B59: =IF(OR(Chiffrage!F174="",F59=""),"",Chiffrage!F174) ->  | C59: =IF(OR(Chiffrage!J174="",D59=""),"",Chiffrage!J174) ->  | D59: =IF(OR(Chiffrage!K174="",E59=""),"",Chiffrage!K174) ->  | E59: =IF(OFFRE!$C$86=OFFRE!$C$89,IF(Chiffrage!M174="","",Chiffrage!M174),IF(Chiffrage!L174="","",Chiffrage!L174)) -> 
A60: =IF(OR(Chiffrage!D175="",E60=""),"",Chiffrage!D175) ->  | B60: =IF(OR(Chiffrage!F175="",F60=""),"",Chiffrage!F175) ->  | C60: =IF(OR(Chiffrage!J175="",D60=""),"",Chiffrage!J175) ->  | D60: =IF(OR(Chiffrage!K175="",E60=""),"",Chiffrage!K175) ->  | E60: =IF(OFFRE!$C$86=OFFRE!$C$89,IF(Chiffrage!M175="","",Chiffrage!M175),IF(Chiffrage!L175="","",Chiffrage!L175)) -> 
A61: =IF(OR(Chiffrage!D178="",E61=""),"",Chiffrage!D178) ->  | B61: =IF(OR(Chiffrage!F178="",F61=""),"",Chiffrage!F178) ->  | C61: =IF(OR(Chiffrage!J178="",D61=""),"",Chiffrage!J178) ->  | D61: =IF(OR(Chiffrage!K178="",E61=""),"",Chiffrage!K178) ->  | E61: =IF(OFFRE!$C$86=OFFRE!$C$89,IF(Chiffrage!M178="","",Chiffrage!M178),IF(Chiffrage!L178="","",Chiffrage!L178)) -> 
A62: =IF(OR(Chiffrage!D179="",E62=""),"",Chiffrage!D179) -> 88017017 | B62: =IF(OR(Chiffrage!F179="",F62=""),"",Chiffrage!F179) -> SONDE DEPART v3v | C62: =IF(OR(Chiffrage!J179="",D62=""),"",Chiffrage!J179) -> AD199 | D62: =IF(OR(Chiffrage!K179="",E62=""),"",Chiffrage!K179) -> 85 | E62: =IF(OFFRE!$C$86=OFFRE!$C$89,IF(Chiffrage!M179="","",Chiffrage!M179),IF(Chiffrage!L179="","",Chiffrage!L179)) -> 1 | F62: =IF(AND(E62>0,E62<>""),E62*D62,"") -> 85
A63: =IF(OR(Chiffrage!D180="",E63=""),"",Chiffrage!D180) ->  | B63: =IF(OR(Chiffrage!F180="",F63=""),"",Chiffrage!F180) ->  | C63: =IF(OR(Chiffrage!J180="",D63=""),"",Chiffrage!J180) ->  | D63: =IF(OR(Chiffrage!K180="",E63=""),"",Chiffrage!K180) ->  | E63: =IF(OFFRE!$C$86=OFFRE!$C$89,IF(Chiffrage!M180="","",Chiffrage!M180),IF(Chiffrage!L180="","",Chiffrage!L180)) -> 
A64: =IF(OR(Chiffrage!D181="",E64=""),"",Chiffrage!D181) ->  | B64: =IF(OR(Chiffrage!F181="",F64=""),"",Chiffrage!F181) ->  | C64: =IF(OR(Chiffrage!J181="",D64=""),"",Chiffrage!J181) ->  | D64: =IF(OR(Chiffrage!K181="",E64=""),"",Chiffrage!K181) ->  | E64: =IF(OFFRE!$C$86=OFFRE!$C$89,IF(Chiffrage!M181="","",Chiffrage!M181),IF(Chiffrage!L181="","",Chiffrage!L181)) -> 
A65: =IF(OR(Chiffrage!D182="",E65=""),"",Chiffrage!D182) ->  | B65: =IF(OR(Chiffrage!F182="",F65=""),"",Chiffrage!F182) ->  | C65: =IF(OR(Chiffrage!J182="",D65=""),"",Chiffrage!J182) ->  | D65: =IF(OR(Chiffrage!K182="",E65=""),"",Chiffrage!K182) ->  | E65: =IF(OFFRE!$C$86=OFFRE!$C$89,IF(Chiffrage!M182="","",Chiffrage!M182),IF(Chiffrage!L182="","",Chiffrage!L182)) -> 
A66: =IF(OR(Chiffrage!D183="",E66=""),"",Chiffrage!D183) -> 100020168 | B66: =IF(OR(Chiffrage!F183="",F66=""),"",Chiffrage!F183) -> CIRCUIT V3V P.ELEC | C66: =IF(OR(Chiffrage!J183="",D66=""),"",Chiffrage!J183) -> EA144 | D66: =IF(OR(Chiffrage!K183="",E66=""),"",Chiffrage!K183) -> 1023 | E66: =IF(OFFRE!$C$86=OFFRE!$C$89,IF(Chiffrage!M183="","",Chiffrage!M183),IF(Chiffrage!L183="","",Chiffrage!L183)) -> 1 | F66: 1023
A67: =IF(OR(Chiffrage!D184="",E67=""),"",Chiffrage!D184) -> 100020166 | B67: =IF(OR(Chiffrage!F184="",F67=""),"",Chiffrage!F184) -> CONSOLE MUR 1 MODULE | C67: =IF(OR(Chiffrage!J184="",D67=""),"",Chiffrage!J184) -> EA142 | D67: =IF(OR(Chiffrage!K184="",E67=""),"",Chiffrage!K184) -> 129 | E67: =IF(OFFRE!$C$86=OFFRE!$C$89,IF(Chiffrage!M184="","",Chiffrage!M184),IF(Chiffrage!L184="","",Chiffrage!L184)) -> 1 | F67: =IF(AND(E67>0,E67<>""),E67*D67,"") -> 129
A68: =IF(OR(Chiffrage!D185="",E68=""),"",Chiffrage!D185) -> 100017832 | B68: =IF(OR(Chiffrage!F185="",F68=""),"",Chiffrage!F185) -> KIT TUBULURES 2 CIRCUITS | C68: =IF(OR(Chiffrage!J185="",D68=""),"",Chiffrage!J185) -> HK22 | D68: =IF(OR(Chiffrage!K185="",E68=""),"",Chiffrage!K185) -> 156 | E68: =IF(OFFRE!$C$86=OFFRE!$C$89,IF(Chiffrage!M185="","",Chiffrage!M185),IF(Chiffrage!L185="","",Chiffrage!L185)) -> 1 | F68: 156
A69: =IF(OR(Chiffrage!D186="",E69=""),"",Chiffrage!D186) ->  | B69: =IF(OR(Chiffrage!F186="",F69=""),"",Chiffrage!F186) ->  | C69: =IF(OR(Chiffrage!J186="",D69=""),"",Chiffrage!J186) ->  | D69: =IF(OR(Chiffrage!K186="",E69=""),"",Chiffrage!K186) ->  | E69: =IF(OFFRE!$C$86=OFFRE!$C$89,IF(Chiffrage!M186="","",Chiffrage!M186),IF(Chiffrage!L186="","",Chiffrage!L186)) -> 
A70: =IF(OR(Chiffrage!D187="",E70=""),"",Chiffrage!D187) ->  | B70: =IF(OR(Chiffrage!F187="",F70=""),"",Chiffrage!F187) ->  | C70: =IF(OR(Chiffrage!J187="",D70=""),"",Chiffrage!J187) ->  | D70: =IF(OR(Chiffrage!K187="",E70=""),"",Chiffrage!K187) ->  | E70: =IF(OFFRE!$C$86=OFFRE!$C$89,IF(Chiffrage!M187="","",Chiffrage!M187),IF(Chiffrage!L187="","",Chiffrage!L187)) -> 
A71: =IF(OR(Chiffrage!D188="",E71=""),"",Chiffrage!D188) ->  | B71: =IF(OR(Chiffrage!F188="",F71=""),"",Chiffrage!F188) ->  | C71: =IF(OR(Chiffrage!J188="",D71=""),"",Chiffrage!J188) ->  | D71: =IF(OR(Chiffrage!K188="",E71=""),"",Chiffrage!K188) ->  | E71: =IF(OFFRE!$C$86=OFFRE!$C$89,IF(Chiffrage!M188="","",Chiffrage!M188),IF(Chiffrage!L188="","",Chiffrage!L188)) -> 
A72: =IF(OR(Chiffrage!D189="",E72=""),"",Chiffrage!D189) -> 100019348 | B72: =IF(OR(Chiffrage!F189="",F72=""),"",Chiffrage!F189) -> BOUTEILLE DE DECOUPLAGE 120/80-2'' | C72: =IF(OR(Chiffrage!J189="",D72=""),"",Chiffrage!J189) -> GV47 | D72: =IF(OR(Chiffrage!K189="",E72=""),"",Chiffrage!K189) -> 658 | E72: =IF(OFFRE!$C$86=OFFRE!$C$89,IF(Chiffrage!M189="","",Chiffrage!M189),IF(Chiffrage!L189="","",Chiffrage!L189)) -> 1 | F72: 658
A73: =IF(OR(Chiffrage!D190="",E73=""),"",Chiffrage!D190) ->  | B73: =IF(OR(Chiffrage!F190="",F73=""),"",Chiffrage!F190) ->  | C73: =IF(OR(Chiffrage!J190="",D73=""),"",Chiffrage!J190) ->  | D73: =IF(OR(Chiffrage!K190="",E73=""),"",Chiffrage!K190) ->  | E73: =IF(OFFRE!$C$86=OFFRE!$C$89,IF(Chiffrage!M190="","",Chiffrage!M190),IF(Chiffrage!L190="","",Chiffrage!L190)) -> 
A74: =IF(OR(Chiffrage!D191="",E74=""),"",Chiffrage!D191) -> 7650329 | B74: =IF(OR(Chiffrage!F191="",F74=""),"",Chiffrage!F191) -> PURGEUR RP 1/2 | C74: =IF(OR(Chiffrage!J191="",D74=""),"",Chiffrage!J191) -> SA16 | D74: =IF(OR(Chiffrage!K191="",E74=""),"",Chiffrage!K191) -> 64 | E74: =IF(OFFRE!$C$86=OFFRE!$C$89,IF(Chiffrage!M191="","",Chiffrage!M191),IF(Chiffrage!L191="","",Chiffrage!L191)) -> 1 | F74: 64
A75: =IF(OR(Chiffrage!D192="",E75=""),"",Chiffrage!D192) ->  | B75: =IF(OR(Chiffrage!F192="",F75=""),"",Chiffrage!F192) ->  | C75: =IF(OR(Chiffrage!J192="",D75=""),"",Chiffrage!J192) ->  | D75: =IF(OR(Chiffrage!K192="",E75=""),"",Chiffrage!K192) ->  | E75: =IF(OFFRE!$C$86=OFFRE!$C$89,IF(Chiffrage!M192="","",Chiffrage!M192),IF(Chiffrage!L192="","",Chiffrage!L192)) -> 1
A76: =IF(OR(Chiffrage!D203="",E76=""),"",Chiffrage!D203) ->  | B76: =IF(OR(Chiffrage!F203="",F76=""),"",Chiffrage!F203) ->  | C76: =IF(OR(Chiffrage!J203="",D76=""),"",Chiffrage!J203) ->  | D76: =IF(OR(Chiffrage!K203="",E76=""),"",Chiffrage!K203) ->  | E76: =IF(OFFRE!$C$86=OFFRE!$C$89,IF(Chiffrage!M203="","",Chiffrage!M203),IF(Chiffrage!L203="","",Chiffrage!L203)) ->  | F76: =IF(AND(E76>0,E76<>""),E76*D76,"") -> 
A77: =IF(OR(Chiffrage!D204="",E77=""),"",Chiffrage!D204) ->  | B77: =IF(OR(Chiffrage!F204="",F77=""),"",Chiffrage!F204) ->  | C77: =IF(OR(Chiffrage!J204="",D77=""),"",Chiffrage!J204) ->  | D77: =IF(OR(Chiffrage!K204="",E77=""),"",Chiffrage!K204) ->  | E77: =IF(OFFRE!$C$86=OFFRE!$C$89,IF(Chiffrage!M204="","",Chiffrage!M204),IF(Chiffrage!L204="","",Chiffrage!L204)) ->  | F77: =IF(AND(E77>0,E77<>""),E77*D77,"") -> 
A78: =IF(OR(Chiffrage!D205="",E78=""),"",Chiffrage!D205) ->  | B78: =IF(OR(Chiffrage!F205="",F78=""),"",Chiffrage!F205) ->  | C78: =IF(OR(Chiffrage!J205="",D78=""),"",Chiffrage!J205) ->  | D78: =IF(OR(Chiffrage!K205="",E78=""),"",Chiffrage!K205) ->  | E78: =IF(OFFRE!$C$86=OFFRE!$C$89,IF(Chiffrage!M205="","",Chiffrage!M205),IF(Chiffrage!L205="","",Chiffrage!L205)) -> 
A79: =IF(OR(Chiffrage!D206="",E79=""),"",Chiffrage!D206) ->  | B79: =IF(OR(Chiffrage!F206="",F79=""),"",Chiffrage!F206) ->  | C79: =IF(OR(Chiffrage!J206="",D79=""),"",Chiffrage!J206) ->  | D79: =IF(OR(Chiffrage!K206="",E79=""),"",Chiffrage!K206) ->  | E79: =IF(OFFRE!$C$86=OFFRE!$C$89,IF(Chiffrage!M206="","",Chiffrage!M206),IF(Chiffrage!L206="","",Chiffrage!L206)) -> 
A80: =IF(OR(Chiffrage!D207="",E80=""),"",Chiffrage!D207) ->  | B80: =IF(OR(Chiffrage!F207="",F80=""),"",Chiffrage!F207) ->  | C80: =IF(OR(Chiffrage!J207="",D80=""),"",Chiffrage!J207) ->  | D80: =IF(OR(Chiffrage!K207="",E80=""),"",Chiffrage!K207) ->  | E80: =IF(OFFRE!$C$86=OFFRE!$C$89,IF(Chiffrage!M207="","",Chiffrage!M207),IF(Chiffrage!L207="","",Chiffrage!L207)) -> 
A81: =IF(OR(Chiffrage!D208="",E81=""),"",Chiffrage!D208) ->  | B81: =IF(OR(Chiffrage!F208="",F81=""),"",Chiffrage!F208) ->  | C81: =IF(OR(Chiffrage!J208="",D81=""),"",Chiffrage!J208) ->  | D81: =IF(OR(Chiffrage!K208="",E81=""),"",Chiffrage!K208) ->  | E81: =IF(OFFRE!$C$86=OFFRE!$C$89,IF(Chiffrage!M208="","",Chiffrage!M208),IF(Chiffrage!L208="","",Chiffrage!L208)) -> 
A82: =IF(OR(Chiffrage!D209="",E82=""),"",Chiffrage!D209) ->  | B82: =IF(OR(Chiffrage!F209="",F82=""),"",Chiffrage!F209) ->  | C82: =IF(OR(Chiffrage!J209="",D82=""),"",Chiffrage!J209) ->  | D82: =IF(OR(Chiffrage!K209="",E82=""),"",Chiffrage!K209) ->  | E82: =IF(OFFRE!$C$86=OFFRE!$C$89,IF(Chiffrage!M209="","",Chiffrage!M209),IF(Chiffrage!L209="","",Chiffrage!L209)) -> 
A83: =IF(OR(Chiffrage!D210="",E83=""),"",Chiffrage!D210) ->  | B83: =IF(OR(Chiffrage!F210="",F83=""),"",Chiffrage!F210) ->  | C83: =IF(OR(Chiffrage!J210="",D83=""),"",Chiffrage!J210) ->  | D83: =IF(OR(Chiffrage!K210="",E83=""),"",Chiffrage!K210) ->  | E83: =IF(OFFRE!$C$86=OFFRE!$C$89,IF(Chiffrage!M210="","",Chiffrage!M210),IF(Chiffrage!L210="","",Chiffrage!L210)) -> 
A84: =IF(OR(Chiffrage!D211="",E84=""),"",Chiffrage!D211) ->  | B84: =IF(OR(Chiffrage!F211="",F84=""),"",Chiffrage!F211) ->  | C84: =IF(OR(Chiffrage!J211="",D84=""),"",Chiffrage!J211) ->  | D84: =IF(OR(Chiffrage!K211="",E84=""),"",Chiffrage!K211) ->  | E84: =IF(OFFRE!$C$86=OFFRE!$C$89,IF(Chiffrage!M211="","",Chiffrage!M211),IF(Chiffrage!L211="","",Chiffrage!L211)) -> 
A85: =IF(OR(Chiffrage!D212="",E85=""),"",Chiffrage!D212) ->  | B85: =IF(OR(Chiffrage!F212="",F85=""),"",Chiffrage!F212) ->  | C85: =IF(OR(Chiffrage!J212="",D85=""),"",Chiffrage!J212) ->  | D85: =IF(OR(Chiffrage!K212="",E85=""),"",Chiffrage!K212) ->  | E85: =IF(OFFRE!$C$86=OFFRE!$C$89,IF(Chiffrage!M212="","",Chiffrage!M212),IF(Chiffrage!L212="","",Chiffrage!L212)) -> 
A86: =IF(OR(Chiffrage!D213="",E86=""),"",Chiffrage!D213) ->  | B86: =IF(OR(Chiffrage!F213="",F86=""),"",Chiffrage!F213) ->  | C86: =IF(OR(Chiffrage!J213="",D86=""),"",Chiffrage!J213) ->  | D86: =IF(OR(Chiffrage!K213="",E86=""),"",Chiffrage!K213) ->  | E86: =IF(OFFRE!$C$86=OFFRE!$C$89,IF(Chiffrage!M213="","",Chiffrage!M213),IF(Chiffrage!L213="","",Chiffrage!L213)) -> 
A87: =IF(OR(Chiffrage!D214="",E87=""),"",Chiffrage!D214) ->  | B87: =IF(OR(Chiffrage!F214="",F87=""),"",Chiffrage!F214) ->  | C87: =IF(OR(Chiffrage!J214="",D87=""),"",Chiffrage!J214) ->  | D87: =IF(OR(Chiffrage!K214="",E87=""),"",Chiffrage!K214) ->  | E87: =IF(OFFRE!$C$86=OFFRE!$C$89,IF(Chiffrage!M214="","",Chiffrage!M214),IF(Chiffrage!L214="","",Chiffrage!L214)) -> 
A88: =IF(OR(Chiffrage!D215="",E88=""),"",Chiffrage!D215) ->  | B88: =IF(OR(Chiffrage!F215="",F88=""),"",Chiffrage!F215) ->  | C88: =IF(OR(Chiffrage!J215="",D88=""),"",Chiffrage!J215) ->  | D88: =IF(OR(Chiffrage!K215="",E88=""),"",Chiffrage!K215) ->  | E88: =IF(OFFRE!$C$86=OFFRE!$C$89,IF(Chiffrage!M215="","",Chiffrage!M215),IF(Chiffrage!L215="","",Chiffrage!L215)) -> 
A89: =IF(OR(Chiffrage!D216="",E89=""),"",Chiffrage!D216) ->  | B89: =IF(OR(Chiffrage!F216="",F89=""),"",Chiffrage!F216) ->  | C89: =IF(OR(Chiffrage!J216="",D89=""),"",Chiffrage!J216) ->  | D89: =IF(OR(Chiffrage!K216="",E89=""),"",Chiffrage!K216) ->  | E89: =IF(OFFRE!$C$86=OFFRE!$C$89,IF(Chiffrage!M216="","",Chiffrage!M216),IF(Chiffrage!L216="","",Chiffrage!L216)) ->  | F89: =IF(AND(E89>0,E89<>""),E89*D89,"") -> 
A90: =IF(OR(Chiffrage!D217="",E90=""),"",Chiffrage!D217) ->  | B90: =IF(OR(Chiffrage!F217="",F90=""),"",Chiffrage!F217) ->  | C90: =IF(OR(Chiffrage!J217="",D90=""),"",Chiffrage!J217) ->  | D90: =IF(OR(Chiffrage!K217="",E90=""),"",Chiffrage!K217) ->  | E90: =IF(OFFRE!$C$86=OFFRE!$C$89,IF(Chiffrage!M217="","",Chiffrage!M217),IF(Chiffrage!L217="","",Chiffrage!L217)) ->  | F90: =IF(AND(E90>0,E90<>""),E90*D90,"") -> 
A91: =IF(OR(Chiffrage!D218="",E91=""),"",Chiffrage!D218) ->  | B91: =IF(OR(Chiffrage!F218="",F91=""),"",Chiffrage!F218) ->  | C91: =IF(OR(Chiffrage!J218="",D91=""),"",Chiffrage!J218) ->  | D91: =IF(OR(Chiffrage!K218="",E91=""),"",Chiffrage!K218) ->  | E91: =IF(OFFRE!$C$86=OFFRE!$C$89,IF(Chiffrage!M218="","",Chiffrage!M218),IF(Chiffrage!L218="","",Chiffrage!L218)) ->  | F91: =IF(AND(E91>0,E91<>""),E91*D91,"") -> 

Sheet Aides financières (hidden)
B2: Aides financières pour 2019 <=> Plus d'actualité à partir de janvier 2020 | X2: =IF(Chiffrage!$D$72='Aides financières'!$B$138,1,IF('Aides financières'!$G$89='Aides financières'!$J$96,2,IF('Aides financières'!$G$89='Aides financières'!$J$97,3,4))) -> 1
W3: 1
W4: 2
W5: 3
W6: 4
D15: Gamme sélectionnée | E15: =OFFRE!$D$71 -> OENOVIAPAC-C MB (Monobloc)
D16: Modèle sélectionné | E16: =OFFRE!$D$72 -> OEnoviaPac-C MB 6 MR - E
B18: INVESTISSEMENT | E18: MONTANT | H18: Part de chaque poste | L18: Montant éligible au CITE
B19: MATERIEL total | E19: =#REF! ->  | H19: =E19/E21 ->  | K19: tres modeste | L19: =#REF!-(($E$28+$E$29+$E$30+$E$31)*(#REF!/1.055)/($E$21/1.055)) -> 
B20: POSE TTC | E20: =Chiffrage!$K$78 -> 0 | H20: =E20/E21 ->  | K20: modeste | L20: =#REF!-(($K$28+$K$29+$K$30+$K$31)*(#REF!/1.055)/($E$21/1.055)) -> 
B21: TOTAL TTC (TVA 5,5%) | E21: =E19+E20 ->  | K21: sans conditions | L21: =Q60 -> 
B22: TOTAL HT | E22: =E21/1.055 -> 
B26: RESULTAT : TRES MODESTES | H26: RESULTAT : MODESTES | N26: RESULTAT : AUTRES
B27: DISPOSITIF | E27: MONTANT | H27: DISPOSITIF | K27: MONTANT | N27: DISPOSITIF | Q27: MONTANT
B28: COUP DE POUCE | E28: 4000 | H28: COUP DE POUCE | K28: 4000 | N28: COUP DE POUCE | Q28: 2500
B29: ABONDEMENT FOURNISSEUR D'ENERGIE | E29: =IF($C$97=$B$138,0,1500) ->  | H29: ABONDEMENT FOURNISSEUR D'ENERGIE | K29: =IF($C$97=$B$138,0,1500) ->  | N29: ABONDEMENT FOURNISSEUR D'ENERGIE | Q29: =IF($C$97=$B$138,0,1000) -> 
B30: ANAH AGILITE HABITER MIEUX (% TOTAL HT) | D30: =M101 ->  | E30: =IF($C$98=$B$137,IF(ROUND($E$22*D30,0)>4000,4000,ROUND($E$22*D30,0)),0) ->  | H30: ANAH AGILITE HABITER MIEUX (% TOTAL HT) | J30: =M101 ->  | K30: =IF($C$98=$B$137,IF(ROUND($E$22*J30,0)>2800,2800,ROUND($E$22*J30,0)),0) ->  | N30: ANAH AGILITE HABITER MIEUX (% TOTAL HT) | P30: 0 | Q30: 0
B31: AUTRES AIDES (chèque énergie, locale, etc…) | E31: =IF(Chiffrage!#REF!='Aides financières'!$B$138,0,Chiffrage!#REF!) ->  | H31: AUTRES AIDES (chèque énergie, locale, etc…) | K31: =E31 ->  | N31: AUTRES AIDES (chèque énergie, locale, etc…) | Q31: =E31 -> 
B32: CITE 30% APRES DISPOSITIF (MATERIEL ET POSE TTC) | E32: =IF($L$19<0,0,IF($L$19>$R$48,$R$48*0.3,$L$19*0.3)) ->  | H32: CITE 30% APRES DISPOSITIF (MATERIEL ET POSE TTC) | K32: =IF($L$20<0,0,IF($L$20>$R$48,$R$48*0.3,$L$20*0.3)) ->  | N32: CITE 30% APRES DISPOSITIF (MATERIEL TTC) | Q32: =IF($Q$60>$R$48,$R$48*0.3,$Q$60*0.3) -> 
B33: TOTAL DES AIDES | E33: =SUM(E28:F32) ->  | H33: TOTAL DES AIDES | K33: =SUM(K28:L32) ->  | N33: TOTAL DES AIDES | Q33: =SUM(Q28:R32) -> 
B34: TOTAL DES TRAVAUX TTC (TVA 5,5%) | E34: =E21 ->  | H34: =B34 -> TOTAL DES TRAVAUX TTC (TVA 5,5%) | K34: =E34 ->  | N34: =H34 -> TOTAL DES TRAVAUX TTC (TVA 5,5%) | Q34: =K34 -> 
B35: RESTE A FINANCER | E35: =IF($E$21-E33<0,0,$E$21-E33) ->  | H35: RESTE A FINANCER | K35: =IF($E$21-K33<0,0,$E$21-K33) ->  | N35: RESTE A FINANCER | Q35: =IF($E$21-Q33<0,0,$E$21-Q33) -> 
B36: PTZ 10 ans | E36: =ROUND(E35/120,0) ->  | F36: / mois | H36: PTZ 10 ans | K36: =ROUND(K35/120,0) ->  | L36: / mois | N36: PTZ 10 ans | Q36: =ROUND(Q35/120,0) ->  | R36: / mois
B37: ECONOMIE D'ENERGIE | C37: =IF(Chiffrage!#REF!='Aides financières'!$B$137,Chiffrage!#REF!,Chiffrage!#REF!) ->  | D37: / an | E37: =C37/12 ->  | F37: / mois | H37: ECONOMIE D'ENERGIE | I37: =C37 ->  | J37: / an | K37: =I37/12 ->  | L37: / mois | N37: ECONOMIE D'ENERGIE | O37: =C37 ->  | P37: / an | Q37: =O37/12 ->  | R37: / mois
K44: CITE
B45: Votre logement a-til plus de 15 ans ? | K45: Type de foyer | O45: Montant hors pers suppl
B46: OUI | K46: 1 personne célibataire | O46: =IF(Chiffrage!#REF!='Aides financières'!$K$46,8000,16000) -> 
B47: NON | K47: 1 couple partageant le même foyant foyer fiscal | R47: MAX CITE
O48: Nb pers à charge | R48: =$O$46+400*$O$49 -> 
B49: Avez-vous bénéficié d'un PTZ (Prêt à taux zéro pour l'accession à la propriété) depuis 5 ans ? | O49: =Chiffrage!#REF! -> 
B50: OUI
B51: NON | K51: CITE en mode SANS CONDITION
B53: Nombre de personnes composant le ménage : | L53: Les aides sont déduits au pro-rata entre équipement et pose
B54: 1 | L54: Le CITE ne prend pas en compte la pose (contrairement aux cas modestes et treès modestes)
B55: 2
B56: 3 | L56: Montant COUP DE POUCE pour pose | O56: =$Q$28*$H$20 ->  | Q56: Reste à charge pose
B57: 4 | L57: Montant COUP DE POUCE pour équipement | O57: =$Q$28*$H$19 ->  | Q57: =E20-O63 -> 
B58: 5 | L58: Montant ABONDEMENT pour pose | O58: =$Q$29*$H$20 -> 
B59: 6 | L59: Montant ABONDEMENT pour équipement | O59: =$Q$29*$H$19 ->  | Q59: Reste à charge EQUIPEMENT
B60: 7 | L60: Montant AUTRES AIDES pour pose | O60: =$Q$31*$H$20 ->  | Q60: =E19-O64 -> 
B61: 8 | L61: Montant AUTRES AIDES pour équipement | O61: =$Q$31*$H$19 -> 
B62: 9
L63: TOTAL pose | O63: =O56+O58+O60 -> 
B64: Localisation du ménage : | L64: TOTAL equipement | O64: =O57+O59+O61 -> 
B65: Île-de-France
B66: Autres régions
B68: Plafond de ressources : | C68: Très modestes | E68: Modestes | I68: Choix possible
C69: Île-de-France | D69: Autres régions | E69: Île-de-France | F69: Autres régions | I69: =CONCATENATE("Moins de ",VLOOKUP($J$84,$B$70:$F$78,IF($J$85=$B$65,2,3),FALSE)," € / an") -> 
B70: 1 | C70: 20470 | D70: 14790 | E70: 24918 | F70: 18960 | I70: =CONCATENATE("Entre ",VLOOKUP($J$84,$B$70:$F$78,IF($J$85=$B$65,2,3),FALSE)," et ",VLOOKUP($J$84,$B$70:$F$78,IF($J$85=$B$65,4,5),FALSE)," € / an") -> 
B71: 2 | C71: 30044 | D71: 21630 | E71: 36572 | F71: 27729 | I71: =CONCATENATE("Plus de ",VLOOKUP($J$84,$B$70:$F$78,IF($J$85=$B$65,4,5),FALSE)," € / an") -> 
B72: 3 | C72: 36080 | D72: 26013 | E72: 43924 | F72: 33346
B73: 4 | C73: 42128 | D73: 30389 | E73: 51289 | F73: 38958
B74: 5 | C74: 48198 | D74: 34784 | E74: 58674 | F74: 44592
B75: 6 | C75: 54257 | D75: 39169 | E75: 66051 | F75: 50209
B76: 7 | C76: 60316 | D76: 43554 | E76: 73428 | F76: 55826
B77: 8 | C77: 66375 | D77: 47939 | E77: 80805 | F77: 61443
B78: 9 | C78: 72434 | D78: 52324 | E78: 88182 | F78: 67060
B81: ANAH
I82: Votre logement a-til plus de 15 ans ? | J82: =Chiffrage!#REF! -> 
I83: Avez-vous bénéficié d'un PTZ (Prêt à taux zéro pour l'accession à la propriété) depuis 5 ans ? | J83: =Chiffrage!$E77 -> 3
I84: Nombre de personnes composant le ménage : | J84: =Chiffrage!#REF! -> 
I85: Localisation du ménage : | J85: =Chiffrage!$D79 -> 0
I86: Plafond de ressources : | J86: =Chiffrage!$E78 -> Plus de 50281 €/an.
G88: Catégorie correspondante :
G89: =IF($J$86=$I$69,$J$96,IF($J$86=$I$70,$J$97,IF($J$86=$I$71,$J$98,""))) -> 
B94: Aides disponibles
J95: Coup de pouce | L95: Abondement | M95: ANAH | N95: Crédit d'impôt
B96: Coup de pouce | C96: OUI | D96: =VLOOKUP($G$89,$J$96:$N$98,2,FALSE) ->  | J96: Très modeste | K96: 4000 | L96: 1500 | M96: Environ 50% du total HT* ou 4000€ max | N96: 30% du montant total TTC (autres aides déduites)
B97: Abondement type EDF | C97: =Chiffrage!#REF! ->  | D97: =IF($C$97=$B$137,VLOOKUP($G$89,$J$96:$N$98,3,FALSE),0) ->  | J97: Modeste | K97: 4000 | L97: 1500 | M97: Environ 35% du total HT* ou 2800€ max | N97: 30% du montant total TTC (autres aides déduites)
B98: ANAH AGILITE HABITER MIEUX | C98: =IF(AND($J$82=$B$137,$J$83=$B$138),IF($J$86=$I$71,"NON","OUI"),"NON") ->  | D98: =IF($C$98="NON","",VLOOKUP($G$89,$J$96:$N$98,4,FALSE)) ->  | J98: Sans conditions | K98: 2500 | L98: 1000 | M98: - | N98: 30% du prix du matériel TTC (autres aides déduites)
B99: Crédit d'Impôt Transition Energitique (CITE) | C99: OUI | D99: =VLOOKUP($G$89,$J$96:$N$98,5,FALSE) -> 
B100: Autres aides | C100: =Chiffrage!#REF! ->  | D100: =Chiffrage!#REF! ->  | M100: Coefficient réel pour ANAH
M101: =IF(Chiffrage!#REF!="",IF($G$89=$J$96,0.5,IF($G$89=$J$97,0.35,0)),Chiffrage!#REF!) -> 
B103: Montant total des aides
B104: =IF($G$89=$J$96,$E$33,IF($G$89=$J$97,$K$33,$Q$33)) -> 
B107: Règles des aides financières
B109: Disponibles jusqu'en 12/2020
B111: COUP DE POUCE | E111: 4000€ pour TRES MODESTE ET MODESTE / 2500€ pour SANS CONDITIONS
E112: A retrancher du TTC :
F113: Pour modeste et très modeste : MATERIEL + POSE
F114: Pour sans conditons : MATERIEL + POSE (pro rata)
B115: ABONDEMENT | E115: 1500€ pour TRES MODESTES / 1000€ pour MODESTES et SANS CONDITIONS
E116: Retranchement idem
B118: ANAH | E118: TRES MODESTES : 50% du total HT (matériel + pose) limite à 10000€
E119: MODESTES : 35% du total HT (matériel + pose) limite à 7000€
E120: SANS CONDITIONS : 0
B122: CITE : | E122: 30% du montant total TTC (autres aides déduites)
E123: SANS CONDITIONS : MATERIEL uniquement (autres aides déduites au pro rata MO/Matériel)
E124: TRES MODESTES + MODESTES : POSE + MATERIEL (Soustraction simple)
B134: Nouveau système d'aides <=> A partir de janvier 2020
B136: Choix | D136: Autres aides
B137: OUI | D137: Disponible | H137: Plafonds de ressources Ile-De-France
B138: NON | D138: Non disponible | H138: Nombre de personnes | I138: =$B$147 -> Très modeste | J138: =$B$148 -> Modeste | K138: =$B$149 -> Ménage aux revenus intermédiaires | L138: =$B$150 -> Ménage aux revenus les plus élevés
H139: 1 | I139: 20593 | J139: 25068 | K139: 27706 | L139: -
H140: 2 | I140: 30225 | J140: 36792 | K140: 44124 | L140: -
B141: Plus que 1 seule aide ! | H141: 3 | I141: 36297 | J141: 44188 | K141: 50281 | L141: -
B142: Prime unique qui regroupe le CITE et l'ANAH | H142: 4 | I142: 42381 | J142: 51597 | K142: 56438 | L142: -
B143: Le CEE reste disponible | H143: 5 | I143: 48488 | J143: 59026 | K143: 68752 | L143: -
B144: Eco-prêt à taux 0 reste ouvert à tous | H144: 6 | I144: =I143+6096 -> 54584 | J144: =J143+7422 -> 66448 | K144: 81066 | L144: -
H145: 7 | I145: =I144+6096 -> 60680 | J145: =J144+7422 -> 73870 | K145: =K144+12314 -> 93380 | L145: -
B146: Catégories de ménages | H146: 8 | I146: 66776 | J146: 81292 | K146: =K145+12314 -> 105694 | L146: -
B147: Très modeste | H147: 9 | I147: 72872 | J147: 88714 | K147: 118008 | L147: -
B148: Modeste | H148: 10 | I148: 78968 | J148: 96136 | K148: 130322 | L148: -
B149: Ménage aux revenus intermédiaires
B150: Ménage aux revenus les plus élevés | H150: Plafonds de ressources Province
H151: Nombre de personnes | I151: =$B$147 -> Très modeste | J151: =$B$148 -> Modeste | K151: =$B$149 -> Ménage aux revenus intermédiaires | L151: =$B$150 -> Ménage aux revenus les plus élevés
B152: Nombre de personnes | H152: 1 | I152: 14879 | J152: 19074 | K152: 27706 | L152: -
B153: 1 | H153: 2 | I153: 21760 | J153: 27896 | K153: 44124 | L153: -
B154: 2 | H154: 3 | I154: 26170 | J154: 33547 | K154: 50281 | L154: -
B155: 3 | H155: 4 | I155: 30572 | J155: 39192 | K155: 56438 | L155: -
B156: 4 | H156: 5 | I156: 34993 | J156: 44860 | K156: 68752 | L156: -
B157: 5 | H157: 6 | I157: =I156+4412 -> 39405 | J157: =J156+5651 -> 50511 | K157: 81066 | L157: -
B158: 6 | H158: 7 | I158: =I157+4412 -> 43817 | J158: =J157+5651 -> 56162 | K158: =K157+12314 -> 93380 | L158: -
B159: 7 | H159: 8 | I159: 48229 | J159: 61813 | K159: =K158+12314 -> 105694 | L159: -
B160: 8 | H160: 9 | I160: 52641 | J160: 67464 | K160: 118008 | L160: -
B161: 9 | H161: 10 | I161: 57053 | J161: 73115 | K161: 130322 | L161: -
B162: 10
H164: Sélection IDF / Province : | I164: =Chiffrage!$E$76 -> Hors Ile-de-France
H165: Ile-de-France
H166: Hors Ile-de-France
H168: Nb pers du foyer : | I168: =Chiffrage!$E$77 -> 3
H170: Choix possibles : | I170: =Chiffrage!$E$78 -> Plus de 50281 €/an.
H171: =CONCATENATE("Moins de ",IF($I$164=$H$165,VLOOKUP($I$168,$H$139:$K$148,2,FALSE),VLOOKUP($I$168,$H$152:$K$161,2,FALSE))," €/an.") -> Moins de 26170 €/an. | I171: =B147 -> Très modeste
H172: =CONCATENATE("Entre ",IF($I$164=$H$165,VLOOKUP($I$168,$H$139:$K$148,2,FALSE),VLOOKUP($I$168,$H$152:$K$161,2,FALSE))," €/an et ",IF($I$164=$H$165,VLOOKUP($I$168,$H$139:$K$148,3,FALSE),VLOOKUP($I$168,$H$152:$K$161,3,FALSE))," €/an.") -> Entre 26170 €/an et 33547 €/an. | I172: =B148 -> Modeste
H173: =CONCATENATE("Entre ",IF($I$164=$H$165,VLOOKUP($I$168,$H$139:$K$148,3,FALSE),VLOOKUP($I$168,$H$152:$K$161,3,FALSE))," €/an et ",IF($I$164=$H$165,VLOOKUP($I$168,$H$139:$K$148,4,FALSE),VLOOKUP($I$168,$H$152:$K$161,4,FALSE))," €/an.") -> Entre 33547 €/an et 50281 €/an. | I173: Ménage aux revenus intermédiaires
H174: =CONCATENATE("Plus de ",IF($I$164=$H$165,VLOOKUP($I$168,$H$139:$K$148,4,FALSE),VLOOKUP($I$168,$H$152:$K$161,4,FALSE))," €/an.") -> Plus de 50281 €/an. | I174: Ménage aux revenus les plus élevés
H176: Catégorie correspondante | I176: =VLOOKUP($I$170,$H$171:$I$174,2,FALSE) -> Ménage aux revenus les plus élevés
B181: Montant des aides
C183: =$B$147 -> Très modeste | D183: =CONCATENATE(C183,2) -> Très modeste2 | E183: =$B$148 -> Modeste | F183: =CONCATENATE(E183,2) -> Modeste2 | H183: =$B$149 -> Ménage aux revenus intermédiaires | I183: =CONCATENATE(H183,2) -> Ménage aux revenus intermédiaires2 | J183: =$B$150 -> Ménage aux revenus les plus élevés | K183: =CONCATENATE(J183,2) -> Ménage aux revenus les plus élevés2
C184: Prime unifiée | D184: CEE | E184: Prime unifiée | F184: CEE | H184: Prime unifiée | I184: CEE | J184: Prime unifiée | K184: CEE
B185: PAC géothermique | C185: 10000 | D185: 4000 | E185: 8000 | F185: 4000 | H185: 4000 | I185: 2500 | J185: 0 | K185: 2500
B186: Pac Air/Eau | C186: 4000 | D186: 4000 | E186: 3000 | F186: 4000 | H186: 2000 | I186: 2500 | J186: 0 | K186: 2500
B188: Type de produit :
B189: =IF(OR(OFFRE!$D$71=OFFRE!$B$49,OFFRE!$D$71=OFFRE!$B$50),'Aides financières'!$B$185,'Aides financières'!$B$186) -> Pac Air/Eau
B191: Matériel éligible
C192: PAC | D192: REGUL | E192: BALLON | F192: Total | G192: MES
C193: =IF(OR(OFFRE!$D$71=OFFRE!$B$34,OFFRE!$D$71=OFFRE!$B$35),SUM(OFFRE!$L$103,OFFRE!$L$106,OFFRE!$L$112,OFFRE!$L$116:$L$120),IF(OR(OFFRE!$D$71=OFFRE!$B$36,OFFRE!$D$71=OFFRE!$B$37),SUM(OFFRE!$L$103,OFFRE!$L$116:$L$120,OFFRE!$L$141:$L$142),IF(OR(OFFRE!$D$71=OFFRE!$B$42,OFFRE!$D$71=OFFRE!$B$43),SUM(OFFRE!$L$103,OFFRE!$L$112,OFFRE!$L$116:$L$120),IF(OFFRE!$D$71=OFFRE!$B$44,SUM(OFFRE!$L$103:$L$111,OFFRE!$L$112,OFFRE!$L$116:$L$120),SUM(OFFRE!$L$103:$L$108,OFFRE!$L$116:$L$118,OFFRE!$L$137))))) -> 9020 | D193: =SUM(OFFRE!$L$162:$L$173) -> 1393 | E193: =IF(OR(OFFRE!$D$71=OFFRE!$B$49,OFFRE!$D$71=OFFRE!$B$50),OFFRE!$L$127,SUM(OFFRE!$L$133:$L$134)) -> 0 | F193: =IFERROR(C193+D193+E193,0) -> 10413 | G193: =Chiffrage!$N$195 -> 320
C194: Reste du matériel non éligible | D194: =Chiffrage!$N$220-'Aides financières'!$F$193-Chiffrage!$N$195 -> 673
C196: Total autre | D196: =Chiffrage!$E$94 -> 0
C197: Total HT | D197: =D196+D194+F193+G193 -> 11406
C198: Total TTC (dépense éligible) | D198: =D197*1.055 -> 12033.33
C200: Aides Ma PrimeRenov | D200: =Chiffrage!$F$84 -> 0
C201: CEE | D201: =+Chiffrage!$F$85 -> 2500
C202: Total autre aides | D202: =Chiffrage!$F$86 -> 0
B204: Rappel des règles : | C204: CEE + autres < 90 % pour très modestes
C205: CEE + autres < 75 % pour modestes
C207: Total <100 %
C209: Règle 1
C210: CEE + autres | D210: =D201+D202 -> 2500
C211: % aides | D211: =D210/D198 -> 0.2077562902
C212: Correction % aides | D212: =IF($I$176=$B$147,IF(D211>0.9,0.9,D211),IF(I176=B148,IF(D211>0.75,0.75,D211),D211)) -> 0.2077562902
C213: CEE + autres corrigé | D213: =D198*D212 -> 2500
C215: Règle 2
C216: Plafond total | D216: =IF(B189=B186,IF(D198>12000,12000,D198),IF(B189=B185,IF(D198>18000,18000,D198),"")) -> 12000
C217: Aide MaPrimeRenov | D217: =$D$200 -> 0
C218: Bilan Aides : | D218: =D217+D213 -> 2500
C219: soit | D219: =D218/D216 -> 0.2083333333
C220: Bilan corrigé | D220: =IF(D219>1,1,D219) -> 0.2083333333
C221: Soit aides réelles | D221: =D216*D220 -> 2500

Sheet OFFRE (hidden)
A1: Ne pas modifier la largeur des cellulles (décalage des images)
B2: Données
B5: Dimensionnement | D5: chauffage ECS par PAC | F5: Type d'appoint (automatique) | H5: Placement | J5: Type de Préparateur (uniquement pour GSHP) | L5: Type de PAC à chiffrer | N5: Choix de l'utilisateur
B6: OUI | D6: OUI | F6: Hydraulique par chaudière | H6: Juxtaposé | J6: Indépendant | L6: PAC Air/Eau hybride
B7: NON | D7: NON | F7: Electrique | H7: Superposé | J7: Intégré | L7: PAC Air/Eau | N7: Importation du dimensionnement | O7: Modèle de chaudière
L8: PAC Eau/Eau | N8: =Chiffrage!$B$18 -> NON | O8: =IF(AND(OR($N$14=B17,$N$14=B18,$N$14=B19,$N$14=B20),OFFRE!$N$8=OFFRE!$B$7),Chiffrage!$J$43,IF(AND(OR($N$14=B17,$N$14=B18,$N$14=B19,$N$14=B20),OFFRE!$N$8=OFFRE!$B$6),Chiffrage!$J$44,IF(AND(OR(OFFRE!N$14=OFFRE!$B$21,OFFRE!$N$14=OFFRE!$B$22,OFFRE!N$14=OFFRE!$B$23,OFFRE!$N$14=OFFRE!$B$24),OFFRE!$N$8=OFFRE!$B$7),Chiffrage!$B$56,IF(AND(OR(OFFRE!N$14=OFFRE!$B$21,OFFRE!$N$14=OFFRE!$B$22,OFFRE!N$14=OFFRE!$B$23,OFFRE!$N$14=OFFRE!$B$24),OFFRE!$N$8=OFFRE!$B$6),Chiffrage!$B$57,IF(AND($N$8=$B$7,$N$14=""),Chiffrage!$B$51,IF(AND($N$8=$B$6,$N$14=""),Chiffrage!$B$52,"")))))) -> 
B9: Gamme | C9: Rappel quand importé | D9: Nb circuit | F9: Type circuit dimensionnement | H9: Solaire | J9: Type de fumisterie
B10: =B34 -> OENOVIAPAC-C FIRST (relève électrique) | C10: Electrique | D10: 1 | F10: =IF(AND($N$29<>$D$6,$N$23=$D$10),"",IF($N$23=$D$10,$H$37,IF($N$23=$D$11,$H$40,IF($N$23=$D$12,$H$42,"")))) ->  | H10: OUI | J10: Rigide | N10: Type de PAC à chiffrer | O10: Evuacuation des produits de combustion
B11: =B35 -> OENOVIAPAC-C FIRST (relève hydraulique) | C11: Hydraulique par chaudière | D11: 2 | F11: =IF($N$23=$D$10,$H$38,IF($N$23=OFFRE!$D$11,$H$41,"")) -> Direct | H11: NON | J11: Flexible | N11: =Chiffrage!$B$21 -> PAC Air/Eau | O11: =IF(AND(OR($N$14=B17,$N$14=B18,$N$14=B19,$N$14=B20),OFFRE!$N$8=OFFRE!$B$7),Chiffrage!$B$43,IF(AND(OR($N$14=B17,$N$14=B18,$N$14=B19,$N$14=B20),OFFRE!$N$8=OFFRE!$B$6),Chiffrage!$B$44,"")) -> 
B12: PAC-C COLONNE-CONF (relève électrique) | C12: Electrique | D12: =IF(OR($D$71=B47,$D$71=B48,$D$71=B39,$D$71=B38,$D$71=$B$45,$D$71=$B$46,$D$71=$B$49,$D$71=$B$50,$D$71=$B$52),3,"") -> 3 | F12: =IF($N$23=$D$10,$H$39,"") -> Vanne
B13: PAC-C COLONNE-CONF (relève hydraulique) | C13: Hydraulique par chaudière | J13: Evacuation des produit de combustion | N13: PAC sélectionnée | O13: Type de chaudière
B14: OEnoviaPac-Confort-2 (relève électrique) | C14: Electrique | J14: Flux forcé | N14: =IF($N$8=$B$6,Chiffrage!$B$25,Chiffrage!$B$24) -> OENOVIAPAC-C MB (Monobloc) | O14: =IF(AND(OR($N$14=B17,$N$14=B18,$N$14=B19,$N$14=B20),OFFRE!$N$8=OFFRE!$B$7),Chiffrage!$G$43,IF(AND(OR($N$14=B17,$N$14=B18,$N$14=B19,$N$14=B20),OFFRE!$N$8=OFFRE!$B$6),Chiffrage!$G$44,"")) -> 
B15: OEnoviaPac-Confort-2 (relève chaudière) | C15: Hydraulique par chaudière | H15: Pose | J15: Cheminée
B16: OENOVIAPAC-C SLIM (relève électrique) | C16: Electrique | F16: Rafraichissement | H16: Au sol | N16: Modèle de PAC | O16: Cascade ou Non?
C17: Hydraulique par chaudière | F17: OUI | H17: =IF($D$71="","","Murale") -> Murale | J17: Type de chaudière | L17: Gamme | N17: =$D$72 -> OEnoviaPac-C MB 6 MR - E | O17: =IF(OR($N$14=$B$39,$N$14=$B$38),IF($N$8=$B$7,Chiffrage!$G$35,Dimensionnement!$F$85),"") -> 
B18: =B42 -> OEcOil-Hybrid OFSB (basse T°) | C18: Hydraulique par chaudière | F18: NON | J18: Condensation | L18: =IF(AND($N$8=$B$7,$N$11=$L$6),B18,IF(AND($N$8=$B$7,$N$11=$L$7),B10,B25)) -> OENOVIAPAC-C FIRST (relève électrique)
B19: OEcOil-Hybrid OFSC (Condensation) | C19: Hydraulique par chaudière | J19: Basse température | L19: =IF(AND($N$8=$B$7,$N$11=$L$6),B19,IF(AND($N$8=$B$7,$N$11=$L$7),B11,B26)) -> OENOVIAPAC-C FIRST (relève hydraulique) | N19: Type d'appoint
C20: Hydraulique par chaudière | L20: =IF(AND($N$8=$B$7,$N$11=$L$6),B21,IF(AND($N$8=$B$7,$N$11=$L$7),B12,"")) -> PAC-C COLONNE-CONF (relève électrique) | N20: =IF($N$8=$B$6,Chiffrage!$J$24,Chiffrage!$J$25) -> 
B21: OEnoviaGaz-Hybrid V200 (Vertical) | C21: Hydraulique par chaudière | L21: =IF(AND($N$8=$B$7,$N$11=$L$6),B22,IF(AND($N$8=$B$7,$N$11=$L$7),B13,"")) -> PAC-C COLONNE-CONF (relève hydraulique)
B22: OEnoviaGaz-Hybrid B200 (Horizontal) | C22: Hydraulique par chaudière | H22: Menu déroulant chiffrage | J22: Modèle de chaudière pour hybride | L22: OEnoviaPac-Confort-2 (relève électrique) | N22: Nombre de circuit | O22: Pose de l'unité extérieure
B23: OEnoviaGaz-Hybrid V200 (Vertical propane) | C23: Hydraulique par chaudière | H23: Kit complet | J23: =IF($D$71="",'Offre Alezio G hybrid'!$S6,IF(OR($D$71=$B$45,$D$71=$B$46,$D$71=$B$47,$D$71=$B$48),'Offre HPI - G Hybrid'!$R5,IF(OR($D$71=$B$41,$D$71=$B$42,$D$71=$B$43,$D$71=$B$44),'Offre Alezio O Hybrid'!$R5,""))) ->  | L23: OEnoviaPac-Confort-2 (relève chaudière) | N23: =IF(OR($D$71=$B$49,$D$71=$B$50),Chiffrage!$G$28,Chiffrage!$G$60) -> 1 | O23: =IF(AND($N$14<>$B$24,$N$14<>$B$25),Chiffrage!$B$60,"") -> Au sol
B24: OEnoviaGaz-Hybrid B200 (Horizontal propane) | C24: Electrique | H24: Composants séparés | J24: =IF($D$71="",'Offre Alezio G hybrid'!$S7,IF(OR($D$71=$B$45,$D$71=$B$46,$D$71=$B$47,$D$71=$B$48),'Offre HPI - G Hybrid'!$R6,IF(OR($D$71=$B$41,$D$71=$B$42,$D$71=$B$43,$D$71=$B$44),'Offre Alezio O Hybrid'!$R6,""))) ->  | L24: =IF(AND($N$8=$B$7,$N$11=$L$6),"",IF(AND($N$8=$B$7,$N$11=$L$7),B16,"")) -> OENOVIAPAC-C SLIM (relève électrique)
B25: OEnoviaPac-GS (Sol/Eau) | C25: Electrique | J25: =IF($D$71="",'Offre Alezio G hybrid'!$S8,IF(OR($D$71=$B$45,$D$71=$B$46,$D$71=$B$47,$D$71=$B$48),'Offre HPI - G Hybrid'!$R7,IF(OR($D$71=$B$41,$D$71=$B$42,$D$71=$B$43,$D$71=$B$44),'Offre Alezio O Hybrid'!$R7,""))) ->  | L25: =IF(AND($N$8=$B$7,$N$11=$L$6),"",IF(AND($N$8=$B$7,$N$11=$L$7),$B$27,"")) ->  | N25: Type de circuit
B26: OEnoviaPac-GS (Eau/Eau) | C26: Electrique | H26: Choix kit : | J26: =IF($D$71="",'Offre Alezio G hybrid'!$S9,IF(OR($D$71=$B$45,$D$71=$B$46,$D$71=$B$47,$D$71=$B$48),'Offre HPI - G Hybrid'!$R8,IF(OR($D$71=$B$41,$D$71=$B$42,$D$71=$B$43,$D$71=$B$44),'Offre Alezio O Hybrid'!$R8,""))) ->  | L26: =IF(AND($N$8=$B$7,$N$11=$L$6),"",IF(AND($N$8=$B$7,$N$11=$L$7),$B$28,"")) -> OENOVIAPAC-C MB (Monobloc) | N26: =IF(OR($D$71=$B$49,$D$71=$B$50),Chiffrage!$J$28,Chiffrage!$J$60) -> Vanne
C27: Electrique | H27: =Chiffrage!$G$111 -> Kit complet
B28: =$B$52 -> OENOVIAPAC-C MB (Monobloc) | C28: Electrique | N28: ECS fait par PAC ?
N29: =IF($N$14=$B$28,Chiffrage!$B$35,IF(OR($N$14=OFFRE!$B$26,OFFRE!$N$14=OFFRE!$B$25),Chiffrage!$B$28,IF(OR($N$14=OFFRE!$B$14,OFFRE!$N$14=OFFRE!$B$15),Chiffrage!$B$35,IF(OR($N$14=OFFRE!$B$17,OFFRE!$N$14=OFFRE!$B$18,$N$14=OFFRE!$B$19,OFFRE!$N$14=OFFRE!$B$20),"",IF(OR($N$14=OFFRE!$B$21,OFFRE!$N$14=OFFRE!$B$22,OFFRE!$N$14=$B$23,OFFRE!$N$14=$B$24),"",IF(OR($N$14=$B$10,$N$14=$B$11),Chiffrage!$B$39,"")))))) -> NON
B30: Modèle
B31: Modèle sélectionné: | D31: =$D$71 -> OENOVIAPAC-C MB (Monobloc) | N31: Placement du ballon ECS
C32: Code du modèle : | D32: =VLOOKUP($D$31,$B$34:$C$52,2,FALSE) -> 19 | N32: =IF(OR($N$14=$B$25,$N$14=$B$26),Chiffrage!$G$31,IF(AND(OFFRE!$N$8=OFFRE!$B$7,OR(OFFRE!$N$14=OFFRE!$B$21,OFFRE!$N$14=OFFRE!$B$22,OFFRE!$N$14=OFFRE!$B$23,OFFRE!$N$14=OFFRE!$B$24)),Chiffrage!$G$56,IF(AND(OFFRE!$N$8=OFFRE!$B$6,OR(OFFRE!$N$14=OFFRE!$B$21,OFFRE!$N$14=OFFRE!$B$22,OFFRE!$N$14=OFFRE!$B$23,OFFRE!$N$14=OFFRE!$B$24)),Chiffrage!$G$57,""))) -> 
E33: Liste modèles
B34: OENOVIAPAC-C FIRST (relève électrique) | C34: 1 | E34: =IF($D$31=$B$52,U55,IF($D$31=$B$34,C55,IF($D$31=$B$35,D55,IF($D$31=$B$36,E55,IF($D$31=$B$37,F55,IF($D$31=$B$38,G55,IF($D$31=$B$39,H55,IF($D$31=$B$40,I55,IF($D$31=$B$41,J55,IF($D$31=$B$42,K55,IF($D$31=$B$43,L55,IF($D$31=$B$44,M55,IF($D$31=$B$45,N55,IF($D$31=$B$46,O55,IF($D$31=$B$47,P55,IF($D$31=$B$49,R55,IF($D$31=$B$50,S55,IF($D$31=$B$51,T55,IF($D$31=$B$48,Q55,""))))))))))))))))))) -> OEnoviaPac-C MB 6 MR - E | N34: Mode rafraîchissement
B35: OENOVIAPAC-C FIRST (relève hydraulique) | C35: 2 | E35: =IF($D$31=$B$52,U56,IF($D$31=$B$34,C56,IF($D$31=$B$35,D56,IF($D$31=$B$36,E56,IF($D$31=$B$37,F56,IF($D$31=$B$38,G56,IF($D$31=$B$39,H56,IF($D$31=$B$40,I56,IF($D$31=$B$41,J56,IF($D$31=$B$42,K56,IF($D$31=$B$43,L56,IF($D$31=$B$44,M56,IF($D$31=$B$45,N56,IF($D$31=$B$46,O56,IF($D$31=$B$47,P56,IF($D$31=$B$49,R56,IF($D$31=$B$50,S56,IF($D$31=$B$51,T56,IF($D$31=$B$48,Q56,""))))))))))))))))))) -> OEnoviaPac-C MB 8 MR - E | N35: =IF(AND($N$14<>$B$10,$N$14<>$B$11),"",$B$7) -> 
B36: PAC-C COLONNE-CONF (relève électrique) | C36: 3 | E36: OEnoviaPac-C MB 11 MR - E | H36: Tous les types de circuits
B37: PAC-C COLONNE-CONF (relève hydraulique) | C37: 4 | E37: OEnoviaPac-C MB 6 MR - H | H37: ="" ->  | N37: Ballon ECS solaire ?
B38: OEnoviaPac-Confort-2 (relève électrique) | C38: 5 | E38: OEnoviaPac-C MB 8 MR - H | H38: Direct | N38: =IF(AND($N$14<>$B$26,$N$14<>$B$25),"",Chiffrage!$B$31) -> 
B39: OEnoviaPac-Confort-2 (relève chaudière) | C39: 6 | E39: OEnoviaPac-C MB 11 MR - H | H39: Vanne
B40: OENOVIAPAC-C SLIM (relève électrique) | C40: 7 | H40: Direct + Vanne
B41: ="" ->  | C41: 8 | H41: =IF(OR($D$71=$B$46,$D$71=$B$45,$D$71=$B$39,$D$71=$B$38,$D$71=$B$47,$D$71=$B$48,$D$71=$B$49,$D$71=$B$50,$D$71=$B$52),"2 Vannes","") -> 2 Vannes
B42: OEcOil-Hybrid OFSB (basse T°) | C42: 9 | H42: =IF(OR($D$71=$B$46,$D$71=$B$45,$D$71=$B$39,$D$71=$B$38,$D$71=$B$47,$D$71=$B$48,$D$71=$B$49,$D$71=$B$50,$D$71=$B$52),"Direct + 2 Vannes","") -> Direct + 2 Vannes
B43: OEcOil-Hybrid OFSC (Condensation) | C43: 10
B44: ="" ->  | C44: 11
B45: OEnoviaGaz-Hybrid V200 (Vertical) | C45: 12
B46: OEnoviaGaz-Hybrid B200 (Horizontal) | C46: 13
B47: OEnoviaGaz-Hybrid V200 (Vertical propane) | C47: 14
B48: OEnoviaGaz-Hybrid B200 (Horizontal propane) | C48: 15
B49: OEnoviaPac-GS (Sol/Eau) | C49: 16
B50: OEnoviaPac-GS (Eau/Eau) | C50: 17
B51: ="" ->  | C51: 18
B52: OENOVIAPAC-C MB (Monobloc) | C52: 19
C53: Alezio Evolution | E53: Alezio SV200 | G53: HPI | I53: Compact | J53: Alezio O Hybrid | N53: HPI G hybrid | P53: HPI G hybrid propae | R53: GSHP sol | S53: GSHP nappe | T53: STRATEO | U53: HPI M
B54: Code du modèle | C54: 1 | D54: 2 | E54: 3 | F54: 4 | G54: 5 | H54: 6 | I54: 7 | J54: 8 | K54: 9 | L54: 10 | M54: 11 | N54: 12 | O54: 13 | P54: 14 | Q54: 15 | R54: 16 | S54: 17 | T54: 18 | U54: 19
B55: Modèles disponibles | C55: OENOVIAPAC-C FIRST 4,5 kW MONO - E | D55: OENOVIAPAC-C FIRST 4,5 kW MONO - H | E55: PAC-C COLONNE-CONF 4,5 kW MONO - E | F55: PAC-C COLONNE-CONF 4,5 kW MONO - H | G55: OEnoviaPac-Confort-2 4,5 kW MONO - E | H55: OEnoviaPac-Confort-2 4,5 kW MONO - H | I55: OENOVIAPAC-C SLIM 4,5 kW MONO | K55: OEcOil-Hybrid OFSB 4,5 kW MONO | L55: ="" ->  | N55: OEnoviaGaz-Hybrid 4,5 kW MONO - V200 | O55: OEnoviaGaz-Hybrid 4,5 kW MONO - B200 | P55: OEnoviaGaz-Hybrid 4,5 kW MONO - V200 (propane) | Q55: OEnoviaGaz-Hybrid 4,5 kW MONO - B200 (propane) | R55: OEnoviaPAC-GS 5 MR | S55: OEnoviaPAC-GS 5 MR | T55: STRATEO 4,5 MONO | U55: ='BdD PAC monobloc'!C3 -> OEnoviaPac-C MB 6 MR - E
C56: OENOVIAPAC-C FIRST 6 kW MONO - E | D56: OENOVIAPAC-C FIRST 6 kW MONO - H | E56: PAC-C COLONNE-CONF 6 kW MONO - E | F56: PAC-C COLONNE-CONF 6 kW MONO - H | G56: OEnoviaPac-Confort-2 6 kW MONO - E | H56: OEnoviaPac-Confort-2 6 kW MONO - H | I56: OENOVIAPAC-C SLIM 6 kW MONO | K56: OEcOil-Hybrid OFSB 6 kW MONO | L56: OEcOil-Hybrid OFSC 6 kW MONO | N56: OEnoviaGaz-Hybrid 6 kW MONO - V200 | O56: OEnoviaGaz-Hybrid 6 kW MONO - B200 | P56: OEnoviaGaz-Hybrid 6 kW MONO - V200 (propane) | Q56: OEnoviaGaz-Hybrid 6 kW MONO - B200 (propane) | R56: OEnoviaPAC-GS 5 TR | S56: OEnoviaPAC-GS 5 TR | T56: STRATEO 6 MONO | U56: ='BdD PAC monobloc'!C4 -> OEnoviaPac-C MB 8 MR - E
C57: OENOVIAPAC-C FIRST 8 kW MONO - E | D57: OENOVIAPAC-C FIRST 8 kW MONO - H | E57: PAC-C COLONNE-CONF 8 kW MONO - E | F57: PAC-C COLONNE-CONF 8 kW MONO - H | G57: OEnoviaPac-Confort-2 8 kW MONO - E | H57: OEnoviaPac-Confort-2 8 kW MONO - H | I57: OENOVIAPAC-C SLIM 8 kW MONO | K57: OEcOil-Hybrid OFSB 8 kW MONO | L57: OEcOil-Hybrid OFSC 8 kW MONO | N57: OEnoviaGaz-Hybrid 8 kW MONO - V200 | O57: OEnoviaGaz-Hybrid 8 kW MONO - B200 | P57: OEnoviaGaz-Hybrid 8 kW MONO - V200 (propane) | Q57: OEnoviaGaz-Hybrid 8 kW MONO - B200 (propane) | R57: OEnoviaPAC-GS 9 MR | S57: OEnoviaPAC-GS 9 MR | T57: STRATEO 8 MONO | U57: ='BdD PAC monobloc'!C5 -> OEnoviaPac-C MB 11 MR - E
C58: OENOVIAPAC-C FIRST 11 kW MONO - E | D58: OENOVIAPAC-C FIRST 11 kW MONO - H | E58: PAC-C COLONNE-CONF 11 kW MONO - E | F58: PAC-C COLONNE-CONF 11 kW MONO - H | G58: OEnoviaPac-Confort-2 11kW MONO - E | H58: OEnoviaPac-Confort-2 11kW MONO - H | I58: OENOVIAPAC-C SLIM 11 kW MONO | K58: OEcOil-Hybrid OFSB 11 kW MONO | L58: OEcOil-Hybrid OFSC 11 kW MONO | N58: OEnoviaGaz-Hybrid 11 kW MONO - V200 | O58: OEnoviaGaz-Hybrid 11 kW MONO - B200 | P58: OEnoviaGaz-Hybrid 11 kW MONO - V200 (propane) | Q58: OEnoviaGaz-Hybrid 11 kW MONO - B200 (propane) | R58: OEnoviaPAC-GS 9 TR | S58: OEnoviaPAC-GS 9 TR | T58: ="" ->  | U58: ='BdD PAC monobloc'!C6 -> OEnoviaPac-C MB 6 MR - H
C59: OENOVIAPAC-C FIRST 11 kW TRI - E | D59: OENOVIAPAC-C FIRST 11 kW TRI - H | E59: PAC-C COLONNE-CONF 11 kW TRI - E | F59: PAC-C COLONNE-CONF 11 kW TRI - H | G59: OEnoviaPac-Confort-2 11kW TRI - E | H59: OEnoviaPac-Confort-2 11kW TRI - H | I59: OENOVIAPAC-C SLIM 11 kW TRI | K59: OEcOil-Hybrid OFSB 11 kW TRI | L59: OEcOil-Hybrid OFSC 11 kW TRI | N59: OEnoviaGaz-Hybrid 11 kW TRI - V200 | O59: OEnoviaGaz-Hybrid 11 kW TRI - B200 | P59: OEnoviaGaz-Hybrid 11 kW TRI - V200 (propane) | Q59: OEnoviaGaz-Hybrid 11 kW TRI - B200 (propane) | R59: OEnoviaPAC-GS 12 MR | S59: OEnoviaPAC-GS 12 MR | T59: ="" ->  | U59: ='BdD PAC monobloc'!C7 -> OEnoviaPac-C MB 8 MR - H
C60: OENOVIAPAC-C FIRST 16 kW MONO - E | D60: OENOVIAPAC-C FIRST 16 kW MONO - H | E60: PAC-C COLONNE-CONF 16 kW MONO - E | F60: PAC-C COLONNE-CONF 16 kW MONO - H | G60: OEnoviaPac-Confort-2 16kW MONO - E | H60: OEnoviaPac-Confort-2 16kW MONO - H | I60: OENOVIAPAC-C SLIM 16 kW MONO | K60: OEcOil-Hybrid OFSB 16 kW MONO | L60: OEcOil-Hybrid OFSC 16 kW MONO | N60: OEnoviaGaz-Hybrid 16 kW MONO - V200 | O60: OEnoviaGaz-Hybrid 16 kW MONO - B200 | P60: OEnoviaGaz-Hybrid 16 kW MONO - V200 (propane) | Q60: OEnoviaGaz-Hybrid 16 kW MONO - B200 (propane) | R60: OEnoviaPAC-GS 12 TR | S60: OEnoviaPAC-GS 12 TR | T60: ="" ->  | U60: ='BdD PAC monobloc'!C8 -> OEnoviaPac-C MB 11 MR - H
C61: OENOVIAPAC-C FIRST 16 kW TRI - E | D61: OENOVIAPAC-C FIRST 16 kW TRI - H | E61: PAC-C COLONNE-CONF 16 kW TRI - E | F61: PAC-C COLONNE-CONF 16 kW TRI - H | G61: OEnoviaPac-Confort-2 16kW TRI - E | H61: OEnoviaPac-Confort-2 16kW TRI - H | I61: OENOVIAPAC-C SLIM 16 kW TRI | K61: OEcOil-Hybrid OFSB 16 kW TRI | L61: OEcOil-Hybrid OFSC 16 kW TRI | N61: OEnoviaGaz-Hybrid 16 kW TRI - V200 | O61: OEnoviaGaz-Hybrid 16 kW TRI - B200 | P61: OEnoviaGaz-Hybrid 16 kW TRI - V200 (propane) | Q61: OEnoviaGaz-Hybrid 16 kW TRI - B200 (propane) | R61: OEnoviaPAC-GS 15 TR | S61: OEnoviaPAC-GS 15 TR | T61: ="" ->  | U61: ="" -> 
C62: ="" ->  | D62: ="" ->  | E62: ="" ->  | F62: ="" ->  | G62: OEnoviaPac-Confort-2 22kW TRI - E | H62: OEnoviaPac-Confort-2 22kW TRI - H | I62: ="" ->  | K62: ="" ->  | L62: ="" ->  | N62: ="" ->  | O62: ="" ->  | P62: ="" ->  | Q62: ="" ->  | R62: OEnoviaPAC-GS 19 TR | S62: OEnoviaPAC-GS 19 TR | T62: ="" ->  | U62: ="" -> 
C63: ="" ->  | D63: ="" ->  | E63: ="" ->  | F63: ="" ->  | G63: OEnoviaPac-Confort-2 27kW TRI - E | H63: OEnoviaPac-Confort-2 27kW TRI - H | I63: ="" ->  | K63: ="" ->  | L63: ="" ->  | N63: ="" ->  | O63: ="" ->  | P63: ="" ->  | Q63: ="" ->  | R63: OEnoviaPAC-GS 27 TR | S63: OEnoviaPAC-GS 27 TR | T63: ="" ->  | U63: ="" -> 
C64: mettre des ="" partout
B66: Chiffrage
I68: Mise en service
C69: Sélection PAC | I69: Nombre de PAC | P69: Gamme
H70: Classique | I70: =IF($C$86=$C$88,IF($E$86=$E$88,$J$103,IF($E$86=$E$89,$J$106,"")),IF($C$86=$C$89,IF($E$86=$E$88,$K$103,IF($E$86=$E$89,$K$106,"")))) -> 1 | J70: 449 | N70: nb circuit | O70: type circuit | P70: =B34 -> OENOVIAPAC-C FIRST (relève électrique) | R70: =B36 -> PAC-C COLONNE-CONF (relève électrique) | T70: =B38 -> OEnoviaPac-Confort-2 (relève électrique) | V70: =B40 -> OENOVIAPAC-C SLIM (relève électrique) | W70: =B42 -> OEcOil-Hybrid OFSB (basse T°) | AA70: =B45 -> OEnoviaGaz-Hybrid V200 (Vertical) | AC70: =B47 -> OEnoviaGaz-Hybrid V200 (Vertical propane) | AD70: =B48 -> OEnoviaGaz-Hybrid B200 (Horizontal propane) | AF70: =B50 -> OEnoviaPac-GS (Eau/Eau)
C71: Gamme séléctionnée | D71: =IF(Chiffrage!$B$18=OFFRE!$B$7,Chiffrage!$B$24,Chiffrage!$B$25) -> OENOVIAPAC-C MB (Monobloc) | H71: Monobloc | J71: 320 | N71: 1 | O71: ECS | P71: EH784 | Q71: 0 | R71: Disponible d'origine | S71: 0 | T71: AD212 | U71: 0 | V71: Disponible d'origine | W71: Disponible d'origine | X71: 0 | Y71: 0 | Z71: 0 | AA71: Disponible d'origine | AB71: 0 | AC71: Disponible d'origine | AD71: AD212 | AE71: 0 | AF71: Disponible d'origine
C72: Modèle séletionné | D72: =IF(AND($N$8=$B$7,$O$17=ChoixPAC!$G$12),CONCATENATE("2x ",IF(Chiffrage!$B$18=OFFRE!$B$7,Chiffrage!$G$24,Chiffrage!$G$25)),IF(Chiffrage!$B$18=OFFRE!$B$7,Chiffrage!$G$24,Chiffrage!$G$25)) -> OEnoviaPac-C MB 6 MR - E | H72: GSHP | J72: 472 | N72: 1 | O72: DIRECT | P72: - | Q72: 0 | R72: Disponible d'origine | S72: 0 | T72: Disponible d'origine | U72: 0 | V72: Disponible d'origine | W72: Disponible d'origine | X72: 0 | Y72: 0 | Z72: 0 | AA72: Disponible d'origine | AB72: 0 | AC72: Disponible d'origine | AD72: Disponible d'origine | AE72: 0 | AF72: Disponible d'origine
H73: HYBRID | J73: 502 | N73: 1 | O73: VANNE | P73: EH783 | Q73: AD199 | R73: EH862 | S73: 0 | T73: AD199 | U73: 0 | V73: 0 | W73: EH862 | X73: 0 | Y73: 0 | Z73: 0 | AA73: AD199 | AB73: 0 | AC73: EH862 | AD73: AD199 | AE73: 0 | AF73: 0
C74: Appoint | D74: =IF(Chiffrage!$B$18=OFFRE!$B$7,Chiffrage!$J$24,Chiffrage!$J$25) -> Electrique | I74: Tarifs | J74: Prix unitaire | N74: 2 | O74: DIRECT + VANNE | P74: EH783 | Q74: AD199 | R74: EH862 | S74: 0 | T74: AD199 | U74: 0 | V74: 0 | W74: EH862 | X74: 0 | Y74: 0 | Z74: 0 | AA74: AD199 | AB74: 0 | AC74: EH862 | AD74: AD199 | AE74: 0 | AF74: 0
I75: 1 | J75: 445 | N75: 2 | O75: 2 VANNES | P75: 0 | Q75: 0 | R75: 0 | S75: 0 | T75: AD199 | U75: AD249 | V75: 0 | W75: 0 | X75: 0 | Y75: 0 | Z75: 0 | AA75: AD199 | AB75: AD249 | AC75: 0 | AD75: AD199 | AE75: AD249 | AF75: 0
I76: 2 | J76: 445 | N76: 3 | O76: DIRECT + 2 VANNES | P76: 0 | Q76: 0 | R76: 0 | S76: 0 | T76: AD199 | U76: AD249 | V76: 0 | W76: 0 | X76: 0 | Y76: 0 | Z76: 0 | AA76: AD199 | AB76: AD249 | AC76: 0 | AD76: AD199 | AE76: AD249 | AF76: 0
I77: 3 | J77: 445 | P77: 2 | Q77: 3 | R77: 4 | S77: 5 | T77: 6 | U77: 7 | V77: 8 | W77: 9 | X77: 10 | Y77: 11 | Z77: 12 | AA77: 13 | AB77: 14 | AC77: 15 | AD77: 16 | AE77: 17 | AF77: 18
I78: 4 | J78: 445
I79: 5 | J79: 445
I80: 6 | J80: 445
I81: 7 | J81: 445
I82: 8 | J82: 445
I83: 9 | J83: 445
I84: 10 | J84: 445
C85: Choix type chiffrage | E85: Choix type | I85: 11 et + | J85: 445
C86: =+Chiffrage!$G$105 -> Utiliser un chiffrage type | E86: =H27 -> Kit complet
C87: Chiffrage type ou personnalisé | E87: Chiffrage colis ou détaillé
C88: Utiliser un chiffrage type | E88: =H23 -> Kit complet
C89: Réaliser un chiffrage personnalisé | E89: =H24 -> Composants séparés
B91: Résultats
B94: Système | C94: Référence | D94: Désignation | H94: Colis | I94: Prix Unitaire | J94: =+Chiffrage!L108 -> Chiffrage type | K94: =+Chiffrage!M108 ->  | L94: Prix Total | M94: Quantité
I95: HT en € | J95: =+Chiffrage!L109 -> Quantité | K95: =+Chiffrage!M109 ->  | L95: HT en € | M95: 0
B96: Pompe A Chaleur | L96: =IFERROR(IF($C$86=$C$89,IF(K96=0,"",K96*I96),IF(J96="","",J96*I96)),"") ->  | M96: 1
B98: + | M98: Quantité 2
M99: 0
B100: Accessoires de mise en oeuvre | M100: 1
M101: 2
A102: 1 | C102: =IF($D$71=$B$52,'OFFRE HPI M'!B227,IF(OR($D$71=$B$38,$D$71=$B$39),'Offre HPI - CAELIA'!B248,IF($D$71=$B$51,'Offre Strateo'!B168,IF($D$71=$B$40,'Offre S Compact - ERIA FIT IN'!B80,IF(OR($D$71=$B$36,$D$71=$B$37),'Offre SV200 - ERIA N DUO '!B105,IF(OR($D$71=$B$34,$D$71=$B$35),'Offre Alezio S - ERIA '!B165,IF(OR($D$71=$B$49,$D$71=$B$50),'Offre GSHP'!B211,IF($D$71="",'Offre Alezio G hybrid'!B194,IF(OR($D$71=$B$45,$D$71=$B$46,$D$71=$B$47,$D$71=$B$48),'Offre HPI - G Hybrid'!B229,IF(OR($D$71=$B$41,$D$71=$B$42,$D$71=$B$43,$D$71=$B$44),'Offre Alezio O Hybrid'!B231,"")))))))))) ->  | D102: =IF($D$71=$B$52,'OFFRE HPI M'!C227,IF(OR($D$71=$B$38,$D$71=$B$39),'Offre HPI - CAELIA'!C248,IF($D$71=$B$51,'Offre Strateo'!C168,IF($D$71=$B$40,'Offre S Compact - ERIA FIT IN'!C80,IF(OR($D$71=$B$36,$D$71=$B$37),'Offre SV200 - ERIA N DUO '!C105,IF(OR($D$71=$B$34,$D$71=$B$35),'Offre Alezio S - ERIA '!C165,IF(OR($D$71=$B$49,$D$71=$B$50),'Offre GSHP'!C211,IF($D$71="",'Offre Alezio G hybrid'!C194,IF(OR($D$71=$B$45,$D$71=$B$46,$D$71=$B$47,$D$71=$B$48),'Offre HPI - G Hybrid'!C229,IF(OR($D$71=$B$41,$D$71=$B$42,$D$71=$B$43,$D$71=$B$44),'Offre Alezio O Hybrid'!C231,"")))))))))) -> Kit complet : PAC + accessoires | H102: =IF($D$71=$B$52,'OFFRE HPI M'!D227,IF(OR($D$71=$B$38,$D$71=$B$39),'Offre HPI - CAELIA'!D248,IF($D$71=$B$51,'Offre Strateo'!D168,IF($D$71=$B$40,'Offre S Compact - ERIA FIT IN'!D80,IF(OR($D$71=$B$36,$D$71=$B$37),'Offre SV200 - ERIA N DUO '!D105,IF(OR($D$71=$B$34,$D$71=$B$35),'Offre Alezio S - ERIA '!D165,IF(OR($D$71=$B$50,$D$71=$B$49),'Offre GSHP'!D211,IF($D$71="",'Offre Alezio G hybrid'!D194,IF(OR($D$71=$B$45,$D$71=$B$46,$D$71=$B$47,$D$71=$B$48),'Offre HPI - G Hybrid'!D229,IF(OR($D$71=$B$41,$D$71=$B$42,$D$71=$B$43,$D$71=$B$44),'Offre Alezio O Hybrid'!D231,"")))))))))) ->  | I102: =IF($D$71=$B$52,'OFFRE HPI M'!E227,IF(OR($D$71=$B$38,$D$71=$B$39),'Offre HPI - CAELIA'!E248,IF($D$71=$B$51,'Offre Strateo'!E168,IF($D$71=$B$40,'Offre S Compact - ERIA FIT IN'!E80,IF(OR($D$71=$B$36,$D$71=$B$37),'Offre SV200 - ERIA N DUO '!E105,IF(OR($D$71=$B$34,$D$71=$B$35),'Offre Alezio S - ERIA '!E165,IF(OR($D$71=$B$50,$D$71=$B$49),'Offre GSHP'!E211,IF($D$71="",'Offre Alezio G hybrid'!E194,IF(OR($D$71=$B$45,$D$71=$B$46,$D$71=$B$47,$D$71=$B$48),'Offre HPI - G Hybrid'!E229,IF(OR($D$71=$B$41,$D$71=$B$42,$D$71=$B$43,$D$71=$B$44),'Offre Alezio O Hybrid'!E231,"")))))))))) ->  | J102: =IF($D$71=$B$52,'OFFRE HPI M'!F227,IF(OR($D$71=$B$38,$D$71=$B$39),'Offre HPI - CAELIA'!F248,IF($D$71=$B$51,'Offre Strateo'!F168,IF($D$71=$B$40,'Offre S Compact - ERIA FIT IN'!F80,IF(OR($D$71=$B$36,$D$71=$B$37),'Offre SV200 - ERIA N DUO '!F105,IF(OR($D$71=$B$34,$D$71=$B$35),'Offre Alezio S - ERIA '!F165,IF(OR($D$71=$B$50,$D$71=$B$49),'Offre GSHP'!F211,IF($D$71="",'Offre Alezio G hybrid'!F194,IF(OR($D$71=$B$45,$D$71=$B$46,$D$71=$B$47,$D$71=$B$48),'Offre HPI - G Hybrid'!F229,IF(OR($D$71=$B$41,$D$71=$B$42,$D$71=$B$43,$D$71=$B$44),'Offre Alezio O Hybrid'!F231,"")))))))))) ->  | K102: =Chiffrage!M116 -> 0 | M102: 3
A103: 2 | C103: =IF($D$71=$B$52,'OFFRE HPI M'!B228,IF(OR($D$71=$B$38,$D$71=$B$39),'Offre HPI - CAELIA'!B249,IF($D$71=$B$51,'Offre Strateo'!B169,IF($D$71=$B$40,'Offre S Compact - ERIA FIT IN'!B81,IF(OR($D$71=$B$36,$D$71=$B$37),'Offre SV200 - ERIA N DUO '!B106,IF(OR($D$71=$B$34,$D$71=$B$35),'Offre Alezio S - ERIA '!B166,IF(OR($D$71=$B$49,$D$71=$B$50),'Offre GSHP'!B212,IF($D$71="",'Offre Alezio G hybrid'!B195,IF(OR($D$71=$B$45,$D$71=$B$46,$D$71=$B$47,$D$71=$B$48),'Offre HPI - G Hybrid'!B230,IF(OR($D$71=$B$41,$D$71=$B$42,$D$71=$B$43,$D$71=$B$44),'Offre Alezio O Hybrid'!B232,"")))))))))) -> 7746635 | D103: =IF($D$71=$B$52,'OFFRE HPI M'!C228,IF(OR($D$71=$B$38,$D$71=$B$39),'Offre HPI - CAELIA'!C249,IF($D$71=$B$51,'Offre Strateo'!C169,IF($D$71=$B$40,'Offre S Compact - ERIA FIT IN'!C81,IF(OR($D$71=$B$36,$D$71=$B$37),'Offre SV200 - ERIA N DUO '!C106,IF(OR($D$71=$B$34,$D$71=$B$35),'Offre Alezio S - ERIA '!C166,IF(OR($D$71=$B$49,$D$71=$B$50),'Offre GSHP'!C212,IF($D$71="",'Offre Alezio G hybrid'!C195,IF(OR($D$71=$B$45,$D$71=$B$46,$D$71=$B$47,$D$71=$B$48),'Offre HPI - G Hybrid'!C230,IF(OR($D$71=$B$41,$D$71=$B$42,$D$71=$B$43,$D$71=$B$44),'Offre Alezio O Hybrid'!C232,"")))))))))) -> OENOVIAPAC-C MB 6 MR/H | H103: =IF($D$71=$B$52,'OFFRE HPI M'!D228,IF(OR($D$71=$B$38,$D$71=$B$39),'Offre HPI - CAELIA'!D249,IF($D$71=$B$51,'Offre Strateo'!D169,IF($D$71=$B$40,'Offre S Compact - ERIA FIT IN'!D81,IF(OR($D$71=$B$36,$D$71=$B$37),'Offre SV200 - ERIA N DUO '!D106,IF(OR($D$71=$B$34,$D$71=$B$35),'Offre Alezio S - ERIA '!D166,IF(OR($D$71=$B$50,$D$71=$B$49),'Offre GSHP'!D212,IF($D$71="",'Offre Alezio G hybrid'!D195,IF(OR($D$71=$B$45,$D$71=$B$46,$D$71=$B$47,$D$71=$B$48),'Offre HPI - G Hybrid'!D230,IF(OR($D$71=$B$41,$D$71=$B$42,$D$71=$B$43,$D$71=$B$44),'Offre Alezio O Hybrid'!D232,"")))))))))) -> - | I103: =IF($D$71=$B$52,'OFFRE HPI M'!E228,IF(OR($D$71=$B$38,$D$71=$B$39),'Offre HPI - CAELIA'!E249,IF($D$71=$B$51,'Offre Strateo'!E169,IF($D$71=$B$40,'Offre S Compact - ERIA FIT IN'!E81,IF(OR($D$71=$B$36,$D$71=$B$37),'Offre SV200 - ERIA N DUO '!E106,IF(OR($D$71=$B$34,$D$71=$B$35),'Offre Alezio S - ERIA '!E166,IF(OR($D$71=$B$50,$D$71=$B$49),'Offre GSHP'!E212,IF($D$71="",'Offre Alezio G hybrid'!E195,IF(OR($D$71=$B$45,$D$71=$B$46,$D$71=$B$47,$D$71=$B$48),'Offre HPI - G Hybrid'!E230,IF(OR($D$71=$B$41,$D$71=$B$42,$D$71=$B$43,$D$71=$B$44),'Offre Alezio O Hybrid'!E232,"")))))))))) -> 8400 | J103: =IF($D$71=$B$52,'OFFRE HPI M'!F228,IF(OR($D$71=$B$38,$D$71=$B$39),'Offre HPI - CAELIA'!F249,IF($D$71=$B$51,'Offre Strateo'!F169,IF($D$71=$B$40,'Offre S Compact - ERIA FIT IN'!F81,IF(OR($D$71=$B$36,$D$71=$B$37),'Offre SV200 - ERIA N DUO '!F106,IF(OR($D$71=$B$34,$D$71=$B$35),'Offre Alezio S - ERIA '!F166,IF(OR($D$71=$B$50,$D$71=$B$49),'Offre GSHP'!F212,IF($D$71="",'Offre Alezio G hybrid'!F195,IF(OR($D$71=$B$45,$D$71=$B$46,$D$71=$B$47,$D$71=$B$48),'Offre HPI - G Hybrid'!F230,IF(OR($D$71=$B$41,$D$71=$B$42,$D$71=$B$43,$D$71=$B$44),'Offre Alezio O Hybrid'!F232,"")))))))))) -> 1 | K103: =Chiffrage!M117 -> 0 | L103: =IFERROR(IF($C$86=$C$89,IF(K103=0,"",K103*I103),IF(J103="","",J103*I103)),"") -> 8400
A104: 3 | C104: =IF($D$71=$B$52,'OFFRE HPI M'!B229,IF(OR($D$71=$B$38,$D$71=$B$39),'Offre HPI - CAELIA'!B250,IF($D$71=$B$51,'Offre Strateo'!B170,IF($D$71=$B$40,'Offre S Compact - ERIA FIT IN'!B82,IF(OR($D$71=$B$36,$D$71=$B$37),'Offre SV200 - ERIA N DUO '!B107,IF(OR($D$71=$B$34,$D$71=$B$35),'Offre Alezio S - ERIA '!B167,IF(OR($D$71=$B$49,$D$71=$B$50),'Offre GSHP'!B213,IF($D$71="",'Offre Alezio G hybrid'!B196,IF(OR($D$71=$B$45,$D$71=$B$46,$D$71=$B$47,$D$71=$B$48),'Offre HPI - G Hybrid'!B231,IF(OR($D$71=$B$41,$D$71=$B$42,$D$71=$B$43,$D$71=$B$44),'Offre Alezio O Hybrid'!B233,"")))))))))) ->  | D104: =IF($D$71=$B$52,'OFFRE HPI M'!C229,IF(OR($D$71=$B$38,$D$71=$B$39),'Offre HPI - CAELIA'!C250,IF($D$71=$B$51,'Offre Strateo'!C170,IF($D$71=$B$40,'Offre S Compact - ERIA FIT IN'!C82,IF(OR($D$71=$B$36,$D$71=$B$37),'Offre SV200 - ERIA N DUO '!C107,IF(OR($D$71=$B$34,$D$71=$B$35),'Offre Alezio S - ERIA '!C167,IF(OR($D$71=$B$49,$D$71=$B$50),'Offre GSHP'!C213,IF($D$71="",'Offre Alezio G hybrid'!C196,IF(OR($D$71=$B$45,$D$71=$B$46,$D$71=$B$47,$D$71=$B$48),'Offre HPI - G Hybrid'!C231,IF(OR($D$71=$B$41,$D$71=$B$42,$D$71=$B$43,$D$71=$B$44),'Offre Alezio O Hybrid'!C233,"")))))))))) ->  | H104: =IF($D$71=$B$52,'OFFRE HPI M'!D229,IF(OR($D$71=$B$38,$D$71=$B$39),'Offre HPI - CAELIA'!D250,IF($D$71=$B$51,'Offre Strateo'!D170,IF($D$71=$B$40,'Offre S Compact - ERIA FIT IN'!D82,IF(OR($D$71=$B$36,$D$71=$B$37),'Offre SV200 - ERIA N DUO '!D107,IF(OR($D$71=$B$34,$D$71=$B$35),'Offre Alezio S - ERIA '!D167,IF(OR($D$71=$B$50,$D$71=$B$49),'Offre GSHP'!D213,IF($D$71="",'Offre Alezio G hybrid'!D196,IF(OR($D$71=$B$45,$D$71=$B$46,$D$71=$B$47,$D$71=$B$48),'Offre HPI - G Hybrid'!D231,IF(OR($D$71=$B$41,$D$71=$B$42,$D$71=$B$43,$D$71=$B$44),'Offre Alezio O Hybrid'!D233,"")))))))))) ->  | I104: =IF($D$71=$B$52,'OFFRE HPI M'!E229,IF(OR($D$71=$B$38,$D$71=$B$39),'Offre HPI - CAELIA'!E250,IF($D$71=$B$51,'Offre Strateo'!E170,IF($D$71=$B$40,'Offre S Compact - ERIA FIT IN'!E82,IF(OR($D$71=$B$36,$D$71=$B$37),'Offre SV200 - ERIA N DUO '!E107,IF(OR($D$71=$B$34,$D$71=$B$35),'Offre Alezio S - ERIA '!E167,IF(OR($D$71=$B$50,$D$71=$B$49),'Offre GSHP'!E213,IF($D$71="",'Offre Alezio G hybrid'!E196,IF(OR($D$71=$B$45,$D$71=$B$46,$D$71=$B$47,$D$71=$B$48),'Offre HPI - G Hybrid'!E231,IF(OR($D$71=$B$41,$D$71=$B$42,$D$71=$B$43,$D$71=$B$44),'Offre Alezio O Hybrid'!E233,"")))))))))) ->  | J104: =IF($D$71=$B$52,'OFFRE HPI M'!F229,IF(OR($D$71=$B$38,$D$71=$B$39),'Offre HPI - CAELIA'!F250,IF($D$71=$B$51,'Offre Strateo'!F170,IF($D$71=$B$40,'Offre S Compact - ERIA FIT IN'!F82,IF(OR($D$71=$B$36,$D$71=$B$37),'Offre SV200 - ERIA N DUO '!F107,IF(OR($D$71=$B$34,$D$71=$B$35),'Offre Alezio S - ERIA '!F167,IF(OR($D$71=$B$50,$D$71=$B$49),'Offre GSHP'!F213,IF($D$71="",'Offre Alezio G hybrid'!F196,IF(OR($D$71=$B$45,$D$71=$B$46,$D$71=$B$47,$D$71=$B$48),'Offre HPI - G Hybrid'!F231,IF(OR($D$71=$B$41,$D$71=$B$42,$D$71=$B$43,$D$71=$B$44),'Offre Alezio O Hybrid'!F233,"")))))))))) ->  | K104: =Chiffrage!M118 -> 0
A105: 4 | C105: =IF($D$71=$B$52,'OFFRE HPI M'!B230,IF(OR($D$71=$B$38,$D$71=$B$39),'Offre HPI - CAELIA'!B251,IF($D$71=$B$51,'Offre Strateo'!B171,IF($D$71=$B$40,'Offre S Compact - ERIA FIT IN'!B83,IF(OR($D$71=$B$36,$D$71=$B$37),'Offre SV200 - ERIA N DUO '!B108,IF(OR($D$71=$B$34,$D$71=$B$35),'Offre Alezio S - ERIA '!B168,IF(OR($D$71=$B$49,$D$71=$B$50),'Offre GSHP'!B214,IF($D$71="",'Offre Alezio G hybrid'!B197,IF(OR($D$71=$B$45,$D$71=$B$46,$D$71=$B$47,$D$71=$B$48),'Offre HPI - G Hybrid'!B232,IF(OR($D$71=$B$41,$D$71=$B$42,$D$71=$B$43,$D$71=$B$44),'Offre Alezio O Hybrid'!B234,"")))))))))) ->  | D105: =IF($D$71=$B$52,'OFFRE HPI M'!C230,IF(OR($D$71=$B$38,$D$71=$B$39),'Offre HPI - CAELIA'!C251,IF($D$71=$B$51,'Offre Strateo'!C171,IF($D$71=$B$40,'Offre S Compact - ERIA FIT IN'!C83,IF(OR($D$71=$B$36,$D$71=$B$37),'Offre SV200 - ERIA N DUO '!C108,IF(OR($D$71=$B$34,$D$71=$B$35),'Offre Alezio S - ERIA '!C168,IF(OR($D$71=$B$49,$D$71=$B$50),'Offre GSHP'!C214,IF($D$71="",'Offre Alezio G hybrid'!C197,IF(OR($D$71=$B$45,$D$71=$B$46,$D$71=$B$47,$D$71=$B$48),'Offre HPI - G Hybrid'!C232,IF(OR($D$71=$B$41,$D$71=$B$42,$D$71=$B$43,$D$71=$B$44),'Offre Alezio O Hybrid'!C234,"")))))))))) ->  | H105: =IF($D$71=$B$52,'OFFRE HPI M'!D230,IF(OR($D$71=$B$38,$D$71=$B$39),'Offre HPI - CAELIA'!D251,IF($D$71=$B$51,'Offre Strateo'!D171,IF($D$71=$B$40,'Offre S Compact - ERIA FIT IN'!D83,IF(OR($D$71=$B$36,$D$71=$B$37),'Offre SV200 - ERIA N DUO '!D108,IF(OR($D$71=$B$34,$D$71=$B$35),'Offre Alezio S - ERIA '!D168,IF(OR($D$71=$B$50,$D$71=$B$49),'Offre GSHP'!D214,IF($D$71="",'Offre Alezio G hybrid'!D197,IF(OR($D$71=$B$45,$D$71=$B$46,$D$71=$B$47,$D$71=$B$48),'Offre HPI - G Hybrid'!D232,IF(OR($D$71=$B$41,$D$71=$B$42,$D$71=$B$43,$D$71=$B$44),'Offre Alezio O Hybrid'!D234,"")))))))))) ->  | I105: =IF($D$71=$B$52,'OFFRE HPI M'!E230,IF(OR($D$71=$B$38,$D$71=$B$39),'Offre HPI - CAELIA'!E251,IF($D$71=$B$51,'Offre Strateo'!E171,IF($D$71=$B$40,'Offre S Compact - ERIA FIT IN'!E83,IF(OR($D$71=$B$36,$D$71=$B$37),'Offre SV200 - ERIA N DUO '!E108,IF(OR($D$71=$B$34,$D$71=$B$35),'Offre Alezio S - ERIA '!E168,IF(OR($D$71=$B$50,$D$71=$B$49),'Offre GSHP'!E214,IF($D$71="",'Offre Alezio G hybrid'!E197,IF(OR($D$71=$B$45,$D$71=$B$46,$D$71=$B$47,$D$71=$B$48),'Offre HPI - G Hybrid'!E232,IF(OR($D$71=$B$41,$D$71=$B$42,$D$71=$B$43,$D$71=$B$44),'Offre Alezio O Hybrid'!E234,"")))))))))) ->  | J105: =IF($D$71=$B$52,'OFFRE HPI M'!F230,IF(OR($D$71=$B$38,$D$71=$B$39),'Offre HPI - CAELIA'!F251,IF($D$71=$B$51,'Offre Strateo'!F171,IF($D$71=$B$40,'Offre S Compact - ERIA FIT IN'!F83,IF(OR($D$71=$B$36,$D$71=$B$37),'Offre SV200 - ERIA N DUO '!F108,IF(OR($D$71=$B$34,$D$71=$B$35),'Offre Alezio S - ERIA '!F168,IF(OR($D$71=$B$50,$D$71=$B$49),'Offre GSHP'!F214,IF($D$71="",'Offre Alezio G hybrid'!F197,IF(OR($D$71=$B$45,$D$71=$B$46,$D$71=$B$47,$D$71=$B$48),'Offre HPI - G Hybrid'!F232,IF(OR($D$71=$B$41,$D$71=$B$42,$D$71=$B$43,$D$71=$B$44),'Offre Alezio O Hybrid'!F234,"")))))))))) ->  | K105: =Chiffrage!M119 -> 0 | M105: Option Compact
A106: 5 | C106: =IF($D$71=$B$52,'OFFRE HPI M'!B231,IF(OR($D$71=$B$38,$D$71=$B$39),'Offre HPI - CAELIA'!B252,IF($D$71=$B$51,'Offre Strateo'!B172,IF($D$71=$B$40,'Offre S Compact - ERIA FIT IN'!B84,IF(OR($D$71=$B$36,$D$71=$B$37),'Offre SV200 - ERIA N DUO '!B109,IF(OR($D$71=$B$34,$D$71=$B$35),'Offre Alezio S - ERIA '!B169,IF(OR($D$71=$B$49,$D$71=$B$50),'Offre GSHP'!B215,IF($D$71="",'Offre Alezio G hybrid'!B198,IF(OR($D$71=$B$45,$D$71=$B$46,$D$71=$B$47,$D$71=$B$48),'Offre HPI - G Hybrid'!B233,IF(OR($D$71=$B$41,$D$71=$B$42,$D$71=$B$43,$D$71=$B$44),'Offre Alezio O Hybrid'!B235,"")))))))))) ->  | D106: =IF($D$71=$B$52,'OFFRE HPI M'!C231,IF(OR($D$71=$B$38,$D$71=$B$39),'Offre HPI - CAELIA'!C252,IF($D$71=$B$51,'Offre Strateo'!C172,IF($D$71=$B$40,'Offre S Compact - ERIA FIT IN'!C84,IF(OR($D$71=$B$36,$D$71=$B$37),'Offre SV200 - ERIA N DUO '!C109,IF(OR($D$71=$B$34,$D$71=$B$35),'Offre Alezio S - ERIA '!C169,IF(OR($D$71=$B$49,$D$71=$B$50),'Offre GSHP'!C215,IF($D$71="",'Offre Alezio G hybrid'!C198,IF(OR($D$71=$B$45,$D$71=$B$46,$D$71=$B$47,$D$71=$B$48),'Offre HPI - G Hybrid'!C233,IF(OR($D$71=$B$41,$D$71=$B$42,$D$71=$B$43,$D$71=$B$44),'Offre Alezio O Hybrid'!C235,"")))))))))) ->  | H106: =IF($D$71=$B$52,'OFFRE HPI M'!D231,IF(OR($D$71=$B$38,$D$71=$B$39),'Offre HPI - CAELIA'!D252,IF($D$71=$B$51,'Offre Strateo'!D172,IF($D$71=$B$40,'Offre S Compact - ERIA FIT IN'!D84,IF(OR($D$71=$B$36,$D$71=$B$37),'Offre SV200 - ERIA N DUO '!D109,IF(OR($D$71=$B$34,$D$71=$B$35),'Offre Alezio S - ERIA '!D169,IF(OR($D$71=$B$50,$D$71=$B$49),'Offre GSHP'!D215,IF($D$71="",'Offre Alezio G hybrid'!D198,IF(OR($D$71=$B$45,$D$71=$B$46,$D$71=$B$47,$D$71=$B$48),'Offre HPI - G Hybrid'!D233,IF(OR($D$71=$B$41,$D$71=$B$42,$D$71=$B$43,$D$71=$B$44),'Offre Alezio O Hybrid'!D235,"")))))))))) ->  | I106: =IF($D$71=$B$52,'OFFRE HPI M'!E231,IF(OR($D$71=$B$38,$D$71=$B$39),'Offre HPI - CAELIA'!E252,IF($D$71=$B$51,'Offre Strateo'!E172,IF($D$71=$B$40,'Offre S Compact - ERIA FIT IN'!E84,IF(OR($D$71=$B$36,$D$71=$B$37),'Offre SV200 - ERIA N DUO '!E109,IF(OR($D$71=$B$34,$D$71=$B$35),'Offre Alezio S - ERIA '!E169,IF(OR($D$71=$B$50,$D$71=$B$49),'Offre GSHP'!E215,IF($D$71="",'Offre Alezio G hybrid'!E198,IF(OR($D$71=$B$45,$D$71=$B$46,$D$71=$B$47,$D$71=$B$48),'Offre HPI - G Hybrid'!E233,IF(OR($D$71=$B$41,$D$71=$B$42,$D$71=$B$43,$D$71=$B$44),'Offre Alezio O Hybrid'!E235,"")))))))))) ->  | J106: =IF($D$71=$B$52,'OFFRE HPI M'!F231,IF(OR($D$71=$B$38,$D$71=$B$39),'Offre HPI - CAELIA'!F252,IF($D$71=$B$51,'Offre Strateo'!F172,IF($D$71=$B$40,'Offre S Compact - ERIA FIT IN'!F84,IF(OR($D$71=$B$36,$D$71=$B$37),'Offre SV200 - ERIA N DUO '!F109,IF(OR($D$71=$B$34,$D$71=$B$35),'Offre Alezio S - ERIA '!F169,IF(OR($D$71=$B$50,$D$71=$B$49),'Offre GSHP'!F215,IF($D$71="",'Offre Alezio G hybrid'!F198,IF(OR($D$71=$B$45,$D$71=$B$46,$D$71=$B$47,$D$71=$B$48),'Offre HPI - G Hybrid'!F233,IF(OR($D$71=$B$41,$D$71=$B$42,$D$71=$B$43,$D$71=$B$44),'Offre Alezio O Hybrid'!F235,"")))))))))) ->  | K106: =Chiffrage!M120 -> 0 | M106: Avec
A107: 6 | C107: =IF($D$71=$B$52,'OFFRE HPI M'!B232,IF(OR($D$71=$B$38,$D$71=$B$39),'Offre HPI - CAELIA'!B253,IF($D$71=$B$51,'Offre Strateo'!B173,IF($D$71=$B$40,'Offre S Compact - ERIA FIT IN'!B85,IF(OR($D$71=$B$36,$D$71=$B$37),'Offre SV200 - ERIA N DUO '!B110,IF(OR($D$71=$B$34,$D$71=$B$35),'Offre Alezio S - ERIA '!B170,IF(OR($D$71=$B$49,$D$71=$B$50),'Offre GSHP'!B216,IF($D$71="",'Offre Alezio G hybrid'!B199,IF(OR($D$71=$B$45,$D$71=$B$46,$D$71=$B$47,$D$71=$B$48),'Offre HPI - G Hybrid'!B234,IF(OR($D$71=$B$41,$D$71=$B$42,$D$71=$B$43,$D$71=$B$44),'Offre Alezio O Hybrid'!B236,"")))))))))) ->  | D107: =IF($D$71=$B$52,'OFFRE HPI M'!C232,IF(OR($D$71=$B$38,$D$71=$B$39),'Offre HPI - CAELIA'!C253,IF($D$71=$B$51,'Offre Strateo'!C173,IF($D$71=$B$40,'Offre S Compact - ERIA FIT IN'!C85,IF(OR($D$71=$B$36,$D$71=$B$37),'Offre SV200 - ERIA N DUO '!C110,IF(OR($D$71=$B$34,$D$71=$B$35),'Offre Alezio S - ERIA '!C170,IF(OR($D$71=$B$49,$D$71=$B$50),'Offre GSHP'!C216,IF($D$71="",'Offre Alezio G hybrid'!C199,IF(OR($D$71=$B$45,$D$71=$B$46,$D$71=$B$47,$D$71=$B$48),'Offre HPI - G Hybrid'!C234,IF(OR($D$71=$B$41,$D$71=$B$42,$D$71=$B$43,$D$71=$B$44),'Offre Alezio O Hybrid'!C236,"")))))))))) ->  | H107: =IF($D$71=$B$52,'OFFRE HPI M'!D232,IF(OR($D$71=$B$38,$D$71=$B$39),'Offre HPI - CAELIA'!D253,IF($D$71=$B$51,'Offre Strateo'!D173,IF($D$71=$B$40,'Offre S Compact - ERIA FIT IN'!D85,IF(OR($D$71=$B$36,$D$71=$B$37),'Offre SV200 - ERIA N DUO '!D110,IF(OR($D$71=$B$34,$D$71=$B$35),'Offre Alezio S - ERIA '!D170,IF(OR($D$71=$B$50,$D$71=$B$49),'Offre GSHP'!D216,IF($D$71="",'Offre Alezio G hybrid'!D199,IF(OR($D$71=$B$45,$D$71=$B$46,$D$71=$B$47,$D$71=$B$48),'Offre HPI - G Hybrid'!D234,IF(OR($D$71=$B$41,$D$71=$B$42,$D$71=$B$43,$D$71=$B$44),'Offre Alezio O Hybrid'!D236,"")))))))))) ->  | I107: =IF($D$71=$B$52,'OFFRE HPI M'!E232,IF(OR($D$71=$B$38,$D$71=$B$39),'Offre HPI - CAELIA'!E253,IF($D$71=$B$51,'Offre Strateo'!E173,IF($D$71=$B$40,'Offre S Compact - ERIA FIT IN'!E85,IF(OR($D$71=$B$36,$D$71=$B$37),'Offre SV200 - ERIA N DUO '!E110,IF(OR($D$71=$B$34,$D$71=$B$35),'Offre Alezio S - ERIA '!E170,IF(OR($D$71=$B$50,$D$71=$B$49),'Offre GSHP'!E216,IF($D$71="",'Offre Alezio G hybrid'!E199,IF(OR($D$71=$B$45,$D$71=$B$46,$D$71=$B$47,$D$71=$B$48),'Offre HPI - G Hybrid'!E234,IF(OR($D$71=$B$41,$D$71=$B$42,$D$71=$B$43,$D$71=$B$44),'Offre Alezio O Hybrid'!E236,"")))))))))) ->  | J107: =IF($D$71=$B$52,'OFFRE HPI M'!F232,IF(OR($D$71=$B$38,$D$71=$B$39),'Offre HPI - CAELIA'!F253,IF($D$71=$B$51,'Offre Strateo'!F173,IF($D$71=$B$40,'Offre S Compact - ERIA FIT IN'!F85,IF(OR($D$71=$B$36,$D$71=$B$37),'Offre SV200 - ERIA N DUO '!F110,IF(OR($D$71=$B$34,$D$71=$B$35),'Offre Alezio S - ERIA '!F170,IF(OR($D$71=$B$50,$D$71=$B$49),'Offre GSHP'!F216,IF($D$71="",'Offre Alezio G hybrid'!F199,IF(OR($D$71=$B$45,$D$71=$B$46,$D$71=$B$47,$D$71=$B$48),'Offre HPI - G Hybrid'!F234,IF(OR($D$71=$B$41,$D$71=$B$42,$D$71=$B$43,$D$71=$B$44),'Offre Alezio O Hybrid'!F236,"")))))))))) ->  | K107: =Chiffrage!M121 -> 0 | M107: Sans
A108: 7 | C108: =IF($D$71=$B$52,'OFFRE HPI M'!B233,IF(OR($D$71=$B$38,$D$71=$B$39),'Offre HPI - CAELIA'!B254,IF($D$71=$B$51,'Offre Strateo'!B174,IF($D$71=$B$40,'Offre S Compact - ERIA FIT IN'!B86,IF(OR($D$71=$B$36,$D$71=$B$37),'Offre SV200 - ERIA N DUO '!B111,IF(OR($D$71=$B$34,$D$71=$B$35),'Offre Alezio S - ERIA '!B171,IF(OR($D$71=$B$49,$D$71=$B$50),'Offre GSHP'!B217,IF($D$71="",'Offre Alezio G hybrid'!B200,IF(OR($D$71=$B$45,$D$71=$B$46,$D$71=$B$47,$D$71=$B$48),'Offre HPI - G Hybrid'!B235,IF(OR($D$71=$B$41,$D$71=$B$42,$D$71=$B$43,$D$71=$B$44),'Offre Alezio O Hybrid'!B237,"")))))))))) ->  | D108: =IF($D$71=$B$52,'OFFRE HPI M'!C233,IF(OR($D$71=$B$38,$D$71=$B$39),'Offre HPI - CAELIA'!C254,IF($D$71=$B$51,'Offre Strateo'!C174,IF($D$71=$B$40,'Offre S Compact - ERIA FIT IN'!C86,IF(OR($D$71=$B$36,$D$71=$B$37),'Offre SV200 - ERIA N DUO '!C111,IF(OR($D$71=$B$34,$D$71=$B$35),'Offre Alezio S - ERIA '!C171,IF(OR($D$71=$B$49,$D$71=$B$50),'Offre GSHP'!C217,IF($D$71="",'Offre Alezio G hybrid'!C200,IF(OR($D$71=$B$45,$D$71=$B$46,$D$71=$B$47,$D$71=$B$48),'Offre HPI - G Hybrid'!C235,IF(OR($D$71=$B$41,$D$71=$B$42,$D$71=$B$43,$D$71=$B$44),'Offre Alezio O Hybrid'!C237,"")))))))))) ->  | H108: =IF($D$71=$B$52,'OFFRE HPI M'!D233,IF(OR($D$71=$B$38,$D$71=$B$39),'Offre HPI - CAELIA'!D254,IF($D$71=$B$51,'Offre Strateo'!D174,IF($D$71=$B$40,'Offre S Compact - ERIA FIT IN'!D86,IF(OR($D$71=$B$36,$D$71=$B$37),'Offre SV200 - ERIA N DUO '!D111,IF(OR($D$71=$B$34,$D$71=$B$35),'Offre Alezio S - ERIA '!D171,IF(OR($D$71=$B$50,$D$71=$B$49),'Offre GSHP'!D217,IF($D$71="",'Offre Alezio G hybrid'!D200,IF(OR($D$71=$B$45,$D$71=$B$46,$D$71=$B$47,$D$71=$B$48),'Offre HPI - G Hybrid'!D235,IF(OR($D$71=$B$41,$D$71=$B$42,$D$71=$B$43,$D$71=$B$44),'Offre Alezio O Hybrid'!D237,"")))))))))) ->  | I108: =IF($D$71=$B$52,'OFFRE HPI M'!E233,IF(OR($D$71=$B$38,$D$71=$B$39),'Offre HPI - CAELIA'!E254,IF($D$71=$B$51,'Offre Strateo'!E174,IF($D$71=$B$40,'Offre S Compact - ERIA FIT IN'!E86,IF(OR($D$71=$B$36,$D$71=$B$37),'Offre SV200 - ERIA N DUO '!E111,IF(OR($D$71=$B$34,$D$71=$B$35),'Offre Alezio S - ERIA '!E171,IF(OR($D$71=$B$50,$D$71=$B$49),'Offre GSHP'!E217,IF($D$71="",'Offre Alezio G hybrid'!E200,IF(OR($D$71=$B$45,$D$71=$B$46,$D$71=$B$47,$D$71=$B$48),'Offre HPI - G Hybrid'!E235,IF(OR($D$71=$B$41,$D$71=$B$42,$D$71=$B$43,$D$71=$B$44),'Offre Alezio O Hybrid'!E237,"")))))))))) ->  | J108: =IF($D$71=$B$52,'OFFRE HPI M'!F233,IF(OR($D$71=$B$38,$D$71=$B$39),'Offre HPI - CAELIA'!F254,IF($D$71=$B$51,'Offre Strateo'!F174,IF($D$71=$B$40,'Offre S Compact - ERIA FIT IN'!F86,IF(OR($D$71=$B$36,$D$71=$B$37),'Offre SV200 - ERIA N DUO '!F111,IF(OR($D$71=$B$34,$D$71=$B$35),'Offre Alezio S - ERIA '!F171,IF(OR($D$71=$B$50,$D$71=$B$49),'Offre GSHP'!F217,IF($D$71="",'Offre Alezio G hybrid'!F200,IF(OR($D$71=$B$45,$D$71=$B$46,$D$71=$B$47,$D$71=$B$48),'Offre HPI - G Hybrid'!F235,IF(OR($D$71=$B$41,$D$71=$B$42,$D$71=$B$43,$D$71=$B$44),'Offre Alezio O Hybrid'!F237,"")))))))))) ->  | K108: =Chiffrage!M122 -> 0
A109: 8 | C109: =IF($D$71=$B$52,'OFFRE HPI M'!B234,IF(OR($D$71=$B$38,$D$71=$B$39),'Offre HPI - CAELIA'!B255,IF($D$71=$B$51,'Offre Strateo'!B175,IF($D$71=$B$40,'Offre S Compact - ERIA FIT IN'!B87,IF(OR($D$71=$B$36,$D$71=$B$37),'Offre SV200 - ERIA N DUO '!B112,IF(OR($D$71=$B$34,$D$71=$B$35),'Offre Alezio S - ERIA '!B172,IF(OR($D$71=$B$49,$D$71=$B$50),'Offre GSHP'!B218,IF($D$71="",'Offre Alezio G hybrid'!B201,IF(OR($D$71=$B$45,$D$71=$B$46,$D$71=$B$47,$D$71=$B$48),'Offre HPI - G Hybrid'!B236,IF(OR($D$71=$B$41,$D$71=$B$42,$D$71=$B$43,$D$71=$B$44),'Offre Alezio O Hybrid'!B238,"")))))))))) ->  | D109: =IF($D$71=$B$52,'OFFRE HPI M'!C234,IF(OR($D$71=$B$38,$D$71=$B$39),'Offre HPI - CAELIA'!C255,IF($D$71=$B$51,'Offre Strateo'!C175,IF($D$71=$B$40,'Offre S Compact - ERIA FIT IN'!C87,IF(OR($D$71=$B$36,$D$71=$B$37),'Offre SV200 - ERIA N DUO '!C112,IF(OR($D$71=$B$34,$D$71=$B$35),'Offre Alezio S - ERIA '!C172,IF(OR($D$71=$B$49,$D$71=$B$50),'Offre GSHP'!C218,IF($D$71="",'Offre Alezio G hybrid'!C201,IF(OR($D$71=$B$45,$D$71=$B$46,$D$71=$B$47,$D$71=$B$48),'Offre HPI - G Hybrid'!C236,IF(OR($D$71=$B$41,$D$71=$B$42,$D$71=$B$43,$D$71=$B$44),'Offre Alezio O Hybrid'!C238,"")))))))))) ->  | H109: =IF($D$71=$B$52,'OFFRE HPI M'!D234,IF(OR($D$71=$B$38,$D$71=$B$39),'Offre HPI - CAELIA'!D255,IF($D$71=$B$51,'Offre Strateo'!D175,IF($D$71=$B$40,'Offre S Compact - ERIA FIT IN'!D87,IF(OR($D$71=$B$36,$D$71=$B$37),'Offre SV200 - ERIA N DUO '!D112,IF(OR($D$71=$B$34,$D$71=$B$35),'Offre Alezio S - ERIA '!D172,IF(OR($D$71=$B$50,$D$71=$B$49),'Offre GSHP'!D218,IF($D$71="",'Offre Alezio G hybrid'!D201,IF(OR($D$71=$B$45,$D$71=$B$46,$D$71=$B$47,$D$71=$B$48),'Offre HPI - G Hybrid'!D236,IF(OR($D$71=$B$41,$D$71=$B$42,$D$71=$B$43,$D$71=$B$44),'Offre Alezio O Hybrid'!D238,"")))))))))) ->  | I109: =IF($D$71=$B$52,'OFFRE HPI M'!E234,IF(OR($D$71=$B$38,$D$71=$B$39),'Offre HPI - CAELIA'!E255,IF($D$71=$B$51,'Offre Strateo'!E175,IF($D$71=$B$40,'Offre S Compact - ERIA FIT IN'!E87,IF(OR($D$71=$B$36,$D$71=$B$37),'Offre SV200 - ERIA N DUO '!E112,IF(OR($D$71=$B$34,$D$71=$B$35),'Offre Alezio S - ERIA '!E172,IF(OR($D$71=$B$50,$D$71=$B$49),'Offre GSHP'!E218,IF($D$71="",'Offre Alezio G hybrid'!E201,IF(OR($D$71=$B$45,$D$71=$B$46,$D$71=$B$47,$D$71=$B$48),'Offre HPI - G Hybrid'!E236,IF(OR($D$71=$B$41,$D$71=$B$42,$D$71=$B$43,$D$71=$B$44),'Offre Alezio O Hybrid'!E238,"")))))))))) ->  | J109: =IF($D$71=$B$52,'OFFRE HPI M'!F234,IF(OR($D$71=$B$38,$D$71=$B$39),'Offre HPI - CAELIA'!F255,IF($D$71=$B$51,'Offre Strateo'!F175,IF($D$71=$B$40,'Offre S Compact - ERIA FIT IN'!F87,IF(OR($D$71=$B$36,$D$71=$B$37),'Offre SV200 - ERIA N DUO '!F112,IF(OR($D$71=$B$34,$D$71=$B$35),'Offre Alezio S - ERIA '!F172,IF(OR($D$71=$B$50,$D$71=$B$49),'Offre GSHP'!F218,IF($D$71="",'Offre Alezio G hybrid'!F201,IF(OR($D$71=$B$45,$D$71=$B$46,$D$71=$B$47,$D$71=$B$48),'Offre HPI - G Hybrid'!F236,IF(OR($D$71=$B$41,$D$71=$B$42,$D$71=$B$43,$D$71=$B$44),'Offre Alezio O Hybrid'!F238,"")))))))))) ->  | K109: =Chiffrage!M123 -> 0
A110: 9 | C110: =IF($D$71=$B$52,'OFFRE HPI M'!B235,IF(OR($D$71=$B$38,$D$71=$B$39),'Offre HPI - CAELIA'!B256,IF($D$71=$B$51,'Offre Strateo'!B176,IF($D$71=$B$40,'Offre S Compact - ERIA FIT IN'!B88,IF(OR($D$71=$B$36,$D$71=$B$37),'Offre SV200 - ERIA N DUO '!B113,IF(OR($D$71=$B$34,$D$71=$B$35),'Offre Alezio S - ERIA '!B173,IF(OR($D$71=$B$49,$D$71=$B$50),'Offre GSHP'!B219,IF($D$71="",'Offre Alezio G hybrid'!B202,IF(OR($D$71=$B$45,$D$71=$B$46,$D$71=$B$47,$D$71=$B$48),'Offre HPI - G Hybrid'!B237,IF(OR($D$71=$B$41,$D$71=$B$42,$D$71=$B$43,$D$71=$B$44),'Offre Alezio O Hybrid'!B239,"")))))))))) ->  | D110: =IF($D$71=$B$52,'OFFRE HPI M'!C235,IF(OR($D$71=$B$38,$D$71=$B$39),'Offre HPI - CAELIA'!C256,IF($D$71=$B$51,'Offre Strateo'!C176,IF($D$71=$B$40,'Offre S Compact - ERIA FIT IN'!C88,IF(OR($D$71=$B$36,$D$71=$B$37),'Offre SV200 - ERIA N DUO '!C113,IF(OR($D$71=$B$34,$D$71=$B$35),'Offre Alezio S - ERIA '!C173,IF(OR($D$71=$B$49,$D$71=$B$50),'Offre GSHP'!C219,IF($D$71="",'Offre Alezio G hybrid'!C202,IF(OR($D$71=$B$45,$D$71=$B$46,$D$71=$B$47,$D$71=$B$48),'Offre HPI - G Hybrid'!C237,IF(OR($D$71=$B$41,$D$71=$B$42,$D$71=$B$43,$D$71=$B$44),'Offre Alezio O Hybrid'!C239,"")))))))))) ->  | H110: =IF($D$71=$B$52,'OFFRE HPI M'!D235,IF(OR($D$71=$B$38,$D$71=$B$39),'Offre HPI - CAELIA'!D256,IF($D$71=$B$51,'Offre Strateo'!D176,IF($D$71=$B$40,'Offre S Compact - ERIA FIT IN'!D88,IF(OR($D$71=$B$36,$D$71=$B$37),'Offre SV200 - ERIA N DUO '!D113,IF(OR($D$71=$B$34,$D$71=$B$35),'Offre Alezio S - ERIA '!D173,IF(OR($D$71=$B$50,$D$71=$B$49),'Offre GSHP'!D219,IF($D$71="",'Offre Alezio G hybrid'!D202,IF(OR($D$71=$B$45,$D$71=$B$46,$D$71=$B$47,$D$71=$B$48),'Offre HPI - G Hybrid'!D237,IF(OR($D$71=$B$41,$D$71=$B$42,$D$71=$B$43,$D$71=$B$44),'Offre Alezio O Hybrid'!D239,"")))))))))) ->  | I110: =IF($D$71=$B$52,'OFFRE HPI M'!E235,IF(OR($D$71=$B$38,$D$71=$B$39),'Offre HPI - CAELIA'!E256,IF($D$71=$B$51,'Offre Strateo'!E176,IF($D$71=$B$40,'Offre S Compact - ERIA FIT IN'!E88,IF(OR($D$71=$B$36,$D$71=$B$37),'Offre SV200 - ERIA N DUO '!E113,IF(OR($D$71=$B$34,$D$71=$B$35),'Offre Alezio S - ERIA '!E173,IF(OR($D$71=$B$50,$D$71=$B$49),'Offre GSHP'!E219,IF($D$71="",'Offre Alezio G hybrid'!E202,IF(OR($D$71=$B$45,$D$71=$B$46,$D$71=$B$47,$D$71=$B$48),'Offre HPI - G Hybrid'!E237,IF(OR($D$71=$B$41,$D$71=$B$42,$D$71=$B$43,$D$71=$B$44),'Offre Alezio O Hybrid'!E239,"")))))))))) ->  | J110: =IF($D$71=$B$52,'OFFRE HPI M'!F235,IF(OR($D$71=$B$38,$D$71=$B$39),'Offre HPI - CAELIA'!F256,IF($D$71=$B$51,'Offre Strateo'!F176,IF($D$71=$B$40,'Offre S Compact - ERIA FIT IN'!F88,IF(OR($D$71=$B$36,$D$71=$B$37),'Offre SV200 - ERIA N DUO '!F113,IF(OR($D$71=$B$34,$D$71=$B$35),'Offre Alezio S - ERIA '!F173,IF(OR($D$71=$B$50,$D$71=$B$49),'Offre GSHP'!F219,IF($D$71="",'Offre Alezio G hybrid'!F202,IF(OR($D$71=$B$45,$D$71=$B$46,$D$71=$B$47,$D$71=$B$48),'Offre HPI - G Hybrid'!F237,IF(OR($D$71=$B$41,$D$71=$B$42,$D$71=$B$43,$D$71=$B$44),'Offre Alezio O Hybrid'!F239,"")))))))))) ->  | K110: =Chiffrage!M124 -> 0
A111: 10 | C111: =IF($D$71=$B$52,'OFFRE HPI M'!B236,IF(OR($D$71=$B$38,$D$71=$B$39),'Offre HPI - CAELIA'!B257,IF($D$71=$B$51,'Offre Strateo'!B177,IF($D$71=$B$40,'Offre S Compact - ERIA FIT IN'!B89,IF(OR($D$71=$B$36,$D$71=$B$37),'Offre SV200 - ERIA N DUO '!B114,IF(OR($D$71=$B$34,$D$71=$B$35),'Offre Alezio S - ERIA '!B174,IF(OR($D$71=$B$49,$D$71=$B$50),'Offre GSHP'!B220,IF($D$71="",'Offre Alezio G hybrid'!B203,IF(OR($D$71=$B$45,$D$71=$B$46,$D$71=$B$47,$D$71=$B$48),'Offre HPI - G Hybrid'!B238,IF(OR($D$71=$B$41,$D$71=$B$42,$D$71=$B$43,$D$71=$B$44),'Offre Alezio O Hybrid'!B240,"")))))))))) ->  | D111: =IF($D$71=$B$52,'OFFRE HPI M'!C236,IF(OR($D$71=$B$38,$D$71=$B$39),'Offre HPI - CAELIA'!C257,IF($D$71=$B$51,'Offre Strateo'!C177,IF($D$71=$B$40,'Offre S Compact - ERIA FIT IN'!C89,IF(OR($D$71=$B$36,$D$71=$B$37),'Offre SV200 - ERIA N DUO '!C114,IF(OR($D$71=$B$34,$D$71=$B$35),'Offre Alezio S - ERIA '!C174,IF(OR($D$71=$B$49,$D$71=$B$50),'Offre GSHP'!C220,IF($D$71="",'Offre Alezio G hybrid'!C203,IF(OR($D$71=$B$45,$D$71=$B$46,$D$71=$B$47,$D$71=$B$48),'Offre HPI - G Hybrid'!C238,IF(OR($D$71=$B$41,$D$71=$B$42,$D$71=$B$43,$D$71=$B$44),'Offre Alezio O Hybrid'!C240,"")))))))))) -> Accessoires de mise en œuvre | H111: =IF($D$71=$B$52,'OFFRE HPI M'!D236,IF(OR($D$71=$B$38,$D$71=$B$39),'Offre HPI - CAELIA'!D257,IF($D$71=$B$51,'Offre Strateo'!D177,IF($D$71=$B$40,'Offre S Compact - ERIA FIT IN'!D89,IF(OR($D$71=$B$36,$D$71=$B$37),'Offre SV200 - ERIA N DUO '!D114,IF(OR($D$71=$B$34,$D$71=$B$35),'Offre Alezio S - ERIA '!D174,IF(OR($D$71=$B$50,$D$71=$B$49),'Offre GSHP'!D220,IF($D$71="",'Offre Alezio G hybrid'!D203,IF(OR($D$71=$B$45,$D$71=$B$46,$D$71=$B$47,$D$71=$B$48),'Offre HPI - G Hybrid'!D238,IF(OR($D$71=$B$41,$D$71=$B$42,$D$71=$B$43,$D$71=$B$44),'Offre Alezio O Hybrid'!D240,"")))))))))) ->  | I111: =IF($D$71=$B$52,'OFFRE HPI M'!E236,IF(OR($D$71=$B$38,$D$71=$B$39),'Offre HPI - CAELIA'!E257,IF($D$71=$B$51,'Offre Strateo'!E177,IF($D$71=$B$40,'Offre S Compact - ERIA FIT IN'!E89,IF(OR($D$71=$B$36,$D$71=$B$37),'Offre SV200 - ERIA N DUO '!E114,IF(OR($D$71=$B$34,$D$71=$B$35),'Offre Alezio S - ERIA '!E174,IF(OR($D$71=$B$50,$D$71=$B$49),'Offre GSHP'!E220,IF($D$71="",'Offre Alezio G hybrid'!E203,IF(OR($D$71=$B$45,$D$71=$B$46,$D$71=$B$47,$D$71=$B$48),'Offre HPI - G Hybrid'!E238,IF(OR($D$71=$B$41,$D$71=$B$42,$D$71=$B$43,$D$71=$B$44),'Offre Alezio O Hybrid'!E240,"")))))))))) ->  | J111: =IF($D$71=$B$52,'OFFRE HPI M'!F236,IF(OR($D$71=$B$38,$D$71=$B$39),'Offre HPI - CAELIA'!F257,IF($D$71=$B$51,'Offre Strateo'!F177,IF($D$71=$B$40,'Offre S Compact - ERIA FIT IN'!F89,IF(OR($D$71=$B$36,$D$71=$B$37),'Offre SV200 - ERIA N DUO '!F114,IF(OR($D$71=$B$34,$D$71=$B$35),'Offre Alezio S - ERIA '!F174,IF(OR($D$71=$B$50,$D$71=$B$49),'Offre GSHP'!F220,IF($D$71="",'Offre Alezio G hybrid'!F203,IF(OR($D$71=$B$45,$D$71=$B$46,$D$71=$B$47,$D$71=$B$48),'Offre HPI - G Hybrid'!F238,IF(OR($D$71=$B$41,$D$71=$B$42,$D$71=$B$43,$D$71=$B$44),'Offre Alezio O Hybrid'!F240,"")))))))))) ->  | K111: =Chiffrage!M125 -> 0
A112: 11 | C112: =IF($D$71=$B$52,'OFFRE HPI M'!B237,IF(OR($D$71=$B$38,$D$71=$B$39),'Offre HPI - CAELIA'!B258,IF($D$71=$B$51,'Offre Strateo'!B178,IF($D$71=$B$40,'Offre S Compact - ERIA FIT IN'!B90,IF(OR($D$71=$B$36,$D$71=$B$37),'Offre SV200 - ERIA N DUO '!B115,IF(OR($D$71=$B$34,$D$71=$B$35),'Offre Alezio S - ERIA '!B175,IF(OR($D$71=$B$49,$D$71=$B$50),'Offre GSHP'!B221,IF($D$71="",'Offre Alezio G hybrid'!B204,IF(OR($D$71=$B$45,$D$71=$B$46,$D$71=$B$47,$D$71=$B$48),'Offre HPI - G Hybrid'!B239,IF(OR($D$71=$B$41,$D$71=$B$42,$D$71=$B$43,$D$71=$B$44),'Offre Alezio O Hybrid'!B241,"")))))))))) -> 7694974 | D112: =IF($D$71=$B$52,'OFFRE HPI M'!C237,IF(OR($D$71=$B$38,$D$71=$B$39),'Offre HPI - CAELIA'!C258,IF($D$71=$B$51,'Offre Strateo'!C178,IF($D$71=$B$40,'Offre S Compact - ERIA FIT IN'!C90,IF(OR($D$71=$B$36,$D$71=$B$37),'Offre SV200 - ERIA N DUO '!C115,IF(OR($D$71=$B$34,$D$71=$B$35),'Offre Alezio S - ERIA '!C175,IF(OR($D$71=$B$49,$D$71=$B$50),'Offre GSHP'!C221,IF($D$71="",'Offre Alezio G hybrid'!C204,IF(OR($D$71=$B$45,$D$71=$B$46,$D$71=$B$47,$D$71=$B$48),'Offre HPI - G Hybrid'!C239,IF(OR($D$71=$B$41,$D$71=$B$42,$D$71=$B$43,$D$71=$B$44),'Offre Alezio O Hybrid'!C241,"")))))))))) -> SUPPORT AU SOL CAOUTCHOUC 600MM | H112: =IF($D$71=$B$52,'OFFRE HPI M'!D237,IF(OR($D$71=$B$38,$D$71=$B$39),'Offre HPI - CAELIA'!D258,IF($D$71=$B$51,'Offre Strateo'!D178,IF($D$71=$B$40,'Offre S Compact - ERIA FIT IN'!D90,IF(OR($D$71=$B$36,$D$71=$B$37),'Offre SV200 - ERIA N DUO '!D115,IF(OR($D$71=$B$34,$D$71=$B$35),'Offre Alezio S - ERIA '!D175,IF(OR($D$71=$B$50,$D$71=$B$49),'Offre GSHP'!D221,IF($D$71="",'Offre Alezio G hybrid'!D204,IF(OR($D$71=$B$45,$D$71=$B$46,$D$71=$B$47,$D$71=$B$48),'Offre HPI - G Hybrid'!D239,IF(OR($D$71=$B$41,$D$71=$B$42,$D$71=$B$43,$D$71=$B$44),'Offre Alezio O Hybrid'!D241,"")))))))))) -> EH879 | I112: =IF($D$71=$B$52,'OFFRE HPI M'!E237,IF(OR($D$71=$B$38,$D$71=$B$39),'Offre HPI - CAELIA'!E258,IF($D$71=$B$51,'Offre Strateo'!E178,IF($D$71=$B$40,'Offre S Compact - ERIA FIT IN'!E90,IF(OR($D$71=$B$36,$D$71=$B$37),'Offre SV200 - ERIA N DUO '!E115,IF(OR($D$71=$B$34,$D$71=$B$35),'Offre Alezio S - ERIA '!E175,IF(OR($D$71=$B$50,$D$71=$B$49),'Offre GSHP'!E221,IF($D$71="",'Offre Alezio G hybrid'!E204,IF(OR($D$71=$B$45,$D$71=$B$46,$D$71=$B$47,$D$71=$B$48),'Offre HPI - G Hybrid'!E239,IF(OR($D$71=$B$41,$D$71=$B$42,$D$71=$B$43,$D$71=$B$44),'Offre Alezio O Hybrid'!E241,"")))))))))) -> 119 | J112: =IF($D$71=$B$52,'OFFRE HPI M'!F237,IF(OR($D$71=$B$38,$D$71=$B$39),'Offre HPI - CAELIA'!F258,IF($D$71=$B$51,'Offre Strateo'!F178,IF($D$71=$B$40,'Offre S Compact - ERIA FIT IN'!F90,IF(OR($D$71=$B$36,$D$71=$B$37),'Offre SV200 - ERIA N DUO '!F115,IF(OR($D$71=$B$34,$D$71=$B$35),'Offre Alezio S - ERIA '!F175,IF(OR($D$71=$B$50,$D$71=$B$49),'Offre GSHP'!F221,IF($D$71="",'Offre Alezio G hybrid'!F204,IF(OR($D$71=$B$45,$D$71=$B$46,$D$71=$B$47,$D$71=$B$48),'Offre HPI - G Hybrid'!F239,IF(OR($D$71=$B$41,$D$71=$B$42,$D$71=$B$43,$D$71=$B$44),'Offre Alezio O Hybrid'!F241,"")))))))))) -> 1 | K112: =Chiffrage!M126 -> 0 | L112: 119
A113: 12 | C113: =IF($D$71=$B$52,'OFFRE HPI M'!B238,IF(OR($D$71=$B$38,$D$71=$B$39),'Offre HPI - CAELIA'!B259,IF($D$71=$B$51,'Offre Strateo'!B179,IF($D$71=$B$40,'Offre S Compact - ERIA FIT IN'!B91,IF(OR($D$71=$B$36,$D$71=$B$37),'Offre SV200 - ERIA N DUO '!B116,IF(OR($D$71=$B$34,$D$71=$B$35),'Offre Alezio S - ERIA '!B176,IF(OR($D$71=$B$49,$D$71=$B$50),'Offre GSHP'!B222,IF($D$71="",'Offre Alezio G hybrid'!B205,IF(OR($D$71=$B$45,$D$71=$B$46,$D$71=$B$47,$D$71=$B$48),'Offre HPI - G Hybrid'!B240,IF(OR($D$71=$B$41,$D$71=$B$42,$D$71=$B$43,$D$71=$B$44),'Offre Alezio O Hybrid'!B242,"")))))))))) -> 7681480 | D113: =IF($D$71=$B$52,'OFFRE HPI M'!C238,IF(OR($D$71=$B$38,$D$71=$B$39),'Offre HPI - CAELIA'!C259,IF($D$71=$B$51,'Offre Strateo'!C179,IF($D$71=$B$40,'Offre S Compact - ERIA FIT IN'!C91,IF(OR($D$71=$B$36,$D$71=$B$37),'Offre SV200 - ERIA N DUO '!C116,IF(OR($D$71=$B$34,$D$71=$B$35),'Offre Alezio S - ERIA '!C176,IF(OR($D$71=$B$49,$D$71=$B$50),'Offre GSHP'!C222,IF($D$71="",'Offre Alezio G hybrid'!C205,IF(OR($D$71=$B$45,$D$71=$B$46,$D$71=$B$47,$D$71=$B$48),'Offre HPI - G Hybrid'!C240,IF(OR($D$71=$B$41,$D$71=$B$42,$D$71=$B$43,$D$71=$B$44),'Offre Alezio O Hybrid'!C242,"")))))))))) -> KIT DOSSERET REMPLISSAGE AUTOMATIQUE | H113: =IF($D$71=$B$52,'OFFRE HPI M'!D238,IF(OR($D$71=$B$38,$D$71=$B$39),'Offre HPI - CAELIA'!D259,IF($D$71=$B$51,'Offre Strateo'!D179,IF($D$71=$B$40,'Offre S Compact - ERIA FIT IN'!D91,IF(OR($D$71=$B$36,$D$71=$B$37),'Offre SV200 - ERIA N DUO '!D116,IF(OR($D$71=$B$34,$D$71=$B$35),'Offre Alezio S - ERIA '!D176,IF(OR($D$71=$B$50,$D$71=$B$49),'Offre GSHP'!D222,IF($D$71="",'Offre Alezio G hybrid'!D205,IF(OR($D$71=$B$45,$D$71=$B$46,$D$71=$B$47,$D$71=$B$48),'Offre HPI - G Hybrid'!D240,IF(OR($D$71=$B$41,$D$71=$B$42,$D$71=$B$43,$D$71=$B$44),'Offre Alezio O Hybrid'!D242,"")))))))))) -> EH726 | I113: =IF($D$71=$B$52,'OFFRE HPI M'!E238,IF(OR($D$71=$B$38,$D$71=$B$39),'Offre HPI - CAELIA'!E259,IF($D$71=$B$51,'Offre Strateo'!E179,IF($D$71=$B$40,'Offre S Compact - ERIA FIT IN'!E91,IF(OR($D$71=$B$36,$D$71=$B$37),'Offre SV200 - ERIA N DUO '!E116,IF(OR($D$71=$B$34,$D$71=$B$35),'Offre Alezio S - ERIA '!E176,IF(OR($D$71=$B$50,$D$71=$B$49),'Offre GSHP'!E222,IF($D$71="",'Offre Alezio G hybrid'!E205,IF(OR($D$71=$B$45,$D$71=$B$46,$D$71=$B$47,$D$71=$B$48),'Offre HPI - G Hybrid'!E240,IF(OR($D$71=$B$41,$D$71=$B$42,$D$71=$B$43,$D$71=$B$44),'Offre Alezio O Hybrid'!E242,"")))))))))) -> 256 | J113: =IF($D$71=$B$52,'OFFRE HPI M'!F238,IF(OR($D$71=$B$38,$D$71=$B$39),'Offre HPI - CAELIA'!F259,IF($D$71=$B$51,'Offre Strateo'!F179,IF($D$71=$B$40,'Offre S Compact - ERIA FIT IN'!F91,IF(OR($D$71=$B$36,$D$71=$B$37),'Offre SV200 - ERIA N DUO '!F116,IF(OR($D$71=$B$34,$D$71=$B$35),'Offre Alezio S - ERIA '!F176,IF(OR($D$71=$B$50,$D$71=$B$49),'Offre GSHP'!F222,IF($D$71="",'Offre Alezio G hybrid'!F205,IF(OR($D$71=$B$45,$D$71=$B$46,$D$71=$B$47,$D$71=$B$48),'Offre HPI - G Hybrid'!F240,IF(OR($D$71=$B$41,$D$71=$B$42,$D$71=$B$43,$D$71=$B$44),'Offre Alezio O Hybrid'!F242,"")))))))))) ->  | K113: =Chiffrage!M127 -> 0
A114: 13 | C114: =IF($D$71=$B$52,'OFFRE HPI M'!B239,IF(OR($D$71=$B$38,$D$71=$B$39),'Offre HPI - CAELIA'!B260,IF($D$71=$B$51,'Offre Strateo'!B180,IF($D$71=$B$40,'Offre S Compact - ERIA FIT IN'!B92,IF(OR($D$71=$B$36,$D$71=$B$37),'Offre SV200 - ERIA N DUO '!B117,IF(OR($D$71=$B$34,$D$71=$B$35),'Offre Alezio S - ERIA '!B177,IF(OR($D$71=$B$49,$D$71=$B$50),'Offre GSHP'!B223,IF($D$71="",'Offre Alezio G hybrid'!B206,IF(OR($D$71=$B$45,$D$71=$B$46,$D$71=$B$47,$D$71=$B$48),'Offre HPI - G Hybrid'!B241,IF(OR($D$71=$B$41,$D$71=$B$42,$D$71=$B$43,$D$71=$B$44),'Offre Alezio O Hybrid'!B243,"")))))))))) ->  | D114: =IF($D$71=$B$52,'OFFRE HPI M'!C239,IF(OR($D$71=$B$38,$D$71=$B$39),'Offre HPI - CAELIA'!C260,IF($D$71=$B$51,'Offre Strateo'!C180,IF($D$71=$B$40,'Offre S Compact - ERIA FIT IN'!C92,IF(OR($D$71=$B$36,$D$71=$B$37),'Offre SV200 - ERIA N DUO '!C117,IF(OR($D$71=$B$34,$D$71=$B$35),'Offre Alezio S - ERIA '!C177,IF(OR($D$71=$B$49,$D$71=$B$50),'Offre GSHP'!C223,IF($D$71="",'Offre Alezio G hybrid'!C206,IF(OR($D$71=$B$45,$D$71=$B$46,$D$71=$B$47,$D$71=$B$48),'Offre HPI - G Hybrid'!C241,IF(OR($D$71=$B$41,$D$71=$B$42,$D$71=$B$43,$D$71=$B$44),'Offre Alezio O Hybrid'!C243,"")))))))))) ->  | H114: =IF($D$71=$B$52,'OFFRE HPI M'!D239,IF(OR($D$71=$B$38,$D$71=$B$39),'Offre HPI - CAELIA'!D260,IF($D$71=$B$51,'Offre Strateo'!D180,IF($D$71=$B$40,'Offre S Compact - ERIA FIT IN'!D92,IF(OR($D$71=$B$36,$D$71=$B$37),'Offre SV200 - ERIA N DUO '!D117,IF(OR($D$71=$B$34,$D$71=$B$35),'Offre Alezio S - ERIA '!D177,IF(OR($D$71=$B$50,$D$71=$B$49),'Offre GSHP'!D223,IF($D$71="",'Offre Alezio G hybrid'!D206,IF(OR($D$71=$B$45,$D$71=$B$46,$D$71=$B$47,$D$71=$B$48),'Offre HPI - G Hybrid'!D241,IF(OR($D$71=$B$41,$D$71=$B$42,$D$71=$B$43,$D$71=$B$44),'Offre Alezio O Hybrid'!D243,"")))))))))) ->  | I114: =IF($D$71=$B$52,'OFFRE HPI M'!E239,IF(OR($D$71=$B$38,$D$71=$B$39),'Offre HPI - CAELIA'!E260,IF($D$71=$B$51,'Offre Strateo'!E180,IF($D$71=$B$40,'Offre S Compact - ERIA FIT IN'!E92,IF(OR($D$71=$B$36,$D$71=$B$37),'Offre SV200 - ERIA N DUO '!E117,IF(OR($D$71=$B$34,$D$71=$B$35),'Offre Alezio S - ERIA '!E177,IF(OR($D$71=$B$50,$D$71=$B$49),'Offre GSHP'!E223,IF($D$71="",'Offre Alezio G hybrid'!E206,IF(OR($D$71=$B$45,$D$71=$B$46,$D$71=$B$47,$D$71=$B$48),'Offre HPI - G Hybrid'!E241,IF(OR($D$71=$B$41,$D$71=$B$42,$D$71=$B$43,$D$71=$B$44),'Offre Alezio O Hybrid'!E243,"")))))))))) ->  | J114: =IF($D$71=$B$52,'OFFRE HPI M'!F239,IF(OR($D$71=$B$38,$D$71=$B$39),'Offre HPI - CAELIA'!F260,IF($D$71=$B$51,'Offre Strateo'!F180,IF($D$71=$B$40,'Offre S Compact - ERIA FIT IN'!F92,IF(OR($D$71=$B$36,$D$71=$B$37),'Offre SV200 - ERIA N DUO '!F117,IF(OR($D$71=$B$34,$D$71=$B$35),'Offre Alezio S - ERIA '!F177,IF(OR($D$71=$B$50,$D$71=$B$49),'Offre GSHP'!F223,IF($D$71="",'Offre Alezio G hybrid'!F206,IF(OR($D$71=$B$45,$D$71=$B$46,$D$71=$B$47,$D$71=$B$48),'Offre HPI - G Hybrid'!F241,IF(OR($D$71=$B$41,$D$71=$B$42,$D$71=$B$43,$D$71=$B$44),'Offre Alezio O Hybrid'!F243,"")))))))))) ->  | K114: =Chiffrage!M128 -> 0
A115: 14 | C115: =IF($D$71=$B$52,'OFFRE HPI M'!B240,IF(OR($D$71=$B$38,$D$71=$B$39),'Offre HPI - CAELIA'!B261,IF($D$71=$B$51,'Offre Strateo'!B181,IF($D$71=$B$40,'Offre S Compact - ERIA FIT IN'!B93,IF(OR($D$71=$B$36,$D$71=$B$37),'Offre SV200 - ERIA N DUO '!B118,IF(OR($D$71=$B$34,$D$71=$B$35),'Offre Alezio S - ERIA '!B178,IF(OR($D$71=$B$49,$D$71=$B$50),'Offre GSHP'!B224,IF($D$71="",'Offre Alezio G hybrid'!B207,IF(OR($D$71=$B$45,$D$71=$B$46,$D$71=$B$47,$D$71=$B$48),'Offre HPI - G Hybrid'!B242,IF(OR($D$71=$B$41,$D$71=$B$42,$D$71=$B$43,$D$71=$B$44),'Offre Alezio O Hybrid'!B244,"")))))))))) ->  | D115: =IF($D$71=$B$52,'OFFRE HPI M'!C240,IF(OR($D$71=$B$38,$D$71=$B$39),'Offre HPI - CAELIA'!C261,IF($D$71=$B$51,'Offre Strateo'!C181,IF($D$71=$B$40,'Offre S Compact - ERIA FIT IN'!C93,IF(OR($D$71=$B$36,$D$71=$B$37),'Offre SV200 - ERIA N DUO '!C118,IF(OR($D$71=$B$34,$D$71=$B$35),'Offre Alezio S - ERIA '!C178,IF(OR($D$71=$B$49,$D$71=$B$50),'Offre GSHP'!C224,IF($D$71="",'Offre Alezio G hybrid'!C207,IF(OR($D$71=$B$45,$D$71=$B$46,$D$71=$B$47,$D$71=$B$48),'Offre HPI - G Hybrid'!C242,IF(OR($D$71=$B$41,$D$71=$B$42,$D$71=$B$43,$D$71=$B$44),'Offre Alezio O Hybrid'!C244,"")))))))))) -> Liaison hydraulique & Ballon tampon | H115: =IF($D$71=$B$52,'OFFRE HPI M'!D240,IF(OR($D$71=$B$38,$D$71=$B$39),'Offre HPI - CAELIA'!D261,IF($D$71=$B$51,'Offre Strateo'!D181,IF($D$71=$B$40,'Offre S Compact - ERIA FIT IN'!D93,IF(OR($D$71=$B$36,$D$71=$B$37),'Offre SV200 - ERIA N DUO '!D118,IF(OR($D$71=$B$34,$D$71=$B$35),'Offre Alezio S - ERIA '!D178,IF(OR($D$71=$B$50,$D$71=$B$49),'Offre GSHP'!D224,IF($D$71="",'Offre Alezio G hybrid'!D207,IF(OR($D$71=$B$45,$D$71=$B$46,$D$71=$B$47,$D$71=$B$48),'Offre HPI - G Hybrid'!D242,IF(OR($D$71=$B$41,$D$71=$B$42,$D$71=$B$43,$D$71=$B$44),'Offre Alezio O Hybrid'!D244,"")))))))))) ->  | I115: =IF($D$71=$B$52,'OFFRE HPI M'!E240,IF(OR($D$71=$B$38,$D$71=$B$39),'Offre HPI - CAELIA'!E261,IF($D$71=$B$51,'Offre Strateo'!E181,IF($D$71=$B$40,'Offre S Compact - ERIA FIT IN'!E93,IF(OR($D$71=$B$36,$D$71=$B$37),'Offre SV200 - ERIA N DUO '!E118,IF(OR($D$71=$B$34,$D$71=$B$35),'Offre Alezio S - ERIA '!E178,IF(OR($D$71=$B$50,$D$71=$B$49),'Offre GSHP'!E224,IF($D$71="",'Offre Alezio G hybrid'!E207,IF(OR($D$71=$B$45,$D$71=$B$46,$D$71=$B$47,$D$71=$B$48),'Offre HPI - G Hybrid'!E242,IF(OR($D$71=$B$41,$D$71=$B$42,$D$71=$B$43,$D$71=$B$44),'Offre Alezio O Hybrid'!E244,"")))))))))) ->  | J115: =IF($D$71=$B$52,'OFFRE HPI M'!F240,IF(OR($D$71=$B$38,$D$71=$B$39),'Offre HPI - CAELIA'!F261,IF($D$71=$B$51,'Offre Strateo'!F181,IF($D$71=$B$40,'Offre S Compact - ERIA FIT IN'!F93,IF(OR($D$71=$B$36,$D$71=$B$37),'Offre SV200 - ERIA N DUO '!F118,IF(OR($D$71=$B$34,$D$71=$B$35),'Offre Alezio S - ERIA '!F178,IF(OR($D$71=$B$50,$D$71=$B$49),'Offre GSHP'!F224,IF($D$71="",'Offre Alezio G hybrid'!F207,IF(OR($D$71=$B$45,$D$71=$B$46,$D$71=$B$47,$D$71=$B$48),'Offre HPI - G Hybrid'!F242,IF(OR($D$71=$B$41,$D$71=$B$42,$D$71=$B$43,$D$71=$B$44),'Offre Alezio O Hybrid'!F244,"")))))))))) ->  | K115: =Chiffrage!M129 -> 0
A116: 15 | C116: =IF($D$71=$B$52,'OFFRE HPI M'!B241,IF(OR($D$71=$B$38,$D$71=$B$39),'Offre HPI - CAELIA'!B262,IF($D$71=$B$51,'Offre Strateo'!B182,IF($D$71=$B$40,'Offre S Compact - ERIA FIT IN'!B94,IF(OR($D$71=$B$36,$D$71=$B$37),'Offre SV200 - ERIA N DUO '!B119,IF(OR($D$71=$B$34,$D$71=$B$35),'Offre Alezio S - ERIA '!B179,IF(OR($D$71=$B$49,$D$71=$B$50),'Offre GSHP'!B225,IF($D$71="",'Offre Alezio G hybrid'!B208,IF(OR($D$71=$B$45,$D$71=$B$46,$D$71=$B$47,$D$71=$B$48),'Offre HPI - G Hybrid'!B243,IF(OR($D$71=$B$41,$D$71=$B$42,$D$71=$B$43,$D$71=$B$44),'Offre Alezio O Hybrid'!B245,"")))))))))) -> 100001369 | D116: =IF($D$71=$B$52,'OFFRE HPI M'!C241,IF(OR($D$71=$B$38,$D$71=$B$39),'Offre HPI - CAELIA'!C262,IF($D$71=$B$51,'Offre Strateo'!C182,IF($D$71=$B$40,'Offre S Compact - ERIA FIT IN'!C94,IF(OR($D$71=$B$36,$D$71=$B$37),'Offre SV200 - ERIA N DUO '!C119,IF(OR($D$71=$B$34,$D$71=$B$35),'Offre Alezio S - ERIA '!C179,IF(OR($D$71=$B$49,$D$71=$B$50),'Offre GSHP'!C225,IF($D$71="",'Offre Alezio G hybrid'!C208,IF(OR($D$71=$B$45,$D$71=$B$46,$D$71=$B$47,$D$71=$B$48),'Offre HPI - G Hybrid'!C243,IF(OR($D$71=$B$41,$D$71=$B$42,$D$71=$B$43,$D$71=$B$44),'Offre Alezio O Hybrid'!C245,"")))))))))) -> KIT LIAISON HYDRAULIQUE 1M | H116: =IF($D$71=$B$52,'OFFRE HPI M'!D241,IF(OR($D$71=$B$38,$D$71=$B$39),'Offre HPI - CAELIA'!D262,IF($D$71=$B$51,'Offre Strateo'!D182,IF($D$71=$B$40,'Offre S Compact - ERIA FIT IN'!D94,IF(OR($D$71=$B$36,$D$71=$B$37),'Offre SV200 - ERIA N DUO '!D119,IF(OR($D$71=$B$34,$D$71=$B$35),'Offre Alezio S - ERIA '!D179,IF(OR($D$71=$B$50,$D$71=$B$49),'Offre GSHP'!D225,IF($D$71="",'Offre Alezio G hybrid'!D208,IF(OR($D$71=$B$45,$D$71=$B$46,$D$71=$B$47,$D$71=$B$48),'Offre HPI - G Hybrid'!D243,IF(OR($D$71=$B$41,$D$71=$B$42,$D$71=$B$43,$D$71=$B$44),'Offre Alezio O Hybrid'!D245,"")))))))))) -> EH19 | I116: =IF($D$71=$B$52,'OFFRE HPI M'!E241,IF(OR($D$71=$B$38,$D$71=$B$39),'Offre HPI - CAELIA'!E262,IF($D$71=$B$51,'Offre Strateo'!E182,IF($D$71=$B$40,'Offre S Compact - ERIA FIT IN'!E94,IF(OR($D$71=$B$36,$D$71=$B$37),'Offre SV200 - ERIA N DUO '!E119,IF(OR($D$71=$B$34,$D$71=$B$35),'Offre Alezio S - ERIA '!E179,IF(OR($D$71=$B$50,$D$71=$B$49),'Offre GSHP'!E225,IF($D$71="",'Offre Alezio G hybrid'!E208,IF(OR($D$71=$B$45,$D$71=$B$46,$D$71=$B$47,$D$71=$B$48),'Offre HPI - G Hybrid'!E243,IF(OR($D$71=$B$41,$D$71=$B$42,$D$71=$B$43,$D$71=$B$44),'Offre Alezio O Hybrid'!E245,"")))))))))) -> 48 | J116: =IF($D$71=$B$52,'OFFRE HPI M'!F241,IF(OR($D$71=$B$38,$D$71=$B$39),'Offre HPI - CAELIA'!F262,IF($D$71=$B$51,'Offre Strateo'!F182,IF($D$71=$B$40,'Offre S Compact - ERIA FIT IN'!F94,IF(OR($D$71=$B$36,$D$71=$B$37),'Offre SV200 - ERIA N DUO '!F119,IF(OR($D$71=$B$34,$D$71=$B$35),'Offre Alezio S - ERIA '!F179,IF(OR($D$71=$B$50,$D$71=$B$49),'Offre GSHP'!F225,IF($D$71="",'Offre Alezio G hybrid'!F208,IF(OR($D$71=$B$45,$D$71=$B$46,$D$71=$B$47,$D$71=$B$48),'Offre HPI - G Hybrid'!F243,IF(OR($D$71=$B$41,$D$71=$B$42,$D$71=$B$43,$D$71=$B$44),'Offre Alezio O Hybrid'!F245,"")))))))))) -> 1 | K116: =Chiffrage!M130 -> 0 | L116: 48
A117: 16 | C117: =IF($D$71=$B$52,'OFFRE HPI M'!B242,IF(OR($D$71=$B$38,$D$71=$B$39),'Offre HPI - CAELIA'!B263,IF($D$71=$B$51,'Offre Strateo'!B183,IF($D$71=$B$40,'Offre S Compact - ERIA FIT IN'!B95,IF(OR($D$71=$B$36,$D$71=$B$37),'Offre SV200 - ERIA N DUO '!B120,IF(OR($D$71=$B$34,$D$71=$B$35),'Offre Alezio S - ERIA '!B180,IF(OR($D$71=$B$49,$D$71=$B$50),'Offre GSHP'!B226,IF($D$71="",'Offre Alezio G hybrid'!B209,IF(OR($D$71=$B$45,$D$71=$B$46,$D$71=$B$47,$D$71=$B$48),'Offre HPI - G Hybrid'!B244,IF(OR($D$71=$B$41,$D$71=$B$42,$D$71=$B$43,$D$71=$B$44),'Offre Alezio O Hybrid'!B246,"")))))))))) -> 100008841 | D117: =IF($D$71=$B$52,'OFFRE HPI M'!C242,IF(OR($D$71=$B$38,$D$71=$B$39),'Offre HPI - CAELIA'!C263,IF($D$71=$B$51,'Offre Strateo'!C183,IF($D$71=$B$40,'Offre S Compact - ERIA FIT IN'!C95,IF(OR($D$71=$B$36,$D$71=$B$37),'Offre SV200 - ERIA N DUO '!C120,IF(OR($D$71=$B$34,$D$71=$B$35),'Offre Alezio S - ERIA '!C180,IF(OR($D$71=$B$49,$D$71=$B$50),'Offre GSHP'!C226,IF($D$71="",'Offre Alezio G hybrid'!C209,IF(OR($D$71=$B$45,$D$71=$B$46,$D$71=$B$47,$D$71=$B$48),'Offre HPI - G Hybrid'!C244,IF(OR($D$71=$B$41,$D$71=$B$42,$D$71=$B$43,$D$71=$B$44),'Offre Alezio O Hybrid'!C246,"")))))))))) -> BALLON TAMPON 80L B 80 T | H117: =IF($D$71=$B$52,'OFFRE HPI M'!D242,IF(OR($D$71=$B$38,$D$71=$B$39),'Offre HPI - CAELIA'!D263,IF($D$71=$B$51,'Offre Strateo'!D183,IF($D$71=$B$40,'Offre S Compact - ERIA FIT IN'!D95,IF(OR($D$71=$B$36,$D$71=$B$37),'Offre SV200 - ERIA N DUO '!D120,IF(OR($D$71=$B$34,$D$71=$B$35),'Offre Alezio S - ERIA '!D180,IF(OR($D$71=$B$50,$D$71=$B$49),'Offre GSHP'!D226,IF($D$71="",'Offre Alezio G hybrid'!D209,IF(OR($D$71=$B$45,$D$71=$B$46,$D$71=$B$47,$D$71=$B$48),'Offre HPI - G Hybrid'!D244,IF(OR($D$71=$B$41,$D$71=$B$42,$D$71=$B$43,$D$71=$B$44),'Offre Alezio O Hybrid'!D246,"")))))))))) -> EH85 | I117: =IF($D$71=$B$52,'OFFRE HPI M'!E242,IF(OR($D$71=$B$38,$D$71=$B$39),'Offre HPI - CAELIA'!E263,IF($D$71=$B$51,'Offre Strateo'!E183,IF($D$71=$B$40,'Offre S Compact - ERIA FIT IN'!E95,IF(OR($D$71=$B$36,$D$71=$B$37),'Offre SV200 - ERIA N DUO '!E120,IF(OR($D$71=$B$34,$D$71=$B$35),'Offre Alezio S - ERIA '!E180,IF(OR($D$71=$B$50,$D$71=$B$49),'Offre GSHP'!E226,IF($D$71="",'Offre Alezio G hybrid'!E209,IF(OR($D$71=$B$45,$D$71=$B$46,$D$71=$B$47,$D$71=$B$48),'Offre HPI - G Hybrid'!E244,IF(OR($D$71=$B$41,$D$71=$B$42,$D$71=$B$43,$D$71=$B$44),'Offre Alezio O Hybrid'!E246,"")))))))))) -> 572 | J117: =IF($D$71=$B$52,'OFFRE HPI M'!F242,IF(OR($D$71=$B$38,$D$71=$B$39),'Offre HPI - CAELIA'!F263,IF($D$71=$B$51,'Offre Strateo'!F183,IF($D$71=$B$40,'Offre S Compact - ERIA FIT IN'!F95,IF(OR($D$71=$B$36,$D$71=$B$37),'Offre SV200 - ERIA N DUO '!F120,IF(OR($D$71=$B$34,$D$71=$B$35),'Offre Alezio S - ERIA '!F180,IF(OR($D$71=$B$50,$D$71=$B$49),'Offre GSHP'!F226,IF($D$71="",'Offre Alezio G hybrid'!F209,IF(OR($D$71=$B$45,$D$71=$B$46,$D$71=$B$47,$D$71=$B$48),'Offre HPI - G Hybrid'!F244,IF(OR($D$71=$B$41,$D$71=$B$42,$D$71=$B$43,$D$71=$B$44),'Offre Alezio O Hybrid'!F246,"")))))))))) -> 1 | K117: =Chiffrage!M131 -> 0 | L117: 572
A118: 17 | C118: =IF($D$71=$B$52,'OFFRE HPI M'!B243,IF(OR($D$71=$B$38,$D$71=$B$39),'Offre HPI - CAELIA'!B264,IF($D$71=$B$51,'Offre Strateo'!B184,IF($D$71=$B$40,'Offre S Compact - ERIA FIT IN'!B96,IF(OR($D$71=$B$36,$D$71=$B$37),'Offre SV200 - ERIA N DUO '!B121,IF(OR($D$71=$B$34,$D$71=$B$35),'Offre Alezio S - ERIA '!B181,IF(OR($D$71=$B$49,$D$71=$B$50),'Offre GSHP'!B227,IF($D$71="",'Offre Alezio G hybrid'!B210,IF(OR($D$71=$B$45,$D$71=$B$46,$D$71=$B$47,$D$71=$B$48),'Offre HPI - G Hybrid'!B245,IF(OR($D$71=$B$41,$D$71=$B$42,$D$71=$B$43,$D$71=$B$44),'Offre Alezio O Hybrid'!B247,"")))))))))) -> 100004415 | D118: =IF($D$71=$B$52,'OFFRE HPI M'!C243,IF(OR($D$71=$B$38,$D$71=$B$39),'Offre HPI - CAELIA'!C264,IF($D$71=$B$51,'Offre Strateo'!C184,IF($D$71=$B$40,'Offre S Compact - ERIA FIT IN'!C96,IF(OR($D$71=$B$36,$D$71=$B$37),'Offre SV200 - ERIA N DUO '!C121,IF(OR($D$71=$B$34,$D$71=$B$35),'Offre Alezio S - ERIA '!C181,IF(OR($D$71=$B$49,$D$71=$B$50),'Offre GSHP'!C227,IF($D$71="",'Offre Alezio G hybrid'!C210,IF(OR($D$71=$B$45,$D$71=$B$46,$D$71=$B$47,$D$71=$B$48),'Offre HPI - G Hybrid'!C245,IF(OR($D$71=$B$41,$D$71=$B$42,$D$71=$B$43,$D$71=$B$44),'Offre Alezio O Hybrid'!C247,"")))))))))) -> BALLON TAMPON 160L B 150 T | H118: =IF($D$71=$B$52,'OFFRE HPI M'!D243,IF(OR($D$71=$B$38,$D$71=$B$39),'Offre HPI - CAELIA'!D264,IF($D$71=$B$51,'Offre Strateo'!D184,IF($D$71=$B$40,'Offre S Compact - ERIA FIT IN'!D96,IF(OR($D$71=$B$36,$D$71=$B$37),'Offre SV200 - ERIA N DUO '!D121,IF(OR($D$71=$B$34,$D$71=$B$35),'Offre Alezio S - ERIA '!D181,IF(OR($D$71=$B$50,$D$71=$B$49),'Offre GSHP'!D227,IF($D$71="",'Offre Alezio G hybrid'!D210,IF(OR($D$71=$B$45,$D$71=$B$46,$D$71=$B$47,$D$71=$B$48),'Offre HPI - G Hybrid'!D245,IF(OR($D$71=$B$41,$D$71=$B$42,$D$71=$B$43,$D$71=$B$44),'Offre Alezio O Hybrid'!D247,"")))))))))) -> EH60 | I118: =IF($D$71=$B$52,'OFFRE HPI M'!E243,IF(OR($D$71=$B$38,$D$71=$B$39),'Offre HPI - CAELIA'!E264,IF($D$71=$B$51,'Offre Strateo'!E184,IF($D$71=$B$40,'Offre S Compact - ERIA FIT IN'!E96,IF(OR($D$71=$B$36,$D$71=$B$37),'Offre SV200 - ERIA N DUO '!E121,IF(OR($D$71=$B$34,$D$71=$B$35),'Offre Alezio S - ERIA '!E181,IF(OR($D$71=$B$50,$D$71=$B$49),'Offre GSHP'!E227,IF($D$71="",'Offre Alezio G hybrid'!E210,IF(OR($D$71=$B$45,$D$71=$B$46,$D$71=$B$47,$D$71=$B$48),'Offre HPI - G Hybrid'!E245,IF(OR($D$71=$B$41,$D$71=$B$42,$D$71=$B$43,$D$71=$B$44),'Offre Alezio O Hybrid'!E247,"")))))))))) -> 857 | J118: =IF($D$71=$B$52,'OFFRE HPI M'!F243,IF(OR($D$71=$B$38,$D$71=$B$39),'Offre HPI - CAELIA'!F264,IF($D$71=$B$51,'Offre Strateo'!F184,IF($D$71=$B$40,'Offre S Compact - ERIA FIT IN'!F96,IF(OR($D$71=$B$36,$D$71=$B$37),'Offre SV200 - ERIA N DUO '!F121,IF(OR($D$71=$B$34,$D$71=$B$35),'Offre Alezio S - ERIA '!F181,IF(OR($D$71=$B$50,$D$71=$B$49),'Offre GSHP'!F227,IF($D$71="",'Offre Alezio G hybrid'!F210,IF(OR($D$71=$B$45,$D$71=$B$46,$D$71=$B$47,$D$71=$B$48),'Offre HPI - G Hybrid'!F245,IF(OR($D$71=$B$41,$D$71=$B$42,$D$71=$B$43,$D$71=$B$44),'Offre Alezio O Hybrid'!F247,"")))))))))) ->  | K118: =Chiffrage!M132 -> 0
A119: 18 | C119: =IF($D$71=$B$52,'OFFRE HPI M'!B244,IF(OR($D$71=$B$38,$D$71=$B$39),'Offre HPI - CAELIA'!B265,IF($D$71=$B$51,'Offre Strateo'!B185,IF($D$71=$B$40,'Offre S Compact - ERIA FIT IN'!B97,IF(OR($D$71=$B$36,$D$71=$B$37),'Offre SV200 - ERIA N DUO '!B122,IF(OR($D$71=$B$34,$D$71=$B$35),'Offre Alezio S - ERIA '!B182,IF(OR($D$71=$B$49,$D$71=$B$50),'Offre GSHP'!B228,IF($D$71="",'Offre Alezio G hybrid'!B211,IF(OR($D$71=$B$45,$D$71=$B$46,$D$71=$B$47,$D$71=$B$48),'Offre HPI - G Hybrid'!B246,IF(OR($D$71=$B$41,$D$71=$B$42,$D$71=$B$43,$D$71=$B$44),'Offre Alezio O Hybrid'!B248,"")))))))))) ->  | D119: =IF($D$71=$B$52,'OFFRE HPI M'!C244,IF(OR($D$71=$B$38,$D$71=$B$39),'Offre HPI - CAELIA'!C265,IF($D$71=$B$51,'Offre Strateo'!C185,IF($D$71=$B$40,'Offre S Compact - ERIA FIT IN'!C97,IF(OR($D$71=$B$36,$D$71=$B$37),'Offre SV200 - ERIA N DUO '!C122,IF(OR($D$71=$B$34,$D$71=$B$35),'Offre Alezio S - ERIA '!C182,IF(OR($D$71=$B$49,$D$71=$B$50),'Offre GSHP'!C228,IF($D$71="",'Offre Alezio G hybrid'!C211,IF(OR($D$71=$B$45,$D$71=$B$46,$D$71=$B$47,$D$71=$B$48),'Offre HPI - G Hybrid'!C246,IF(OR($D$71=$B$41,$D$71=$B$42,$D$71=$B$43,$D$71=$B$44),'Offre Alezio O Hybrid'!C248,"")))))))))) ->  | H119: =IF($D$71=$B$52,'OFFRE HPI M'!D244,IF(OR($D$71=$B$38,$D$71=$B$39),'Offre HPI - CAELIA'!D265,IF($D$71=$B$51,'Offre Strateo'!D185,IF($D$71=$B$40,'Offre S Compact - ERIA FIT IN'!D97,IF(OR($D$71=$B$36,$D$71=$B$37),'Offre SV200 - ERIA N DUO '!D122,IF(OR($D$71=$B$34,$D$71=$B$35),'Offre Alezio S - ERIA '!D182,IF(OR($D$71=$B$50,$D$71=$B$49),'Offre GSHP'!D228,IF($D$71="",'Offre Alezio G hybrid'!D211,IF(OR($D$71=$B$45,$D$71=$B$46,$D$71=$B$47,$D$71=$B$48),'Offre HPI - G Hybrid'!D246,IF(OR($D$71=$B$41,$D$71=$B$42,$D$71=$B$43,$D$71=$B$44),'Offre Alezio O Hybrid'!D248,"")))))))))) ->  | I119: =IF($D$71=$B$52,'OFFRE HPI M'!E244,IF(OR($D$71=$B$38,$D$71=$B$39),'Offre HPI - CAELIA'!E265,IF($D$71=$B$51,'Offre Strateo'!E185,IF($D$71=$B$40,'Offre S Compact - ERIA FIT IN'!E97,IF(OR($D$71=$B$36,$D$71=$B$37),'Offre SV200 - ERIA N DUO '!E122,IF(OR($D$71=$B$34,$D$71=$B$35),'Offre Alezio S - ERIA '!E182,IF(OR($D$71=$B$50,$D$71=$B$49),'Offre GSHP'!E228,IF($D$71="",'Offre Alezio G hybrid'!E211,IF(OR($D$71=$B$45,$D$71=$B$46,$D$71=$B$47,$D$71=$B$48),'Offre HPI - G Hybrid'!E246,IF(OR($D$71=$B$41,$D$71=$B$42,$D$71=$B$43,$D$71=$B$44),'Offre Alezio O Hybrid'!E248,"")))))))))) ->  | J119: =IF($D$71=$B$52,'OFFRE HPI M'!F244,IF(OR($D$71=$B$38,$D$71=$B$39),'Offre HPI - CAELIA'!F265,IF($D$71=$B$51,'Offre Strateo'!F185,IF($D$71=$B$40,'Offre S Compact - ERIA FIT IN'!F97,IF(OR($D$71=$B$36,$D$71=$B$37),'Offre SV200 - ERIA N DUO '!F122,IF(OR($D$71=$B$34,$D$71=$B$35),'Offre Alezio S - ERIA '!F182,IF(OR($D$71=$B$50,$D$71=$B$49),'Offre GSHP'!F228,IF($D$71="",'Offre Alezio G hybrid'!F211,IF(OR($D$71=$B$45,$D$71=$B$46,$D$71=$B$47,$D$71=$B$48),'Offre HPI - G Hybrid'!F246,IF(OR($D$71=$B$41,$D$71=$B$42,$D$71=$B$43,$D$71=$B$44),'Offre Alezio O Hybrid'!F248,"")))))))))) ->  | K119: =Chiffrage!M133 -> 0
A120: 19 | C120: =IF($D$71=$B$52,'OFFRE HPI M'!B245,IF(OR($D$71=$B$38,$D$71=$B$39),'Offre HPI - CAELIA'!B266,IF($D$71=$B$51,'Offre Strateo'!B186,IF($D$71=$B$40,'Offre S Compact - ERIA FIT IN'!B98,IF(OR($D$71=$B$36,$D$71=$B$37),'Offre SV200 - ERIA N DUO '!B123,IF(OR($D$71=$B$34,$D$71=$B$35),'Offre Alezio S - ERIA '!B183,IF(OR($D$71=$B$49,$D$71=$B$50),'Offre GSHP'!B229,IF($D$71="",'Offre Alezio G hybrid'!B212,IF(OR($D$71=$B$45,$D$71=$B$46,$D$71=$B$47,$D$71=$B$48),'Offre HPI - G Hybrid'!B247,IF(OR($D$71=$B$41,$D$71=$B$42,$D$71=$B$43,$D$71=$B$44),'Offre Alezio O Hybrid'!B249,"")))))))))) ->  | D120: =IF($D$71=$B$52,'OFFRE HPI M'!C245,IF(OR($D$71=$B$38,$D$71=$B$39),'Offre HPI - CAELIA'!C266,IF($D$71=$B$51,'Offre Strateo'!C186,IF($D$71=$B$40,'Offre S Compact - ERIA FIT IN'!C98,IF(OR($D$71=$B$36,$D$71=$B$37),'Offre SV200 - ERIA N DUO '!C123,IF(OR($D$71=$B$34,$D$71=$B$35),'Offre Alezio S - ERIA '!C183,IF(OR($D$71=$B$49,$D$71=$B$50),'Offre GSHP'!C229,IF($D$71="",'Offre Alezio G hybrid'!C212,IF(OR($D$71=$B$45,$D$71=$B$46,$D$71=$B$47,$D$71=$B$48),'Offre HPI - G Hybrid'!C247,IF(OR($D$71=$B$41,$D$71=$B$42,$D$71=$B$43,$D$71=$B$44),'Offre Alezio O Hybrid'!C249,"")))))))))) -> Accessoires de raccordement hydraulique | H120: =IF($D$71=$B$52,'OFFRE HPI M'!D245,IF(OR($D$71=$B$38,$D$71=$B$39),'Offre HPI - CAELIA'!D266,IF($D$71=$B$51,'Offre Strateo'!D186,IF($D$71=$B$40,'Offre S Compact - ERIA FIT IN'!D98,IF(OR($D$71=$B$36,$D$71=$B$37),'Offre SV200 - ERIA N DUO '!D123,IF(OR($D$71=$B$34,$D$71=$B$35),'Offre Alezio S - ERIA '!D183,IF(OR($D$71=$B$50,$D$71=$B$49),'Offre GSHP'!D229,IF($D$71="",'Offre Alezio G hybrid'!D212,IF(OR($D$71=$B$45,$D$71=$B$46,$D$71=$B$47,$D$71=$B$48),'Offre HPI - G Hybrid'!D247,IF(OR($D$71=$B$41,$D$71=$B$42,$D$71=$B$43,$D$71=$B$44),'Offre Alezio O Hybrid'!D249,"")))))))))) ->  | I120: =IF($D$71=$B$52,'OFFRE HPI M'!E245,IF(OR($D$71=$B$38,$D$71=$B$39),'Offre HPI - CAELIA'!E266,IF($D$71=$B$51,'Offre Strateo'!E186,IF($D$71=$B$40,'Offre S Compact - ERIA FIT IN'!E98,IF(OR($D$71=$B$36,$D$71=$B$37),'Offre SV200 - ERIA N DUO '!E123,IF(OR($D$71=$B$34,$D$71=$B$35),'Offre Alezio S - ERIA '!E183,IF(OR($D$71=$B$50,$D$71=$B$49),'Offre GSHP'!E229,IF($D$71="",'Offre Alezio G hybrid'!E212,IF(OR($D$71=$B$45,$D$71=$B$46,$D$71=$B$47,$D$71=$B$48),'Offre HPI - G Hybrid'!E247,IF(OR($D$71=$B$41,$D$71=$B$42,$D$71=$B$43,$D$71=$B$44),'Offre Alezio O Hybrid'!E249,"")))))))))) ->  | J120: =IF($D$71=$B$52,'OFFRE HPI M'!F245,IF(OR($D$71=$B$38,$D$71=$B$39),'Offre HPI - CAELIA'!F266,IF($D$71=$B$51,'Offre Strateo'!F186,IF($D$71=$B$40,'Offre S Compact - ERIA FIT IN'!F98,IF(OR($D$71=$B$36,$D$71=$B$37),'Offre SV200 - ERIA N DUO '!F123,IF(OR($D$71=$B$34,$D$71=$B$35),'Offre Alezio S - ERIA '!F183,IF(OR($D$71=$B$50,$D$71=$B$49),'Offre GSHP'!F229,IF($D$71="",'Offre Alezio G hybrid'!F212,IF(OR($D$71=$B$45,$D$71=$B$46,$D$71=$B$47,$D$71=$B$48),'Offre HPI - G Hybrid'!F247,IF(OR($D$71=$B$41,$D$71=$B$42,$D$71=$B$43,$D$71=$B$44),'Offre Alezio O Hybrid'!F249,"")))))))))) ->  | K120: =Chiffrage!M134 -> 0
A121: 20 | C121: =IF($D$71=$B$52,'OFFRE HPI M'!B246,IF(OR($D$71=$B$38,$D$71=$B$39),'Offre HPI - CAELIA'!B267,IF($D$71=$B$51,'Offre Strateo'!B187,IF($D$71=$B$40,'Offre S Compact - ERIA FIT IN'!B99,IF(OR($D$71=$B$36,$D$71=$B$37),'Offre SV200 - ERIA N DUO '!B124,IF(OR($D$71=$B$34,$D$71=$B$35),'Offre Alezio S - ERIA '!B184,IF(OR($D$71=$B$49,$D$71=$B$50),'Offre GSHP'!B230,IF($D$71="",'Offre Alezio G hybrid'!B213,IF(OR($D$71=$B$45,$D$71=$B$46,$D$71=$B$47,$D$71=$B$48),'Offre HPI - G Hybrid'!B248,IF(OR($D$71=$B$41,$D$71=$B$42,$D$71=$B$43,$D$71=$B$44),'Offre Alezio O Hybrid'!B250,"")))))))))) -> 100017830 | D121: =IF($D$71=$B$52,'OFFRE HPI M'!C246,IF(OR($D$71=$B$38,$D$71=$B$39),'Offre HPI - CAELIA'!C267,IF($D$71=$B$51,'Offre Strateo'!C187,IF($D$71=$B$40,'Offre S Compact - ERIA FIT IN'!C99,IF(OR($D$71=$B$36,$D$71=$B$37),'Offre SV200 - ERIA N DUO '!C124,IF(OR($D$71=$B$34,$D$71=$B$35),'Offre Alezio S - ERIA '!C184,IF(OR($D$71=$B$49,$D$71=$B$50),'Offre GSHP'!C230,IF($D$71="",'Offre Alezio G hybrid'!C213,IF(OR($D$71=$B$45,$D$71=$B$46,$D$71=$B$47,$D$71=$B$48),'Offre HPI - G Hybrid'!C248,IF(OR($D$71=$B$41,$D$71=$B$42,$D$71=$B$43,$D$71=$B$44),'Offre Alezio O Hybrid'!C250,"")))))))))) -> KIT VANNE 3 VOIES (CIRCUIT B) | H121: =IF($D$71=$B$52,'OFFRE HPI M'!D246,IF(OR($D$71=$B$38,$D$71=$B$39),'Offre HPI - CAELIA'!D267,IF($D$71=$B$51,'Offre Strateo'!D187,IF($D$71=$B$40,'Offre S Compact - ERIA FIT IN'!D99,IF(OR($D$71=$B$36,$D$71=$B$37),'Offre SV200 - ERIA N DUO '!D124,IF(OR($D$71=$B$34,$D$71=$B$35),'Offre Alezio S - ERIA '!D184,IF(OR($D$71=$B$50,$D$71=$B$49),'Offre GSHP'!D230,IF($D$71="",'Offre Alezio G hybrid'!D213,IF(OR($D$71=$B$45,$D$71=$B$46,$D$71=$B$47,$D$71=$B$48),'Offre HPI - G Hybrid'!D248,IF(OR($D$71=$B$41,$D$71=$B$42,$D$71=$B$43,$D$71=$B$44),'Offre Alezio O Hybrid'!D250,"")))))))))) -> HK21 | I121: =IF($D$71=$B$52,'OFFRE HPI M'!E246,IF(OR($D$71=$B$38,$D$71=$B$39),'Offre HPI - CAELIA'!E267,IF($D$71=$B$51,'Offre Strateo'!E187,IF($D$71=$B$40,'Offre S Compact - ERIA FIT IN'!E99,IF(OR($D$71=$B$36,$D$71=$B$37),'Offre SV200 - ERIA N DUO '!E124,IF(OR($D$71=$B$34,$D$71=$B$35),'Offre Alezio S - ERIA '!E184,IF(OR($D$71=$B$50,$D$71=$B$49),'Offre GSHP'!E230,IF($D$71="",'Offre Alezio G hybrid'!E213,IF(OR($D$71=$B$45,$D$71=$B$46,$D$71=$B$47,$D$71=$B$48),'Offre HPI - G Hybrid'!E248,IF(OR($D$71=$B$41,$D$71=$B$42,$D$71=$B$43,$D$71=$B$44),'Offre Alezio O Hybrid'!E250,"")))))))))) -> 732 | J121: =IF($D$71=$B$52,'OFFRE HPI M'!F246,IF(OR($D$71=$B$38,$D$71=$B$39),'Offre HPI - CAELIA'!F267,IF($D$71=$B$51,'Offre Strateo'!F187,IF($D$71=$B$40,'Offre S Compact - ERIA FIT IN'!F99,IF(OR($D$71=$B$36,$D$71=$B$37),'Offre SV200 - ERIA N DUO '!F124,IF(OR($D$71=$B$34,$D$71=$B$35),'Offre Alezio S - ERIA '!F184,IF(OR($D$71=$B$50,$D$71=$B$49),'Offre GSHP'!F230,IF($D$71="",'Offre Alezio G hybrid'!F213,IF(OR($D$71=$B$45,$D$71=$B$46,$D$71=$B$47,$D$71=$B$48),'Offre HPI - G Hybrid'!F248,IF(OR($D$71=$B$41,$D$71=$B$42,$D$71=$B$43,$D$71=$B$44),'Offre Alezio O Hybrid'!F250,"")))))))))) ->  | K121: =Chiffrage!M135 -> 0
A122: 21 | C122: =IF($D$71=$B$52,'OFFRE HPI M'!B247,IF(OR($D$71=$B$38,$D$71=$B$39),'Offre HPI - CAELIA'!B268,IF($D$71=$B$51,'Offre Strateo'!B188,IF($D$71=$B$40,'Offre S Compact - ERIA FIT IN'!B100,IF(OR($D$71=$B$36,$D$71=$B$37),'Offre SV200 - ERIA N DUO '!B125,IF(OR($D$71=$B$34,$D$71=$B$35),'Offre Alezio S - ERIA '!B185,IF(OR($D$71=$B$49,$D$71=$B$50),'Offre GSHP'!B231,IF($D$71="",'Offre Alezio G hybrid'!B214,IF(OR($D$71=$B$45,$D$71=$B$46,$D$71=$B$47,$D$71=$B$48),'Offre HPI - G Hybrid'!B249,IF(OR($D$71=$B$41,$D$71=$B$42,$D$71=$B$43,$D$71=$B$44),'Offre Alezio O Hybrid'!B251,"")))))))))) -> 100017832 | D122: =IF($D$71=$B$52,'OFFRE HPI M'!C247,IF(OR($D$71=$B$38,$D$71=$B$39),'Offre HPI - CAELIA'!C268,IF($D$71=$B$51,'Offre Strateo'!C188,IF($D$71=$B$40,'Offre S Compact - ERIA FIT IN'!C100,IF(OR($D$71=$B$36,$D$71=$B$37),'Offre SV200 - ERIA N DUO '!C125,IF(OR($D$71=$B$34,$D$71=$B$35),'Offre Alezio S - ERIA '!C185,IF(OR($D$71=$B$49,$D$71=$B$50),'Offre GSHP'!C231,IF($D$71="",'Offre Alezio G hybrid'!C214,IF(OR($D$71=$B$45,$D$71=$B$46,$D$71=$B$47,$D$71=$B$48),'Offre HPI - G Hybrid'!C249,IF(OR($D$71=$B$41,$D$71=$B$42,$D$71=$B$43,$D$71=$B$44),'Offre Alezio O Hybrid'!C251,"")))))))))) -> KIT TUBULURES 2 CIRCUITS | H122: =IF($D$71=$B$52,'OFFRE HPI M'!D247,IF(OR($D$71=$B$38,$D$71=$B$39),'Offre HPI - CAELIA'!D268,IF($D$71=$B$51,'Offre Strateo'!D188,IF($D$71=$B$40,'Offre S Compact - ERIA FIT IN'!D100,IF(OR($D$71=$B$36,$D$71=$B$37),'Offre SV200 - ERIA N DUO '!D125,IF(OR($D$71=$B$34,$D$71=$B$35),'Offre Alezio S - ERIA '!D185,IF(OR($D$71=$B$50,$D$71=$B$49),'Offre GSHP'!D231,IF($D$71="",'Offre Alezio G hybrid'!D214,IF(OR($D$71=$B$45,$D$71=$B$46,$D$71=$B$47,$D$71=$B$48),'Offre HPI - G Hybrid'!D249,IF(OR($D$71=$B$41,$D$71=$B$42,$D$71=$B$43,$D$71=$B$44),'Offre Alezio O Hybrid'!D251,"")))))))))) -> HK22 | I122: =IF($D$71=$B$52,'OFFRE HPI M'!E247,IF(OR($D$71=$B$38,$D$71=$B$39),'Offre HPI - CAELIA'!E268,IF($D$71=$B$51,'Offre Strateo'!E188,IF($D$71=$B$40,'Offre S Compact - ERIA FIT IN'!E100,IF(OR($D$71=$B$36,$D$71=$B$37),'Offre SV200 - ERIA N DUO '!E125,IF(OR($D$71=$B$34,$D$71=$B$35),'Offre Alezio S - ERIA '!E185,IF(OR($D$71=$B$50,$D$71=$B$49),'Offre GSHP'!E231,IF($D$71="",'Offre Alezio G hybrid'!E214,IF(OR($D$71=$B$45,$D$71=$B$46,$D$71=$B$47,$D$71=$B$48),'Offre HPI - G Hybrid'!E249,IF(OR($D$71=$B$41,$D$71=$B$42,$D$71=$B$43,$D$71=$B$44),'Offre Alezio O Hybrid'!E251,"")))))))))) -> 156 | J122: =IF($D$71=$B$52,'OFFRE HPI M'!F247,IF(OR($D$71=$B$38,$D$71=$B$39),'Offre HPI - CAELIA'!F268,IF($D$71=$B$51,'Offre Strateo'!F188,IF($D$71=$B$40,'Offre S Compact - ERIA FIT IN'!F100,IF(OR($D$71=$B$36,$D$71=$B$37),'Offre SV200 - ERIA N DUO '!F125,IF(OR($D$71=$B$34,$D$71=$B$35),'Offre Alezio S - ERIA '!F185,IF(OR($D$71=$B$50,$D$71=$B$49),'Offre GSHP'!F231,IF($D$71="",'Offre Alezio G hybrid'!F214,IF(OR($D$71=$B$45,$D$71=$B$46,$D$71=$B$47,$D$71=$B$48),'Offre HPI - G Hybrid'!F249,IF(OR($D$71=$B$41,$D$71=$B$42,$D$71=$B$43,$D$71=$B$44),'Offre Alezio O Hybrid'!F251,"")))))))))) ->  | K122: =Chiffrage!M136 -> 0
A123: 22 | C123: =IF($D$71=$B$52,'OFFRE HPI M'!B248,IF(OR($D$71=$B$38,$D$71=$B$39),'Offre HPI - CAELIA'!B269,IF($D$71=$B$51,'Offre Strateo'!B189,IF($D$71=$B$40,'Offre S Compact - ERIA FIT IN'!B101,IF(OR($D$71=$B$36,$D$71=$B$37),'Offre SV200 - ERIA N DUO '!B126,IF(OR($D$71=$B$34,$D$71=$B$35),'Offre Alezio S - ERIA '!B186,IF(OR($D$71=$B$49,$D$71=$B$50),'Offre GSHP'!B232,IF($D$71="",'Offre Alezio G hybrid'!B215,IF(OR($D$71=$B$45,$D$71=$B$46,$D$71=$B$47,$D$71=$B$48),'Offre HPI - G Hybrid'!B250,IF(OR($D$71=$B$41,$D$71=$B$42,$D$71=$B$43,$D$71=$B$44),'Offre Alezio O Hybrid'!B252,"")))))))))) -> 7684175 | D123: =IF($D$71=$B$52,'OFFRE HPI M'!C248,IF(OR($D$71=$B$38,$D$71=$B$39),'Offre HPI - CAELIA'!C269,IF($D$71=$B$51,'Offre Strateo'!C189,IF($D$71=$B$40,'Offre S Compact - ERIA FIT IN'!C101,IF(OR($D$71=$B$36,$D$71=$B$37),'Offre SV200 - ERIA N DUO '!C126,IF(OR($D$71=$B$34,$D$71=$B$35),'Offre Alezio S - ERIA '!C186,IF(OR($D$71=$B$49,$D$71=$B$50),'Offre GSHP'!C232,IF($D$71="",'Offre Alezio G hybrid'!C215,IF(OR($D$71=$B$45,$D$71=$B$46,$D$71=$B$47,$D$71=$B$48),'Offre HPI - G Hybrid'!C250,IF(OR($D$71=$B$41,$D$71=$B$42,$D$71=$B$43,$D$71=$B$44),'Offre Alezio O Hybrid'!C252,"")))))))))) -> VANNE D'INVERSION CHAUFFAGE-SANITAIRE | H123: =IF($D$71=$B$52,'OFFRE HPI M'!D248,IF(OR($D$71=$B$38,$D$71=$B$39),'Offre HPI - CAELIA'!D269,IF($D$71=$B$51,'Offre Strateo'!D189,IF($D$71=$B$40,'Offre S Compact - ERIA FIT IN'!D101,IF(OR($D$71=$B$36,$D$71=$B$37),'Offre SV200 - ERIA N DUO '!D126,IF(OR($D$71=$B$34,$D$71=$B$35),'Offre Alezio S - ERIA '!D186,IF(OR($D$71=$B$50,$D$71=$B$49),'Offre GSHP'!D232,IF($D$71="",'Offre Alezio G hybrid'!D215,IF(OR($D$71=$B$45,$D$71=$B$46,$D$71=$B$47,$D$71=$B$48),'Offre HPI - G Hybrid'!D250,IF(OR($D$71=$B$41,$D$71=$B$42,$D$71=$B$43,$D$71=$B$44),'Offre Alezio O Hybrid'!D252,"")))))))))) -> EH812 | I123: =IF($D$71=$B$52,'OFFRE HPI M'!E248,IF(OR($D$71=$B$38,$D$71=$B$39),'Offre HPI - CAELIA'!E269,IF($D$71=$B$51,'Offre Strateo'!E189,IF($D$71=$B$40,'Offre S Compact - ERIA FIT IN'!E101,IF(OR($D$71=$B$36,$D$71=$B$37),'Offre SV200 - ERIA N DUO '!E126,IF(OR($D$71=$B$34,$D$71=$B$35),'Offre Alezio S - ERIA '!E186,IF(OR($D$71=$B$50,$D$71=$B$49),'Offre GSHP'!E232,IF($D$71="",'Offre Alezio G hybrid'!E215,IF(OR($D$71=$B$45,$D$71=$B$46,$D$71=$B$47,$D$71=$B$48),'Offre HPI - G Hybrid'!E250,IF(OR($D$71=$B$41,$D$71=$B$42,$D$71=$B$43,$D$71=$B$44),'Offre Alezio O Hybrid'!E252,"")))))))))) -> 134 | J123: =IF($D$71=$B$52,'OFFRE HPI M'!F248,IF(OR($D$71=$B$38,$D$71=$B$39),'Offre HPI - CAELIA'!F269,IF($D$71=$B$51,'Offre Strateo'!F189,IF($D$71=$B$40,'Offre S Compact - ERIA FIT IN'!F101,IF(OR($D$71=$B$36,$D$71=$B$37),'Offre SV200 - ERIA N DUO '!F126,IF(OR($D$71=$B$34,$D$71=$B$35),'Offre Alezio S - ERIA '!F186,IF(OR($D$71=$B$50,$D$71=$B$49),'Offre GSHP'!F232,IF($D$71="",'Offre Alezio G hybrid'!F215,IF(OR($D$71=$B$45,$D$71=$B$46,$D$71=$B$47,$D$71=$B$48),'Offre HPI - G Hybrid'!F250,IF(OR($D$71=$B$41,$D$71=$B$42,$D$71=$B$43,$D$71=$B$44),'Offre Alezio O Hybrid'!F252,"")))))))))) ->  | K123: =Chiffrage!M137 -> 0
A124: 23 | C124: =IF($D$71=$B$52,'OFFRE HPI M'!B249,IF(OR($D$71=$B$38,$D$71=$B$39),'Offre HPI - CAELIA'!B270,IF($D$71=$B$51,'Offre Strateo'!B190,IF($D$71=$B$40,'Offre S Compact - ERIA FIT IN'!B102,IF(OR($D$71=$B$36,$D$71=$B$37),'Offre SV200 - ERIA N DUO '!B127,IF(OR($D$71=$B$34,$D$71=$B$35),'Offre Alezio S - ERIA '!B187,IF(OR($D$71=$B$49,$D$71=$B$50),'Offre GSHP'!B233,IF($D$71="",'Offre Alezio G hybrid'!B216,IF(OR($D$71=$B$45,$D$71=$B$46,$D$71=$B$47,$D$71=$B$48),'Offre HPI - G Hybrid'!B251,IF(OR($D$71=$B$41,$D$71=$B$42,$D$71=$B$43,$D$71=$B$44),'Offre Alezio O Hybrid'!B253,"")))))))))) -> 100015468 | D124: =IF($D$71=$B$52,'OFFRE HPI M'!C249,IF(OR($D$71=$B$38,$D$71=$B$39),'Offre HPI - CAELIA'!C270,IF($D$71=$B$51,'Offre Strateo'!C190,IF($D$71=$B$40,'Offre S Compact - ERIA FIT IN'!C102,IF(OR($D$71=$B$36,$D$71=$B$37),'Offre SV200 - ERIA N DUO '!C127,IF(OR($D$71=$B$34,$D$71=$B$35),'Offre Alezio S - ERIA '!C187,IF(OR($D$71=$B$49,$D$71=$B$50),'Offre GSHP'!C233,IF($D$71="",'Offre Alezio G hybrid'!C216,IF(OR($D$71=$B$45,$D$71=$B$46,$D$71=$B$47,$D$71=$B$48),'Offre HPI - G Hybrid'!C251,IF(OR($D$71=$B$41,$D$71=$B$42,$D$71=$B$43,$D$71=$B$44),'Offre Alezio O Hybrid'!C253,"")))))))))) -> KIT RAC HYDRAULIQUE PAC - BALLON ECS | H124: =IF($D$71=$B$52,'OFFRE HPI M'!D249,IF(OR($D$71=$B$38,$D$71=$B$39),'Offre HPI - CAELIA'!D270,IF($D$71=$B$51,'Offre Strateo'!D190,IF($D$71=$B$40,'Offre S Compact - ERIA FIT IN'!D102,IF(OR($D$71=$B$36,$D$71=$B$37),'Offre SV200 - ERIA N DUO '!D127,IF(OR($D$71=$B$34,$D$71=$B$35),'Offre Alezio S - ERIA '!D187,IF(OR($D$71=$B$50,$D$71=$B$49),'Offre GSHP'!D233,IF($D$71="",'Offre Alezio G hybrid'!D216,IF(OR($D$71=$B$45,$D$71=$B$46,$D$71=$B$47,$D$71=$B$48),'Offre HPI - G Hybrid'!D251,IF(OR($D$71=$B$41,$D$71=$B$42,$D$71=$B$43,$D$71=$B$44),'Offre Alezio O Hybrid'!D253,"")))))))))) -> EH149 | I124: =IF($D$71=$B$52,'OFFRE HPI M'!E249,IF(OR($D$71=$B$38,$D$71=$B$39),'Offre HPI - CAELIA'!E270,IF($D$71=$B$51,'Offre Strateo'!E190,IF($D$71=$B$40,'Offre S Compact - ERIA FIT IN'!E102,IF(OR($D$71=$B$36,$D$71=$B$37),'Offre SV200 - ERIA N DUO '!E127,IF(OR($D$71=$B$34,$D$71=$B$35),'Offre Alezio S - ERIA '!E187,IF(OR($D$71=$B$50,$D$71=$B$49),'Offre GSHP'!E233,IF($D$71="",'Offre Alezio G hybrid'!E216,IF(OR($D$71=$B$45,$D$71=$B$46,$D$71=$B$47,$D$71=$B$48),'Offre HPI - G Hybrid'!E251,IF(OR($D$71=$B$41,$D$71=$B$42,$D$71=$B$43,$D$71=$B$44),'Offre Alezio O Hybrid'!E253,"")))))))))) -> 109 | J124: =IF($D$71=$B$52,'OFFRE HPI M'!F249,IF(OR($D$71=$B$38,$D$71=$B$39),'Offre HPI - CAELIA'!F270,IF($D$71=$B$51,'Offre Strateo'!F190,IF($D$71=$B$40,'Offre S Compact - ERIA FIT IN'!F102,IF(OR($D$71=$B$36,$D$71=$B$37),'Offre SV200 - ERIA N DUO '!F127,IF(OR($D$71=$B$34,$D$71=$B$35),'Offre Alezio S - ERIA '!F187,IF(OR($D$71=$B$50,$D$71=$B$49),'Offre GSHP'!F233,IF($D$71="",'Offre Alezio G hybrid'!F216,IF(OR($D$71=$B$45,$D$71=$B$46,$D$71=$B$47,$D$71=$B$48),'Offre HPI - G Hybrid'!F251,IF(OR($D$71=$B$41,$D$71=$B$42,$D$71=$B$43,$D$71=$B$44),'Offre Alezio O Hybrid'!F253,"")))))))))) ->  | K124: =Chiffrage!M138 -> 0
A125: 24 | C125: =IF($D$71=$B$52,'OFFRE HPI M'!B250,IF(OR($D$71=$B$38,$D$71=$B$39),'Offre HPI - CAELIA'!B271,IF($D$71=$B$51,'Offre Strateo'!B191,IF($D$71=$B$40,'Offre S Compact - ERIA FIT IN'!B103,IF(OR($D$71=$B$36,$D$71=$B$37),'Offre SV200 - ERIA N DUO '!B128,IF(OR($D$71=$B$34,$D$71=$B$35),'Offre Alezio S - ERIA '!B188,IF(OR($D$71=$B$49,$D$71=$B$50),'Offre GSHP'!B234,IF($D$71="",'Offre Alezio G hybrid'!B217,IF(OR($D$71=$B$45,$D$71=$B$46,$D$71=$B$47,$D$71=$B$48),'Offre HPI - G Hybrid'!B252,IF(OR($D$71=$B$41,$D$71=$B$42,$D$71=$B$43,$D$71=$B$44),'Offre Alezio O Hybrid'!B254,"")))))))))) -> 100020164 | D125: =IF($D$71=$B$52,'OFFRE HPI M'!C250,IF(OR($D$71=$B$38,$D$71=$B$39),'Offre HPI - CAELIA'!C271,IF($D$71=$B$51,'Offre Strateo'!C191,IF($D$71=$B$40,'Offre S Compact - ERIA FIT IN'!C103,IF(OR($D$71=$B$36,$D$71=$B$37),'Offre SV200 - ERIA N DUO '!C128,IF(OR($D$71=$B$34,$D$71=$B$35),'Offre Alezio S - ERIA '!C188,IF(OR($D$71=$B$49,$D$71=$B$50),'Offre GSHP'!C234,IF($D$71="",'Offre Alezio G hybrid'!C217,IF(OR($D$71=$B$45,$D$71=$B$46,$D$71=$B$47,$D$71=$B$48),'Offre HPI - G Hybrid'!C252,IF(OR($D$71=$B$41,$D$71=$B$42,$D$71=$B$43,$D$71=$B$44),'Offre Alezio O Hybrid'!C254,"")))))))))) -> COLLECTEUR 2/3 CIRCUITS | H125: =IF($D$71=$B$52,'OFFRE HPI M'!D250,IF(OR($D$71=$B$38,$D$71=$B$39),'Offre HPI - CAELIA'!D271,IF($D$71=$B$51,'Offre Strateo'!D191,IF($D$71=$B$40,'Offre S Compact - ERIA FIT IN'!D103,IF(OR($D$71=$B$36,$D$71=$B$37),'Offre SV200 - ERIA N DUO '!D128,IF(OR($D$71=$B$34,$D$71=$B$35),'Offre Alezio S - ERIA '!D188,IF(OR($D$71=$B$50,$D$71=$B$49),'Offre GSHP'!D234,IF($D$71="",'Offre Alezio G hybrid'!D217,IF(OR($D$71=$B$45,$D$71=$B$46,$D$71=$B$47,$D$71=$B$48),'Offre HPI - G Hybrid'!D252,IF(OR($D$71=$B$41,$D$71=$B$42,$D$71=$B$43,$D$71=$B$44),'Offre Alezio O Hybrid'!D254,"")))))))))) -> EA140 | I125: =IF($D$71=$B$52,'OFFRE HPI M'!E250,IF(OR($D$71=$B$38,$D$71=$B$39),'Offre HPI - CAELIA'!E271,IF($D$71=$B$51,'Offre Strateo'!E191,IF($D$71=$B$40,'Offre S Compact - ERIA FIT IN'!E103,IF(OR($D$71=$B$36,$D$71=$B$37),'Offre SV200 - ERIA N DUO '!E128,IF(OR($D$71=$B$34,$D$71=$B$35),'Offre Alezio S - ERIA '!E188,IF(OR($D$71=$B$50,$D$71=$B$49),'Offre GSHP'!E234,IF($D$71="",'Offre Alezio G hybrid'!E217,IF(OR($D$71=$B$45,$D$71=$B$46,$D$71=$B$47,$D$71=$B$48),'Offre HPI - G Hybrid'!E252,IF(OR($D$71=$B$41,$D$71=$B$42,$D$71=$B$43,$D$71=$B$44),'Offre Alezio O Hybrid'!E254,"")))))))))) -> 382 | J125: =IF($D$71=$B$52,'OFFRE HPI M'!F250,IF(OR($D$71=$B$38,$D$71=$B$39),'Offre HPI - CAELIA'!F271,IF($D$71=$B$51,'Offre Strateo'!F191,IF($D$71=$B$40,'Offre S Compact - ERIA FIT IN'!F103,IF(OR($D$71=$B$36,$D$71=$B$37),'Offre SV200 - ERIA N DUO '!F128,IF(OR($D$71=$B$34,$D$71=$B$35),'Offre Alezio S - ERIA '!F188,IF(OR($D$71=$B$50,$D$71=$B$49),'Offre GSHP'!F234,IF($D$71="",'Offre Alezio G hybrid'!F217,IF(OR($D$71=$B$45,$D$71=$B$46,$D$71=$B$47,$D$71=$B$48),'Offre HPI - G Hybrid'!F252,IF(OR($D$71=$B$41,$D$71=$B$42,$D$71=$B$43,$D$71=$B$44),'Offre Alezio O Hybrid'!F254,"")))))))))) ->  | K125: =Chiffrage!M139 -> 0
A126: 25 | C126: =IF($D$71=$B$52,'OFFRE HPI M'!B251,IF(OR($D$71=$B$38,$D$71=$B$39),'Offre HPI - CAELIA'!B272,IF($D$71=$B$51,'Offre Strateo'!B192,IF($D$71=$B$40,'Offre S Compact - ERIA FIT IN'!B104,IF(OR($D$71=$B$36,$D$71=$B$37),'Offre SV200 - ERIA N DUO '!B129,IF(OR($D$71=$B$34,$D$71=$B$35),'Offre Alezio S - ERIA '!B189,IF(OR($D$71=$B$49,$D$71=$B$50),'Offre GSHP'!B235,IF($D$71="",'Offre Alezio G hybrid'!B218,IF(OR($D$71=$B$45,$D$71=$B$46,$D$71=$B$47,$D$71=$B$48),'Offre HPI - G Hybrid'!B253,IF(OR($D$71=$B$41,$D$71=$B$42,$D$71=$B$43,$D$71=$B$44),'Offre Alezio O Hybrid'!B255,"")))))))))) -> 100020167 | D126: =IF($D$71=$B$52,'OFFRE HPI M'!C251,IF(OR($D$71=$B$38,$D$71=$B$39),'Offre HPI - CAELIA'!C272,IF($D$71=$B$51,'Offre Strateo'!C192,IF($D$71=$B$40,'Offre S Compact - ERIA FIT IN'!C104,IF(OR($D$71=$B$36,$D$71=$B$37),'Offre SV200 - ERIA N DUO '!C129,IF(OR($D$71=$B$34,$D$71=$B$35),'Offre Alezio S - ERIA '!C189,IF(OR($D$71=$B$49,$D$71=$B$50),'Offre GSHP'!C235,IF($D$71="",'Offre Alezio G hybrid'!C218,IF(OR($D$71=$B$45,$D$71=$B$46,$D$71=$B$47,$D$71=$B$48),'Offre HPI - G Hybrid'!C253,IF(OR($D$71=$B$41,$D$71=$B$42,$D$71=$B$43,$D$71=$B$44),'Offre Alezio O Hybrid'!C255,"")))))))))) -> CIRCUIT DIRECT P.ELEC CLASSE A | H126: =IF($D$71=$B$52,'OFFRE HPI M'!D251,IF(OR($D$71=$B$38,$D$71=$B$39),'Offre HPI - CAELIA'!D272,IF($D$71=$B$51,'Offre Strateo'!D192,IF($D$71=$B$40,'Offre S Compact - ERIA FIT IN'!D104,IF(OR($D$71=$B$36,$D$71=$B$37),'Offre SV200 - ERIA N DUO '!D129,IF(OR($D$71=$B$34,$D$71=$B$35),'Offre Alezio S - ERIA '!D189,IF(OR($D$71=$B$50,$D$71=$B$49),'Offre GSHP'!D235,IF($D$71="",'Offre Alezio G hybrid'!D218,IF(OR($D$71=$B$45,$D$71=$B$46,$D$71=$B$47,$D$71=$B$48),'Offre HPI - G Hybrid'!D253,IF(OR($D$71=$B$41,$D$71=$B$42,$D$71=$B$43,$D$71=$B$44),'Offre Alezio O Hybrid'!D255,"")))))))))) -> EA143 | I126: =IF($D$71=$B$52,'OFFRE HPI M'!E251,IF(OR($D$71=$B$38,$D$71=$B$39),'Offre HPI - CAELIA'!E272,IF($D$71=$B$51,'Offre Strateo'!E192,IF($D$71=$B$40,'Offre S Compact - ERIA FIT IN'!E104,IF(OR($D$71=$B$36,$D$71=$B$37),'Offre SV200 - ERIA N DUO '!E129,IF(OR($D$71=$B$34,$D$71=$B$35),'Offre Alezio S - ERIA '!E189,IF(OR($D$71=$B$50,$D$71=$B$49),'Offre GSHP'!E235,IF($D$71="",'Offre Alezio G hybrid'!E218,IF(OR($D$71=$B$45,$D$71=$B$46,$D$71=$B$47,$D$71=$B$48),'Offre HPI - G Hybrid'!E253,IF(OR($D$71=$B$41,$D$71=$B$42,$D$71=$B$43,$D$71=$B$44),'Offre Alezio O Hybrid'!E255,"")))))))))) -> 720 | J126: =IF($D$71=$B$52,'OFFRE HPI M'!F251,IF(OR($D$71=$B$38,$D$71=$B$39),'Offre HPI - CAELIA'!F272,IF($D$71=$B$51,'Offre Strateo'!F192,IF($D$71=$B$40,'Offre S Compact - ERIA FIT IN'!F104,IF(OR($D$71=$B$36,$D$71=$B$37),'Offre SV200 - ERIA N DUO '!F129,IF(OR($D$71=$B$34,$D$71=$B$35),'Offre Alezio S - ERIA '!F189,IF(OR($D$71=$B$50,$D$71=$B$49),'Offre GSHP'!F235,IF($D$71="",'Offre Alezio G hybrid'!F218,IF(OR($D$71=$B$45,$D$71=$B$46,$D$71=$B$47,$D$71=$B$48),'Offre HPI - G Hybrid'!F253,IF(OR($D$71=$B$41,$D$71=$B$42,$D$71=$B$43,$D$71=$B$44),'Offre Alezio O Hybrid'!F255,"")))))))))) ->  | K126: =Chiffrage!M140 -> 0
A127: 26 | C127: =IF($D$71=$B$52,'OFFRE HPI M'!B252,IF(OR($D$71=$B$38,$D$71=$B$39),'Offre HPI - CAELIA'!B273,IF($D$71=$B$51,'Offre Strateo'!B193,IF($D$71=$B$40,'Offre S Compact - ERIA FIT IN'!B105,IF(OR($D$71=$B$36,$D$71=$B$37),'Offre SV200 - ERIA N DUO '!B130,IF(OR($D$71=$B$34,$D$71=$B$35),'Offre Alezio S - ERIA '!B190,IF(OR($D$71=$B$49,$D$71=$B$50),'Offre GSHP'!B236,IF($D$71="",'Offre Alezio G hybrid'!B219,IF(OR($D$71=$B$45,$D$71=$B$46,$D$71=$B$47,$D$71=$B$48),'Offre HPI - G Hybrid'!B254,IF(OR($D$71=$B$41,$D$71=$B$42,$D$71=$B$43,$D$71=$B$44),'Offre Alezio O Hybrid'!B256,"")))))))))) -> 100020168 | D127: =IF($D$71=$B$52,'OFFRE HPI M'!C252,IF(OR($D$71=$B$38,$D$71=$B$39),'Offre HPI - CAELIA'!C273,IF($D$71=$B$51,'Offre Strateo'!C193,IF($D$71=$B$40,'Offre S Compact - ERIA FIT IN'!C105,IF(OR($D$71=$B$36,$D$71=$B$37),'Offre SV200 - ERIA N DUO '!C130,IF(OR($D$71=$B$34,$D$71=$B$35),'Offre Alezio S - ERIA '!C190,IF(OR($D$71=$B$49,$D$71=$B$50),'Offre GSHP'!C236,IF($D$71="",'Offre Alezio G hybrid'!C219,IF(OR($D$71=$B$45,$D$71=$B$46,$D$71=$B$47,$D$71=$B$48),'Offre HPI - G Hybrid'!C254,IF(OR($D$71=$B$41,$D$71=$B$42,$D$71=$B$43,$D$71=$B$44),'Offre Alezio O Hybrid'!C256,"")))))))))) -> CIRCUIT V3V P.ELEC | H127: =IF($D$71=$B$52,'OFFRE HPI M'!D252,IF(OR($D$71=$B$38,$D$71=$B$39),'Offre HPI - CAELIA'!D273,IF($D$71=$B$51,'Offre Strateo'!D193,IF($D$71=$B$40,'Offre S Compact - ERIA FIT IN'!D105,IF(OR($D$71=$B$36,$D$71=$B$37),'Offre SV200 - ERIA N DUO '!D130,IF(OR($D$71=$B$34,$D$71=$B$35),'Offre Alezio S - ERIA '!D190,IF(OR($D$71=$B$50,$D$71=$B$49),'Offre GSHP'!D236,IF($D$71="",'Offre Alezio G hybrid'!D219,IF(OR($D$71=$B$45,$D$71=$B$46,$D$71=$B$47,$D$71=$B$48),'Offre HPI - G Hybrid'!D254,IF(OR($D$71=$B$41,$D$71=$B$42,$D$71=$B$43,$D$71=$B$44),'Offre Alezio O Hybrid'!D256,"")))))))))) -> EA144 | I127: =IF($D$71=$B$52,'OFFRE HPI M'!E252,IF(OR($D$71=$B$38,$D$71=$B$39),'Offre HPI - CAELIA'!E273,IF($D$71=$B$51,'Offre Strateo'!E193,IF($D$71=$B$40,'Offre S Compact - ERIA FIT IN'!E105,IF(OR($D$71=$B$36,$D$71=$B$37),'Offre SV200 - ERIA N DUO '!E130,IF(OR($D$71=$B$34,$D$71=$B$35),'Offre Alezio S - ERIA '!E190,IF(OR($D$71=$B$50,$D$71=$B$49),'Offre GSHP'!E236,IF($D$71="",'Offre Alezio G hybrid'!E219,IF(OR($D$71=$B$45,$D$71=$B$46,$D$71=$B$47,$D$71=$B$48),'Offre HPI - G Hybrid'!E254,IF(OR($D$71=$B$41,$D$71=$B$42,$D$71=$B$43,$D$71=$B$44),'Offre Alezio O Hybrid'!E256,"")))))))))) -> 1023 | J127: =IF($D$71=$B$52,'OFFRE HPI M'!F252,IF(OR($D$71=$B$38,$D$71=$B$39),'Offre HPI - CAELIA'!F273,IF($D$71=$B$51,'Offre Strateo'!F193,IF($D$71=$B$40,'Offre S Compact - ERIA FIT IN'!F105,IF(OR($D$71=$B$36,$D$71=$B$37),'Offre SV200 - ERIA N DUO '!F130,IF(OR($D$71=$B$34,$D$71=$B$35),'Offre Alezio S - ERIA '!F190,IF(OR($D$71=$B$50,$D$71=$B$49),'Offre GSHP'!F236,IF($D$71="",'Offre Alezio G hybrid'!F219,IF(OR($D$71=$B$45,$D$71=$B$46,$D$71=$B$47,$D$71=$B$48),'Offre HPI - G Hybrid'!F254,IF(OR($D$71=$B$41,$D$71=$B$42,$D$71=$B$43,$D$71=$B$44),'Offre Alezio O Hybrid'!F256,"")))))))))) ->  | K127: =Chiffrage!M141 -> 0
A128: 27 | C128: =IF($D$71=$B$52,'OFFRE HPI M'!B253,IF(OR($D$71=$B$38,$D$71=$B$39),'Offre HPI - CAELIA'!B274,IF($D$71=$B$51,'Offre Strateo'!B194,IF($D$71=$B$40,'Offre S Compact - ERIA FIT IN'!B106,IF(OR($D$71=$B$36,$D$71=$B$37),'Offre SV200 - ERIA N DUO '!B131,IF(OR($D$71=$B$34,$D$71=$B$35),'Offre Alezio S - ERIA '!B191,IF(OR($D$71=$B$49,$D$71=$B$50),'Offre GSHP'!B237,IF($D$71="",'Offre Alezio G hybrid'!B220,IF(OR($D$71=$B$45,$D$71=$B$46,$D$71=$B$47,$D$71=$B$48),'Offre HPI - G Hybrid'!B255,IF(OR($D$71=$B$41,$D$71=$B$42,$D$71=$B$43,$D$71=$B$44),'Offre Alezio O Hybrid'!B257,"")))))))))) -> 100020165 | D128: =IF($D$71=$B$52,'OFFRE HPI M'!C253,IF(OR($D$71=$B$38,$D$71=$B$39),'Offre HPI - CAELIA'!C274,IF($D$71=$B$51,'Offre Strateo'!C194,IF($D$71=$B$40,'Offre S Compact - ERIA FIT IN'!C106,IF(OR($D$71=$B$36,$D$71=$B$37),'Offre SV200 - ERIA N DUO '!C131,IF(OR($D$71=$B$34,$D$71=$B$35),'Offre Alezio S - ERIA '!C191,IF(OR($D$71=$B$49,$D$71=$B$50),'Offre GSHP'!C237,IF($D$71="",'Offre Alezio G hybrid'!C220,IF(OR($D$71=$B$45,$D$71=$B$46,$D$71=$B$47,$D$71=$B$48),'Offre HPI - G Hybrid'!C255,IF(OR($D$71=$B$41,$D$71=$B$42,$D$71=$B$43,$D$71=$B$44),'Offre Alezio O Hybrid'!C257,"")))))))))) -> CONSOLE MUR COLLECTEUR | H128: =IF($D$71=$B$52,'OFFRE HPI M'!D253,IF(OR($D$71=$B$38,$D$71=$B$39),'Offre HPI - CAELIA'!D274,IF($D$71=$B$51,'Offre Strateo'!D194,IF($D$71=$B$40,'Offre S Compact - ERIA FIT IN'!D106,IF(OR($D$71=$B$36,$D$71=$B$37),'Offre SV200 - ERIA N DUO '!D131,IF(OR($D$71=$B$34,$D$71=$B$35),'Offre Alezio S - ERIA '!D191,IF(OR($D$71=$B$50,$D$71=$B$49),'Offre GSHP'!D237,IF($D$71="",'Offre Alezio G hybrid'!D220,IF(OR($D$71=$B$45,$D$71=$B$46,$D$71=$B$47,$D$71=$B$48),'Offre HPI - G Hybrid'!D255,IF(OR($D$71=$B$41,$D$71=$B$42,$D$71=$B$43,$D$71=$B$44),'Offre Alezio O Hybrid'!D257,"")))))))))) -> EA141 | I128: =IF($D$71=$B$52,'OFFRE HPI M'!E253,IF(OR($D$71=$B$38,$D$71=$B$39),'Offre HPI - CAELIA'!E274,IF($D$71=$B$51,'Offre Strateo'!E194,IF($D$71=$B$40,'Offre S Compact - ERIA FIT IN'!E106,IF(OR($D$71=$B$36,$D$71=$B$37),'Offre SV200 - ERIA N DUO '!E131,IF(OR($D$71=$B$34,$D$71=$B$35),'Offre Alezio S - ERIA '!E191,IF(OR($D$71=$B$50,$D$71=$B$49),'Offre GSHP'!E237,IF($D$71="",'Offre Alezio G hybrid'!E220,IF(OR($D$71=$B$45,$D$71=$B$46,$D$71=$B$47,$D$71=$B$48),'Offre HPI - G Hybrid'!E255,IF(OR($D$71=$B$41,$D$71=$B$42,$D$71=$B$43,$D$71=$B$44),'Offre Alezio O Hybrid'!E257,"")))))))))) -> 48 | J128: =IF($D$71=$B$52,'OFFRE HPI M'!F253,IF(OR($D$71=$B$38,$D$71=$B$39),'Offre HPI - CAELIA'!F274,IF($D$71=$B$51,'Offre Strateo'!F194,IF($D$71=$B$40,'Offre S Compact - ERIA FIT IN'!F106,IF(OR($D$71=$B$36,$D$71=$B$37),'Offre SV200 - ERIA N DUO '!F131,IF(OR($D$71=$B$34,$D$71=$B$35),'Offre Alezio S - ERIA '!F191,IF(OR($D$71=$B$50,$D$71=$B$49),'Offre GSHP'!F237,IF($D$71="",'Offre Alezio G hybrid'!F220,IF(OR($D$71=$B$45,$D$71=$B$46,$D$71=$B$47,$D$71=$B$48),'Offre HPI - G Hybrid'!F255,IF(OR($D$71=$B$41,$D$71=$B$42,$D$71=$B$43,$D$71=$B$44),'Offre Alezio O Hybrid'!F257,"")))))))))) ->  | K128: =Chiffrage!M142 -> 0 | L128: =IFERROR(IF($C$86=$C$89,IF(K128=0,"",K128*I128),IF(J128="","",J128*I128)),"") -> 
A129: 28 | C129: =IF($D$71=$B$52,'OFFRE HPI M'!B254,IF(OR($D$71=$B$38,$D$71=$B$39),'Offre HPI - CAELIA'!B275,IF($D$71=$B$51,'Offre Strateo'!B195,IF($D$71=$B$40,'Offre S Compact - ERIA FIT IN'!B107,IF(OR($D$71=$B$36,$D$71=$B$37),'Offre SV200 - ERIA N DUO '!B132,IF(OR($D$71=$B$34,$D$71=$B$35),'Offre Alezio S - ERIA '!B192,IF(OR($D$71=$B$49,$D$71=$B$50),'Offre GSHP'!B238,IF($D$71="",'Offre Alezio G hybrid'!B221,IF(OR($D$71=$B$45,$D$71=$B$46,$D$71=$B$47,$D$71=$B$48),'Offre HPI - G Hybrid'!B256,IF(OR($D$71=$B$41,$D$71=$B$42,$D$71=$B$43,$D$71=$B$44),'Offre Alezio O Hybrid'!B258,"")))))))))) -> 100020166 | D129: =IF($D$71=$B$52,'OFFRE HPI M'!C254,IF(OR($D$71=$B$38,$D$71=$B$39),'Offre HPI - CAELIA'!C275,IF($D$71=$B$51,'Offre Strateo'!C195,IF($D$71=$B$40,'Offre S Compact - ERIA FIT IN'!C107,IF(OR($D$71=$B$36,$D$71=$B$37),'Offre SV200 - ERIA N DUO '!C132,IF(OR($D$71=$B$34,$D$71=$B$35),'Offre Alezio S - ERIA '!C192,IF(OR($D$71=$B$49,$D$71=$B$50),'Offre GSHP'!C238,IF($D$71="",'Offre Alezio G hybrid'!C221,IF(OR($D$71=$B$45,$D$71=$B$46,$D$71=$B$47,$D$71=$B$48),'Offre HPI - G Hybrid'!C256,IF(OR($D$71=$B$41,$D$71=$B$42,$D$71=$B$43,$D$71=$B$44),'Offre Alezio O Hybrid'!C258,"")))))))))) -> CONSOLE MUR 1 MODULE | H129: =IF($D$71=$B$52,'OFFRE HPI M'!D254,IF(OR($D$71=$B$38,$D$71=$B$39),'Offre HPI - CAELIA'!D275,IF($D$71=$B$51,'Offre Strateo'!D195,IF($D$71=$B$40,'Offre S Compact - ERIA FIT IN'!D107,IF(OR($D$71=$B$36,$D$71=$B$37),'Offre SV200 - ERIA N DUO '!D132,IF(OR($D$71=$B$34,$D$71=$B$35),'Offre Alezio S - ERIA '!D192,IF(OR($D$71=$B$50,$D$71=$B$49),'Offre GSHP'!D238,IF($D$71="",'Offre Alezio G hybrid'!D221,IF(OR($D$71=$B$45,$D$71=$B$46,$D$71=$B$47,$D$71=$B$48),'Offre HPI - G Hybrid'!D256,IF(OR($D$71=$B$41,$D$71=$B$42,$D$71=$B$43,$D$71=$B$44),'Offre Alezio O Hybrid'!D258,"")))))))))) -> EA142 | I129: =IF($D$71=$B$52,'OFFRE HPI M'!E254,IF(OR($D$71=$B$38,$D$71=$B$39),'Offre HPI - CAELIA'!E275,IF($D$71=$B$51,'Offre Strateo'!E195,IF($D$71=$B$40,'Offre S Compact - ERIA FIT IN'!E107,IF(OR($D$71=$B$36,$D$71=$B$37),'Offre SV200 - ERIA N DUO '!E132,IF(OR($D$71=$B$34,$D$71=$B$35),'Offre Alezio S - ERIA '!E192,IF(OR($D$71=$B$50,$D$71=$B$49),'Offre GSHP'!E238,IF($D$71="",'Offre Alezio G hybrid'!E221,IF(OR($D$71=$B$45,$D$71=$B$46,$D$71=$B$47,$D$71=$B$48),'Offre HPI - G Hybrid'!E256,IF(OR($D$71=$B$41,$D$71=$B$42,$D$71=$B$43,$D$71=$B$44),'Offre Alezio O Hybrid'!E258,"")))))))))) -> 129 | J129: =IF($D$71=$B$52,'OFFRE HPI M'!F254,IF(OR($D$71=$B$38,$D$71=$B$39),'Offre HPI - CAELIA'!F275,IF($D$71=$B$51,'Offre Strateo'!F195,IF($D$71=$B$40,'Offre S Compact - ERIA FIT IN'!F107,IF(OR($D$71=$B$36,$D$71=$B$37),'Offre SV200 - ERIA N DUO '!F132,IF(OR($D$71=$B$34,$D$71=$B$35),'Offre Alezio S - ERIA '!F192,IF(OR($D$71=$B$50,$D$71=$B$49),'Offre GSHP'!F238,IF($D$71="",'Offre Alezio G hybrid'!F221,IF(OR($D$71=$B$45,$D$71=$B$46,$D$71=$B$47,$D$71=$B$48),'Offre HPI - G Hybrid'!F256,IF(OR($D$71=$B$41,$D$71=$B$42,$D$71=$B$43,$D$71=$B$44),'Offre Alezio O Hybrid'!F258,"")))))))))) ->  | K129: =Chiffrage!M143 -> 0
A130: 29 | C130: =IF($D$71=$B$52,'OFFRE HPI M'!B255,IF(OR($D$71=$B$38,$D$71=$B$39),'Offre HPI - CAELIA'!B276,IF($D$71=$B$51,'Offre Strateo'!B196,IF($D$71=$B$40,'Offre S Compact - ERIA FIT IN'!B108,IF(OR($D$71=$B$36,$D$71=$B$37),'Offre SV200 - ERIA N DUO '!B133,IF(OR($D$71=$B$34,$D$71=$B$35),'Offre Alezio S - ERIA '!B193,IF(OR($D$71=$B$49,$D$71=$B$50),'Offre GSHP'!B239,IF($D$71="",'Offre Alezio G hybrid'!B222,IF(OR($D$71=$B$45,$D$71=$B$46,$D$71=$B$47,$D$71=$B$48),'Offre HPI - G Hybrid'!B257,IF(OR($D$71=$B$41,$D$71=$B$42,$D$71=$B$43,$D$71=$B$44),'Offre Alezio O Hybrid'!B259,"")))))))))) -> 100020045 | D130: =IF($D$71=$B$52,'OFFRE HPI M'!C255,IF(OR($D$71=$B$38,$D$71=$B$39),'Offre HPI - CAELIA'!C276,IF($D$71=$B$51,'Offre Strateo'!C196,IF($D$71=$B$40,'Offre S Compact - ERIA FIT IN'!C108,IF(OR($D$71=$B$36,$D$71=$B$37),'Offre SV200 - ERIA N DUO '!C133,IF(OR($D$71=$B$34,$D$71=$B$35),'Offre Alezio S - ERIA '!C193,IF(OR($D$71=$B$49,$D$71=$B$50),'Offre GSHP'!C239,IF($D$71="",'Offre Alezio G hybrid'!C222,IF(OR($D$71=$B$45,$D$71=$B$46,$D$71=$B$47,$D$71=$B$48),'Offre HPI - G Hybrid'!C257,IF(OR($D$71=$B$41,$D$71=$B$42,$D$71=$B$43,$D$71=$B$44),'Offre Alezio O Hybrid'!C259,"")))))))))) -> KIT FILTRE FERNOX TF1 | H130: =IF($D$71=$B$52,'OFFRE HPI M'!D255,IF(OR($D$71=$B$38,$D$71=$B$39),'Offre HPI - CAELIA'!D276,IF($D$71=$B$51,'Offre Strateo'!D196,IF($D$71=$B$40,'Offre S Compact - ERIA FIT IN'!D108,IF(OR($D$71=$B$36,$D$71=$B$37),'Offre SV200 - ERIA N DUO '!D133,IF(OR($D$71=$B$34,$D$71=$B$35),'Offre Alezio S - ERIA '!D193,IF(OR($D$71=$B$50,$D$71=$B$49),'Offre GSHP'!D239,IF($D$71="",'Offre Alezio G hybrid'!D222,IF(OR($D$71=$B$45,$D$71=$B$46,$D$71=$B$47,$D$71=$B$48),'Offre HPI - G Hybrid'!D257,IF(OR($D$71=$B$41,$D$71=$B$42,$D$71=$B$43,$D$71=$B$44),'Offre Alezio O Hybrid'!D259,"")))))))))) -> EH896 | I130: =IF($D$71=$B$52,'OFFRE HPI M'!E255,IF(OR($D$71=$B$38,$D$71=$B$39),'Offre HPI - CAELIA'!E276,IF($D$71=$B$51,'Offre Strateo'!E196,IF($D$71=$B$40,'Offre S Compact - ERIA FIT IN'!E108,IF(OR($D$71=$B$36,$D$71=$B$37),'Offre SV200 - ERIA N DUO '!E133,IF(OR($D$71=$B$34,$D$71=$B$35),'Offre Alezio S - ERIA '!E193,IF(OR($D$71=$B$50,$D$71=$B$49),'Offre GSHP'!E239,IF($D$71="",'Offre Alezio G hybrid'!E222,IF(OR($D$71=$B$45,$D$71=$B$46,$D$71=$B$47,$D$71=$B$48),'Offre HPI - G Hybrid'!E257,IF(OR($D$71=$B$41,$D$71=$B$42,$D$71=$B$43,$D$71=$B$44),'Offre Alezio O Hybrid'!E259,"")))))))))) -> 288 | J130: =IF($D$71=$B$52,'OFFRE HPI M'!F255,IF(OR($D$71=$B$38,$D$71=$B$39),'Offre HPI - CAELIA'!F276,IF($D$71=$B$51,'Offre Strateo'!F196,IF($D$71=$B$40,'Offre S Compact - ERIA FIT IN'!F108,IF(OR($D$71=$B$36,$D$71=$B$37),'Offre SV200 - ERIA N DUO '!F133,IF(OR($D$71=$B$34,$D$71=$B$35),'Offre Alezio S - ERIA '!F193,IF(OR($D$71=$B$50,$D$71=$B$49),'Offre GSHP'!F239,IF($D$71="",'Offre Alezio G hybrid'!F222,IF(OR($D$71=$B$45,$D$71=$B$46,$D$71=$B$47,$D$71=$B$48),'Offre HPI - G Hybrid'!F257,IF(OR($D$71=$B$41,$D$71=$B$42,$D$71=$B$43,$D$71=$B$44),'Offre Alezio O Hybrid'!F259,"")))))))))) -> 1 | K130: =Chiffrage!M144 -> 0 | L130: 288
A131: 30 | C131: =IF($D$71=$B$52,'OFFRE HPI M'!B256,IF(OR($D$71=$B$38,$D$71=$B$39),'Offre HPI - CAELIA'!B277,IF($D$71=$B$51,'Offre Strateo'!B197,IF($D$71=$B$40,'Offre S Compact - ERIA FIT IN'!B109,IF(OR($D$71=$B$36,$D$71=$B$37),'Offre SV200 - ERIA N DUO '!B134,IF(OR($D$71=$B$34,$D$71=$B$35),'Offre Alezio S - ERIA '!B194,IF(OR($D$71=$B$49,$D$71=$B$50),'Offre GSHP'!B240,IF($D$71="",'Offre Alezio G hybrid'!B223,IF(OR($D$71=$B$45,$D$71=$B$46,$D$71=$B$47,$D$71=$B$48),'Offre HPI - G Hybrid'!B258,IF(OR($D$71=$B$41,$D$71=$B$42,$D$71=$B$43,$D$71=$B$44),'Offre Alezio O Hybrid'!B260,"")))))))))) -> 7746242 | D131: =IF($D$71=$B$52,'OFFRE HPI M'!C256,IF(OR($D$71=$B$38,$D$71=$B$39),'Offre HPI - CAELIA'!C277,IF($D$71=$B$51,'Offre Strateo'!C197,IF($D$71=$B$40,'Offre S Compact - ERIA FIT IN'!C109,IF(OR($D$71=$B$36,$D$71=$B$37),'Offre SV200 - ERIA N DUO '!C134,IF(OR($D$71=$B$34,$D$71=$B$35),'Offre Alezio S - ERIA '!C194,IF(OR($D$71=$B$49,$D$71=$B$50),'Offre GSHP'!C240,IF($D$71="",'Offre Alezio G hybrid'!C223,IF(OR($D$71=$B$45,$D$71=$B$46,$D$71=$B$47,$D$71=$B$48),'Offre HPI - G Hybrid'!C258,IF(OR($D$71=$B$41,$D$71=$B$42,$D$71=$B$43,$D$71=$B$44),'Offre Alezio O Hybrid'!C260,"")))))))))) -> SOUPAPE DIFFERENTIELLE | H131: =IF($D$71=$B$52,'OFFRE HPI M'!D256,IF(OR($D$71=$B$38,$D$71=$B$39),'Offre HPI - CAELIA'!D277,IF($D$71=$B$51,'Offre Strateo'!D197,IF($D$71=$B$40,'Offre S Compact - ERIA FIT IN'!D109,IF(OR($D$71=$B$36,$D$71=$B$37),'Offre SV200 - ERIA N DUO '!D134,IF(OR($D$71=$B$34,$D$71=$B$35),'Offre Alezio S - ERIA '!D194,IF(OR($D$71=$B$50,$D$71=$B$49),'Offre GSHP'!D240,IF($D$71="",'Offre Alezio G hybrid'!D223,IF(OR($D$71=$B$45,$D$71=$B$46,$D$71=$B$47,$D$71=$B$48),'Offre HPI - G Hybrid'!D258,IF(OR($D$71=$B$41,$D$71=$B$42,$D$71=$B$43,$D$71=$B$44),'Offre Alezio O Hybrid'!D260,"")))))))))) -> HK150 | I131: =IF($D$71=$B$52,'OFFRE HPI M'!E256,IF(OR($D$71=$B$38,$D$71=$B$39),'Offre HPI - CAELIA'!E277,IF($D$71=$B$51,'Offre Strateo'!E197,IF($D$71=$B$40,'Offre S Compact - ERIA FIT IN'!E109,IF(OR($D$71=$B$36,$D$71=$B$37),'Offre SV200 - ERIA N DUO '!E134,IF(OR($D$71=$B$34,$D$71=$B$35),'Offre Alezio S - ERIA '!E194,IF(OR($D$71=$B$50,$D$71=$B$49),'Offre GSHP'!E240,IF($D$71="",'Offre Alezio G hybrid'!E223,IF(OR($D$71=$B$45,$D$71=$B$46,$D$71=$B$47,$D$71=$B$48),'Offre HPI - G Hybrid'!E258,IF(OR($D$71=$B$41,$D$71=$B$42,$D$71=$B$43,$D$71=$B$44),'Offre Alezio O Hybrid'!E260,"")))))))))) -> 59 | J131: =IF($D$71=$B$52,'OFFRE HPI M'!F256,IF(OR($D$71=$B$38,$D$71=$B$39),'Offre HPI - CAELIA'!F277,IF($D$71=$B$51,'Offre Strateo'!F197,IF($D$71=$B$40,'Offre S Compact - ERIA FIT IN'!F109,IF(OR($D$71=$B$36,$D$71=$B$37),'Offre SV200 - ERIA N DUO '!F134,IF(OR($D$71=$B$34,$D$71=$B$35),'Offre Alezio S - ERIA '!F194,IF(OR($D$71=$B$50,$D$71=$B$49),'Offre GSHP'!F240,IF($D$71="",'Offre Alezio G hybrid'!F223,IF(OR($D$71=$B$45,$D$71=$B$46,$D$71=$B$47,$D$71=$B$48),'Offre HPI - G Hybrid'!F258,IF(OR($D$71=$B$41,$D$71=$B$42,$D$71=$B$43,$D$71=$B$44),'Offre Alezio O Hybrid'!F260,"")))))))))) -> 1 | K131: =Chiffrage!M145 -> 0 | L131: 59
A132: 31 | C132: =IF($D$71=$B$52,'OFFRE HPI M'!B257,IF(OR($D$71=$B$38,$D$71=$B$39),'Offre HPI - CAELIA'!B278,IF($D$71=$B$51,'Offre Strateo'!B198,IF($D$71=$B$40,'Offre S Compact - ERIA FIT IN'!B110,IF(OR($D$71=$B$36,$D$71=$B$37),'Offre SV200 - ERIA N DUO '!B135,IF(OR($D$71=$B$34,$D$71=$B$35),'Offre Alezio S - ERIA '!B195,IF(OR($D$71=$B$49,$D$71=$B$50),'Offre GSHP'!B241,IF($D$71="",'Offre Alezio G hybrid'!B224,IF(OR($D$71=$B$45,$D$71=$B$46,$D$71=$B$47,$D$71=$B$48),'Offre HPI - G Hybrid'!B259,IF(OR($D$71=$B$41,$D$71=$B$42,$D$71=$B$43,$D$71=$B$44),'Offre Alezio O Hybrid'!B261,"")))))))))) ->  | D132: =IF($D$71=$B$52,'OFFRE HPI M'!C257,IF(OR($D$71=$B$38,$D$71=$B$39),'Offre HPI - CAELIA'!C278,IF($D$71=$B$51,'Offre Strateo'!C198,IF($D$71=$B$40,'Offre S Compact - ERIA FIT IN'!C110,IF(OR($D$71=$B$36,$D$71=$B$37),'Offre SV200 - ERIA N DUO '!C135,IF(OR($D$71=$B$34,$D$71=$B$35),'Offre Alezio S - ERIA '!C195,IF(OR($D$71=$B$49,$D$71=$B$50),'Offre GSHP'!C241,IF($D$71="",'Offre Alezio G hybrid'!C224,IF(OR($D$71=$B$45,$D$71=$B$46,$D$71=$B$47,$D$71=$B$48),'Offre HPI - G Hybrid'!C259,IF(OR($D$71=$B$41,$D$71=$B$42,$D$71=$B$43,$D$71=$B$44),'Offre Alezio O Hybrid'!C261,"")))))))))) ->  | H132: =IF($D$71=$B$52,'OFFRE HPI M'!D257,IF(OR($D$71=$B$38,$D$71=$B$39),'Offre HPI - CAELIA'!D278,IF($D$71=$B$51,'Offre Strateo'!D198,IF($D$71=$B$40,'Offre S Compact - ERIA FIT IN'!D110,IF(OR($D$71=$B$36,$D$71=$B$37),'Offre SV200 - ERIA N DUO '!D135,IF(OR($D$71=$B$34,$D$71=$B$35),'Offre Alezio S - ERIA '!D195,IF(OR($D$71=$B$50,$D$71=$B$49),'Offre GSHP'!D241,IF($D$71="",'Offre Alezio G hybrid'!D224,IF(OR($D$71=$B$45,$D$71=$B$46,$D$71=$B$47,$D$71=$B$48),'Offre HPI - G Hybrid'!D259,IF(OR($D$71=$B$41,$D$71=$B$42,$D$71=$B$43,$D$71=$B$44),'Offre Alezio O Hybrid'!D261,"")))))))))) ->  | I132: =IF($D$71=$B$52,'OFFRE HPI M'!E257,IF(OR($D$71=$B$38,$D$71=$B$39),'Offre HPI - CAELIA'!E278,IF($D$71=$B$51,'Offre Strateo'!E198,IF($D$71=$B$40,'Offre S Compact - ERIA FIT IN'!E110,IF(OR($D$71=$B$36,$D$71=$B$37),'Offre SV200 - ERIA N DUO '!E135,IF(OR($D$71=$B$34,$D$71=$B$35),'Offre Alezio S - ERIA '!E195,IF(OR($D$71=$B$50,$D$71=$B$49),'Offre GSHP'!E241,IF($D$71="",'Offre Alezio G hybrid'!E224,IF(OR($D$71=$B$45,$D$71=$B$46,$D$71=$B$47,$D$71=$B$48),'Offre HPI - G Hybrid'!E259,IF(OR($D$71=$B$41,$D$71=$B$42,$D$71=$B$43,$D$71=$B$44),'Offre Alezio O Hybrid'!E261,"")))))))))) ->  | J132: =IF($D$71=$B$52,'OFFRE HPI M'!F257,IF(OR($D$71=$B$38,$D$71=$B$39),'Offre HPI - CAELIA'!F278,IF($D$71=$B$51,'Offre Strateo'!F198,IF($D$71=$B$40,'Offre S Compact - ERIA FIT IN'!F110,IF(OR($D$71=$B$36,$D$71=$B$37),'Offre SV200 - ERIA N DUO '!F135,IF(OR($D$71=$B$34,$D$71=$B$35),'Offre Alezio S - ERIA '!F195,IF(OR($D$71=$B$50,$D$71=$B$49),'Offre GSHP'!F241,IF($D$71="",'Offre Alezio G hybrid'!F224,IF(OR($D$71=$B$45,$D$71=$B$46,$D$71=$B$47,$D$71=$B$48),'Offre HPI - G Hybrid'!F259,IF(OR($D$71=$B$41,$D$71=$B$42,$D$71=$B$43,$D$71=$B$44),'Offre Alezio O Hybrid'!F261,"")))))))))) ->  | K132: =Chiffrage!M146 -> 0
A133: 32 | C133: =IF($D$71=$B$52,'OFFRE HPI M'!B258,IF(OR($D$71=$B$38,$D$71=$B$39),'Offre HPI - CAELIA'!B279,IF($D$71=$B$51,'Offre Strateo'!B199,IF($D$71=$B$40,'Offre S Compact - ERIA FIT IN'!B111,IF(OR($D$71=$B$36,$D$71=$B$37),'Offre SV200 - ERIA N DUO '!B136,IF(OR($D$71=$B$34,$D$71=$B$35),'Offre Alezio S - ERIA '!B196,IF(OR($D$71=$B$49,$D$71=$B$50),'Offre GSHP'!B242,IF($D$71="",'Offre Alezio G hybrid'!B225,IF(OR($D$71=$B$45,$D$71=$B$46,$D$71=$B$47,$D$71=$B$48),'Offre HPI - G Hybrid'!B260,IF(OR($D$71=$B$41,$D$71=$B$42,$D$71=$B$43,$D$71=$B$44),'Offre Alezio O Hybrid'!B262,"")))))))))) ->  | D133: =IF($D$71=$B$52,'OFFRE HPI M'!C258,IF(OR($D$71=$B$38,$D$71=$B$39),'Offre HPI - CAELIA'!C279,IF($D$71=$B$51,'Offre Strateo'!C199,IF($D$71=$B$40,'Offre S Compact - ERIA FIT IN'!C111,IF(OR($D$71=$B$36,$D$71=$B$37),'Offre SV200 - ERIA N DUO '!C136,IF(OR($D$71=$B$34,$D$71=$B$35),'Offre Alezio S - ERIA '!C196,IF(OR($D$71=$B$49,$D$71=$B$50),'Offre GSHP'!C242,IF($D$71="",'Offre Alezio G hybrid'!C225,IF(OR($D$71=$B$45,$D$71=$B$46,$D$71=$B$47,$D$71=$B$48),'Offre HPI - G Hybrid'!C260,IF(OR($D$71=$B$41,$D$71=$B$42,$D$71=$B$43,$D$71=$B$44),'Offre Alezio O Hybrid'!C262,"")))))))))) ->  | H133: =IF($D$71=$B$52,'OFFRE HPI M'!D258,IF(OR($D$71=$B$38,$D$71=$B$39),'Offre HPI - CAELIA'!D279,IF($D$71=$B$51,'Offre Strateo'!D199,IF($D$71=$B$40,'Offre S Compact - ERIA FIT IN'!D111,IF(OR($D$71=$B$36,$D$71=$B$37),'Offre SV200 - ERIA N DUO '!D136,IF(OR($D$71=$B$34,$D$71=$B$35),'Offre Alezio S - ERIA '!D196,IF(OR($D$71=$B$50,$D$71=$B$49),'Offre GSHP'!D242,IF($D$71="",'Offre Alezio G hybrid'!D225,IF(OR($D$71=$B$45,$D$71=$B$46,$D$71=$B$47,$D$71=$B$48),'Offre HPI - G Hybrid'!D260,IF(OR($D$71=$B$41,$D$71=$B$42,$D$71=$B$43,$D$71=$B$44),'Offre Alezio O Hybrid'!D262,"")))))))))) ->  | I133: =IF($D$71=$B$52,'OFFRE HPI M'!E258,IF(OR($D$71=$B$38,$D$71=$B$39),'Offre HPI - CAELIA'!E279,IF($D$71=$B$51,'Offre Strateo'!E199,IF($D$71=$B$40,'Offre S Compact - ERIA FIT IN'!E111,IF(OR($D$71=$B$36,$D$71=$B$37),'Offre SV200 - ERIA N DUO '!E136,IF(OR($D$71=$B$34,$D$71=$B$35),'Offre Alezio S - ERIA '!E196,IF(OR($D$71=$B$50,$D$71=$B$49),'Offre GSHP'!E242,IF($D$71="",'Offre Alezio G hybrid'!E225,IF(OR($D$71=$B$45,$D$71=$B$46,$D$71=$B$47,$D$71=$B$48),'Offre HPI - G Hybrid'!E260,IF(OR($D$71=$B$41,$D$71=$B$42,$D$71=$B$43,$D$71=$B$44),'Offre Alezio O Hybrid'!E262,"")))))))))) ->  | J133: =IF($D$71=$B$52,'OFFRE HPI M'!F258,IF(OR($D$71=$B$38,$D$71=$B$39),'Offre HPI - CAELIA'!F279,IF($D$71=$B$51,'Offre Strateo'!F199,IF($D$71=$B$40,'Offre S Compact - ERIA FIT IN'!F111,IF(OR($D$71=$B$36,$D$71=$B$37),'Offre SV200 - ERIA N DUO '!F136,IF(OR($D$71=$B$34,$D$71=$B$35),'Offre Alezio S - ERIA '!F196,IF(OR($D$71=$B$50,$D$71=$B$49),'Offre GSHP'!F242,IF($D$71="",'Offre Alezio G hybrid'!F225,IF(OR($D$71=$B$45,$D$71=$B$46,$D$71=$B$47,$D$71=$B$48),'Offre HPI - G Hybrid'!F260,IF(OR($D$71=$B$41,$D$71=$B$42,$D$71=$B$43,$D$71=$B$44),'Offre Alezio O Hybrid'!F262,"")))))))))) ->  | K133: =Chiffrage!M147 -> 0
A134: 33 | C134: =IF($D$71=$B$52,'OFFRE HPI M'!B259,IF(OR($D$71=$B$38,$D$71=$B$39),'Offre HPI - CAELIA'!B280,IF($D$71=$B$51,'Offre Strateo'!B200,IF($D$71=$B$40,'Offre S Compact - ERIA FIT IN'!B112,IF(OR($D$71=$B$36,$D$71=$B$37),'Offre SV200 - ERIA N DUO '!B137,IF(OR($D$71=$B$34,$D$71=$B$35),'Offre Alezio S - ERIA '!B197,IF(OR($D$71=$B$49,$D$71=$B$50),'Offre GSHP'!B243,IF($D$71="",'Offre Alezio G hybrid'!B226,IF(OR($D$71=$B$45,$D$71=$B$46,$D$71=$B$47,$D$71=$B$48),'Offre HPI - G Hybrid'!B261,IF(OR($D$71=$B$41,$D$71=$B$42,$D$71=$B$43,$D$71=$B$44),'Offre Alezio O Hybrid'!B263,"")))))))))) ->  | D134: =IF($D$71=$B$52,'OFFRE HPI M'!C259,IF(OR($D$71=$B$38,$D$71=$B$39),'Offre HPI - CAELIA'!C280,IF($D$71=$B$51,'Offre Strateo'!C200,IF($D$71=$B$40,'Offre S Compact - ERIA FIT IN'!C112,IF(OR($D$71=$B$36,$D$71=$B$37),'Offre SV200 - ERIA N DUO '!C137,IF(OR($D$71=$B$34,$D$71=$B$35),'Offre Alezio S - ERIA '!C197,IF(OR($D$71=$B$49,$D$71=$B$50),'Offre GSHP'!C243,IF($D$71="",'Offre Alezio G hybrid'!C226,IF(OR($D$71=$B$45,$D$71=$B$46,$D$71=$B$47,$D$71=$B$48),'Offre HPI - G Hybrid'!C261,IF(OR($D$71=$B$41,$D$71=$B$42,$D$71=$B$43,$D$71=$B$44),'Offre Alezio O Hybrid'!C263,"")))))))))) ->  | H134: =IF($D$71=$B$52,'OFFRE HPI M'!D259,IF(OR($D$71=$B$38,$D$71=$B$39),'Offre HPI - CAELIA'!D280,IF($D$71=$B$51,'Offre Strateo'!D200,IF($D$71=$B$40,'Offre S Compact - ERIA FIT IN'!D112,IF(OR($D$71=$B$36,$D$71=$B$37),'Offre SV200 - ERIA N DUO '!D137,IF(OR($D$71=$B$34,$D$71=$B$35),'Offre Alezio S - ERIA '!D197,IF(OR($D$71=$B$50,$D$71=$B$49),'Offre GSHP'!D243,IF($D$71="",'Offre Alezio G hybrid'!D226,IF(OR($D$71=$B$45,$D$71=$B$46,$D$71=$B$47,$D$71=$B$48),'Offre HPI - G Hybrid'!D261,IF(OR($D$71=$B$41,$D$71=$B$42,$D$71=$B$43,$D$71=$B$44),'Offre Alezio O Hybrid'!D263,"")))))))))) ->  | I134: =IF($D$71=$B$52,'OFFRE HPI M'!E259,IF(OR($D$71=$B$38,$D$71=$B$39),'Offre HPI - CAELIA'!E280,IF($D$71=$B$51,'Offre Strateo'!E200,IF($D$71=$B$40,'Offre S Compact - ERIA FIT IN'!E112,IF(OR($D$71=$B$36,$D$71=$B$37),'Offre SV200 - ERIA N DUO '!E137,IF(OR($D$71=$B$34,$D$71=$B$35),'Offre Alezio S - ERIA '!E197,IF(OR($D$71=$B$50,$D$71=$B$49),'Offre GSHP'!E243,IF($D$71="",'Offre Alezio G hybrid'!E226,IF(OR($D$71=$B$45,$D$71=$B$46,$D$71=$B$47,$D$71=$B$48),'Offre HPI - G Hybrid'!E261,IF(OR($D$71=$B$41,$D$71=$B$42,$D$71=$B$43,$D$71=$B$44),'Offre Alezio O Hybrid'!E263,"")))))))))) ->  | J134: =IF($D$71=$B$52,'OFFRE HPI M'!F259,IF(OR($D$71=$B$38,$D$71=$B$39),'Offre HPI - CAELIA'!F280,IF($D$71=$B$51,'Offre Strateo'!F200,IF($D$71=$B$40,'Offre S Compact - ERIA FIT IN'!F112,IF(OR($D$71=$B$36,$D$71=$B$37),'Offre SV200 - ERIA N DUO '!F137,IF(OR($D$71=$B$34,$D$71=$B$35),'Offre Alezio S - ERIA '!F197,IF(OR($D$71=$B$50,$D$71=$B$49),'Offre GSHP'!F243,IF($D$71="",'Offre Alezio G hybrid'!F226,IF(OR($D$71=$B$45,$D$71=$B$46,$D$71=$B$47,$D$71=$B$48),'Offre HPI - G Hybrid'!F261,IF(OR($D$71=$B$41,$D$71=$B$42,$D$71=$B$43,$D$71=$B$44),'Offre Alezio O Hybrid'!F263,"")))))))))) ->  | K134: =Chiffrage!M148 -> 0
A135: 34 | C135: =IF($D$71=$B$52,'OFFRE HPI M'!B260,IF(OR($D$71=$B$38,$D$71=$B$39),'Offre HPI - CAELIA'!B281,IF($D$71=$B$51,'Offre Strateo'!B201,IF($D$71=$B$40,'Offre S Compact - ERIA FIT IN'!B113,IF(OR($D$71=$B$36,$D$71=$B$37),'Offre SV200 - ERIA N DUO '!B138,IF(OR($D$71=$B$34,$D$71=$B$35),'Offre Alezio S - ERIA '!B198,IF(OR($D$71=$B$49,$D$71=$B$50),'Offre GSHP'!B244,IF($D$71="",'Offre Alezio G hybrid'!B227,IF(OR($D$71=$B$45,$D$71=$B$46,$D$71=$B$47,$D$71=$B$48),'Offre HPI - G Hybrid'!B262,IF(OR($D$71=$B$41,$D$71=$B$42,$D$71=$B$43,$D$71=$B$44),'Offre Alezio O Hybrid'!B264,"")))))))))) ->  | D135: =IF($D$71=$B$52,'OFFRE HPI M'!C260,IF(OR($D$71=$B$38,$D$71=$B$39),'Offre HPI - CAELIA'!C281,IF($D$71=$B$51,'Offre Strateo'!C201,IF($D$71=$B$40,'Offre S Compact - ERIA FIT IN'!C113,IF(OR($D$71=$B$36,$D$71=$B$37),'Offre SV200 - ERIA N DUO '!C138,IF(OR($D$71=$B$34,$D$71=$B$35),'Offre Alezio S - ERIA '!C198,IF(OR($D$71=$B$49,$D$71=$B$50),'Offre GSHP'!C244,IF($D$71="",'Offre Alezio G hybrid'!C227,IF(OR($D$71=$B$45,$D$71=$B$46,$D$71=$B$47,$D$71=$B$48),'Offre HPI - G Hybrid'!C262,IF(OR($D$71=$B$41,$D$71=$B$42,$D$71=$B$43,$D$71=$B$44),'Offre Alezio O Hybrid'!C264,"")))))))))) ->  | H135: =IF($D$71=$B$52,'OFFRE HPI M'!D260,IF(OR($D$71=$B$38,$D$71=$B$39),'Offre HPI - CAELIA'!D281,IF($D$71=$B$51,'Offre Strateo'!D201,IF($D$71=$B$40,'Offre S Compact - ERIA FIT IN'!D113,IF(OR($D$71=$B$36,$D$71=$B$37),'Offre SV200 - ERIA N DUO '!D138,IF(OR($D$71=$B$34,$D$71=$B$35),'Offre Alezio S - ERIA '!D198,IF(OR($D$71=$B$50,$D$71=$B$49),'Offre GSHP'!D244,IF($D$71="",'Offre Alezio G hybrid'!D227,IF(OR($D$71=$B$45,$D$71=$B$46,$D$71=$B$47,$D$71=$B$48),'Offre HPI - G Hybrid'!D262,IF(OR($D$71=$B$41,$D$71=$B$42,$D$71=$B$43,$D$71=$B$44),'Offre Alezio O Hybrid'!D264,"")))))))))) ->  | I135: =IF($D$71=$B$52,'OFFRE HPI M'!E260,IF(OR($D$71=$B$38,$D$71=$B$39),'Offre HPI - CAELIA'!E281,IF($D$71=$B$51,'Offre Strateo'!E201,IF($D$71=$B$40,'Offre S Compact - ERIA FIT IN'!E113,IF(OR($D$71=$B$36,$D$71=$B$37),'Offre SV200 - ERIA N DUO '!E138,IF(OR($D$71=$B$34,$D$71=$B$35),'Offre Alezio S - ERIA '!E198,IF(OR($D$71=$B$50,$D$71=$B$49),'Offre GSHP'!E244,IF($D$71="",'Offre Alezio G hybrid'!E227,IF(OR($D$71=$B$45,$D$71=$B$46,$D$71=$B$47,$D$71=$B$48),'Offre HPI - G Hybrid'!E262,IF(OR($D$71=$B$41,$D$71=$B$42,$D$71=$B$43,$D$71=$B$44),'Offre Alezio O Hybrid'!E264,"")))))))))) ->  | J135: =IF($D$71=$B$52,'OFFRE HPI M'!F260,IF(OR($D$71=$B$38,$D$71=$B$39),'Offre HPI - CAELIA'!F281,IF($D$71=$B$51,'Offre Strateo'!F201,IF($D$71=$B$40,'Offre S Compact - ERIA FIT IN'!F113,IF(OR($D$71=$B$36,$D$71=$B$37),'Offre SV200 - ERIA N DUO '!F138,IF(OR($D$71=$B$34,$D$71=$B$35),'Offre Alezio S - ERIA '!F198,IF(OR($D$71=$B$50,$D$71=$B$49),'Offre GSHP'!F244,IF($D$71="",'Offre Alezio G hybrid'!F227,IF(OR($D$71=$B$45,$D$71=$B$46,$D$71=$B$47,$D$71=$B$48),'Offre HPI - G Hybrid'!F262,IF(OR($D$71=$B$41,$D$71=$B$42,$D$71=$B$43,$D$71=$B$44),'Offre Alezio O Hybrid'!F264,"")))))))))) ->  | K135: =Chiffrage!M149 -> 0
A136: 35 | C136: =IF($D$71=$B$52,'OFFRE HPI M'!B261,IF(OR($D$71=$B$38,$D$71=$B$39),'Offre HPI - CAELIA'!B282,IF($D$71=$B$51,'Offre Strateo'!B202,IF($D$71=$B$40,'Offre S Compact - ERIA FIT IN'!B114,IF(OR($D$71=$B$36,$D$71=$B$37),'Offre SV200 - ERIA N DUO '!B139,IF(OR($D$71=$B$34,$D$71=$B$35),'Offre Alezio S - ERIA '!B199,IF(OR($D$71=$B$49,$D$71=$B$50),'Offre GSHP'!B245,IF($D$71="",'Offre Alezio G hybrid'!B228,IF(OR($D$71=$B$45,$D$71=$B$46,$D$71=$B$47,$D$71=$B$48),'Offre HPI - G Hybrid'!B263,IF(OR($D$71=$B$41,$D$71=$B$42,$D$71=$B$43,$D$71=$B$44),'Offre Alezio O Hybrid'!B265,"")))))))))) ->  | D136: =IF($D$71=$B$52,'OFFRE HPI M'!C261,IF(OR($D$71=$B$38,$D$71=$B$39),'Offre HPI - CAELIA'!C282,IF($D$71=$B$51,'Offre Strateo'!C202,IF($D$71=$B$40,'Offre S Compact - ERIA FIT IN'!C114,IF(OR($D$71=$B$36,$D$71=$B$37),'Offre SV200 - ERIA N DUO '!C139,IF(OR($D$71=$B$34,$D$71=$B$35),'Offre Alezio S - ERIA '!C199,IF(OR($D$71=$B$49,$D$71=$B$50),'Offre GSHP'!C245,IF($D$71="",'Offre Alezio G hybrid'!C228,IF(OR($D$71=$B$45,$D$71=$B$46,$D$71=$B$47,$D$71=$B$48),'Offre HPI - G Hybrid'!C263,IF(OR($D$71=$B$41,$D$71=$B$42,$D$71=$B$43,$D$71=$B$44),'Offre Alezio O Hybrid'!C265,"")))))))))) ->  | H136: =IF($D$71=$B$52,'OFFRE HPI M'!D261,IF(OR($D$71=$B$38,$D$71=$B$39),'Offre HPI - CAELIA'!D282,IF($D$71=$B$51,'Offre Strateo'!D202,IF($D$71=$B$40,'Offre S Compact - ERIA FIT IN'!D114,IF(OR($D$71=$B$36,$D$71=$B$37),'Offre SV200 - ERIA N DUO '!D139,IF(OR($D$71=$B$34,$D$71=$B$35),'Offre Alezio S - ERIA '!D199,IF(OR($D$71=$B$50,$D$71=$B$49),'Offre GSHP'!D245,IF($D$71="",'Offre Alezio G hybrid'!D228,IF(OR($D$71=$B$45,$D$71=$B$46,$D$71=$B$47,$D$71=$B$48),'Offre HPI - G Hybrid'!D263,IF(OR($D$71=$B$41,$D$71=$B$42,$D$71=$B$43,$D$71=$B$44),'Offre Alezio O Hybrid'!D265,"")))))))))) ->  | I136: =IF($D$71=$B$52,'OFFRE HPI M'!E261,IF(OR($D$71=$B$38,$D$71=$B$39),'Offre HPI - CAELIA'!E282,IF($D$71=$B$51,'Offre Strateo'!E202,IF($D$71=$B$40,'Offre S Compact - ERIA FIT IN'!E114,IF(OR($D$71=$B$36,$D$71=$B$37),'Offre SV200 - ERIA N DUO '!E139,IF(OR($D$71=$B$34,$D$71=$B$35),'Offre Alezio S - ERIA '!E199,IF(OR($D$71=$B$50,$D$71=$B$49),'Offre GSHP'!E245,IF($D$71="",'Offre Alezio G hybrid'!E228,IF(OR($D$71=$B$45,$D$71=$B$46,$D$71=$B$47,$D$71=$B$48),'Offre HPI - G Hybrid'!E263,IF(OR($D$71=$B$41,$D$71=$B$42,$D$71=$B$43,$D$71=$B$44),'Offre Alezio O Hybrid'!E265,"")))))))))) ->  | J136: =IF($D$71=$B$52,'OFFRE HPI M'!F261,IF(OR($D$71=$B$38,$D$71=$B$39),'Offre HPI - CAELIA'!F282,IF($D$71=$B$51,'Offre Strateo'!F202,IF($D$71=$B$40,'Offre S Compact - ERIA FIT IN'!F114,IF(OR($D$71=$B$36,$D$71=$B$37),'Offre SV200 - ERIA N DUO '!F139,IF(OR($D$71=$B$34,$D$71=$B$35),'Offre Alezio S - ERIA '!F199,IF(OR($D$71=$B$50,$D$71=$B$49),'Offre GSHP'!F245,IF($D$71="",'Offre Alezio G hybrid'!F228,IF(OR($D$71=$B$45,$D$71=$B$46,$D$71=$B$47,$D$71=$B$48),'Offre HPI - G Hybrid'!F263,IF(OR($D$71=$B$41,$D$71=$B$42,$D$71=$B$43,$D$71=$B$44),'Offre Alezio O Hybrid'!F265,"")))))))))) ->  | K136: =Chiffrage!M150 -> 0
A137: 36 | C137: =IF($D$71=$B$52,'OFFRE HPI M'!B262,IF(OR($D$71=$B$38,$D$71=$B$39),'Offre HPI - CAELIA'!B283,IF($D$71=$B$51,'Offre Strateo'!B203,IF($D$71=$B$40,'Offre S Compact - ERIA FIT IN'!B115,IF(OR($D$71=$B$36,$D$71=$B$37),'Offre SV200 - ERIA N DUO '!B140,IF(OR($D$71=$B$34,$D$71=$B$35),'Offre Alezio S - ERIA '!B200,IF(OR($D$71=$B$49,$D$71=$B$50),'Offre GSHP'!B246,IF($D$71="",'Offre Alezio G hybrid'!B229,IF(OR($D$71=$B$45,$D$71=$B$46,$D$71=$B$47,$D$71=$B$48),'Offre HPI - G Hybrid'!B264,IF(OR($D$71=$B$41,$D$71=$B$42,$D$71=$B$43,$D$71=$B$44),'Offre Alezio O Hybrid'!B266,"")))))))))) ->  | D137: =IF($D$71=$B$52,'OFFRE HPI M'!C262,IF(OR($D$71=$B$38,$D$71=$B$39),'Offre HPI - CAELIA'!C283,IF($D$71=$B$51,'Offre Strateo'!C203,IF($D$71=$B$40,'Offre S Compact - ERIA FIT IN'!C115,IF(OR($D$71=$B$36,$D$71=$B$37),'Offre SV200 - ERIA N DUO '!C140,IF(OR($D$71=$B$34,$D$71=$B$35),'Offre Alezio S - ERIA '!C200,IF(OR($D$71=$B$49,$D$71=$B$50),'Offre GSHP'!C246,IF($D$71="",'Offre Alezio G hybrid'!C229,IF(OR($D$71=$B$45,$D$71=$B$46,$D$71=$B$47,$D$71=$B$48),'Offre HPI - G Hybrid'!C264,IF(OR($D$71=$B$41,$D$71=$B$42,$D$71=$B$43,$D$71=$B$44),'Offre Alezio O Hybrid'!C266,"")))))))))) ->  | H137: =IF($D$71=$B$52,'OFFRE HPI M'!D262,IF(OR($D$71=$B$38,$D$71=$B$39),'Offre HPI - CAELIA'!D283,IF($D$71=$B$51,'Offre Strateo'!D203,IF($D$71=$B$40,'Offre S Compact - ERIA FIT IN'!D115,IF(OR($D$71=$B$36,$D$71=$B$37),'Offre SV200 - ERIA N DUO '!D140,IF(OR($D$71=$B$34,$D$71=$B$35),'Offre Alezio S - ERIA '!D200,IF(OR($D$71=$B$50,$D$71=$B$49),'Offre GSHP'!D246,IF($D$71="",'Offre Alezio G hybrid'!D229,IF(OR($D$71=$B$45,$D$71=$B$46,$D$71=$B$47,$D$71=$B$48),'Offre HPI - G Hybrid'!D264,IF(OR($D$71=$B$41,$D$71=$B$42,$D$71=$B$43,$D$71=$B$44),'Offre Alezio O Hybrid'!D266,"")))))))))) ->  | I137: =IF($D$71=$B$52,'OFFRE HPI M'!E262,IF(OR($D$71=$B$38,$D$71=$B$39),'Offre HPI - CAELIA'!E283,IF($D$71=$B$51,'Offre Strateo'!E203,IF($D$71=$B$40,'Offre S Compact - ERIA FIT IN'!E115,IF(OR($D$71=$B$36,$D$71=$B$37),'Offre SV200 - ERIA N DUO '!E140,IF(OR($D$71=$B$34,$D$71=$B$35),'Offre Alezio S - ERIA '!E200,IF(OR($D$71=$B$50,$D$71=$B$49),'Offre GSHP'!E246,IF($D$71="",'Offre Alezio G hybrid'!E229,IF(OR($D$71=$B$45,$D$71=$B$46,$D$71=$B$47,$D$71=$B$48),'Offre HPI - G Hybrid'!E264,IF(OR($D$71=$B$41,$D$71=$B$42,$D$71=$B$43,$D$71=$B$44),'Offre Alezio O Hybrid'!E266,"")))))))))) ->  | J137: =IF($D$71=$B$52,'OFFRE HPI M'!F262,IF(OR($D$71=$B$38,$D$71=$B$39),'Offre HPI - CAELIA'!F283,IF($D$71=$B$51,'Offre Strateo'!F203,IF($D$71=$B$40,'Offre S Compact - ERIA FIT IN'!F115,IF(OR($D$71=$B$36,$D$71=$B$37),'Offre SV200 - ERIA N DUO '!F140,IF(OR($D$71=$B$34,$D$71=$B$35),'Offre Alezio S - ERIA '!F200,IF(OR($D$71=$B$50,$D$71=$B$49),'Offre GSHP'!F246,IF($D$71="",'Offre Alezio G hybrid'!F229,IF(OR($D$71=$B$45,$D$71=$B$46,$D$71=$B$47,$D$71=$B$48),'Offre HPI - G Hybrid'!F264,IF(OR($D$71=$B$41,$D$71=$B$42,$D$71=$B$43,$D$71=$B$44),'Offre Alezio O Hybrid'!F266,"")))))))))) ->  | K137: =Chiffrage!M151 -> 0
A138: 37 | C138: =IF($D$71=$B$52,'OFFRE HPI M'!B263,IF(OR($D$71=$B$38,$D$71=$B$39),'Offre HPI - CAELIA'!B284,IF($D$71=$B$51,'Offre Strateo'!B204,IF($D$71=$B$40,'Offre S Compact - ERIA FIT IN'!B116,IF(OR($D$71=$B$36,$D$71=$B$37),'Offre SV200 - ERIA N DUO '!B141,IF(OR($D$71=$B$34,$D$71=$B$35),'Offre Alezio S - ERIA '!B201,IF(OR($D$71=$B$49,$D$71=$B$50),'Offre GSHP'!B247,IF($D$71="",'Offre Alezio G hybrid'!B230,IF(OR($D$71=$B$45,$D$71=$B$46,$D$71=$B$47,$D$71=$B$48),'Offre HPI - G Hybrid'!B265,IF(OR($D$71=$B$41,$D$71=$B$42,$D$71=$B$43,$D$71=$B$44),'Offre Alezio O Hybrid'!B267,"")))))))))) ->  | D138: =IF($D$71=$B$52,'OFFRE HPI M'!C263,IF(OR($D$71=$B$38,$D$71=$B$39),'Offre HPI - CAELIA'!C284,IF($D$71=$B$51,'Offre Strateo'!C204,IF($D$71=$B$40,'Offre S Compact - ERIA FIT IN'!C116,IF(OR($D$71=$B$36,$D$71=$B$37),'Offre SV200 - ERIA N DUO '!C141,IF(OR($D$71=$B$34,$D$71=$B$35),'Offre Alezio S - ERIA '!C201,IF(OR($D$71=$B$49,$D$71=$B$50),'Offre GSHP'!C247,IF($D$71="",'Offre Alezio G hybrid'!C230,IF(OR($D$71=$B$45,$D$71=$B$46,$D$71=$B$47,$D$71=$B$48),'Offre HPI - G Hybrid'!C265,IF(OR($D$71=$B$41,$D$71=$B$42,$D$71=$B$43,$D$71=$B$44),'Offre Alezio O Hybrid'!C267,"")))))))))) ->  | H138: =IF($D$71=$B$52,'OFFRE HPI M'!D263,IF(OR($D$71=$B$38,$D$71=$B$39),'Offre HPI - CAELIA'!D284,IF($D$71=$B$51,'Offre Strateo'!D204,IF($D$71=$B$40,'Offre S Compact - ERIA FIT IN'!D116,IF(OR($D$71=$B$36,$D$71=$B$37),'Offre SV200 - ERIA N DUO '!D141,IF(OR($D$71=$B$34,$D$71=$B$35),'Offre Alezio S - ERIA '!D201,IF(OR($D$71=$B$50,$D$71=$B$49),'Offre GSHP'!D247,IF($D$71="",'Offre Alezio G hybrid'!D230,IF(OR($D$71=$B$45,$D$71=$B$46,$D$71=$B$47,$D$71=$B$48),'Offre HPI - G Hybrid'!D265,IF(OR($D$71=$B$41,$D$71=$B$42,$D$71=$B$43,$D$71=$B$44),'Offre Alezio O Hybrid'!D267,"")))))))))) ->  | I138: =IF($D$71=$B$52,'OFFRE HPI M'!E263,IF(OR($D$71=$B$38,$D$71=$B$39),'Offre HPI - CAELIA'!E284,IF($D$71=$B$51,'Offre Strateo'!E204,IF($D$71=$B$40,'Offre S Compact - ERIA FIT IN'!E116,IF(OR($D$71=$B$36,$D$71=$B$37),'Offre SV200 - ERIA N DUO '!E141,IF(OR($D$71=$B$34,$D$71=$B$35),'Offre Alezio S - ERIA '!E201,IF(OR($D$71=$B$50,$D$71=$B$49),'Offre GSHP'!E247,IF($D$71="",'Offre Alezio G hybrid'!E230,IF(OR($D$71=$B$45,$D$71=$B$46,$D$71=$B$47,$D$71=$B$48),'Offre HPI - G Hybrid'!E265,IF(OR($D$71=$B$41,$D$71=$B$42,$D$71=$B$43,$D$71=$B$44),'Offre Alezio O Hybrid'!E267,"")))))))))) ->  | J138: =IF($D$71=$B$52,'OFFRE HPI M'!F263,IF(OR($D$71=$B$38,$D$71=$B$39),'Offre HPI - CAELIA'!F284,IF($D$71=$B$51,'Offre Strateo'!F204,IF($D$71=$B$40,'Offre S Compact - ERIA FIT IN'!F116,IF(OR($D$71=$B$36,$D$71=$B$37),'Offre SV200 - ERIA N DUO '!F141,IF(OR($D$71=$B$34,$D$71=$B$35),'Offre Alezio S - ERIA '!F201,IF(OR($D$71=$B$50,$D$71=$B$49),'Offre GSHP'!F247,IF($D$71="",'Offre Alezio G hybrid'!F230,IF(OR($D$71=$B$45,$D$71=$B$46,$D$71=$B$47,$D$71=$B$48),'Offre HPI - G Hybrid'!F265,IF(OR($D$71=$B$41,$D$71=$B$42,$D$71=$B$43,$D$71=$B$44),'Offre Alezio O Hybrid'!F267,"")))))))))) ->  | K138: =Chiffrage!M152 -> 0
A139: 38 | C139: =IF($D$71=$B$52,'OFFRE HPI M'!B264,IF(OR($D$71=$B$38,$D$71=$B$39),'Offre HPI - CAELIA'!B285,IF($D$71=$B$51,'Offre Strateo'!B205,IF($D$71=$B$40,'Offre S Compact - ERIA FIT IN'!B117,IF(OR($D$71=$B$36,$D$71=$B$37),'Offre SV200 - ERIA N DUO '!B142,IF(OR($D$71=$B$34,$D$71=$B$35),'Offre Alezio S - ERIA '!B202,IF(OR($D$71=$B$49,$D$71=$B$50),'Offre GSHP'!B248,IF($D$71="",'Offre Alezio G hybrid'!B231,IF(OR($D$71=$B$45,$D$71=$B$46,$D$71=$B$47,$D$71=$B$48),'Offre HPI - G Hybrid'!B266,IF(OR($D$71=$B$41,$D$71=$B$42,$D$71=$B$43,$D$71=$B$44),'Offre Alezio O Hybrid'!B268,"")))))))))) ->  | D139: =IF($D$71=$B$52,'OFFRE HPI M'!C264,IF(OR($D$71=$B$38,$D$71=$B$39),'Offre HPI - CAELIA'!C285,IF($D$71=$B$51,'Offre Strateo'!C205,IF($D$71=$B$40,'Offre S Compact - ERIA FIT IN'!C117,IF(OR($D$71=$B$36,$D$71=$B$37),'Offre SV200 - ERIA N DUO '!C142,IF(OR($D$71=$B$34,$D$71=$B$35),'Offre Alezio S - ERIA '!C202,IF(OR($D$71=$B$49,$D$71=$B$50),'Offre GSHP'!C248,IF($D$71="",'Offre Alezio G hybrid'!C231,IF(OR($D$71=$B$45,$D$71=$B$46,$D$71=$B$47,$D$71=$B$48),'Offre HPI - G Hybrid'!C266,IF(OR($D$71=$B$41,$D$71=$B$42,$D$71=$B$43,$D$71=$B$44),'Offre Alezio O Hybrid'!C268,"")))))))))) ->  | H139: =IF($D$71=$B$52,'OFFRE HPI M'!D264,IF(OR($D$71=$B$38,$D$71=$B$39),'Offre HPI - CAELIA'!D285,IF($D$71=$B$51,'Offre Strateo'!D205,IF($D$71=$B$40,'Offre S Compact - ERIA FIT IN'!D117,IF(OR($D$71=$B$36,$D$71=$B$37),'Offre SV200 - ERIA N DUO '!D142,IF(OR($D$71=$B$34,$D$71=$B$35),'Offre Alezio S - ERIA '!D202,IF(OR($D$71=$B$50,$D$71=$B$49),'Offre GSHP'!D248,IF($D$71="",'Offre Alezio G hybrid'!D231,IF(OR($D$71=$B$45,$D$71=$B$46,$D$71=$B$47,$D$71=$B$48),'Offre HPI - G Hybrid'!D266,IF(OR($D$71=$B$41,$D$71=$B$42,$D$71=$B$43,$D$71=$B$44),'Offre Alezio O Hybrid'!D268,"")))))))))) ->  | I139: =IF($D$71=$B$52,'OFFRE HPI M'!E264,IF(OR($D$71=$B$38,$D$71=$B$39),'Offre HPI - CAELIA'!E285,IF($D$71=$B$51,'Offre Strateo'!E205,IF($D$71=$B$40,'Offre S Compact - ERIA FIT IN'!E117,IF(OR($D$71=$B$36,$D$71=$B$37),'Offre SV200 - ERIA N DUO '!E142,IF(OR($D$71=$B$34,$D$71=$B$35),'Offre Alezio S - ERIA '!E202,IF(OR($D$71=$B$50,$D$71=$B$49),'Offre GSHP'!E248,IF($D$71="",'Offre Alezio G hybrid'!E231,IF(OR($D$71=$B$45,$D$71=$B$46,$D$71=$B$47,$D$71=$B$48),'Offre HPI - G Hybrid'!E266,IF(OR($D$71=$B$41,$D$71=$B$42,$D$71=$B$43,$D$71=$B$44),'Offre Alezio O Hybrid'!E268,"")))))))))) ->  | J139: =IF($D$71=$B$52,'OFFRE HPI M'!F264,IF(OR($D$71=$B$38,$D$71=$B$39),'Offre HPI - CAELIA'!F285,IF($D$71=$B$51,'Offre Strateo'!F205,IF($D$71=$B$40,'Offre S Compact - ERIA FIT IN'!F117,IF(OR($D$71=$B$36,$D$71=$B$37),'Offre SV200 - ERIA N DUO '!F142,IF(OR($D$71=$B$34,$D$71=$B$35),'Offre Alezio S - ERIA '!F202,IF(OR($D$71=$B$50,$D$71=$B$49),'Offre GSHP'!F248,IF($D$71="",'Offre Alezio G hybrid'!F231,IF(OR($D$71=$B$45,$D$71=$B$46,$D$71=$B$47,$D$71=$B$48),'Offre HPI - G Hybrid'!F266,IF(OR($D$71=$B$41,$D$71=$B$42,$D$71=$B$43,$D$71=$B$44),'Offre Alezio O Hybrid'!F268,"")))))))))) ->  | K139: =Chiffrage!M153 -> 0
A140: 39 | C140: =IF($D$71=$B$52,'OFFRE HPI M'!B265,IF(OR($D$71=$B$38,$D$71=$B$39),'Offre HPI - CAELIA'!B286,IF($D$71=$B$51,'Offre Strateo'!B206,IF($D$71=$B$40,'Offre S Compact - ERIA FIT IN'!B118,IF(OR($D$71=$B$36,$D$71=$B$37),'Offre SV200 - ERIA N DUO '!B143,IF(OR($D$71=$B$34,$D$71=$B$35),'Offre Alezio S - ERIA '!B203,IF(OR($D$71=$B$49,$D$71=$B$50),'Offre GSHP'!B249,IF($D$71="",'Offre Alezio G hybrid'!B232,IF(OR($D$71=$B$45,$D$71=$B$46,$D$71=$B$47,$D$71=$B$48),'Offre HPI - G Hybrid'!B267,IF(OR($D$71=$B$41,$D$71=$B$42,$D$71=$B$43,$D$71=$B$44),'Offre Alezio O Hybrid'!B269,"")))))))))) ->  | D140: =IF($D$71=$B$52,'OFFRE HPI M'!C265,IF(OR($D$71=$B$38,$D$71=$B$39),'Offre HPI - CAELIA'!C286,IF($D$71=$B$51,'Offre Strateo'!C206,IF($D$71=$B$40,'Offre S Compact - ERIA FIT IN'!C118,IF(OR($D$71=$B$36,$D$71=$B$37),'Offre SV200 - ERIA N DUO '!C143,IF(OR($D$71=$B$34,$D$71=$B$35),'Offre Alezio S - ERIA '!C203,IF(OR($D$71=$B$49,$D$71=$B$50),'Offre GSHP'!C249,IF($D$71="",'Offre Alezio G hybrid'!C232,IF(OR($D$71=$B$45,$D$71=$B$46,$D$71=$B$47,$D$71=$B$48),'Offre HPI - G Hybrid'!C267,IF(OR($D$71=$B$41,$D$71=$B$42,$D$71=$B$43,$D$71=$B$44),'Offre Alezio O Hybrid'!C269,"")))))))))) ->  | H140: =IF($D$71=$B$52,'OFFRE HPI M'!D265,IF(OR($D$71=$B$38,$D$71=$B$39),'Offre HPI - CAELIA'!D286,IF($D$71=$B$51,'Offre Strateo'!D206,IF($D$71=$B$40,'Offre S Compact - ERIA FIT IN'!D118,IF(OR($D$71=$B$36,$D$71=$B$37),'Offre SV200 - ERIA N DUO '!D143,IF(OR($D$71=$B$34,$D$71=$B$35),'Offre Alezio S - ERIA '!D203,IF(OR($D$71=$B$50,$D$71=$B$49),'Offre GSHP'!D249,IF($D$71="",'Offre Alezio G hybrid'!D232,IF(OR($D$71=$B$45,$D$71=$B$46,$D$71=$B$47,$D$71=$B$48),'Offre HPI - G Hybrid'!D267,IF(OR($D$71=$B$41,$D$71=$B$42,$D$71=$B$43,$D$71=$B$44),'Offre Alezio O Hybrid'!D269,"")))))))))) ->  | I140: =IF($D$71=$B$52,'OFFRE HPI M'!E265,IF(OR($D$71=$B$38,$D$71=$B$39),'Offre HPI - CAELIA'!E286,IF($D$71=$B$51,'Offre Strateo'!E206,IF($D$71=$B$40,'Offre S Compact - ERIA FIT IN'!E118,IF(OR($D$71=$B$36,$D$71=$B$37),'Offre SV200 - ERIA N DUO '!E143,IF(OR($D$71=$B$34,$D$71=$B$35),'Offre Alezio S - ERIA '!E203,IF(OR($D$71=$B$50,$D$71=$B$49),'Offre GSHP'!E249,IF($D$71="",'Offre Alezio G hybrid'!E232,IF(OR($D$71=$B$45,$D$71=$B$46,$D$71=$B$47,$D$71=$B$48),'Offre HPI - G Hybrid'!E267,IF(OR($D$71=$B$41,$D$71=$B$42,$D$71=$B$43,$D$71=$B$44),'Offre Alezio O Hybrid'!E269,"")))))))))) ->  | J140: =IF($D$71=$B$52,'OFFRE HPI M'!F265,IF(OR($D$71=$B$38,$D$71=$B$39),'Offre HPI - CAELIA'!F286,IF($D$71=$B$51,'Offre Strateo'!F206,IF($D$71=$B$40,'Offre S Compact - ERIA FIT IN'!F118,IF(OR($D$71=$B$36,$D$71=$B$37),'Offre SV200 - ERIA N DUO '!F143,IF(OR($D$71=$B$34,$D$71=$B$35),'Offre Alezio S - ERIA '!F203,IF(OR($D$71=$B$50,$D$71=$B$49),'Offre GSHP'!F249,IF($D$71="",'Offre Alezio G hybrid'!F232,IF(OR($D$71=$B$45,$D$71=$B$46,$D$71=$B$47,$D$71=$B$48),'Offre HPI - G Hybrid'!F267,IF(OR($D$71=$B$41,$D$71=$B$42,$D$71=$B$43,$D$71=$B$44),'Offre Alezio O Hybrid'!F269,"")))))))))) ->  | K140: =Chiffrage!M154 -> 0
A141: 40 | C141: =IF($D$71=$B$52,'OFFRE HPI M'!B266,IF(OR($D$71=$B$38,$D$71=$B$39),'Offre HPI - CAELIA'!B287,IF($D$71=$B$51,'Offre Strateo'!B207,IF($D$71=$B$40,'Offre S Compact - ERIA FIT IN'!B119,IF(OR($D$71=$B$36,$D$71=$B$37),'Offre SV200 - ERIA N DUO '!B144,IF(OR($D$71=$B$34,$D$71=$B$35),'Offre Alezio S - ERIA '!B204,IF(OR($D$71=$B$49,$D$71=$B$50),'Offre GSHP'!B250,IF($D$71="",'Offre Alezio G hybrid'!B233,IF(OR($D$71=$B$45,$D$71=$B$46,$D$71=$B$47,$D$71=$B$48),'Offre HPI - G Hybrid'!B268,IF(OR($D$71=$B$41,$D$71=$B$42,$D$71=$B$43,$D$71=$B$44),'Offre Alezio O Hybrid'!B270,"")))))))))) ->  | D141: =IF($D$71=$B$52,'OFFRE HPI M'!C266,IF(OR($D$71=$B$38,$D$71=$B$39),'Offre HPI - CAELIA'!C287,IF($D$71=$B$51,'Offre Strateo'!C207,IF($D$71=$B$40,'Offre S Compact - ERIA FIT IN'!C119,IF(OR($D$71=$B$36,$D$71=$B$37),'Offre SV200 - ERIA N DUO '!C144,IF(OR($D$71=$B$34,$D$71=$B$35),'Offre Alezio S - ERIA '!C204,IF(OR($D$71=$B$49,$D$71=$B$50),'Offre GSHP'!C250,IF($D$71="",'Offre Alezio G hybrid'!C233,IF(OR($D$71=$B$45,$D$71=$B$46,$D$71=$B$47,$D$71=$B$48),'Offre HPI - G Hybrid'!C268,IF(OR($D$71=$B$41,$D$71=$B$42,$D$71=$B$43,$D$71=$B$44),'Offre Alezio O Hybrid'!C270,"")))))))))) ->  | H141: =IF($D$71=$B$52,'OFFRE HPI M'!D266,IF(OR($D$71=$B$38,$D$71=$B$39),'Offre HPI - CAELIA'!D287,IF($D$71=$B$51,'Offre Strateo'!D207,IF($D$71=$B$40,'Offre S Compact - ERIA FIT IN'!D119,IF(OR($D$71=$B$36,$D$71=$B$37),'Offre SV200 - ERIA N DUO '!D144,IF(OR($D$71=$B$34,$D$71=$B$35),'Offre Alezio S - ERIA '!D204,IF(OR($D$71=$B$50,$D$71=$B$49),'Offre GSHP'!D250,IF($D$71="",'Offre Alezio G hybrid'!D233,IF(OR($D$71=$B$45,$D$71=$B$46,$D$71=$B$47,$D$71=$B$48),'Offre HPI - G Hybrid'!D268,IF(OR($D$71=$B$41,$D$71=$B$42,$D$71=$B$43,$D$71=$B$44),'Offre Alezio O Hybrid'!D270,"")))))))))) ->  | I141: =IF($D$71=$B$52,'OFFRE HPI M'!E266,IF(OR($D$71=$B$38,$D$71=$B$39),'Offre HPI - CAELIA'!E287,IF($D$71=$B$51,'Offre Strateo'!E207,IF($D$71=$B$40,'Offre S Compact - ERIA FIT IN'!E119,IF(OR($D$71=$B$36,$D$71=$B$37),'Offre SV200 - ERIA N DUO '!E144,IF(OR($D$71=$B$34,$D$71=$B$35),'Offre Alezio S - ERIA '!E204,IF(OR($D$71=$B$50,$D$71=$B$49),'Offre GSHP'!E250,IF($D$71="",'Offre Alezio G hybrid'!E233,IF(OR($D$71=$B$45,$D$71=$B$46,$D$71=$B$47,$D$71=$B$48),'Offre HPI - G Hybrid'!E268,IF(OR($D$71=$B$41,$D$71=$B$42,$D$71=$B$43,$D$71=$B$44),'Offre Alezio O Hybrid'!E270,"")))))))))) ->  | J141: =IF($D$71=$B$52,'OFFRE HPI M'!F266,IF(OR($D$71=$B$38,$D$71=$B$39),'Offre HPI - CAELIA'!F287,IF($D$71=$B$51,'Offre Strateo'!F207,IF($D$71=$B$40,'Offre S Compact - ERIA FIT IN'!F119,IF(OR($D$71=$B$36,$D$71=$B$37),'Offre SV200 - ERIA N DUO '!F144,IF(OR($D$71=$B$34,$D$71=$B$35),'Offre Alezio S - ERIA '!F204,IF(OR($D$71=$B$50,$D$71=$B$49),'Offre GSHP'!F250,IF($D$71="",'Offre Alezio G hybrid'!F233,IF(OR($D$71=$B$45,$D$71=$B$46,$D$71=$B$47,$D$71=$B$48),'Offre HPI - G Hybrid'!F268,IF(OR($D$71=$B$41,$D$71=$B$42,$D$71=$B$43,$D$71=$B$44),'Offre Alezio O Hybrid'!F270,"")))))))))) ->  | K141: =Chiffrage!M155 -> 0
A142: 41 | C142: =IF($D$71=$B$52,'OFFRE HPI M'!B267,IF(OR($D$71=$B$38,$D$71=$B$39),'Offre HPI - CAELIA'!B288,IF($D$71=$B$51,'Offre Strateo'!B208,IF($D$71=$B$40,'Offre S Compact - ERIA FIT IN'!B120,IF(OR($D$71=$B$36,$D$71=$B$37),'Offre SV200 - ERIA N DUO '!B145,IF(OR($D$71=$B$34,$D$71=$B$35),'Offre Alezio S - ERIA '!B205,IF(OR($D$71=$B$49,$D$71=$B$50),'Offre GSHP'!B251,IF($D$71="",'Offre Alezio G hybrid'!B234,IF(OR($D$71=$B$45,$D$71=$B$46,$D$71=$B$47,$D$71=$B$48),'Offre HPI - G Hybrid'!B269,IF(OR($D$71=$B$41,$D$71=$B$42,$D$71=$B$43,$D$71=$B$44),'Offre Alezio O Hybrid'!B271,"")))))))))) ->  | D142: =IF($D$71=$B$52,'OFFRE HPI M'!C267,IF(OR($D$71=$B$38,$D$71=$B$39),'Offre HPI - CAELIA'!C288,IF($D$71=$B$51,'Offre Strateo'!C208,IF($D$71=$B$40,'Offre S Compact - ERIA FIT IN'!C120,IF(OR($D$71=$B$36,$D$71=$B$37),'Offre SV200 - ERIA N DUO '!C145,IF(OR($D$71=$B$34,$D$71=$B$35),'Offre Alezio S - ERIA '!C205,IF(OR($D$71=$B$49,$D$71=$B$50),'Offre GSHP'!C251,IF($D$71="",'Offre Alezio G hybrid'!C234,IF(OR($D$71=$B$45,$D$71=$B$46,$D$71=$B$47,$D$71=$B$48),'Offre HPI - G Hybrid'!C269,IF(OR($D$71=$B$41,$D$71=$B$42,$D$71=$B$43,$D$71=$B$44),'Offre Alezio O Hybrid'!C271,"")))))))))) -> Kit de fonction réversible | H142: =IF($D$71=$B$52,'OFFRE HPI M'!D267,IF(OR($D$71=$B$38,$D$71=$B$39),'Offre HPI - CAELIA'!D288,IF($D$71=$B$51,'Offre Strateo'!D208,IF($D$71=$B$40,'Offre S Compact - ERIA FIT IN'!D120,IF(OR($D$71=$B$36,$D$71=$B$37),'Offre SV200 - ERIA N DUO '!D145,IF(OR($D$71=$B$34,$D$71=$B$35),'Offre Alezio S - ERIA '!D205,IF(OR($D$71=$B$50,$D$71=$B$49),'Offre GSHP'!D251,IF($D$71="",'Offre Alezio G hybrid'!D234,IF(OR($D$71=$B$45,$D$71=$B$46,$D$71=$B$47,$D$71=$B$48),'Offre HPI - G Hybrid'!D269,IF(OR($D$71=$B$41,$D$71=$B$42,$D$71=$B$43,$D$71=$B$44),'Offre Alezio O Hybrid'!D271,"")))))))))) ->  | I142: =IF($D$71=$B$52,'OFFRE HPI M'!E267,IF(OR($D$71=$B$38,$D$71=$B$39),'Offre HPI - CAELIA'!E288,IF($D$71=$B$51,'Offre Strateo'!E208,IF($D$71=$B$40,'Offre S Compact - ERIA FIT IN'!E120,IF(OR($D$71=$B$36,$D$71=$B$37),'Offre SV200 - ERIA N DUO '!E145,IF(OR($D$71=$B$34,$D$71=$B$35),'Offre Alezio S - ERIA '!E205,IF(OR($D$71=$B$50,$D$71=$B$49),'Offre GSHP'!E251,IF($D$71="",'Offre Alezio G hybrid'!E234,IF(OR($D$71=$B$45,$D$71=$B$46,$D$71=$B$47,$D$71=$B$48),'Offre HPI - G Hybrid'!E269,IF(OR($D$71=$B$41,$D$71=$B$42,$D$71=$B$43,$D$71=$B$44),'Offre Alezio O Hybrid'!E271,"")))))))))) ->  | J142: =IF($D$71=$B$52,'OFFRE HPI M'!F267,IF(OR($D$71=$B$38,$D$71=$B$39),'Offre HPI - CAELIA'!F288,IF($D$71=$B$51,'Offre Strateo'!F208,IF($D$71=$B$40,'Offre S Compact - ERIA FIT IN'!F120,IF(OR($D$71=$B$36,$D$71=$B$37),'Offre SV200 - ERIA N DUO '!F145,IF(OR($D$71=$B$34,$D$71=$B$35),'Offre Alezio S - ERIA '!F205,IF(OR($D$71=$B$50,$D$71=$B$49),'Offre GSHP'!F251,IF($D$71="",'Offre Alezio G hybrid'!F234,IF(OR($D$71=$B$45,$D$71=$B$46,$D$71=$B$47,$D$71=$B$48),'Offre HPI - G Hybrid'!F269,IF(OR($D$71=$B$41,$D$71=$B$42,$D$71=$B$43,$D$71=$B$44),'Offre Alezio O Hybrid'!F271,"")))))))))) ->  | K142: =Chiffrage!M156 -> 0
A143: 42 | C143: =IF($D$71=$B$52,'OFFRE HPI M'!B268,IF(OR($D$71=$B$38,$D$71=$B$39),'Offre HPI - CAELIA'!B289,IF($D$71=$B$51,'Offre Strateo'!B209,IF($D$71=$B$40,'Offre S Compact - ERIA FIT IN'!B121,IF(OR($D$71=$B$36,$D$71=$B$37),'Offre SV200 - ERIA N DUO '!B146,IF(OR($D$71=$B$34,$D$71=$B$35),'Offre Alezio S - ERIA '!B206,IF(OR($D$71=$B$49,$D$71=$B$50),'Offre GSHP'!B252,IF($D$71="",'Offre Alezio G hybrid'!B235,IF(OR($D$71=$B$45,$D$71=$B$46,$D$71=$B$47,$D$71=$B$48),'Offre HPI - G Hybrid'!B270,IF(OR($D$71=$B$41,$D$71=$B$42,$D$71=$B$43,$D$71=$B$44),'Offre Alezio O Hybrid'!B272,"")))))))))) -> 7682396 | D143: =IF($D$71=$B$52,'OFFRE HPI M'!C268,IF(OR($D$71=$B$38,$D$71=$B$39),'Offre HPI - CAELIA'!C289,IF($D$71=$B$51,'Offre Strateo'!C209,IF($D$71=$B$40,'Offre S Compact - ERIA FIT IN'!C121,IF(OR($D$71=$B$36,$D$71=$B$37),'Offre SV200 - ERIA N DUO '!C146,IF(OR($D$71=$B$34,$D$71=$B$35),'Offre Alezio S - ERIA '!C206,IF(OR($D$71=$B$49,$D$71=$B$50),'Offre GSHP'!C252,IF($D$71="",'Offre Alezio G hybrid'!C235,IF(OR($D$71=$B$45,$D$71=$B$46,$D$71=$B$47,$D$71=$B$48),'Offre HPI - G Hybrid'!C270,IF(OR($D$71=$B$41,$D$71=$B$42,$D$71=$B$43,$D$71=$B$44),'Offre Alezio O Hybrid'!C272,"")))))))))) -> KIT ISOLATION MODE CLIMATISATION | H143: =IF($D$71=$B$52,'OFFRE HPI M'!D268,IF(OR($D$71=$B$38,$D$71=$B$39),'Offre HPI - CAELIA'!D289,IF($D$71=$B$51,'Offre Strateo'!D209,IF($D$71=$B$40,'Offre S Compact - ERIA FIT IN'!D121,IF(OR($D$71=$B$36,$D$71=$B$37),'Offre SV200 - ERIA N DUO '!D146,IF(OR($D$71=$B$34,$D$71=$B$35),'Offre Alezio S - ERIA '!D206,IF(OR($D$71=$B$50,$D$71=$B$49),'Offre GSHP'!D252,IF($D$71="",'Offre Alezio G hybrid'!D235,IF(OR($D$71=$B$45,$D$71=$B$46,$D$71=$B$47,$D$71=$B$48),'Offre HPI - G Hybrid'!D270,IF(OR($D$71=$B$41,$D$71=$B$42,$D$71=$B$43,$D$71=$B$44),'Offre Alezio O Hybrid'!D272,"")))))))))) -> EH811 | I143: =IF($D$71=$B$52,'OFFRE HPI M'!E268,IF(OR($D$71=$B$38,$D$71=$B$39),'Offre HPI - CAELIA'!E289,IF($D$71=$B$51,'Offre Strateo'!E209,IF($D$71=$B$40,'Offre S Compact - ERIA FIT IN'!E121,IF(OR($D$71=$B$36,$D$71=$B$37),'Offre SV200 - ERIA N DUO '!E146,IF(OR($D$71=$B$34,$D$71=$B$35),'Offre Alezio S - ERIA '!E206,IF(OR($D$71=$B$50,$D$71=$B$49),'Offre GSHP'!E252,IF($D$71="",'Offre Alezio G hybrid'!E235,IF(OR($D$71=$B$45,$D$71=$B$46,$D$71=$B$47,$D$71=$B$48),'Offre HPI - G Hybrid'!E270,IF(OR($D$71=$B$41,$D$71=$B$42,$D$71=$B$43,$D$71=$B$44),'Offre Alezio O Hybrid'!E272,"")))))))))) -> 101 | J143: =IF($D$71=$B$52,'OFFRE HPI M'!F268,IF(OR($D$71=$B$38,$D$71=$B$39),'Offre HPI - CAELIA'!F289,IF($D$71=$B$51,'Offre Strateo'!F209,IF($D$71=$B$40,'Offre S Compact - ERIA FIT IN'!F121,IF(OR($D$71=$B$36,$D$71=$B$37),'Offre SV200 - ERIA N DUO '!F146,IF(OR($D$71=$B$34,$D$71=$B$35),'Offre Alezio S - ERIA '!F206,IF(OR($D$71=$B$50,$D$71=$B$49),'Offre GSHP'!F252,IF($D$71="",'Offre Alezio G hybrid'!F235,IF(OR($D$71=$B$45,$D$71=$B$46,$D$71=$B$47,$D$71=$B$48),'Offre HPI - G Hybrid'!F270,IF(OR($D$71=$B$41,$D$71=$B$42,$D$71=$B$43,$D$71=$B$44),'Offre Alezio O Hybrid'!F272,"")))))))))) ->  | K143: =Chiffrage!M157 -> 0
A144: 43 | C144: =IF($D$71=$B$52,'OFFRE HPI M'!B269,IF(OR($D$71=$B$38,$D$71=$B$39),'Offre HPI - CAELIA'!B290,IF($D$71=$B$51,'Offre Strateo'!B210,IF($D$71=$B$40,'Offre S Compact - ERIA FIT IN'!B122,IF(OR($D$71=$B$36,$D$71=$B$37),'Offre SV200 - ERIA N DUO '!B147,IF(OR($D$71=$B$34,$D$71=$B$35),'Offre Alezio S - ERIA '!B207,IF(OR($D$71=$B$49,$D$71=$B$50),'Offre GSHP'!B253,IF($D$71="",'Offre Alezio G hybrid'!B236,IF(OR($D$71=$B$45,$D$71=$B$46,$D$71=$B$47,$D$71=$B$48),'Offre HPI - G Hybrid'!B271,IF(OR($D$71=$B$41,$D$71=$B$42,$D$71=$B$43,$D$71=$B$44),'Offre Alezio O Hybrid'!B273,"")))))))))) -> 100018411 | D144: =IF($D$71=$B$52,'OFFRE HPI M'!C269,IF(OR($D$71=$B$38,$D$71=$B$39),'Offre HPI - CAELIA'!C290,IF($D$71=$B$51,'Offre Strateo'!C210,IF($D$71=$B$40,'Offre S Compact - ERIA FIT IN'!C122,IF(OR($D$71=$B$36,$D$71=$B$37),'Offre SV200 - ERIA N DUO '!C147,IF(OR($D$71=$B$34,$D$71=$B$35),'Offre Alezio S - ERIA '!C207,IF(OR($D$71=$B$49,$D$71=$B$50),'Offre GSHP'!C253,IF($D$71="",'Offre Alezio G hybrid'!C236,IF(OR($D$71=$B$45,$D$71=$B$46,$D$71=$B$47,$D$71=$B$48),'Offre HPI - G Hybrid'!C271,IF(OR($D$71=$B$41,$D$71=$B$42,$D$71=$B$43,$D$71=$B$44),'Offre Alezio O Hybrid'!C273,"")))))))))) -> KIT ISOLATION MODE FROID KIT VANNE 3 VOIES (CIRCUIT B) | H144: =IF($D$71=$B$52,'OFFRE HPI M'!D269,IF(OR($D$71=$B$38,$D$71=$B$39),'Offre HPI - CAELIA'!D290,IF($D$71=$B$51,'Offre Strateo'!D210,IF($D$71=$B$40,'Offre S Compact - ERIA FIT IN'!D122,IF(OR($D$71=$B$36,$D$71=$B$37),'Offre SV200 - ERIA N DUO '!D147,IF(OR($D$71=$B$34,$D$71=$B$35),'Offre Alezio S - ERIA '!D207,IF(OR($D$71=$B$50,$D$71=$B$49),'Offre GSHP'!D253,IF($D$71="",'Offre Alezio G hybrid'!D236,IF(OR($D$71=$B$45,$D$71=$B$46,$D$71=$B$47,$D$71=$B$48),'Offre HPI - G Hybrid'!D271,IF(OR($D$71=$B$41,$D$71=$B$42,$D$71=$B$43,$D$71=$B$44),'Offre Alezio O Hybrid'!D273,"")))))))))) -> HK25 | I144: =IF($D$71=$B$52,'OFFRE HPI M'!E269,IF(OR($D$71=$B$38,$D$71=$B$39),'Offre HPI - CAELIA'!E290,IF($D$71=$B$51,'Offre Strateo'!E210,IF($D$71=$B$40,'Offre S Compact - ERIA FIT IN'!E122,IF(OR($D$71=$B$36,$D$71=$B$37),'Offre SV200 - ERIA N DUO '!E147,IF(OR($D$71=$B$34,$D$71=$B$35),'Offre Alezio S - ERIA '!E207,IF(OR($D$71=$B$50,$D$71=$B$49),'Offre GSHP'!E253,IF($D$71="",'Offre Alezio G hybrid'!E236,IF(OR($D$71=$B$45,$D$71=$B$46,$D$71=$B$47,$D$71=$B$48),'Offre HPI - G Hybrid'!E271,IF(OR($D$71=$B$41,$D$71=$B$42,$D$71=$B$43,$D$71=$B$44),'Offre Alezio O Hybrid'!E273,"")))))))))) -> 168 | J144: =IF($D$71=$B$52,'OFFRE HPI M'!F269,IF(OR($D$71=$B$38,$D$71=$B$39),'Offre HPI - CAELIA'!F290,IF($D$71=$B$51,'Offre Strateo'!F210,IF($D$71=$B$40,'Offre S Compact - ERIA FIT IN'!F122,IF(OR($D$71=$B$36,$D$71=$B$37),'Offre SV200 - ERIA N DUO '!F147,IF(OR($D$71=$B$34,$D$71=$B$35),'Offre Alezio S - ERIA '!F207,IF(OR($D$71=$B$50,$D$71=$B$49),'Offre GSHP'!F253,IF($D$71="",'Offre Alezio G hybrid'!F236,IF(OR($D$71=$B$45,$D$71=$B$46,$D$71=$B$47,$D$71=$B$48),'Offre HPI - G Hybrid'!F271,IF(OR($D$71=$B$41,$D$71=$B$42,$D$71=$B$43,$D$71=$B$44),'Offre Alezio O Hybrid'!F273,"")))))))))) ->  | K144: =Chiffrage!M158 -> 0
A145: 44 | C145: =IF($D$71=$B$52,'OFFRE HPI M'!B270,IF(OR($D$71=$B$38,$D$71=$B$39),'Offre HPI - CAELIA'!B291,IF($D$71=$B$51,'Offre Strateo'!B211,IF($D$71=$B$40,'Offre S Compact - ERIA FIT IN'!B123,IF(OR($D$71=$B$36,$D$71=$B$37),'Offre SV200 - ERIA N DUO '!B148,IF(OR($D$71=$B$34,$D$71=$B$35),'Offre Alezio S - ERIA '!B208,IF(OR($D$71=$B$49,$D$71=$B$50),'Offre GSHP'!B254,IF($D$71="",'Offre Alezio G hybrid'!B237,IF(OR($D$71=$B$45,$D$71=$B$46,$D$71=$B$47,$D$71=$B$48),'Offre HPI - G Hybrid'!B272,IF(OR($D$71=$B$41,$D$71=$B$42,$D$71=$B$43,$D$71=$B$44),'Offre Alezio O Hybrid'!B274,"")))))))))) ->  | D145: =IF($D$71=$B$52,'OFFRE HPI M'!C270,IF(OR($D$71=$B$38,$D$71=$B$39),'Offre HPI - CAELIA'!C291,IF($D$71=$B$51,'Offre Strateo'!C211,IF($D$71=$B$40,'Offre S Compact - ERIA FIT IN'!C123,IF(OR($D$71=$B$36,$D$71=$B$37),'Offre SV200 - ERIA N DUO '!C148,IF(OR($D$71=$B$34,$D$71=$B$35),'Offre Alezio S - ERIA '!C208,IF(OR($D$71=$B$49,$D$71=$B$50),'Offre GSHP'!C254,IF($D$71="",'Offre Alezio G hybrid'!C237,IF(OR($D$71=$B$45,$D$71=$B$46,$D$71=$B$47,$D$71=$B$48),'Offre HPI - G Hybrid'!C272,IF(OR($D$71=$B$41,$D$71=$B$42,$D$71=$B$43,$D$71=$B$44),'Offre Alezio O Hybrid'!C274,"")))))))))) ->  | H145: =IF($D$71=$B$52,'OFFRE HPI M'!D270,IF(OR($D$71=$B$38,$D$71=$B$39),'Offre HPI - CAELIA'!D291,IF($D$71=$B$51,'Offre Strateo'!D211,IF($D$71=$B$40,'Offre S Compact - ERIA FIT IN'!D123,IF(OR($D$71=$B$36,$D$71=$B$37),'Offre SV200 - ERIA N DUO '!D148,IF(OR($D$71=$B$34,$D$71=$B$35),'Offre Alezio S - ERIA '!D208,IF(OR($D$71=$B$50,$D$71=$B$49),'Offre GSHP'!D254,IF($D$71="",'Offre Alezio G hybrid'!D237,IF(OR($D$71=$B$45,$D$71=$B$46,$D$71=$B$47,$D$71=$B$48),'Offre HPI - G Hybrid'!D272,IF(OR($D$71=$B$41,$D$71=$B$42,$D$71=$B$43,$D$71=$B$44),'Offre Alezio O Hybrid'!D274,"")))))))))) ->  | I145: =IF($D$71=$B$52,'OFFRE HPI M'!E270,IF(OR($D$71=$B$38,$D$71=$B$39),'Offre HPI - CAELIA'!E291,IF($D$71=$B$51,'Offre Strateo'!E211,IF($D$71=$B$40,'Offre S Compact - ERIA FIT IN'!E123,IF(OR($D$71=$B$36,$D$71=$B$37),'Offre SV200 - ERIA N DUO '!E148,IF(OR($D$71=$B$34,$D$71=$B$35),'Offre Alezio S - ERIA '!E208,IF(OR($D$71=$B$50,$D$71=$B$49),'Offre GSHP'!E254,IF($D$71="",'Offre Alezio G hybrid'!E237,IF(OR($D$71=$B$45,$D$71=$B$46,$D$71=$B$47,$D$71=$B$48),'Offre HPI - G Hybrid'!E272,IF(OR($D$71=$B$41,$D$71=$B$42,$D$71=$B$43,$D$71=$B$44),'Offre Alezio O Hybrid'!E274,"")))))))))) ->  | J145: =IF($D$71=$B$52,'OFFRE HPI M'!F270,IF(OR($D$71=$B$38,$D$71=$B$39),'Offre HPI - CAELIA'!F291,IF($D$71=$B$51,'Offre Strateo'!F211,IF($D$71=$B$40,'Offre S Compact - ERIA FIT IN'!F123,IF(OR($D$71=$B$36,$D$71=$B$37),'Offre SV200 - ERIA N DUO '!F148,IF(OR($D$71=$B$34,$D$71=$B$35),'Offre Alezio S - ERIA '!F208,IF(OR($D$71=$B$50,$D$71=$B$49),'Offre GSHP'!F254,IF($D$71="",'Offre Alezio G hybrid'!F237,IF(OR($D$71=$B$45,$D$71=$B$46,$D$71=$B$47,$D$71=$B$48),'Offre HPI - G Hybrid'!F272,IF(OR($D$71=$B$41,$D$71=$B$42,$D$71=$B$43,$D$71=$B$44),'Offre Alezio O Hybrid'!F274,"")))))))))) ->  | K145: =Chiffrage!M159 -> 0
A146: 45 | C146: =IF($D$71=$B$52,'OFFRE HPI M'!B271,IF(OR($D$71=$B$38,$D$71=$B$39),'Offre HPI - CAELIA'!B292,IF($D$71=$B$51,'Offre Strateo'!B212,IF($D$71=$B$40,'Offre S Compact - ERIA FIT IN'!B124,IF(OR($D$71=$B$36,$D$71=$B$37),'Offre SV200 - ERIA N DUO '!B149,IF(OR($D$71=$B$34,$D$71=$B$35),'Offre Alezio S - ERIA '!B209,IF(OR($D$71=$B$49,$D$71=$B$50),'Offre GSHP'!B255,IF($D$71="",'Offre Alezio G hybrid'!B238,IF(OR($D$71=$B$45,$D$71=$B$46,$D$71=$B$47,$D$71=$B$48),'Offre HPI - G Hybrid'!B273,IF(OR($D$71=$B$41,$D$71=$B$42,$D$71=$B$43,$D$71=$B$44),'Offre Alezio O Hybrid'!B275,"")))))))))) ->  | D146: =IF($D$71=$B$52,'OFFRE HPI M'!C271,IF(OR($D$71=$B$38,$D$71=$B$39),'Offre HPI - CAELIA'!C292,IF($D$71=$B$51,'Offre Strateo'!C212,IF($D$71=$B$40,'Offre S Compact - ERIA FIT IN'!C124,IF(OR($D$71=$B$36,$D$71=$B$37),'Offre SV200 - ERIA N DUO '!C149,IF(OR($D$71=$B$34,$D$71=$B$35),'Offre Alezio S - ERIA '!C209,IF(OR($D$71=$B$49,$D$71=$B$50),'Offre GSHP'!C255,IF($D$71="",'Offre Alezio G hybrid'!C238,IF(OR($D$71=$B$45,$D$71=$B$46,$D$71=$B$47,$D$71=$B$48),'Offre HPI - G Hybrid'!C273,IF(OR($D$71=$B$41,$D$71=$B$42,$D$71=$B$43,$D$71=$B$44),'Offre Alezio O Hybrid'!C275,"")))))))))) -> Accessoires de régulation | H146: =IF($D$71=$B$52,'OFFRE HPI M'!D271,IF(OR($D$71=$B$38,$D$71=$B$39),'Offre HPI - CAELIA'!D292,IF($D$71=$B$51,'Offre Strateo'!D212,IF($D$71=$B$40,'Offre S Compact - ERIA FIT IN'!D124,IF(OR($D$71=$B$36,$D$71=$B$37),'Offre SV200 - ERIA N DUO '!D149,IF(OR($D$71=$B$34,$D$71=$B$35),'Offre Alezio S - ERIA '!D209,IF(OR($D$71=$B$50,$D$71=$B$49),'Offre GSHP'!D255,IF($D$71="",'Offre Alezio G hybrid'!D238,IF(OR($D$71=$B$45,$D$71=$B$46,$D$71=$B$47,$D$71=$B$48),'Offre HPI - G Hybrid'!D273,IF(OR($D$71=$B$41,$D$71=$B$42,$D$71=$B$43,$D$71=$B$44),'Offre Alezio O Hybrid'!D275,"")))))))))) ->  | I146: =IF($D$71=$B$52,'OFFRE HPI M'!E271,IF(OR($D$71=$B$38,$D$71=$B$39),'Offre HPI - CAELIA'!E292,IF($D$71=$B$51,'Offre Strateo'!E212,IF($D$71=$B$40,'Offre S Compact - ERIA FIT IN'!E124,IF(OR($D$71=$B$36,$D$71=$B$37),'Offre SV200 - ERIA N DUO '!E149,IF(OR($D$71=$B$34,$D$71=$B$35),'Offre Alezio S - ERIA '!E209,IF(OR($D$71=$B$50,$D$71=$B$49),'Offre GSHP'!E255,IF($D$71="",'Offre Alezio G hybrid'!E238,IF(OR($D$71=$B$45,$D$71=$B$46,$D$71=$B$47,$D$71=$B$48),'Offre HPI - G Hybrid'!E273,IF(OR($D$71=$B$41,$D$71=$B$42,$D$71=$B$43,$D$71=$B$44),'Offre Alezio O Hybrid'!E275,"")))))))))) ->  | J146: =IF($D$71=$B$52,'OFFRE HPI M'!F271,IF(OR($D$71=$B$38,$D$71=$B$39),'Offre HPI - CAELIA'!F292,IF($D$71=$B$51,'Offre Strateo'!F212,IF($D$71=$B$40,'Offre S Compact - ERIA FIT IN'!F124,IF(OR($D$71=$B$36,$D$71=$B$37),'Offre SV200 - ERIA N DUO '!F149,IF(OR($D$71=$B$34,$D$71=$B$35),'Offre Alezio S - ERIA '!F209,IF(OR($D$71=$B$50,$D$71=$B$49),'Offre GSHP'!F255,IF($D$71="",'Offre Alezio G hybrid'!F238,IF(OR($D$71=$B$45,$D$71=$B$46,$D$71=$B$47,$D$71=$B$48),'Offre HPI - G Hybrid'!F273,IF(OR($D$71=$B$41,$D$71=$B$42,$D$71=$B$43,$D$71=$B$44),'Offre Alezio O Hybrid'!F275,"")))))))))) ->  | K146: =Chiffrage!M160 -> 0
A147: 46 | C147: =IF($D$71=$B$52,'OFFRE HPI M'!B272,IF(OR($D$71=$B$38,$D$71=$B$39),'Offre HPI - CAELIA'!B293,IF($D$71=$B$51,'Offre Strateo'!B213,IF($D$71=$B$40,'Offre S Compact - ERIA FIT IN'!B125,IF(OR($D$71=$B$36,$D$71=$B$37),'Offre SV200 - ERIA N DUO '!B150,IF(OR($D$71=$B$34,$D$71=$B$35),'Offre Alezio S - ERIA '!B210,IF(OR($D$71=$B$49,$D$71=$B$50),'Offre GSHP'!B256,IF($D$71="",'Offre Alezio G hybrid'!B239,IF(OR($D$71=$B$45,$D$71=$B$46,$D$71=$B$47,$D$71=$B$48),'Offre HPI - G Hybrid'!B274,IF(OR($D$71=$B$41,$D$71=$B$42,$D$71=$B$43,$D$71=$B$44),'Offre Alezio O Hybrid'!B276,"")))))))))) -> 100013304 | D147: =IF($D$71=$B$52,'OFFRE HPI M'!C272,IF(OR($D$71=$B$38,$D$71=$B$39),'Offre HPI - CAELIA'!C293,IF($D$71=$B$51,'Offre Strateo'!C213,IF($D$71=$B$40,'Offre S Compact - ERIA FIT IN'!C125,IF(OR($D$71=$B$36,$D$71=$B$37),'Offre SV200 - ERIA N DUO '!C150,IF(OR($D$71=$B$34,$D$71=$B$35),'Offre Alezio S - ERIA '!C210,IF(OR($D$71=$B$49,$D$71=$B$50),'Offre GSHP'!C256,IF($D$71="",'Offre Alezio G hybrid'!C239,IF(OR($D$71=$B$45,$D$71=$B$46,$D$71=$B$47,$D$71=$B$48),'Offre HPI - G Hybrid'!C274,IF(OR($D$71=$B$41,$D$71=$B$42,$D$71=$B$43,$D$71=$B$44),'Offre Alezio O Hybrid'!C276,"")))))))))) -> COLIS OPTION V3V OE-TRONIC 4 | H147: =IF($D$71=$B$52,'OFFRE HPI M'!D272,IF(OR($D$71=$B$38,$D$71=$B$39),'Offre HPI - CAELIA'!D293,IF($D$71=$B$51,'Offre Strateo'!D213,IF($D$71=$B$40,'Offre S Compact - ERIA FIT IN'!D125,IF(OR($D$71=$B$36,$D$71=$B$37),'Offre SV200 - ERIA N DUO '!D150,IF(OR($D$71=$B$34,$D$71=$B$35),'Offre Alezio S - ERIA '!D210,IF(OR($D$71=$B$50,$D$71=$B$49),'Offre GSHP'!D256,IF($D$71="",'Offre Alezio G hybrid'!D239,IF(OR($D$71=$B$45,$D$71=$B$46,$D$71=$B$47,$D$71=$B$48),'Offre HPI - G Hybrid'!D274,IF(OR($D$71=$B$41,$D$71=$B$42,$D$71=$B$43,$D$71=$B$44),'Offre Alezio O Hybrid'!D276,"")))))))))) -> AD249 | I147: =IF($D$71=$B$52,'OFFRE HPI M'!E272,IF(OR($D$71=$B$38,$D$71=$B$39),'Offre HPI - CAELIA'!E293,IF($D$71=$B$51,'Offre Strateo'!E213,IF($D$71=$B$40,'Offre S Compact - ERIA FIT IN'!E125,IF(OR($D$71=$B$36,$D$71=$B$37),'Offre SV200 - ERIA N DUO '!E150,IF(OR($D$71=$B$34,$D$71=$B$35),'Offre Alezio S - ERIA '!E210,IF(OR($D$71=$B$50,$D$71=$B$49),'Offre GSHP'!E256,IF($D$71="",'Offre Alezio G hybrid'!E239,IF(OR($D$71=$B$45,$D$71=$B$46,$D$71=$B$47,$D$71=$B$48),'Offre HPI - G Hybrid'!E274,IF(OR($D$71=$B$41,$D$71=$B$42,$D$71=$B$43,$D$71=$B$44),'Offre Alezio O Hybrid'!E276,"")))))))))) -> 170 | J147: =IF($D$71=$B$52,'OFFRE HPI M'!F272,IF(OR($D$71=$B$38,$D$71=$B$39),'Offre HPI - CAELIA'!F293,IF($D$71=$B$51,'Offre Strateo'!F213,IF($D$71=$B$40,'Offre S Compact - ERIA FIT IN'!F125,IF(OR($D$71=$B$36,$D$71=$B$37),'Offre SV200 - ERIA N DUO '!F150,IF(OR($D$71=$B$34,$D$71=$B$35),'Offre Alezio S - ERIA '!F210,IF(OR($D$71=$B$50,$D$71=$B$49),'Offre GSHP'!F256,IF($D$71="",'Offre Alezio G hybrid'!F239,IF(OR($D$71=$B$45,$D$71=$B$46,$D$71=$B$47,$D$71=$B$48),'Offre HPI - G Hybrid'!F274,IF(OR($D$71=$B$41,$D$71=$B$42,$D$71=$B$43,$D$71=$B$44),'Offre Alezio O Hybrid'!F276,"")))))))))) ->  | K147: =Chiffrage!M161 -> 0
A148: 47 | C148: =IF($D$71=$B$52,'OFFRE HPI M'!B273,IF(OR($D$71=$B$38,$D$71=$B$39),'Offre HPI - CAELIA'!B294,IF($D$71=$B$51,'Offre Strateo'!B214,IF($D$71=$B$40,'Offre S Compact - ERIA FIT IN'!B126,IF(OR($D$71=$B$36,$D$71=$B$37),'Offre SV200 - ERIA N DUO '!B151,IF(OR($D$71=$B$34,$D$71=$B$35),'Offre Alezio S - ERIA '!B211,IF(OR($D$71=$B$49,$D$71=$B$50),'Offre GSHP'!B257,IF($D$71="",'Offre Alezio G hybrid'!B240,IF(OR($D$71=$B$45,$D$71=$B$46,$D$71=$B$47,$D$71=$B$48),'Offre HPI - G Hybrid'!B275,IF(OR($D$71=$B$41,$D$71=$B$42,$D$71=$B$43,$D$71=$B$44),'Offre Alezio O Hybrid'!B277,"")))))))))) -> 88017017 | D148: =IF($D$71=$B$52,'OFFRE HPI M'!C273,IF(OR($D$71=$B$38,$D$71=$B$39),'Offre HPI - CAELIA'!C294,IF($D$71=$B$51,'Offre Strateo'!C214,IF($D$71=$B$40,'Offre S Compact - ERIA FIT IN'!C126,IF(OR($D$71=$B$36,$D$71=$B$37),'Offre SV200 - ERIA N DUO '!C151,IF(OR($D$71=$B$34,$D$71=$B$35),'Offre Alezio S - ERIA '!C211,IF(OR($D$71=$B$49,$D$71=$B$50),'Offre GSHP'!C257,IF($D$71="",'Offre Alezio G hybrid'!C240,IF(OR($D$71=$B$45,$D$71=$B$46,$D$71=$B$47,$D$71=$B$48),'Offre HPI - G Hybrid'!C275,IF(OR($D$71=$B$41,$D$71=$B$42,$D$71=$B$43,$D$71=$B$44),'Offre Alezio O Hybrid'!C277,"")))))))))) -> SONDE DEPART v3v | H148: =IF($D$71=$B$52,'OFFRE HPI M'!D273,IF(OR($D$71=$B$38,$D$71=$B$39),'Offre HPI - CAELIA'!D294,IF($D$71=$B$51,'Offre Strateo'!D214,IF($D$71=$B$40,'Offre S Compact - ERIA FIT IN'!D126,IF(OR($D$71=$B$36,$D$71=$B$37),'Offre SV200 - ERIA N DUO '!D151,IF(OR($D$71=$B$34,$D$71=$B$35),'Offre Alezio S - ERIA '!D211,IF(OR($D$71=$B$50,$D$71=$B$49),'Offre GSHP'!D257,IF($D$71="",'Offre Alezio G hybrid'!D240,IF(OR($D$71=$B$45,$D$71=$B$46,$D$71=$B$47,$D$71=$B$48),'Offre HPI - G Hybrid'!D275,IF(OR($D$71=$B$41,$D$71=$B$42,$D$71=$B$43,$D$71=$B$44),'Offre Alezio O Hybrid'!D277,"")))))))))) -> AD199 | I148: =IF($D$71=$B$52,'OFFRE HPI M'!E273,IF(OR($D$71=$B$38,$D$71=$B$39),'Offre HPI - CAELIA'!E294,IF($D$71=$B$51,'Offre Strateo'!E214,IF($D$71=$B$40,'Offre S Compact - ERIA FIT IN'!E126,IF(OR($D$71=$B$36,$D$71=$B$37),'Offre SV200 - ERIA N DUO '!E151,IF(OR($D$71=$B$34,$D$71=$B$35),'Offre Alezio S - ERIA '!E211,IF(OR($D$71=$B$50,$D$71=$B$49),'Offre GSHP'!E257,IF($D$71="",'Offre Alezio G hybrid'!E240,IF(OR($D$71=$B$45,$D$71=$B$46,$D$71=$B$47,$D$71=$B$48),'Offre HPI - G Hybrid'!E275,IF(OR($D$71=$B$41,$D$71=$B$42,$D$71=$B$43,$D$71=$B$44),'Offre Alezio O Hybrid'!E277,"")))))))))) -> 85 | J148: =IF($D$71=$B$52,'OFFRE HPI M'!F273,IF(OR($D$71=$B$38,$D$71=$B$39),'Offre HPI - CAELIA'!F294,IF($D$71=$B$51,'Offre Strateo'!F214,IF($D$71=$B$40,'Offre S Compact - ERIA FIT IN'!F126,IF(OR($D$71=$B$36,$D$71=$B$37),'Offre SV200 - ERIA N DUO '!F151,IF(OR($D$71=$B$34,$D$71=$B$35),'Offre Alezio S - ERIA '!F211,IF(OR($D$71=$B$50,$D$71=$B$49),'Offre GSHP'!F257,IF($D$71="",'Offre Alezio G hybrid'!F240,IF(OR($D$71=$B$45,$D$71=$B$46,$D$71=$B$47,$D$71=$B$48),'Offre HPI - G Hybrid'!F275,IF(OR($D$71=$B$41,$D$71=$B$42,$D$71=$B$43,$D$71=$B$44),'Offre Alezio O Hybrid'!F277,"")))))))))) ->  | K148: =Chiffrage!M162 -> 0
A149: 48 | C149: =IF($D$71=$B$52,'OFFRE HPI M'!B274,IF(OR($D$71=$B$38,$D$71=$B$39),'Offre HPI - CAELIA'!B295,IF($D$71=$B$51,'Offre Strateo'!B215,IF($D$71=$B$40,'Offre S Compact - ERIA FIT IN'!B127,IF(OR($D$71=$B$36,$D$71=$B$37),'Offre SV200 - ERIA N DUO '!B152,IF(OR($D$71=$B$34,$D$71=$B$35),'Offre Alezio S - ERIA '!B212,IF(OR($D$71=$B$49,$D$71=$B$50),'Offre GSHP'!B258,IF($D$71="",'Offre Alezio G hybrid'!B241,IF(OR($D$71=$B$45,$D$71=$B$46,$D$71=$B$47,$D$71=$B$48),'Offre HPI - G Hybrid'!B276,IF(OR($D$71=$B$41,$D$71=$B$42,$D$71=$B$43,$D$71=$B$44),'Offre Alezio O Hybrid'!B278,"")))))))))) -> 7708345 | D149: =IF($D$71=$B$52,'OFFRE HPI M'!C274,IF(OR($D$71=$B$38,$D$71=$B$39),'Offre HPI - CAELIA'!C295,IF($D$71=$B$51,'Offre Strateo'!C215,IF($D$71=$B$40,'Offre S Compact - ERIA FIT IN'!C127,IF(OR($D$71=$B$36,$D$71=$B$37),'Offre SV200 - ERIA N DUO '!C152,IF(OR($D$71=$B$34,$D$71=$B$35),'Offre Alezio S - ERIA '!C212,IF(OR($D$71=$B$49,$D$71=$B$50),'Offre GSHP'!C258,IF($D$71="",'Offre Alezio G hybrid'!C241,IF(OR($D$71=$B$45,$D$71=$B$46,$D$71=$B$47,$D$71=$B$48),'Offre HPI - G Hybrid'!C276,IF(OR($D$71=$B$41,$D$71=$B$42,$D$71=$B$43,$D$71=$B$44),'Offre Alezio O Hybrid'!C278,"")))))))))) -> KIT DE RACCORDEMENT ELEC. APPOINT ECS | H149: =IF($D$71=$B$52,'OFFRE HPI M'!D274,IF(OR($D$71=$B$38,$D$71=$B$39),'Offre HPI - CAELIA'!D295,IF($D$71=$B$51,'Offre Strateo'!D215,IF($D$71=$B$40,'Offre S Compact - ERIA FIT IN'!D127,IF(OR($D$71=$B$36,$D$71=$B$37),'Offre SV200 - ERIA N DUO '!D152,IF(OR($D$71=$B$34,$D$71=$B$35),'Offre Alezio S - ERIA '!D212,IF(OR($D$71=$B$50,$D$71=$B$49),'Offre GSHP'!D258,IF($D$71="",'Offre Alezio G hybrid'!D241,IF(OR($D$71=$B$45,$D$71=$B$46,$D$71=$B$47,$D$71=$B$48),'Offre HPI - G Hybrid'!D276,IF(OR($D$71=$B$41,$D$71=$B$42,$D$71=$B$43,$D$71=$B$44),'Offre Alezio O Hybrid'!D278,"")))))))))) -> EH904 | I149: =IF($D$71=$B$52,'OFFRE HPI M'!E274,IF(OR($D$71=$B$38,$D$71=$B$39),'Offre HPI - CAELIA'!E295,IF($D$71=$B$51,'Offre Strateo'!E215,IF($D$71=$B$40,'Offre S Compact - ERIA FIT IN'!E127,IF(OR($D$71=$B$36,$D$71=$B$37),'Offre SV200 - ERIA N DUO '!E152,IF(OR($D$71=$B$34,$D$71=$B$35),'Offre Alezio S - ERIA '!E212,IF(OR($D$71=$B$50,$D$71=$B$49),'Offre GSHP'!E258,IF($D$71="",'Offre Alezio G hybrid'!E241,IF(OR($D$71=$B$45,$D$71=$B$46,$D$71=$B$47,$D$71=$B$48),'Offre HPI - G Hybrid'!E276,IF(OR($D$71=$B$41,$D$71=$B$42,$D$71=$B$43,$D$71=$B$44),'Offre Alezio O Hybrid'!E278,"")))))))))) -> 43 | J149: =IF($D$71=$B$52,'OFFRE HPI M'!F274,IF(OR($D$71=$B$38,$D$71=$B$39),'Offre HPI - CAELIA'!F295,IF($D$71=$B$51,'Offre Strateo'!F215,IF($D$71=$B$40,'Offre S Compact - ERIA FIT IN'!F127,IF(OR($D$71=$B$36,$D$71=$B$37),'Offre SV200 - ERIA N DUO '!F152,IF(OR($D$71=$B$34,$D$71=$B$35),'Offre Alezio S - ERIA '!F212,IF(OR($D$71=$B$50,$D$71=$B$49),'Offre GSHP'!F258,IF($D$71="",'Offre Alezio G hybrid'!F241,IF(OR($D$71=$B$45,$D$71=$B$46,$D$71=$B$47,$D$71=$B$48),'Offre HPI - G Hybrid'!F276,IF(OR($D$71=$B$41,$D$71=$B$42,$D$71=$B$43,$D$71=$B$44),'Offre Alezio O Hybrid'!F278,"")))))))))) ->  | K149: =Chiffrage!M163 -> 0
A150: 49 | C150: =IF($D$71=$B$52,'OFFRE HPI M'!B275,IF(OR($D$71=$B$38,$D$71=$B$39),'Offre HPI - CAELIA'!B296,IF($D$71=$B$51,'Offre Strateo'!B216,IF($D$71=$B$40,'Offre S Compact - ERIA FIT IN'!B128,IF(OR($D$71=$B$36,$D$71=$B$37),'Offre SV200 - ERIA N DUO '!B153,IF(OR($D$71=$B$34,$D$71=$B$35),'Offre Alezio S - ERIA '!B213,IF(OR($D$71=$B$49,$D$71=$B$50),'Offre GSHP'!B259,IF($D$71="",'Offre Alezio G hybrid'!B242,IF(OR($D$71=$B$45,$D$71=$B$46,$D$71=$B$47,$D$71=$B$48),'Offre HPI - G Hybrid'!B277,IF(OR($D$71=$B$41,$D$71=$B$42,$D$71=$B$43,$D$71=$B$44),'Offre Alezio O Hybrid'!B279,"")))))))))) -> 7624902 | D150: =IF($D$71=$B$52,'OFFRE HPI M'!C275,IF(OR($D$71=$B$38,$D$71=$B$39),'Offre HPI - CAELIA'!C296,IF($D$71=$B$51,'Offre Strateo'!C216,IF($D$71=$B$40,'Offre S Compact - ERIA FIT IN'!C128,IF(OR($D$71=$B$36,$D$71=$B$37),'Offre SV200 - ERIA N DUO '!C153,IF(OR($D$71=$B$34,$D$71=$B$35),'Offre Alezio S - ERIA '!C213,IF(OR($D$71=$B$49,$D$71=$B$50),'Offre GSHP'!C259,IF($D$71="",'Offre Alezio G hybrid'!C242,IF(OR($D$71=$B$45,$D$71=$B$46,$D$71=$B$47,$D$71=$B$48),'Offre HPI - G Hybrid'!C277,IF(OR($D$71=$B$41,$D$71=$B$42,$D$71=$B$43,$D$71=$B$44),'Offre Alezio O Hybrid'!C279,"")))))))))) -> KIT CABLAGE PLANCHER CHAUFFANT DIRECT | H150: =IF($D$71=$B$52,'OFFRE HPI M'!D275,IF(OR($D$71=$B$38,$D$71=$B$39),'Offre HPI - CAELIA'!D296,IF($D$71=$B$51,'Offre Strateo'!D216,IF($D$71=$B$40,'Offre S Compact - ERIA FIT IN'!D128,IF(OR($D$71=$B$36,$D$71=$B$37),'Offre SV200 - ERIA N DUO '!D153,IF(OR($D$71=$B$34,$D$71=$B$35),'Offre Alezio S - ERIA '!D213,IF(OR($D$71=$B$50,$D$71=$B$49),'Offre GSHP'!D259,IF($D$71="",'Offre Alezio G hybrid'!D242,IF(OR($D$71=$B$45,$D$71=$B$46,$D$71=$B$47,$D$71=$B$48),'Offre HPI - G Hybrid'!D277,IF(OR($D$71=$B$41,$D$71=$B$42,$D$71=$B$43,$D$71=$B$44),'Offre Alezio O Hybrid'!D279,"")))))))))) -> HA255 | I150: =IF($D$71=$B$52,'OFFRE HPI M'!E275,IF(OR($D$71=$B$38,$D$71=$B$39),'Offre HPI - CAELIA'!E296,IF($D$71=$B$51,'Offre Strateo'!E216,IF($D$71=$B$40,'Offre S Compact - ERIA FIT IN'!E128,IF(OR($D$71=$B$36,$D$71=$B$37),'Offre SV200 - ERIA N DUO '!E153,IF(OR($D$71=$B$34,$D$71=$B$35),'Offre Alezio S - ERIA '!E213,IF(OR($D$71=$B$50,$D$71=$B$49),'Offre GSHP'!E259,IF($D$71="",'Offre Alezio G hybrid'!E242,IF(OR($D$71=$B$45,$D$71=$B$46,$D$71=$B$47,$D$71=$B$48),'Offre HPI - G Hybrid'!E277,IF(OR($D$71=$B$41,$D$71=$B$42,$D$71=$B$43,$D$71=$B$44),'Offre Alezio O Hybrid'!E279,"")))))))))) -> 40 | J150: =IF($D$71=$B$52,'OFFRE HPI M'!F275,IF(OR($D$71=$B$38,$D$71=$B$39),'Offre HPI - CAELIA'!F296,IF($D$71=$B$51,'Offre Strateo'!F216,IF($D$71=$B$40,'Offre S Compact - ERIA FIT IN'!F128,IF(OR($D$71=$B$36,$D$71=$B$37),'Offre SV200 - ERIA N DUO '!F153,IF(OR($D$71=$B$34,$D$71=$B$35),'Offre Alezio S - ERIA '!F213,IF(OR($D$71=$B$50,$D$71=$B$49),'Offre GSHP'!F259,IF($D$71="",'Offre Alezio G hybrid'!F242,IF(OR($D$71=$B$45,$D$71=$B$46,$D$71=$B$47,$D$71=$B$48),'Offre HPI - G Hybrid'!F277,IF(OR($D$71=$B$41,$D$71=$B$42,$D$71=$B$43,$D$71=$B$44),'Offre Alezio O Hybrid'!F279,"")))))))))) ->  | K150: =Chiffrage!M164 -> 0
A151: 50 | C151: =IF($D$71=$B$52,'OFFRE HPI M'!B276,IF(OR($D$71=$B$38,$D$71=$B$39),'Offre HPI - CAELIA'!B297,IF($D$71=$B$51,'Offre Strateo'!B217,IF($D$71=$B$40,'Offre S Compact - ERIA FIT IN'!B129,IF(OR($D$71=$B$36,$D$71=$B$37),'Offre SV200 - ERIA N DUO '!B154,IF(OR($D$71=$B$34,$D$71=$B$35),'Offre Alezio S - ERIA '!B214,IF(OR($D$71=$B$49,$D$71=$B$50),'Offre GSHP'!B260,IF($D$71="",'Offre Alezio G hybrid'!B243,IF(OR($D$71=$B$45,$D$71=$B$46,$D$71=$B$47,$D$71=$B$48),'Offre HPI - G Hybrid'!B278,IF(OR($D$71=$B$41,$D$71=$B$42,$D$71=$B$43,$D$71=$B$44),'Offre Alezio O Hybrid'!B280,"")))))))))) -> 7688755 | D151: =IF($D$71=$B$52,'OFFRE HPI M'!C276,IF(OR($D$71=$B$38,$D$71=$B$39),'Offre HPI - CAELIA'!C297,IF($D$71=$B$51,'Offre Strateo'!C217,IF($D$71=$B$40,'Offre S Compact - ERIA FIT IN'!C129,IF(OR($D$71=$B$36,$D$71=$B$37),'Offre SV200 - ERIA N DUO '!C154,IF(OR($D$71=$B$34,$D$71=$B$35),'Offre Alezio S - ERIA '!C214,IF(OR($D$71=$B$49,$D$71=$B$50),'Offre GSHP'!C260,IF($D$71="",'Offre Alezio G hybrid'!C243,IF(OR($D$71=$B$45,$D$71=$B$46,$D$71=$B$47,$D$71=$B$48),'Offre HPI - G Hybrid'!C278,IF(OR($D$71=$B$41,$D$71=$B$42,$D$71=$B$43,$D$71=$B$44),'Offre Alezio O Hybrid'!C280,"")))))))))) -> KIT SILENCIEUX MODULE EXT. MIT | H151: =IF($D$71=$B$52,'OFFRE HPI M'!D276,IF(OR($D$71=$B$38,$D$71=$B$39),'Offre HPI - CAELIA'!D297,IF($D$71=$B$51,'Offre Strateo'!D217,IF($D$71=$B$40,'Offre S Compact - ERIA FIT IN'!D129,IF(OR($D$71=$B$36,$D$71=$B$37),'Offre SV200 - ERIA N DUO '!D154,IF(OR($D$71=$B$34,$D$71=$B$35),'Offre Alezio S - ERIA '!D214,IF(OR($D$71=$B$50,$D$71=$B$49),'Offre GSHP'!D260,IF($D$71="",'Offre Alezio G hybrid'!D243,IF(OR($D$71=$B$45,$D$71=$B$46,$D$71=$B$47,$D$71=$B$48),'Offre HPI - G Hybrid'!D278,IF(OR($D$71=$B$41,$D$71=$B$42,$D$71=$B$43,$D$71=$B$44),'Offre Alezio O Hybrid'!D280,"")))))))))) -> EH829 | I151: =IF($D$71=$B$52,'OFFRE HPI M'!E276,IF(OR($D$71=$B$38,$D$71=$B$39),'Offre HPI - CAELIA'!E297,IF($D$71=$B$51,'Offre Strateo'!E217,IF($D$71=$B$40,'Offre S Compact - ERIA FIT IN'!E129,IF(OR($D$71=$B$36,$D$71=$B$37),'Offre SV200 - ERIA N DUO '!E154,IF(OR($D$71=$B$34,$D$71=$B$35),'Offre Alezio S - ERIA '!E214,IF(OR($D$71=$B$50,$D$71=$B$49),'Offre GSHP'!E260,IF($D$71="",'Offre Alezio G hybrid'!E243,IF(OR($D$71=$B$45,$D$71=$B$46,$D$71=$B$47,$D$71=$B$48),'Offre HPI - G Hybrid'!E278,IF(OR($D$71=$B$41,$D$71=$B$42,$D$71=$B$43,$D$71=$B$44),'Offre Alezio O Hybrid'!E280,"")))))))))) -> 77 | J151: =IF($D$71=$B$52,'OFFRE HPI M'!F276,IF(OR($D$71=$B$38,$D$71=$B$39),'Offre HPI - CAELIA'!F297,IF($D$71=$B$51,'Offre Strateo'!F217,IF($D$71=$B$40,'Offre S Compact - ERIA FIT IN'!F129,IF(OR($D$71=$B$36,$D$71=$B$37),'Offre SV200 - ERIA N DUO '!F154,IF(OR($D$71=$B$34,$D$71=$B$35),'Offre Alezio S - ERIA '!F214,IF(OR($D$71=$B$50,$D$71=$B$49),'Offre GSHP'!F260,IF($D$71="",'Offre Alezio G hybrid'!F243,IF(OR($D$71=$B$45,$D$71=$B$46,$D$71=$B$47,$D$71=$B$48),'Offre HPI - G Hybrid'!F278,IF(OR($D$71=$B$41,$D$71=$B$42,$D$71=$B$43,$D$71=$B$44),'Offre Alezio O Hybrid'!F280,"")))))))))) ->  | K151: =Chiffrage!M165 -> 0
A152: 51 | C152: =IF($D$71=$B$52,'OFFRE HPI M'!B277,IF(OR($D$71=$B$38,$D$71=$B$39),'Offre HPI - CAELIA'!B298,IF($D$71=$B$51,'Offre Strateo'!B218,IF($D$71=$B$40,'Offre S Compact - ERIA FIT IN'!B130,IF(OR($D$71=$B$36,$D$71=$B$37),'Offre SV200 - ERIA N DUO '!B155,IF(OR($D$71=$B$34,$D$71=$B$35),'Offre Alezio S - ERIA '!B215,IF(OR($D$71=$B$49,$D$71=$B$50),'Offre GSHP'!B261,IF($D$71="",'Offre Alezio G hybrid'!B244,IF(OR($D$71=$B$45,$D$71=$B$46,$D$71=$B$47,$D$71=$B$48),'Offre HPI - G Hybrid'!B279,IF(OR($D$71=$B$41,$D$71=$B$42,$D$71=$B$43,$D$71=$B$44),'Offre Alezio O Hybrid'!B281,"")))))))))) -> 100000030 | D152: =IF($D$71=$B$52,'OFFRE HPI M'!C277,IF(OR($D$71=$B$38,$D$71=$B$39),'Offre HPI - CAELIA'!C298,IF($D$71=$B$51,'Offre Strateo'!C218,IF($D$71=$B$40,'Offre S Compact - ERIA FIT IN'!C130,IF(OR($D$71=$B$36,$D$71=$B$37),'Offre SV200 - ERIA N DUO '!C155,IF(OR($D$71=$B$34,$D$71=$B$35),'Offre Alezio S - ERIA '!C215,IF(OR($D$71=$B$49,$D$71=$B$50),'Offre GSHP'!C261,IF($D$71="",'Offre Alezio G hybrid'!C244,IF(OR($D$71=$B$45,$D$71=$B$46,$D$71=$B$47,$D$71=$B$48),'Offre HPI - G Hybrid'!C279,IF(OR($D$71=$B$41,$D$71=$B$42,$D$71=$B$43,$D$71=$B$44),'Offre Alezio O Hybrid'!C281,"")))))))))) -> COLIS OPTION SONDE ECS | H152: =IF($D$71=$B$52,'OFFRE HPI M'!D277,IF(OR($D$71=$B$38,$D$71=$B$39),'Offre HPI - CAELIA'!D298,IF($D$71=$B$51,'Offre Strateo'!D218,IF($D$71=$B$40,'Offre S Compact - ERIA FIT IN'!D130,IF(OR($D$71=$B$36,$D$71=$B$37),'Offre SV200 - ERIA N DUO '!D155,IF(OR($D$71=$B$34,$D$71=$B$35),'Offre Alezio S - ERIA '!D215,IF(OR($D$71=$B$50,$D$71=$B$49),'Offre GSHP'!D261,IF($D$71="",'Offre Alezio G hybrid'!D244,IF(OR($D$71=$B$45,$D$71=$B$46,$D$71=$B$47,$D$71=$B$48),'Offre HPI - G Hybrid'!D279,IF(OR($D$71=$B$41,$D$71=$B$42,$D$71=$B$43,$D$71=$B$44),'Offre Alezio O Hybrid'!D281,"")))))))))) -> AD212 | I152: =IF($D$71=$B$52,'OFFRE HPI M'!E277,IF(OR($D$71=$B$38,$D$71=$B$39),'Offre HPI - CAELIA'!E298,IF($D$71=$B$51,'Offre Strateo'!E218,IF($D$71=$B$40,'Offre S Compact - ERIA FIT IN'!E130,IF(OR($D$71=$B$36,$D$71=$B$37),'Offre SV200 - ERIA N DUO '!E155,IF(OR($D$71=$B$34,$D$71=$B$35),'Offre Alezio S - ERIA '!E215,IF(OR($D$71=$B$50,$D$71=$B$49),'Offre GSHP'!E261,IF($D$71="",'Offre Alezio G hybrid'!E244,IF(OR($D$71=$B$45,$D$71=$B$46,$D$71=$B$47,$D$71=$B$48),'Offre HPI - G Hybrid'!E279,IF(OR($D$71=$B$41,$D$71=$B$42,$D$71=$B$43,$D$71=$B$44),'Offre Alezio O Hybrid'!E281,"")))))))))) -> 53 | J152: =IF($D$71=$B$52,'OFFRE HPI M'!F277,IF(OR($D$71=$B$38,$D$71=$B$39),'Offre HPI - CAELIA'!F298,IF($D$71=$B$51,'Offre Strateo'!F218,IF($D$71=$B$40,'Offre S Compact - ERIA FIT IN'!F130,IF(OR($D$71=$B$36,$D$71=$B$37),'Offre SV200 - ERIA N DUO '!F155,IF(OR($D$71=$B$34,$D$71=$B$35),'Offre Alezio S - ERIA '!F215,IF(OR($D$71=$B$50,$D$71=$B$49),'Offre GSHP'!F261,IF($D$71="",'Offre Alezio G hybrid'!F244,IF(OR($D$71=$B$45,$D$71=$B$46,$D$71=$B$47,$D$71=$B$48),'Offre HPI - G Hybrid'!F279,IF(OR($D$71=$B$41,$D$71=$B$42,$D$71=$B$43,$D$71=$B$44),'Offre Alezio O Hybrid'!F281,"")))))))))) ->  | K152: =Chiffrage!M166 -> 0
A153: 52 | C153: =IF($D$71=$B$52,'OFFRE HPI M'!B278,IF(OR($D$71=$B$38,$D$71=$B$39),'Offre HPI - CAELIA'!B299,IF($D$71=$B$51,'Offre Strateo'!B219,IF($D$71=$B$40,'Offre S Compact - ERIA FIT IN'!B131,IF(OR($D$71=$B$36,$D$71=$B$37),'Offre SV200 - ERIA N DUO '!B156,IF(OR($D$71=$B$34,$D$71=$B$35),'Offre Alezio S - ERIA '!B216,IF(OR($D$71=$B$49,$D$71=$B$50),'Offre GSHP'!B262,IF($D$71="",'Offre Alezio G hybrid'!B245,IF(OR($D$71=$B$45,$D$71=$B$46,$D$71=$B$47,$D$71=$B$48),'Offre HPI - G Hybrid'!B280,IF(OR($D$71=$B$41,$D$71=$B$42,$D$71=$B$43,$D$71=$B$44),'Offre Alezio O Hybrid'!B282,"")))))))))) -> 100019114 | D153: =IF($D$71=$B$52,'OFFRE HPI M'!C278,IF(OR($D$71=$B$38,$D$71=$B$39),'Offre HPI - CAELIA'!C299,IF($D$71=$B$51,'Offre Strateo'!C219,IF($D$71=$B$40,'Offre S Compact - ERIA FIT IN'!C131,IF(OR($D$71=$B$36,$D$71=$B$37),'Offre SV200 - ERIA N DUO '!C156,IF(OR($D$71=$B$34,$D$71=$B$35),'Offre Alezio S - ERIA '!C216,IF(OR($D$71=$B$49,$D$71=$B$50),'Offre GSHP'!C262,IF($D$71="",'Offre Alezio G hybrid'!C245,IF(OR($D$71=$B$45,$D$71=$B$46,$D$71=$B$47,$D$71=$B$48),'Offre HPI - G Hybrid'!C280,IF(OR($D$71=$B$41,$D$71=$B$42,$D$71=$B$43,$D$71=$B$44),'Offre Alezio O Hybrid'!C282,"")))))))))) -> KIT SONDE HYGRO RAFRAICHISSEMENT | H153: =IF($D$71=$B$52,'OFFRE HPI M'!D278,IF(OR($D$71=$B$38,$D$71=$B$39),'Offre HPI - CAELIA'!D299,IF($D$71=$B$51,'Offre Strateo'!D219,IF($D$71=$B$40,'Offre S Compact - ERIA FIT IN'!D131,IF(OR($D$71=$B$36,$D$71=$B$37),'Offre SV200 - ERIA N DUO '!D156,IF(OR($D$71=$B$34,$D$71=$B$35),'Offre Alezio S - ERIA '!D216,IF(OR($D$71=$B$50,$D$71=$B$49),'Offre GSHP'!D262,IF($D$71="",'Offre Alezio G hybrid'!D245,IF(OR($D$71=$B$45,$D$71=$B$46,$D$71=$B$47,$D$71=$B$48),'Offre HPI - G Hybrid'!D280,IF(OR($D$71=$B$41,$D$71=$B$42,$D$71=$B$43,$D$71=$B$44),'Offre Alezio O Hybrid'!D282,"")))))))))) -> HK27 | I153: =IF($D$71=$B$52,'OFFRE HPI M'!E278,IF(OR($D$71=$B$38,$D$71=$B$39),'Offre HPI - CAELIA'!E299,IF($D$71=$B$51,'Offre Strateo'!E219,IF($D$71=$B$40,'Offre S Compact - ERIA FIT IN'!E131,IF(OR($D$71=$B$36,$D$71=$B$37),'Offre SV200 - ERIA N DUO '!E156,IF(OR($D$71=$B$34,$D$71=$B$35),'Offre Alezio S - ERIA '!E216,IF(OR($D$71=$B$50,$D$71=$B$49),'Offre GSHP'!E262,IF($D$71="",'Offre Alezio G hybrid'!E245,IF(OR($D$71=$B$45,$D$71=$B$46,$D$71=$B$47,$D$71=$B$48),'Offre HPI - G Hybrid'!E280,IF(OR($D$71=$B$41,$D$71=$B$42,$D$71=$B$43,$D$71=$B$44),'Offre Alezio O Hybrid'!E282,"")))))))))) -> 233 | J153: =IF($D$71=$B$52,'OFFRE HPI M'!F278,IF(OR($D$71=$B$38,$D$71=$B$39),'Offre HPI - CAELIA'!F299,IF($D$71=$B$51,'Offre Strateo'!F219,IF($D$71=$B$40,'Offre S Compact - ERIA FIT IN'!F131,IF(OR($D$71=$B$36,$D$71=$B$37),'Offre SV200 - ERIA N DUO '!F156,IF(OR($D$71=$B$34,$D$71=$B$35),'Offre Alezio S - ERIA '!F216,IF(OR($D$71=$B$50,$D$71=$B$49),'Offre GSHP'!F262,IF($D$71="",'Offre Alezio G hybrid'!F245,IF(OR($D$71=$B$45,$D$71=$B$46,$D$71=$B$47,$D$71=$B$48),'Offre HPI - G Hybrid'!F280,IF(OR($D$71=$B$41,$D$71=$B$42,$D$71=$B$43,$D$71=$B$44),'Offre Alezio O Hybrid'!F282,"")))))))))) ->  | K153: =Chiffrage!M167 -> 0
A154: 53 | C154: =IF($D$71=$B$52,'OFFRE HPI M'!B279,IF(OR($D$71=$B$38,$D$71=$B$39),'Offre HPI - CAELIA'!B300,IF($D$71=$B$51,'Offre Strateo'!B220,IF($D$71=$B$40,'Offre S Compact - ERIA FIT IN'!B132,IF(OR($D$71=$B$36,$D$71=$B$37),'Offre SV200 - ERIA N DUO '!B157,IF(OR($D$71=$B$34,$D$71=$B$35),'Offre Alezio S - ERIA '!B217,IF(OR($D$71=$B$49,$D$71=$B$50),'Offre GSHP'!B263,IF($D$71="",'Offre Alezio G hybrid'!B246,IF(OR($D$71=$B$45,$D$71=$B$46,$D$71=$B$47,$D$71=$B$48),'Offre HPI - G Hybrid'!B281,IF(OR($D$71=$B$41,$D$71=$B$42,$D$71=$B$43,$D$71=$B$44),'Offre Alezio O Hybrid'!B283,"")))))))))) -> 7622433 | D154: =IF($D$71=$B$52,'OFFRE HPI M'!C279,IF(OR($D$71=$B$38,$D$71=$B$39),'Offre HPI - CAELIA'!C300,IF($D$71=$B$51,'Offre Strateo'!C220,IF($D$71=$B$40,'Offre S Compact - ERIA FIT IN'!C132,IF(OR($D$71=$B$36,$D$71=$B$37),'Offre SV200 - ERIA N DUO '!C157,IF(OR($D$71=$B$34,$D$71=$B$35),'Offre Alezio S - ERIA '!C217,IF(OR($D$71=$B$49,$D$71=$B$50),'Offre GSHP'!C263,IF($D$71="",'Offre Alezio G hybrid'!C246,IF(OR($D$71=$B$45,$D$71=$B$46,$D$71=$B$47,$D$71=$B$48),'Offre HPI - G Hybrid'!C281,IF(OR($D$71=$B$41,$D$71=$B$42,$D$71=$B$43,$D$71=$B$44),'Offre Alezio O Hybrid'!C283,"")))))))))) -> KIT SONDE CONDENSATION (0-10V) | H154: =IF($D$71=$B$52,'OFFRE HPI M'!D279,IF(OR($D$71=$B$38,$D$71=$B$39),'Offre HPI - CAELIA'!D300,IF($D$71=$B$51,'Offre Strateo'!D220,IF($D$71=$B$40,'Offre S Compact - ERIA FIT IN'!D132,IF(OR($D$71=$B$36,$D$71=$B$37),'Offre SV200 - ERIA N DUO '!D157,IF(OR($D$71=$B$34,$D$71=$B$35),'Offre Alezio S - ERIA '!D217,IF(OR($D$71=$B$50,$D$71=$B$49),'Offre GSHP'!D263,IF($D$71="",'Offre Alezio G hybrid'!D246,IF(OR($D$71=$B$45,$D$71=$B$46,$D$71=$B$47,$D$71=$B$48),'Offre HPI - G Hybrid'!D281,IF(OR($D$71=$B$41,$D$71=$B$42,$D$71=$B$43,$D$71=$B$44),'Offre Alezio O Hybrid'!D283,"")))))))))) -> HZ64 | I154: =IF($D$71=$B$52,'OFFRE HPI M'!E279,IF(OR($D$71=$B$38,$D$71=$B$39),'Offre HPI - CAELIA'!E300,IF($D$71=$B$51,'Offre Strateo'!E220,IF($D$71=$B$40,'Offre S Compact - ERIA FIT IN'!E132,IF(OR($D$71=$B$36,$D$71=$B$37),'Offre SV200 - ERIA N DUO '!E157,IF(OR($D$71=$B$34,$D$71=$B$35),'Offre Alezio S - ERIA '!E217,IF(OR($D$71=$B$50,$D$71=$B$49),'Offre GSHP'!E263,IF($D$71="",'Offre Alezio G hybrid'!E246,IF(OR($D$71=$B$45,$D$71=$B$46,$D$71=$B$47,$D$71=$B$48),'Offre HPI - G Hybrid'!E281,IF(OR($D$71=$B$41,$D$71=$B$42,$D$71=$B$43,$D$71=$B$44),'Offre Alezio O Hybrid'!E283,"")))))))))) -> 420 | J154: =IF($D$71=$B$52,'OFFRE HPI M'!F279,IF(OR($D$71=$B$38,$D$71=$B$39),'Offre HPI - CAELIA'!F300,IF($D$71=$B$51,'Offre Strateo'!F220,IF($D$71=$B$40,'Offre S Compact - ERIA FIT IN'!F132,IF(OR($D$71=$B$36,$D$71=$B$37),'Offre SV200 - ERIA N DUO '!F157,IF(OR($D$71=$B$34,$D$71=$B$35),'Offre Alezio S - ERIA '!F217,IF(OR($D$71=$B$50,$D$71=$B$49),'Offre GSHP'!F263,IF($D$71="",'Offre Alezio G hybrid'!F246,IF(OR($D$71=$B$45,$D$71=$B$46,$D$71=$B$47,$D$71=$B$48),'Offre HPI - G Hybrid'!F281,IF(OR($D$71=$B$41,$D$71=$B$42,$D$71=$B$43,$D$71=$B$44),'Offre Alezio O Hybrid'!F283,"")))))))))) ->  | K154: =Chiffrage!M168 -> 0
A155: 54 | C155: =IF($D$71=$B$52,'OFFRE HPI M'!B280,IF(OR($D$71=$B$38,$D$71=$B$39),'Offre HPI - CAELIA'!B301,IF($D$71=$B$51,'Offre Strateo'!B221,IF($D$71=$B$40,'Offre S Compact - ERIA FIT IN'!B133,IF(OR($D$71=$B$36,$D$71=$B$37),'Offre SV200 - ERIA N DUO '!B158,IF(OR($D$71=$B$34,$D$71=$B$35),'Offre Alezio S - ERIA '!B218,IF(OR($D$71=$B$49,$D$71=$B$50),'Offre GSHP'!B264,IF($D$71="",'Offre Alezio G hybrid'!B247,IF(OR($D$71=$B$45,$D$71=$B$46,$D$71=$B$47,$D$71=$B$48),'Offre HPI - G Hybrid'!B282,IF(OR($D$71=$B$41,$D$71=$B$42,$D$71=$B$43,$D$71=$B$44),'Offre Alezio O Hybrid'!B284,"")))))))))) -> 7691374 | D155: =IF($D$71=$B$52,'OFFRE HPI M'!C280,IF(OR($D$71=$B$38,$D$71=$B$39),'Offre HPI - CAELIA'!C301,IF($D$71=$B$51,'Offre Strateo'!C221,IF($D$71=$B$40,'Offre S Compact - ERIA FIT IN'!C133,IF(OR($D$71=$B$36,$D$71=$B$37),'Offre SV200 - ERIA N DUO '!C158,IF(OR($D$71=$B$34,$D$71=$B$35),'Offre Alezio S - ERIA '!C218,IF(OR($D$71=$B$49,$D$71=$B$50),'Offre GSHP'!C264,IF($D$71="",'Offre Alezio G hybrid'!C247,IF(OR($D$71=$B$45,$D$71=$B$46,$D$71=$B$47,$D$71=$B$48),'Offre HPI - G Hybrid'!C282,IF(OR($D$71=$B$41,$D$71=$B$42,$D$71=$B$43,$D$71=$B$44),'Offre Alezio O Hybrid'!C284,"")))))))))) -> THERMOSTAT AMBIANCE OETROSMART (R-BUS) | H155: =IF($D$71=$B$52,'OFFRE HPI M'!D280,IF(OR($D$71=$B$38,$D$71=$B$39),'Offre HPI - CAELIA'!D301,IF($D$71=$B$51,'Offre Strateo'!D221,IF($D$71=$B$40,'Offre S Compact - ERIA FIT IN'!D133,IF(OR($D$71=$B$36,$D$71=$B$37),'Offre SV200 - ERIA N DUO '!D158,IF(OR($D$71=$B$34,$D$71=$B$35),'Offre Alezio S - ERIA '!D218,IF(OR($D$71=$B$50,$D$71=$B$49),'Offre GSHP'!D264,IF($D$71="",'Offre Alezio G hybrid'!D247,IF(OR($D$71=$B$45,$D$71=$B$46,$D$71=$B$47,$D$71=$B$48),'Offre HPI - G Hybrid'!D282,IF(OR($D$71=$B$41,$D$71=$B$42,$D$71=$B$43,$D$71=$B$44),'Offre Alezio O Hybrid'!D284,"")))))))))) -> AD323 | I155: =IF($D$71=$B$52,'OFFRE HPI M'!E280,IF(OR($D$71=$B$38,$D$71=$B$39),'Offre HPI - CAELIA'!E301,IF($D$71=$B$51,'Offre Strateo'!E221,IF($D$71=$B$40,'Offre S Compact - ERIA FIT IN'!E133,IF(OR($D$71=$B$36,$D$71=$B$37),'Offre SV200 - ERIA N DUO '!E158,IF(OR($D$71=$B$34,$D$71=$B$35),'Offre Alezio S - ERIA '!E218,IF(OR($D$71=$B$50,$D$71=$B$49),'Offre GSHP'!E264,IF($D$71="",'Offre Alezio G hybrid'!E247,IF(OR($D$71=$B$45,$D$71=$B$46,$D$71=$B$47,$D$71=$B$48),'Offre HPI - G Hybrid'!E282,IF(OR($D$71=$B$41,$D$71=$B$42,$D$71=$B$43,$D$71=$B$44),'Offre Alezio O Hybrid'!E284,"")))))))))) -> 207 | J155: =IF($D$71=$B$52,'OFFRE HPI M'!F280,IF(OR($D$71=$B$38,$D$71=$B$39),'Offre HPI - CAELIA'!F301,IF($D$71=$B$51,'Offre Strateo'!F221,IF($D$71=$B$40,'Offre S Compact - ERIA FIT IN'!F133,IF(OR($D$71=$B$36,$D$71=$B$37),'Offre SV200 - ERIA N DUO '!F158,IF(OR($D$71=$B$34,$D$71=$B$35),'Offre Alezio S - ERIA '!F218,IF(OR($D$71=$B$50,$D$71=$B$49),'Offre GSHP'!F264,IF($D$71="",'Offre Alezio G hybrid'!F247,IF(OR($D$71=$B$45,$D$71=$B$46,$D$71=$B$47,$D$71=$B$48),'Offre HPI - G Hybrid'!F282,IF(OR($D$71=$B$41,$D$71=$B$42,$D$71=$B$43,$D$71=$B$44),'Offre Alezio O Hybrid'!F284,"")))))))))) -> 1 | K155: =Chiffrage!M169 -> 0 | L155: 207
A156: 55 | C156: =IF($D$71=$B$52,'OFFRE HPI M'!B281,IF(OR($D$71=$B$38,$D$71=$B$39),'Offre HPI - CAELIA'!B302,IF($D$71=$B$51,'Offre Strateo'!B222,IF($D$71=$B$40,'Offre S Compact - ERIA FIT IN'!B134,IF(OR($D$71=$B$36,$D$71=$B$37),'Offre SV200 - ERIA N DUO '!B159,IF(OR($D$71=$B$34,$D$71=$B$35),'Offre Alezio S - ERIA '!B219,IF(OR($D$71=$B$49,$D$71=$B$50),'Offre GSHP'!B265,IF($D$71="",'Offre Alezio G hybrid'!B248,IF(OR($D$71=$B$45,$D$71=$B$46,$D$71=$B$47,$D$71=$B$48),'Offre HPI - G Hybrid'!B283,IF(OR($D$71=$B$41,$D$71=$B$42,$D$71=$B$43,$D$71=$B$44),'Offre Alezio O Hybrid'!B285,"")))))))))) -> 88017018 | D156: =IF($D$71=$B$52,'OFFRE HPI M'!C281,IF(OR($D$71=$B$38,$D$71=$B$39),'Offre HPI - CAELIA'!C302,IF($D$71=$B$51,'Offre Strateo'!C222,IF($D$71=$B$40,'Offre S Compact - ERIA FIT IN'!C134,IF(OR($D$71=$B$36,$D$71=$B$37),'Offre SV200 - ERIA N DUO '!C159,IF(OR($D$71=$B$34,$D$71=$B$35),'Offre Alezio S - ERIA '!C219,IF(OR($D$71=$B$49,$D$71=$B$50),'Offre GSHP'!C265,IF($D$71="",'Offre Alezio G hybrid'!C248,IF(OR($D$71=$B$45,$D$71=$B$46,$D$71=$B$47,$D$71=$B$48),'Offre HPI - G Hybrid'!C283,IF(OR($D$71=$B$41,$D$71=$B$42,$D$71=$B$43,$D$71=$B$44),'Offre Alezio O Hybrid'!C285,"")))))))))) -> THERMOSTAT D AMBIANCE PROGRAMMABLE SANS FILS | H156: =IF($D$71=$B$52,'OFFRE HPI M'!D281,IF(OR($D$71=$B$38,$D$71=$B$39),'Offre HPI - CAELIA'!D302,IF($D$71=$B$51,'Offre Strateo'!D222,IF($D$71=$B$40,'Offre S Compact - ERIA FIT IN'!D134,IF(OR($D$71=$B$36,$D$71=$B$37),'Offre SV200 - ERIA N DUO '!D159,IF(OR($D$71=$B$34,$D$71=$B$35),'Offre Alezio S - ERIA '!D219,IF(OR($D$71=$B$50,$D$71=$B$49),'Offre GSHP'!D265,IF($D$71="",'Offre Alezio G hybrid'!D248,IF(OR($D$71=$B$45,$D$71=$B$46,$D$71=$B$47,$D$71=$B$48),'Offre HPI - G Hybrid'!D283,IF(OR($D$71=$B$41,$D$71=$B$42,$D$71=$B$43,$D$71=$B$44),'Offre Alezio O Hybrid'!D285,"")))))))))) -> AD192 | I156: =IF($D$71=$B$52,'OFFRE HPI M'!E281,IF(OR($D$71=$B$38,$D$71=$B$39),'Offre HPI - CAELIA'!E302,IF($D$71=$B$51,'Offre Strateo'!E222,IF($D$71=$B$40,'Offre S Compact - ERIA FIT IN'!E134,IF(OR($D$71=$B$36,$D$71=$B$37),'Offre SV200 - ERIA N DUO '!E159,IF(OR($D$71=$B$34,$D$71=$B$35),'Offre Alezio S - ERIA '!E219,IF(OR($D$71=$B$50,$D$71=$B$49),'Offre GSHP'!E265,IF($D$71="",'Offre Alezio G hybrid'!E248,IF(OR($D$71=$B$45,$D$71=$B$46,$D$71=$B$47,$D$71=$B$48),'Offre HPI - G Hybrid'!E283,IF(OR($D$71=$B$41,$D$71=$B$42,$D$71=$B$43,$D$71=$B$44),'Offre Alezio O Hybrid'!E285,"")))))))))) -> 308 | J156: =IF($D$71=$B$52,'OFFRE HPI M'!F281,IF(OR($D$71=$B$38,$D$71=$B$39),'Offre HPI - CAELIA'!F302,IF($D$71=$B$51,'Offre Strateo'!F222,IF($D$71=$B$40,'Offre S Compact - ERIA FIT IN'!F134,IF(OR($D$71=$B$36,$D$71=$B$37),'Offre SV200 - ERIA N DUO '!F159,IF(OR($D$71=$B$34,$D$71=$B$35),'Offre Alezio S - ERIA '!F219,IF(OR($D$71=$B$50,$D$71=$B$49),'Offre GSHP'!F265,IF($D$71="",'Offre Alezio G hybrid'!F248,IF(OR($D$71=$B$45,$D$71=$B$46,$D$71=$B$47,$D$71=$B$48),'Offre HPI - G Hybrid'!F283,IF(OR($D$71=$B$41,$D$71=$B$42,$D$71=$B$43,$D$71=$B$44),'Offre Alezio O Hybrid'!F285,"")))))))))) ->  | K156: =Chiffrage!M170 -> 0
A157: 56 | C157: =IF($D$71=$B$52,'OFFRE HPI M'!B282,IF(OR($D$71=$B$38,$D$71=$B$39),'Offre HPI - CAELIA'!B303,IF($D$71=$B$51,'Offre Strateo'!B223,IF($D$71=$B$40,'Offre S Compact - ERIA FIT IN'!B135,IF(OR($D$71=$B$36,$D$71=$B$37),'Offre SV200 - ERIA N DUO '!B160,IF(OR($D$71=$B$34,$D$71=$B$35),'Offre Alezio S - ERIA '!B220,IF(OR($D$71=$B$49,$D$71=$B$50),'Offre GSHP'!B266,IF($D$71="",'Offre Alezio G hybrid'!B249,IF(OR($D$71=$B$45,$D$71=$B$46,$D$71=$B$47,$D$71=$B$48),'Offre HPI - G Hybrid'!B284,IF(OR($D$71=$B$41,$D$71=$B$42,$D$71=$B$43,$D$71=$B$44),'Offre Alezio O Hybrid'!B286,"")))))))))) -> 88017859 | D157: =IF($D$71=$B$52,'OFFRE HPI M'!C282,IF(OR($D$71=$B$38,$D$71=$B$39),'Offre HPI - CAELIA'!C303,IF($D$71=$B$51,'Offre Strateo'!C223,IF($D$71=$B$40,'Offre S Compact - ERIA FIT IN'!C135,IF(OR($D$71=$B$36,$D$71=$B$37),'Offre SV200 - ERIA N DUO '!C160,IF(OR($D$71=$B$34,$D$71=$B$35),'Offre Alezio S - ERIA '!C220,IF(OR($D$71=$B$49,$D$71=$B$50),'Offre GSHP'!C266,IF($D$71="",'Offre Alezio G hybrid'!C249,IF(OR($D$71=$B$45,$D$71=$B$46,$D$71=$B$47,$D$71=$B$48),'Offre HPI - G Hybrid'!C284,IF(OR($D$71=$B$41,$D$71=$B$42,$D$71=$B$43,$D$71=$B$44),'Offre Alezio O Hybrid'!C286,"")))))))))) -> THERMOSTAT D'AMBIANCE NON PROGRAMMABLE | H157: =IF($D$71=$B$52,'OFFRE HPI M'!D282,IF(OR($D$71=$B$38,$D$71=$B$39),'Offre HPI - CAELIA'!D303,IF($D$71=$B$51,'Offre Strateo'!D223,IF($D$71=$B$40,'Offre S Compact - ERIA FIT IN'!D135,IF(OR($D$71=$B$36,$D$71=$B$37),'Offre SV200 - ERIA N DUO '!D160,IF(OR($D$71=$B$34,$D$71=$B$35),'Offre Alezio S - ERIA '!D220,IF(OR($D$71=$B$50,$D$71=$B$49),'Offre GSHP'!D266,IF($D$71="",'Offre Alezio G hybrid'!D249,IF(OR($D$71=$B$45,$D$71=$B$46,$D$71=$B$47,$D$71=$B$48),'Offre HPI - G Hybrid'!D284,IF(OR($D$71=$B$41,$D$71=$B$42,$D$71=$B$43,$D$71=$B$44),'Offre Alezio O Hybrid'!D286,"")))))))))) -> AD140 | I157: =IF($D$71=$B$52,'OFFRE HPI M'!E282,IF(OR($D$71=$B$38,$D$71=$B$39),'Offre HPI - CAELIA'!E303,IF($D$71=$B$51,'Offre Strateo'!E223,IF($D$71=$B$40,'Offre S Compact - ERIA FIT IN'!E135,IF(OR($D$71=$B$36,$D$71=$B$37),'Offre SV200 - ERIA N DUO '!E160,IF(OR($D$71=$B$34,$D$71=$B$35),'Offre Alezio S - ERIA '!E220,IF(OR($D$71=$B$50,$D$71=$B$49),'Offre GSHP'!E266,IF($D$71="",'Offre Alezio G hybrid'!E249,IF(OR($D$71=$B$45,$D$71=$B$46,$D$71=$B$47,$D$71=$B$48),'Offre HPI - G Hybrid'!E284,IF(OR($D$71=$B$41,$D$71=$B$42,$D$71=$B$43,$D$71=$B$44),'Offre Alezio O Hybrid'!E286,"")))))))))) -> 54 | J157: =IF($D$71=$B$52,'OFFRE HPI M'!F282,IF(OR($D$71=$B$38,$D$71=$B$39),'Offre HPI - CAELIA'!F303,IF($D$71=$B$51,'Offre Strateo'!F223,IF($D$71=$B$40,'Offre S Compact - ERIA FIT IN'!F135,IF(OR($D$71=$B$36,$D$71=$B$37),'Offre SV200 - ERIA N DUO '!F160,IF(OR($D$71=$B$34,$D$71=$B$35),'Offre Alezio S - ERIA '!F220,IF(OR($D$71=$B$50,$D$71=$B$49),'Offre GSHP'!F266,IF($D$71="",'Offre Alezio G hybrid'!F249,IF(OR($D$71=$B$45,$D$71=$B$46,$D$71=$B$47,$D$71=$B$48),'Offre HPI - G Hybrid'!F284,IF(OR($D$71=$B$41,$D$71=$B$42,$D$71=$B$43,$D$71=$B$44),'Offre Alezio O Hybrid'!F286,"")))))))))) ->  | K157: =Chiffrage!M171 -> 0
A158: 57 | C158: =IF($D$71=$B$52,'OFFRE HPI M'!B283,IF(OR($D$71=$B$38,$D$71=$B$39),'Offre HPI - CAELIA'!B304,IF($D$71=$B$51,'Offre Strateo'!B224,IF($D$71=$B$40,'Offre S Compact - ERIA FIT IN'!B136,IF(OR($D$71=$B$36,$D$71=$B$37),'Offre SV200 - ERIA N DUO '!B161,IF(OR($D$71=$B$34,$D$71=$B$35),'Offre Alezio S - ERIA '!B221,IF(OR($D$71=$B$49,$D$71=$B$50),'Offre GSHP'!B267,IF($D$71="",'Offre Alezio G hybrid'!B250,IF(OR($D$71=$B$45,$D$71=$B$46,$D$71=$B$47,$D$71=$B$48),'Offre HPI - G Hybrid'!B285,IF(OR($D$71=$B$41,$D$71=$B$42,$D$71=$B$43,$D$71=$B$44),'Offre Alezio O Hybrid'!B287,"")))))))))) -> 88017904 | D158: =IF($D$71=$B$52,'OFFRE HPI M'!C283,IF(OR($D$71=$B$38,$D$71=$B$39),'Offre HPI - CAELIA'!C304,IF($D$71=$B$51,'Offre Strateo'!C224,IF($D$71=$B$40,'Offre S Compact - ERIA FIT IN'!C136,IF(OR($D$71=$B$36,$D$71=$B$37),'Offre SV200 - ERIA N DUO '!C161,IF(OR($D$71=$B$34,$D$71=$B$35),'Offre Alezio S - ERIA '!C221,IF(OR($D$71=$B$49,$D$71=$B$50),'Offre GSHP'!C267,IF($D$71="",'Offre Alezio G hybrid'!C250,IF(OR($D$71=$B$45,$D$71=$B$46,$D$71=$B$47,$D$71=$B$48),'Offre HPI - G Hybrid'!C285,IF(OR($D$71=$B$41,$D$71=$B$42,$D$71=$B$43,$D$71=$B$44),'Offre Alezio O Hybrid'!C287,"")))))))))) -> THERMOSTAT AMBIANCE PROGRAMMABLE (FILAIRE) | H158: =IF($D$71=$B$52,'OFFRE HPI M'!D283,IF(OR($D$71=$B$38,$D$71=$B$39),'Offre HPI - CAELIA'!D304,IF($D$71=$B$51,'Offre Strateo'!D224,IF($D$71=$B$40,'Offre S Compact - ERIA FIT IN'!D136,IF(OR($D$71=$B$36,$D$71=$B$37),'Offre SV200 - ERIA N DUO '!D161,IF(OR($D$71=$B$34,$D$71=$B$35),'Offre Alezio S - ERIA '!D221,IF(OR($D$71=$B$50,$D$71=$B$49),'Offre GSHP'!D267,IF($D$71="",'Offre Alezio G hybrid'!D250,IF(OR($D$71=$B$45,$D$71=$B$46,$D$71=$B$47,$D$71=$B$48),'Offre HPI - G Hybrid'!D285,IF(OR($D$71=$B$41,$D$71=$B$42,$D$71=$B$43,$D$71=$B$44),'Offre Alezio O Hybrid'!D287,"")))))))))) -> AD191 | I158: =IF($D$71=$B$52,'OFFRE HPI M'!E283,IF(OR($D$71=$B$38,$D$71=$B$39),'Offre HPI - CAELIA'!E304,IF($D$71=$B$51,'Offre Strateo'!E224,IF($D$71=$B$40,'Offre S Compact - ERIA FIT IN'!E136,IF(OR($D$71=$B$36,$D$71=$B$37),'Offre SV200 - ERIA N DUO '!E161,IF(OR($D$71=$B$34,$D$71=$B$35),'Offre Alezio S - ERIA '!E221,IF(OR($D$71=$B$50,$D$71=$B$49),'Offre GSHP'!E267,IF($D$71="",'Offre Alezio G hybrid'!E250,IF(OR($D$71=$B$45,$D$71=$B$46,$D$71=$B$47,$D$71=$B$48),'Offre HPI - G Hybrid'!E285,IF(OR($D$71=$B$41,$D$71=$B$42,$D$71=$B$43,$D$71=$B$44),'Offre Alezio O Hybrid'!E287,"")))))))))) -> 176 | J158: =IF($D$71=$B$52,'OFFRE HPI M'!F283,IF(OR($D$71=$B$38,$D$71=$B$39),'Offre HPI - CAELIA'!F304,IF($D$71=$B$51,'Offre Strateo'!F224,IF($D$71=$B$40,'Offre S Compact - ERIA FIT IN'!F136,IF(OR($D$71=$B$36,$D$71=$B$37),'Offre SV200 - ERIA N DUO '!F161,IF(OR($D$71=$B$34,$D$71=$B$35),'Offre Alezio S - ERIA '!F221,IF(OR($D$71=$B$50,$D$71=$B$49),'Offre GSHP'!F267,IF($D$71="",'Offre Alezio G hybrid'!F250,IF(OR($D$71=$B$45,$D$71=$B$46,$D$71=$B$47,$D$71=$B$48),'Offre HPI - G Hybrid'!F285,IF(OR($D$71=$B$41,$D$71=$B$42,$D$71=$B$43,$D$71=$B$44),'Offre Alezio O Hybrid'!F287,"")))))))))) ->  | K158: =Chiffrage!M172 -> 0
A159: 58 | C159: =IF($D$71=$B$52,'OFFRE HPI M'!B284,IF(OR($D$71=$B$38,$D$71=$B$39),'Offre HPI - CAELIA'!B305,IF($D$71=$B$51,'Offre Strateo'!B225,IF($D$71=$B$40,'Offre S Compact - ERIA FIT IN'!B137,IF(OR($D$71=$B$36,$D$71=$B$37),'Offre SV200 - ERIA N DUO '!B162,IF(OR($D$71=$B$34,$D$71=$B$35),'Offre Alezio S - ERIA '!B222,IF(OR($D$71=$B$49,$D$71=$B$50),'Offre GSHP'!B268,IF($D$71="",'Offre Alezio G hybrid'!B251,IF(OR($D$71=$B$45,$D$71=$B$46,$D$71=$B$47,$D$71=$B$48),'Offre HPI - G Hybrid'!B286,IF(OR($D$71=$B$41,$D$71=$B$42,$D$71=$B$43,$D$71=$B$44),'Offre Alezio O Hybrid'!B288,"")))))))))) ->  | D159: =IF($D$71=$B$52,'OFFRE HPI M'!C284,IF(OR($D$71=$B$38,$D$71=$B$39),'Offre HPI - CAELIA'!C305,IF($D$71=$B$51,'Offre Strateo'!C225,IF($D$71=$B$40,'Offre S Compact - ERIA FIT IN'!C137,IF(OR($D$71=$B$36,$D$71=$B$37),'Offre SV200 - ERIA N DUO '!C162,IF(OR($D$71=$B$34,$D$71=$B$35),'Offre Alezio S - ERIA '!C222,IF(OR($D$71=$B$49,$D$71=$B$50),'Offre GSHP'!C268,IF($D$71="",'Offre Alezio G hybrid'!C251,IF(OR($D$71=$B$45,$D$71=$B$46,$D$71=$B$47,$D$71=$B$48),'Offre HPI - G Hybrid'!C286,IF(OR($D$71=$B$41,$D$71=$B$42,$D$71=$B$43,$D$71=$B$44),'Offre Alezio O Hybrid'!C288,"")))))))))) ->  | H159: =IF($D$71=$B$52,'OFFRE HPI M'!D284,IF(OR($D$71=$B$38,$D$71=$B$39),'Offre HPI - CAELIA'!D305,IF($D$71=$B$51,'Offre Strateo'!D225,IF($D$71=$B$40,'Offre S Compact - ERIA FIT IN'!D137,IF(OR($D$71=$B$36,$D$71=$B$37),'Offre SV200 - ERIA N DUO '!D162,IF(OR($D$71=$B$34,$D$71=$B$35),'Offre Alezio S - ERIA '!D222,IF(OR($D$71=$B$50,$D$71=$B$49),'Offre GSHP'!D268,IF($D$71="",'Offre Alezio G hybrid'!D251,IF(OR($D$71=$B$45,$D$71=$B$46,$D$71=$B$47,$D$71=$B$48),'Offre HPI - G Hybrid'!D286,IF(OR($D$71=$B$41,$D$71=$B$42,$D$71=$B$43,$D$71=$B$44),'Offre Alezio O Hybrid'!D288,"")))))))))) ->  | I159: =IF($D$71=$B$52,'OFFRE HPI M'!E284,IF(OR($D$71=$B$38,$D$71=$B$39),'Offre HPI - CAELIA'!E305,IF($D$71=$B$51,'Offre Strateo'!E225,IF($D$71=$B$40,'Offre S Compact - ERIA FIT IN'!E137,IF(OR($D$71=$B$36,$D$71=$B$37),'Offre SV200 - ERIA N DUO '!E162,IF(OR($D$71=$B$34,$D$71=$B$35),'Offre Alezio S - ERIA '!E222,IF(OR($D$71=$B$50,$D$71=$B$49),'Offre GSHP'!E268,IF($D$71="",'Offre Alezio G hybrid'!E251,IF(OR($D$71=$B$45,$D$71=$B$46,$D$71=$B$47,$D$71=$B$48),'Offre HPI - G Hybrid'!E286,IF(OR($D$71=$B$41,$D$71=$B$42,$D$71=$B$43,$D$71=$B$44),'Offre Alezio O Hybrid'!E288,"")))))))))) ->  | J159: =IF($D$71=$B$52,'OFFRE HPI M'!F284,IF(OR($D$71=$B$38,$D$71=$B$39),'Offre HPI - CAELIA'!F305,IF($D$71=$B$51,'Offre Strateo'!F225,IF($D$71=$B$40,'Offre S Compact - ERIA FIT IN'!F137,IF(OR($D$71=$B$36,$D$71=$B$37),'Offre SV200 - ERIA N DUO '!F162,IF(OR($D$71=$B$34,$D$71=$B$35),'Offre Alezio S - ERIA '!F222,IF(OR($D$71=$B$50,$D$71=$B$49),'Offre GSHP'!F268,IF($D$71="",'Offre Alezio G hybrid'!F251,IF(OR($D$71=$B$45,$D$71=$B$46,$D$71=$B$47,$D$71=$B$48),'Offre HPI - G Hybrid'!F286,IF(OR($D$71=$B$41,$D$71=$B$42,$D$71=$B$43,$D$71=$B$44),'Offre Alezio O Hybrid'!F288,"")))))))))) ->  | K159: =Chiffrage!M173 -> 0
